Workbook

Sheet Login
A4: Financial Statement & Notes to Account

Sheet Main
C6: Valuation Date | D6: 2021-12-31 | F6: =YEAR(ValDay) -> 2021 | G6: =DATE(YEAR(ValDay)-1,12,31) -> 2020-12-31 | H6: =YEAR(PrevValDay) -> 2020

Sheet t.N1
F1: TSH | G1: GT | H1: FT | K1: ILT
E3: FINANCIAL ASSETS | K3: Adjustment
G4: General | H4: Family | K4: and Checks
F5: Shareholders' | G5: Takaful | H5: Takaful
F6: fund | G6: fund | H6: fund | I6: Company
F7: RM'000 | G7: RM'000 | H7: RM'000 | I7: RM'000
E8: =TEXT(ValDay,"yyyy") -> 2021
A9: Yr | B9: FV /FOCI | C9: AccGp | D9: ProdGrp
A10: CY | B10: >a | C10: Asset | D10: MGSGII | E10: Government Investment Issues | F10: =SUMIFS(TB!$I:$I,TB!$L:$L,$A10,TB!$M:$M,$B10,TB!$O:$O,$C10,TB!$K:$K,F$1,TB!$P:$P,$D10)/1000 -> 208750.3132 | G10: =SUMIFS(TB!$I:$I,TB!$L:$L,$A10,TB!$M:$M,$B10,TB!$O:$O,$C10,TB!$K:$K,G$1,TB!$P:$P,$D10)/1000 -> 0 | H10: =SUMIFS(TB!$I:$I,TB!$L:$L,$A10,TB!$M:$M,$B10,TB!$O:$O,$C10,TB!$K:$K,H$1,TB!$P:$P,$D10)/1000 -> 192832.6231 | I10: =SUM(F10:H10) -> 401582.9364
A11: CY | B11: >a | C11: Asset | D11: Cagamas | E11: Cagamas | F11: =SUMIFS(TB!$I:$I,TB!$L:$L,$A11,TB!$M:$M,$B11,TB!$O:$O,$C11,TB!$K:$K,F$1,TB!$P:$P,$D11)/1000 -> 0 | G11: =SUMIFS(TB!$I:$I,TB!$L:$L,$A11,TB!$M:$M,$B11,TB!$O:$O,$C11,TB!$K:$K,G$1,TB!$P:$P,$D11)/1000 -> 0 | H11: =SUMIFS(TB!$I:$I,TB!$L:$L,$A11,TB!$M:$M,$B11,TB!$O:$O,$C11,TB!$K:$K,H$1,TB!$P:$P,$D11)/1000 -> 10508.9274 | I11: =SUM(F11:H11) -> 10508.9274
A12: CY | B12: >a | C12: Asset | D12: PDS/Sukuk | E12: Unquoted Sukuk | F12: =SUMIFS(TB!$I:$I,TB!$L:$L,$A12,TB!$M:$M,$B12,TB!$O:$O,$C12,TB!$K:$K,F$1,TB!$P:$P,$D12)/1000 -> 221660.8658 | G12: =SUMIFS(TB!$I:$I,TB!$L:$L,$A12,TB!$M:$M,$B12,TB!$O:$O,$C12,TB!$K:$K,G$1,TB!$P:$P,$D12)/1000 -> 0 | H12: =SUMIFS(TB!$I:$I,TB!$L:$L,$A12,TB!$M:$M,$B12,TB!$O:$O,$C12,TB!$K:$K,H$1,TB!$P:$P,$D12)/1000 -> 970624.2684 | I12: 1192285.134
A13: CY | B13: >a | C13: Asset | D13: Equity | E13: Quoted equity securities | F13: =SUMIFS(TB!$I:$I,TB!$L:$L,$A13,TB!$M:$M,$B13,TB!$O:$O,$C13,TB!$K:$K,F$1,TB!$P:$P,$D13)/1000 -> 3977.81844 | G13: =SUMIFS(TB!$I:$I,TB!$L:$L,$A13,TB!$M:$M,$B13,TB!$O:$O,$C13,TB!$K:$K,G$1,TB!$P:$P,$D13)/1000 -> 0 | H13: =SUMIFS(TB!$I:$I,TB!$L:$L,$A13,TB!$M:$M,$B13,TB!$O:$O,$C13,TB!$K:$K,H$1,TB!$P:$P,$D13)/1000 -> 111075.4133 | I13: 115053.2317
A14: CY | B14: >a | C14: Asset | D14: IL Funds | E14: Investments in investment-linked funds | F14: =SUMIFS(TB!$I:$I,TB!$L:$L,$A14,TB!$M:$M,$B14,TB!$O:$O,$C14,TB!$K:$K,F$1,TB!$P:$P,$D14)/1000 -> 10839.9 | G14: =SUMIFS(TB!$I:$I,TB!$L:$L,$A14,TB!$M:$M,$B14,TB!$O:$O,$C14,TB!$K:$K,G$1,TB!$P:$P,$D14)/1000 -> 0 | H14: =SUMIFS(TB!$I:$I,TB!$L:$L,$A14,TB!$M:$M,$B14,TB!$O:$O,$C14,TB!$K:$K,H$1,TB!$P:$P,$D14)/1000 -> 0 | I14: =F14+G14+H14-F14-G14-H14 -> 0 | L14: Elimination of Seed Money. Need to show in the individual fund but removed at the company level.
A15: CY | B15: >a | C15: Asset | D15: Unit Trusts | E15: Unit trust funds | F15: =SUMIFS(TB!$I:$I,TB!$L:$L,$A15,TB!$M:$M,$B15,TB!$O:$O,$C15,TB!$K:$K,F$1,TB!$P:$P,$D15)/1000 -> 0 | G15: =SUMIFS(TB!$I:$I,TB!$L:$L,$A15,TB!$M:$M,$B15,TB!$O:$O,$C15,TB!$K:$K,G$1,TB!$P:$P,$D15)/1000 -> 0 | H15: =SUMIFS(TB!$I:$I,TB!$L:$L,$A15,TB!$M:$M,$B15,TB!$O:$O,$C15,TB!$K:$K,H$1,TB!$P:$P,$D15)/1000+K15 -> 542550.8161 | I15: 542550.8161 | K15: =SUMIFS(TB!$I:$I,TB!$L:$L,$A15,TB!$M:$M,$B15,TB!$O:$O,$C15,TB!$K:$K,K$1,TB!$P:$P,$D15)/1000 -> 542550.8161
E16: Accrued profit | F16: =SUMIFS(TB!$I:$I,TB!$L:$L,$A16,TB!$M:$M,$B16,TB!$O:$O,$C16,TB!$K:$K,F$1,TB!$P:$P,$D16)/1000 -> 0 | G16: =SUMIFS(TB!$I:$I,TB!$L:$L,$A16,TB!$M:$M,$B16,TB!$O:$O,$C16,TB!$K:$K,G$1,TB!$P:$P,$D16)/1000 -> 0 | H16: =SUMIFS(TB!$I:$I,TB!$L:$L,$A16,TB!$M:$M,$B16,TB!$O:$O,$C16,TB!$K:$K,H$1,TB!$P:$P,$D16)/1000 -> 0 | I16: =SUMIFS(TB!$I:$I,TB!$L:$L,"CY",TB!$O:$O,"Asset",TB!$K:$K,I$1,TB!$P:$P,$D16)/1000 -> 0
E18: Total | F18: =SUBTOTAL(9,F10:F16) -> 445228.8975 | G18: =SUBTOTAL(9,G10:G16) -> 0 | H18: 1827592.048 | I18: 2261981.046 | K18: =SUMIFS(TB!I:I,TB!J:J,"SLMT",TB!L:L,"CY",TB!F:F,"<'200000'")/1000-I137 -> 2272854.86
E20: =TEXT(PrevValDay,"yyyy") -> 2020
A22: PY | B22: >a | C22: Asset | D22: MGSGII | E22: Government Investment Issues | F22: =SUMIFS(TB!$I:$I,TB!$L:$L,$A22,TB!$M:$M,$B22,TB!$O:$O,$C22,TB!$K:$K,F$1,TB!$P:$P,$D22)/1000 -> 213601.7151 | G22: =SUMIFS(TB!$I:$I,TB!$L:$L,$A22,TB!$M:$M,$B22,TB!$O:$O,$C22,TB!$K:$K,G$1,TB!$P:$P,$D22)/1000 -> 0 | H22: =SUMIFS(TB!$I:$I,TB!$L:$L,$A22,TB!$M:$M,$B22,TB!$O:$O,$C22,TB!$K:$K,H$1,TB!$P:$P,$D22)/1000 -> 192916.472 | I22: =SUM(F22:H22) -> 406518.1871
A23: PY | B23: >a | C23: Asset | D23: Cagamas | E23: Cagamas | F23: =SUMIFS(TB!$I:$I,TB!$L:$L,$A23,TB!$M:$M,$B23,TB!$O:$O,$C23,TB!$K:$K,F$1,TB!$P:$P,$D23)/1000 -> 0 | G23: =SUMIFS(TB!$I:$I,TB!$L:$L,$A23,TB!$M:$M,$B23,TB!$O:$O,$C23,TB!$K:$K,G$1,TB!$P:$P,$D23)/1000 -> 0 | H23: =SUMIFS(TB!$I:$I,TB!$L:$L,$A23,TB!$M:$M,$B23,TB!$O:$O,$C23,TB!$K:$K,H$1,TB!$P:$P,$D23)/1000 -> 10988.4274 | I23: 10988.4274
A24: PY | B24: >a | C24: Asset | D24: PDS/Sukuk | E24: Unquoted Sukuk | F24: =SUMIFS(TB!$I:$I,TB!$L:$L,$A24,TB!$M:$M,$B24,TB!$O:$O,$C24,TB!$K:$K,F$1,TB!$P:$P,$D24)/1000 -> 185225.6719 | G24: =SUMIFS(TB!$I:$I,TB!$L:$L,$A24,TB!$M:$M,$B24,TB!$O:$O,$C24,TB!$K:$K,G$1,TB!$P:$P,$D24)/1000 -> 0 | H24: =SUMIFS(TB!$I:$I,TB!$L:$L,$A24,TB!$M:$M,$B24,TB!$O:$O,$C24,TB!$K:$K,H$1,TB!$P:$P,$D24)/1000 -> 852426.1714 | I24: 1037651.843
A25: PY | B25: >a | C25: Asset | D25: Equity | E25: Quoted equity securities | F25: =SUMIFS(TB!$I:$I,TB!$L:$L,$A25,TB!$M:$M,$B25,TB!$O:$O,$C25,TB!$K:$K,F$1,TB!$P:$P,$D25)/1000 -> 1803.459 | G25: =SUMIFS(TB!$I:$I,TB!$L:$L,$A25,TB!$M:$M,$B25,TB!$O:$O,$C25,TB!$K:$K,G$1,TB!$P:$P,$D25)/1000 -> 0 | H25: =SUMIFS(TB!$I:$I,TB!$L:$L,$A25,TB!$M:$M,$B25,TB!$O:$O,$C25,TB!$K:$K,H$1,TB!$P:$P,$D25)/1000 -> 89056.89126 | I25: 90860.35026
A26: PY | B26: >a | C26: Asset | D26: IL Funds | E26: Investments in investment-linked funds | F26: =SUMIFS(TB!$I:$I,TB!$L:$L,$A26,TB!$M:$M,$B26,TB!$O:$O,$C26,TB!$K:$K,F$1,TB!$P:$P,$D26)/1000 -> 10830.3 | G26: =SUMIFS(TB!$I:$I,TB!$L:$L,$A26,TB!$M:$M,$B26,TB!$O:$O,$C26,TB!$K:$K,G$1,TB!$P:$P,$D26)/1000 -> 0 | H26: =SUMIFS(TB!$I:$I,TB!$L:$L,$A26,TB!$M:$M,$B26,TB!$O:$O,$C26,TB!$K:$K,H$1,TB!$P:$P,$D26)/1000 -> 0 | I26: =F26+G26+H26-F26-G26-H26 -> 0 | L26: Elimination of Seed Money. Need to show in the individual fund but removed at the company level.
A27: PY | B27: >a | C27: Asset | D27: Unit Trusts | E27: Unit trust funds | F27: =SUMIFS(TB!$I:$I,TB!$L:$L,$A27,TB!$M:$M,$B27,TB!$O:$O,$C27,TB!$K:$K,F$1,TB!$P:$P,$D27)/1000 -> 0 | G27: =SUMIFS(TB!$I:$I,TB!$L:$L,$A27,TB!$M:$M,$B27,TB!$O:$O,$C27,TB!$K:$K,G$1,TB!$P:$P,$D27)/1000 -> 0 | H27: =SUMIFS(TB!$I:$I,TB!$L:$L,$A27,TB!$M:$M,$B27,TB!$O:$O,$C27,TB!$K:$K,H$1,TB!$P:$P,$D27)/1000+K27 -> 237812.8369 | I27: 237812.8369 | K27: =SUMIFS(TB!$I:$I,TB!$L:$L,$A27,TB!$M:$M,$B27,TB!$O:$O,$C27,TB!$K:$K,K$1,TB!$P:$P,$D27)/1000 -> 237812.8369
E28: Accrued profit | F28: =SUMIFS(TB!$I:$I,TB!$L:$L,$A28,TB!$M:$M,$B28,TB!$O:$O,$C28,TB!$K:$K,F$1,TB!$P:$P,$D28)/1000 -> 0 | G28: =SUMIFS(TB!$I:$I,TB!$L:$L,$A28,TB!$M:$M,$B28,TB!$O:$O,$C28,TB!$K:$K,G$1,TB!$P:$P,$D28)/1000 -> 0 | H28: =SUMIFS(TB!$I:$I,TB!$L:$L,$A28,TB!$M:$M,$B28,TB!$O:$O,$C28,TB!$K:$K,H$1,TB!$P:$P,$D28)/1000 -> 0 | I28: 0
E30: Total | F30: =SUBTOTAL(9,F22:F28) -> 411461.1459 | G30: =SUBTOTAL(9,G22:G28) -> 0 | H30: 1383200.799 | I30: 1783831.645
E33: The Company’s financial assets are summarised as follows:
G35: General | H35: Family
F36: Shareholders' | G36: Takaful | H36: Takaful
F37: fund | G37: fund | H37: fund | I37: Company
F38: RM'000 | G38: RM'000 | H38: RM'000 | I38: RM'000
E39: =TEXT(ValDay,"yyyy") -> 2021
A41: CY | B41: FOCI | C41: Asset | D41: >a | E41: AFS | F41: =(SUMIFS(TB!$I:$I,TB!$L:$L,$A41,TB!$M:$M,$B41,TB!$O:$O,$C41,TB!$K:$K,F$1,TB!$P:$P,$D41)/1000) -> 441251.079 | G41: =SUMIFS(TB!$I:$I,TB!$L:$L,$A41,TB!$M:$M,$B41,TB!$O:$O,$C41,TB!$K:$K,G$1,TB!$P:$P,$D41)/1000 -> 0 | H41: =SUMIFS(TB!$I:$I,TB!$L:$L,$A41,TB!$M:$M,$B41,TB!$O:$O,$C41,TB!$K:$K,H$1,TB!$P:$P,$D41)/1000 -> 1173965.819 | I41: =I10+I11+I12+I14 -> 1604376.998
A43: CY | B43: FVPL | C43: Asset | D43: >a | E43: FVTPL – designated upon initial recognition | F43: =(SUMIFS(TB!$I:$I,TB!$L:$L,$A43,TB!$M:$M,$B43,TB!$O:$O,$C43,TB!$K:$K,F$1,TB!$P:$P,$D43)/1000) -> 3977.81844 | G43: =SUMIFS(TB!$I:$I,TB!$L:$L,$A43,TB!$M:$M,$B43,TB!$O:$O,$C43,TB!$K:$K,G$1,TB!$P:$P,$D43)/1000 -> 0 | H43: =SUMIFS(TB!$I:$I,TB!$L:$L,$A43,TB!$M:$M,$B43,TB!$O:$O,$C43,TB!$K:$K,H$1,TB!$P:$P,$D43)/1000+K43 -> 653626.2293 | I43: =I13+I15 -> 657604.0478 | K43: =K15 -> 542550.8161
E45: Total | F45: =SUM(F41:F44) -> 445228.8975 | G45: =SUM(G41:G44) -> 0 | H45: 1827592.048 | I45: 2261981.046
F46: =F18-F45 -> 0 | G46: =G18-G45 -> 0 | H46: =H18-H45 -> 0 | I46: 0
E47: =TEXT(PrevValDay,"yyyy") -> 2020
A49: PY | B49: FOCI | C49: Asset | D49: >a | E49: AFS | F49: =(SUMIFS(TB!$I:$I,TB!$L:$L,$A49,TB!$M:$M,$B49,TB!$O:$O,$C49,TB!$K:$K,F$1,TB!$P:$P,$D49)/1000) -> 409657.6869 | G49: =SUMIFS(TB!$I:$I,TB!$L:$L,$A49,TB!$M:$M,$B49,TB!$O:$O,$C49,TB!$K:$K,G$1,TB!$P:$P,$D49)/1000 -> 0 | H49: =SUMIFS(TB!$I:$I,TB!$L:$L,$A49,TB!$M:$M,$B49,TB!$O:$O,$C49,TB!$K:$K,H$1,TB!$P:$P,$D49)/1000 -> 1056331.071 | I49: =I22+I23+I24 -> 1455158.458
A51: PY | B51: FVPL | C51: Asset | D51: >a | E51: FVTPL – designated upon initial recognition | F51: =(SUMIFS(TB!$I:$I,TB!$L:$L,$A51,TB!$M:$M,$B51,TB!$O:$O,$C51,TB!$K:$K,F$1,TB!$P:$P,$D51)/1000) -> 1803.459 | G51: =SUMIFS(TB!$I:$I,TB!$L:$L,$A51,TB!$M:$M,$B51,TB!$O:$O,$C51,TB!$K:$K,G$1,TB!$P:$P,$D51)/1000 -> 0 | H51: =SUMIFS(TB!$I:$I,TB!$L:$L,$A51,TB!$M:$M,$B51,TB!$O:$O,$C51,TB!$K:$K,H$1,TB!$P:$P,$D51)/1000+K51 -> 326869.7281 | I51: =I25+I27 -> 328673.1872 | K51: =SUMIFS(TB!$I:$I,TB!$L:$L,$A51,TB!$O:$O,"Asset",TB!$K:$K,K$1,TB!$P:$P,$D51)/1000 -> 237812.8369
E53: Total | F53: =SUM(F49:F52) -> 411461.1459 | G53: =SUM(G49:G52) -> 0 | H53: 1383200.799 | I53: 1783831.645
F54: =F30-F53 -> 0 | G54: =G30-G53 -> 0 | H54: 0 | I54: 0
E57: The following financial assets mature after 12 months:
G59: General | H59: Family
F60: Shareholders' | G60: Takaful | H60: Takaful
E61: =TEXT(ValDay,"yyyy") -> 2021 | F61: fund | G61: fund | H61: fund | I61: Company
F62: RM'000 | G62: RM'000 | H62: RM'000 | I62: RM'000
E63: AFS | F63: =(F10+F11+F12)-K63 -> 374218.149 | G63: =(G10+G11+G12)-L63 -> 0 | H63: =(H10+H11+H12)-M63 -> 1148680.419 | I63: =SUM(F63:H63) -> 1522898.568 | K63: =SUMIFS(Master!$G:$G,Master!$A:$A,"TSH",Master!$T:$T,"C",Master!$C:$C,"<>Deposit",Master!$D:$D,"<1")/1000 -> 56193.03 | L63: =SUMIFS(Master!$G:$G,Master!$A:$A,"GT",Master!$T:$T,"C",Master!$C:$C,"<>Deposit",Master!$D:$D,"<1")/1000 -> 0 | M63: =SUMIFS(Master!$G:$G,Master!$A:$A,"FT",Master!$T:$T,"C",Master!$C:$C,"<>Deposit",Master!$D:$D,"<1")/1000 -> 25285.4
E64: FVTPL – designated upon initial
E65: recognition | I65: 0
E67: Total | F67: =SUM(F63:F66) -> 374218.149 | G67: =SUM(G63:G66) -> 0 | H67: =SUM(H63:H66) -> 1148680.419 | I67: =SUM(I63:I66) -> 1522898.568
F68: =F10+F11+F12-K63-F67 -> 0 | G68: =G10+G11+G12-L63-G67 -> 0 | H68: =H10+H11+H12-M63-H67 -> 0
G70: General | H70: Family
F71: Shareholders' | G71: Takaful | H71: Takaful
F72: fund | G72: fund | H72: fund | I72: Company
F73: RM'000 | G73: RM'000 | H73: RM'000 | I73: RM'000
E74: AFS
E75: =TEXT(ValDay,"yyyy") -> 2021
E77: Government Investment Issues | F77: =F10 -> 208750.3132 | G77: =G10 -> 0 | H77: 192832.6231 | I77: 401582.9364
E78: Cagamas | F78: =F11 -> 0 | G78: =G11 -> 0 | H78: 10508.9274 | I78: 10508.9274
E79: Unquoted Sukuk | F79: =F12 -> 221660.8658 | G79: =G12 -> 0 | H79: 970624.2684 | I79: 1192285.134
E80: Investments in investment-linked funds | F80: =F14 -> 10839.9 | G80: =G14 -> 0 | H80: 0 | I80: 0 | K80: ?
E81: Accrued profit | F81: =F16 -> 0 | G81: =G16 -> 0 | H81: 0 | I81: 0
E83: Total | F83: =SUM(F77:F82) -> 441251.079 | G83: =SUM(G77:G82) -> 0 | H83: 1173965.819 | I83: 1604376.998 | K83: =SUMIFS(TB!I:I,TB!J:J,"SLMT",TB!L:L,"CY",TB!M:M,"FOCI",TB!F:F,"<'200000'")/1000 -> 1615216.898
K84: =K83-I83 -> 10839.9 | L84: Elimination of Seed Money
E85: FVTPL – designated upon initial
E86: recognition
E87: =TEXT(ValDay,"yyyy") -> 2021
E89: Government Investment Issues | F89: 0 | G89: 0 | H89: 0 | I89: =SUM(F89:H89) -> 0
E90: Unquoted Sukuk | F90: 0 | G90: 0 | H90: 0 | I90: 0
E91: Quoted equity securities | F91: =F13 -> 3977.81844 | G91: =G13 -> 0 | H91: 111075.4133 | I91: =SUM(F91:H91) -> 115053.2317
E92: Unit trust funds | F92: =F15 -> 0 | G92: =G15 -> 0 | H92: 542550.8161 | I92: =SUM(F92:H92) -> 542550.8161
E93: Accrued profit | F93: 0 | G93: 0 | H93: 0 | I93: 0
E95: Total | F95: =SUM(F89:F94) -> 3977.81844 | G95: =SUM(G89:G94) -> 0 | H95: 653626.2293 | I95: 657604.0478
F96: =F18-F83-F95 -> 0 | G96: =G18-G83-G95 -> 0 | H96: 0 | I96: 0
G98: General | H98: Family
F99: Shareholders' | G99: Takaful | H99: Takaful
F100: fund | G100: fund | H100: fund | I100: Company
F101: RM'000 | G101: RM'000 | H101: RM'000 | I101: RM'000
E102: AFS
E103: =TEXT(PrevValDay,"yyyy") -> 2020
E105: Government Investment Issues | F105: =F22 -> 213601.7151 | G105: =G22 -> 0 | H105: 192916.472 | I105: 406518.1871
E106: Cagamas | F106: =F23 -> 0 | G106: =G23 -> 0 | H106: 10988.4274 | I106: 10988.4274
E107: Unquoted Sukuk | F107: =F24 -> 185225.6719 | G107: =G24 -> 0 | H107: 852426.1714 | I107: 1037651.843
E108: Investments in investment-linked funds | F108: =F26 -> 10830.3 | G108: =G26 -> 0 | H108: 0 | I108: 0
E109: Accrued profit | F109: =F28 -> 0 | G109: =G28 -> 0 | H109: 0 | I109: 0
E111: Total | F111: =SUM(F105:F110) -> 409657.6869 | G111: =SUM(G105:G110) -> 0 | H111: 1056331.071 | I111: 1455158.458
E113: FVTPL – designated upon initial
E114: recognition
E115: =TEXT(PrevValDay,"yyyy") -> 2020
E117: Government Investment Issues | F117: 0 | G117: 0 | H117: 0 | I117: 0
E118: Unquoted Sukuk | F118: 0 | G118: 0 | H118: 0 | I118: 0
E119: Quoted equity securities | F119: =F25 -> 1803.459 | G119: =G25 -> 0 | H119: 89056.89126 | I119: 90860.35026
E120: Unit trust funds | F120: =F27 -> 0 | G120: =G27 -> 0 | H120: 237812.8369 | I120: 237812.8369
E121: Accrued profit | F121: 0 | G121: 0 | H121: 0 | I121: 0
E123: Total | F123: =SUM(F117:F122) -> 1803.459 | G123: =SUM(G117:G122) -> 0 | H123: 326869.7281 | I123: 328673.1872
F124: =F30-F111-F123 -> -2.660272003e-11 | G124: =G30-G111-G123 -> 0 | H124: 0 | I124: 0
E127: FINANCING AND RECEIVABLES | G127: General | H127: Family
F128: Shareholders' | G128: Takaful | H128: Takaful
F129: fund | G129: fund | H129: fund | I129: Company
F130: RM'000 | G130: RM'000 | H130: RM'000 | I130: RM'000
E131: =TEXT(ValDay,"yyyy") -> 2021
E133: Fixed and call deposits with
A134: CY | B134: >A | C134: Asset | D134: Deposit | E134: licensed financial institutions | F134: =SUMIFS(TB!$I:$I,TB!$L:$L,$A134,TB!$M:$M,$B134,TB!$O:$O,$C134,TB!$K:$K,F$1,TB!$P:$P,$D134)/1000-F135 -> 36006.16214 | G134: =SUMIFS(TB!$I:$I,TB!$L:$L,$A134,TB!$M:$M,$B134,TB!$O:$O,$C134,TB!$K:$K,G$1,TB!$P:$P,$D134)/1000-G135 -> 0 | H134: =SUMIFS(TB!$I:$I,TB!$L:$L,$A134,TB!$M:$M,$B134,TB!$O:$O,$C134,TB!$K:$K,H$1,TB!$P:$P,$D134)/1000-H135 -> 106217.9339 | I134: =SUM(F134:H134) -> 142224.0961 | K134: Adj for Acc Profit
A135: CY | B135: >A | C135: 139 | D135: Deposit | E135: Accrued profit | F135: =SUMIFS(TB!$I:$I,TB!$L:$L,$A135,TB!$M:$M,$B135,TB!$N:$N,$C135,TB!$K:$K,F$1,TB!$P:$P,$D135)/1000 -> 26.78926 | G135: =SUMIFS(TB!$I:$I,TB!$L:$L,$A135,TB!$M:$M,$B135,TB!$N:$N,$C135,TB!$K:$K,G$1,TB!$P:$P,$D135)/1000-G136 -> 0 | H135: =SUMIFS(TB!$I:$I,TB!$L:$L,$A135,TB!$M:$M,$B135,TB!$N:$N,$C135,TB!$K:$K,H$1,TB!$P:$P,$D135)/1000-H136 -> 9.2234 | I135: =SUM(F135:H135) -> 36.01266 | K135: Diff Formula
F137: =SUM(F134:F136) -> 36032.9514 | G137: =SUM(G134:G136) -> 0 | H137: 106227.1573 | I137: 142260.1087 | K137: =SUMIFS(TB!I:I,TB!J:J,"SLMT",TB!L:L,"CY",TB!M:M,"Loan & Rec",TB!F:F,"<'200000'")/1000 -> 142260.1087 | L137: Check
E139: Receivable within 12 months | F139: =F137 -> 36032.9514 | G139: =G137 -> 0 | H139: 106227.1573 | I139: 142260.1087
E141: =TEXT(PrevValDay,"yyyy") -> 2020
E143: Fixed and call deposits with
A144: PY | B144: >A | C144: Asset | D144: Deposit | E144: licensed financial institutions | F144: =SUMIFS(TB!$I:$I,TB!$L:$L,$A144,TB!$M:$M,$B144,TB!$O:$O,$C144,TB!$K:$K,F$1,TB!$P:$P,$D144)/1000-F145 -> 52986.00946 | G144: =SUMIFS(TB!$I:$I,TB!$L:$L,$A144,TB!$M:$M,$B144,TB!$O:$O,$C144,TB!$K:$K,G$1,TB!$P:$P,$D144)/1000-G145 -> 0 | H144: =SUMIFS(TB!$I:$I,TB!$L:$L,$A144,TB!$M:$M,$B144,TB!$O:$O,$C144,TB!$K:$K,H$1,TB!$P:$P,$D144)/1000-H145 -> 105466.5821 | I144: =SUM(F144:H144) -> 158452.5916 | K144: Adj for Acc Profit
A145: PY | B145: >A | C145: 139 | D145: Deposit | E145: Accrued profit | F145: =SUMIFS(TB!$I:$I,TB!$L:$L,$A145,TB!$M:$M,$B145,TB!$N:$N,$C145,TB!$K:$K,F$1,TB!$P:$P,$D145)/1000-F146 -> 38.35861 | G145: =SUMIFS(TB!$I:$I,TB!$L:$L,$A145,TB!$M:$M,$B145,TB!$N:$N,$C145,TB!$K:$K,G$1,TB!$P:$P,$D145)/1000-G146 -> 0 | H145: =SUMIFS(TB!$I:$I,TB!$L:$L,$A145,TB!$M:$M,$B145,TB!$N:$N,$C145,TB!$K:$K,H$1,TB!$P:$P,$D145)/1000-H146 -> 22.1853 | I145: 60.54391 | K145: Diff Formula
F147: =SUM(F144:F146) -> 53024.36807 | G147: =SUM(G144:G146) -> 0 | H147: 105488.7674 | I147: 158513.1355
E149: Receivable within 12 months | F149: =F147 -> 53024.36807 | G149: =G147 -> 0 | H149: 105488.7674 | I149: 158513.1355
E154: INVESTMENT INCOME
G155: General | H155: Family
F156: Shareholders' | G156: Takaful | H156: Takaful
F157: fund | G157: fund | H157: fund | I157: Company
E158: =TEXT(ValDay,"yyyy") -> 2021 | F158: RM'000 | G158: RM'000 | H158: RM'000 | I158: RM'000
E160: AFS financial assets
A161: CY | B161: FOCI | C161: Interest | D161: >A | E161: Profit income | F161: =-SUMIFS(TB!$I:$I,TB!$L:$L,$A161,TB!$M:$M,$B161,TB!$O:$O,$C161,TB!$K:$K,F$1,TB!$P:$P,$D161)/1000 -> 17058.21725 | G161: =-SUMIFS(TB!$I:$I,TB!$L:$L,$A161,TB!$M:$M,$B161,TB!$O:$O,$C161,TB!$K:$K,G$1,TB!$P:$P,$D161)/1000 -> 0 | H161: =-SUMIFS(TB!$I:$I,TB!$L:$L,$A161,TB!$M:$M,$B161,TB!$O:$O,$C161,TB!$K:$K,H$1,TB!$P:$P,$D161)/1000 -> 48859.99512 | I161: =SUM(F161:H161) -> 65918.21237
E162: (Amortisation of premiums) / | F162: =-SUMIFS(TB!$I:$I,TB!$L:$L,$A162,TB!$M:$M,$B162,TB!$O:$O,$C162,TB!$K:$K,F$1,TB!$P:$P,$D162)/1000 -> 0 | G162: =-SUMIFS(TB!$I:$I,TB!$L:$L,$A162,TB!$M:$M,$B162,TB!$O:$O,$C162,TB!$K:$K,G$1,TB!$P:$P,$D162)/1000 -> 0 | H162: =-SUMIFS(TB!$I:$I,TB!$L:$L,$A162,TB!$M:$M,$B162,TB!$O:$O,$C162,TB!$K:$K,H$1,TB!$P:$P,$D162)/1000 -> 0
A163: CY | B163: FOCI | C163: Amort | D163: >A | E163: accretion of discounts - net | F163: =-SUMIFS(TB!$I:$I,TB!$L:$L,$A163,TB!$M:$M,$B163,TB!$O:$O,$C163,TB!$K:$K,F$1,TB!$P:$P,$D163)/1000 -> -1270.95092 | G163: =-SUMIFS(TB!$I:$I,TB!$L:$L,$A163,TB!$M:$M,$B163,TB!$O:$O,$C163,TB!$K:$K,G$1,TB!$P:$P,$D163)/1000 -> 0 | H163: =-SUMIFS(TB!$I:$I,TB!$L:$L,$A163,TB!$M:$M,$B163,TB!$O:$O,$C163,TB!$K:$K,H$1,TB!$P:$P,$D163)/1000 -> -907.2237 | I163: =SUM(F163:H163) -> -2178.17462
F164: =-SUMIFS(TB!$I:$I,TB!$L:$L,$A164,TB!$M:$M,$B164,TB!$O:$O,$C164,TB!$K:$K,F$1,TB!$P:$P,$D164)/1000 -> 0 | G164: =-SUMIFS(TB!$I:$I,TB!$L:$L,$A164,TB!$M:$M,$B164,TB!$O:$O,$C164,TB!$K:$K,G$1,TB!$P:$P,$D164)/1000 -> 0 | H164: =-SUMIFS(TB!$I:$I,TB!$L:$L,$A164,TB!$M:$M,$B164,TB!$O:$O,$C164,TB!$K:$K,H$1,TB!$P:$P,$D164)/1000 -> 0
E165: FVTPL – designated upon initial recognition | F165: =-SUMIFS(TB!$I:$I,TB!$L:$L,$A165,TB!$M:$M,$B165,TB!$O:$O,$C165,TB!$K:$K,F$1,TB!$P:$P,$D165)/1000 -> 0 | G165: =-SUMIFS(TB!$I:$I,TB!$L:$L,$A165,TB!$M:$M,$B165,TB!$O:$O,$C165,TB!$K:$K,G$1,TB!$P:$P,$D165)/1000 -> 0 | H165: =-SUMIFS(TB!$I:$I,TB!$L:$L,$A165,TB!$M:$M,$B165,TB!$O:$O,$C165,TB!$K:$K,H$1,TB!$P:$P,$D165)/1000 -> 0
A166: CY | B166: FVPL | C166: Interest | D166: >A | E166: Profit income | F166: =-SUMIFS(TB!$I:$I,TB!$L:$L,$A166,TB!$M:$M,$B166,TB!$O:$O,$C166,TB!$K:$K,F$1,TB!$P:$P,$D166)/1000 -> 0 | G166: =-SUMIFS(TB!$I:$I,TB!$L:$L,$A166,TB!$M:$M,$B166,TB!$O:$O,$C166,TB!$K:$K,G$1,TB!$P:$P,$D166)/1000 -> 0 | H166: =-SUMIFS(TB!$I:$I,TB!$L:$L,$A166,TB!$M:$M,$B166,TB!$O:$O,$C166,TB!$K:$K,H$1,TB!$P:$P,$D166)/1000 -> 0 | I166: =SUM(F166:H166) -> 0
A167: CY | B167: FVPL | C167: Dividend | D167: >A | E167: Dividend income | F167: =-SUMIFS(TB!$I:$I,TB!$L:$L,$A167,TB!$M:$M,$B167,TB!$O:$O,$C167,TB!$K:$K,F$1,TB!$P:$P,$D167)/1000 -> 157.88143 | G167: =-SUMIFS(TB!$I:$I,TB!$L:$L,$A167,TB!$M:$M,$B167,TB!$O:$O,$C167,TB!$K:$K,G$1,TB!$P:$P,$D167)/1000 -> 0 | H167: =-SUMIFS(TB!$I:$I,TB!$L:$L,$A167,TB!$M:$M,$B167,TB!$O:$O,$C167,TB!$K:$K,H$1,TB!$P:$P,$D167)/1000+K167 -> 7838.52523 | I167: =SUM(F167:H167) -> 7996.40666 | K167: =-SUMIFS(TB!$I:$I,TB!$L:$L,$A167,TB!$M:$M,$B167,TB!$O:$O,$C167,TB!$K:$K,K$1,TB!$P:$P,$D167)/1000 -> 4821.45014
A168: CY | B168: FVPL | C168: Amort | D168: >A | E168: Amortisation of premiums | F168: =-SUMIFS(TB!$I:$I,TB!$L:$L,$A168,TB!$M:$M,$B168,TB!$O:$O,$C168,TB!$K:$K,F$1,TB!$P:$P,$D168)/1000 -> 0 | G168: =-SUMIFS(TB!$I:$I,TB!$L:$L,$A168,TB!$M:$M,$B168,TB!$O:$O,$C168,TB!$K:$K,G$1,TB!$P:$P,$D168)/1000 -> 0 | H168: =-SUMIFS(TB!$I:$I,TB!$L:$L,$A168,TB!$M:$M,$B168,TB!$O:$O,$C168,TB!$K:$K,H$1,TB!$P:$P,$D168)/1000 -> 0 | I168: =SUM(F168:H168) -> 0
E170: Financing and receivables
E171: Profit income | F171: =F172 -> 404.52051 | G171: =G172 -> 0 | H171: =H172 -> 1465.57869 | I171: =SUM(F171:H171) -> 1870.0992
A172: CY | B172: >A | C172: Interest | D172: Deposit | E172: Hide Row - working for Deposit Interest | F172: =-SUMIFS(TB!$I:$I,TB!$L:$L,$A172,TB!$M:$M,$B172,TB!$O:$O,$C172,TB!$K:$K,F$1,TB!$P:$P,$D172)/1000 -> 404.52051 | G172: =-SUMIFS(TB!$I:$I,TB!$L:$L,$A172,TB!$M:$M,$B172,TB!$O:$O,$C172,TB!$K:$K,G$1,TB!$P:$P,$D172)/1000 -> 0 | H172: =-SUMIFS(TB!$I:$I,TB!$L:$L,$A172,TB!$M:$M,$B172,TB!$O:$O,$C172,TB!$K:$K,H$1,TB!$P:$P,$D172)/1000 -> 1465.57869 | L172: Should have consistent treatment between SLMA & SLMT. Worst case scenario jut stick to MM & FD income.
E173: Sharing of investment income from
E174: Participant Accounts’ fund
F175: =SUM(F161:F174)-F171 -> 16349.66827 | G175: =SUM(G161:G174)-G171 -> 0 | H175: =SUM(H161:H174)-H171 -> 57256.87534 | I175: =SUM(I161:I174)-I172 -> 73606.54361
E178: =TEXT(PrevValDay,"yyyy") -> 2020
E180: AFS financial assets
A181: PY | B181: FOCI | C181: Interest | D181: >A | E181: Profit income | F181: =-SUMIFS(TB!$I:$I,TB!$L:$L,$A181,TB!$M:$M,$B181,TB!$O:$O,$C181,TB!$K:$K,F$1,TB!$P:$P,$D181)/1000 -> 13136.64753 | G181: =-SUMIFS(TB!$I:$I,TB!$L:$L,$A181,TB!$M:$M,$B181,TB!$O:$O,$C181,TB!$K:$K,G$1,TB!$P:$P,$D181)/1000 -> 0 | H181: =-SUMIFS(TB!$I:$I,TB!$L:$L,$A181,TB!$M:$M,$B181,TB!$O:$O,$C181,TB!$K:$K,H$1,TB!$P:$P,$D181)/1000 -> 43443.4265 | I181: =SUM(F181:H181) -> 56580.07403
E182: (Amortisation of premiums) / | F182: =-SUMIFS(TB!$I:$I,TB!$L:$L,$A182,TB!$M:$M,$B182,TB!$O:$O,$C182,TB!$K:$K,F$1,TB!$P:$P,$D182)/1000 -> 0 | G182: =-SUMIFS(TB!$I:$I,TB!$L:$L,$A182,TB!$M:$M,$B182,TB!$O:$O,$C182,TB!$K:$K,G$1,TB!$P:$P,$D182)/1000 -> 0 | H182: =-SUMIFS(TB!$I:$I,TB!$L:$L,$A182,TB!$M:$M,$B182,TB!$O:$O,$C182,TB!$K:$K,H$1,TB!$P:$P,$D182)/1000 -> 0
A183: PY | B183: FOCI | C183: Amort | D183: >A | E183: accretion of discounts - net | F183: =-SUMIFS(TB!$I:$I,TB!$L:$L,$A183,TB!$M:$M,$B183,TB!$O:$O,$C183,TB!$K:$K,F$1,TB!$P:$P,$D183)/1000 -> -637.4545 | G183: =-SUMIFS(TB!$I:$I,TB!$L:$L,$A183,TB!$M:$M,$B183,TB!$O:$O,$C183,TB!$K:$K,G$1,TB!$P:$P,$D183)/1000 -> 0 | H183: =-SUMIFS(TB!$I:$I,TB!$L:$L,$A183,TB!$M:$M,$B183,TB!$O:$O,$C183,TB!$K:$K,H$1,TB!$P:$P,$D183)/1000 -> -739.48172 | I183: =SUM(F183:H183) -> -1376.93622
E185: FVTPL – designated upon initial recognition
A186: PY | B186: FVPL | C186: Interest | D186: >A | E186: Profit income | F186: =-SUMIFS(TB!$I:$I,TB!$L:$L,$A186,TB!$M:$M,$B186,TB!$O:$O,$C186,TB!$K:$K,F$1,TB!$P:$P,$D186)/1000 -> 0 | G186: =-SUMIFS(TB!$I:$I,TB!$L:$L,$A186,TB!$M:$M,$B186,TB!$O:$O,$C186,TB!$K:$K,G$1,TB!$P:$P,$D186)/1000 -> 0 | H186: =-SUMIFS(TB!$I:$I,TB!$L:$L,$A186,TB!$M:$M,$B186,TB!$O:$O,$C186,TB!$K:$K,H$1,TB!$P:$P,$D186)/1000 -> 0 | I186: =SUM(F186:H186) -> 0 | L186: 0 | M186: 0 | N186: 157.52174 | O186: Ok to use this formula for 2018. In 2016, Bonds held under IL Funds are classified as FVTPL. Currently all IL Funds investing in Unit Trust, no longer in Fincome Securities & MM instruments.
A187: PY | B187: FVPL | C187: Dividend | D187: >A | E187: Dividend income | F187: =-SUMIFS(TB!$I:$I,TB!$L:$L,$A187,TB!$M:$M,$B187,TB!$O:$O,$C187,TB!$K:$K,F$1,TB!$P:$P,$D187)/1000 -> 0 | G187: =-SUMIFS(TB!$I:$I,TB!$L:$L,$A187,TB!$M:$M,$B187,TB!$O:$O,$C187,TB!$K:$K,G$1,TB!$P:$P,$D187)/1000 -> 0 | H187: =-SUMIFS(TB!$I:$I,TB!$L:$L,$A187,TB!$M:$M,$B187,TB!$O:$O,$C187,TB!$K:$K,H$1,TB!$P:$P,$D187)/1000+K187 -> 5139.36594 | I187: =SUM(F187:H187) -> 5139.36594 | K187: =-SUMIFS(TB!$I:$I,TB!$L:$L,$A187,TB!$M:$M,$B187,TB!$O:$O,$C187,TB!$K:$K,K$1,TB!$P:$P,$D187)/1000 -> 2924.62835 | L187: =-SUMIFS(TB!$I:$I,TB!$L:$L,$A187,TB!$M:$M,$B187,TB!$O:$O,$C187,TB!$K:$K,L$1,TB!$P:$P,$D187)/1000 -> 0 | M187: 0 | N187: 1050.45044
A188: PY | B188: FVPL | C188: Amort | D188: >A | E188: Amortisation of premiums | F188: =-SUMIFS(TB!$I:$I,TB!$L:$L,$A188,TB!$M:$M,$B188,TB!$O:$O,$C188,TB!$K:$K,F$1,TB!$P:$P,$D188)/1000 -> 0 | G188: =-SUMIFS(TB!$I:$I,TB!$L:$L,$A188,TB!$M:$M,$B188,TB!$O:$O,$C188,TB!$K:$K,G$1,TB!$P:$P,$D188)/1000 -> 0 | H188: =-SUMIFS(TB!$I:$I,TB!$L:$L,$A188,TB!$M:$M,$B188,TB!$O:$O,$C188,TB!$K:$K,H$1,TB!$P:$P,$D188)/1000 -> 0 | I188: =SUM(F188:H188) -> 0 | L188: 0 | M188: 0 | N188: 17.20182 | O188: Ok to use this formula for 2018. In 2016, Bonds held under IL Funds are classified as FVTPL. Currently all IL Funds investing in Unit Trust, no longer in Fincome Securities & MM instruments.
E190: Financing and receivables
E191: Profit income | F191: =F192 -> 1428.93953 | G191: =G192 -> 0 | H191: =H192 -> 1628.48057 | I191: =SUM(F191:H191) -> 3057.4201 | L191: 901.26098 | M191: 531.35545 | N191: -2370.28588 | O191: Ok to use this formula for 2018. In 2016, Bonds held under IL Funds are classified as FVTPL. Currently all IL Funds investing in Unit Trust, no longer in Fincome Securities & MM instruments.
A192: PY | B192: >A | C192: Interest | D192: Deposit | E192: Hide Row - working for Deposit Interest | F192: =-SUMIFS(TB!$I:$I,TB!$L:$L,$A192,TB!$M:$M,$B192,TB!$O:$O,$C192,TB!$K:$K,F$1,TB!$P:$P,$D192)/1000 -> 1428.93953 | G192: =-SUMIFS(TB!$I:$I,TB!$L:$L,$A192,TB!$M:$M,$B192,TB!$O:$O,$C192,TB!$K:$K,G$1,TB!$P:$P,$D192)/1000 -> 0 | H192: =-SUMIFS(TB!$I:$I,TB!$L:$L,$A192,TB!$M:$M,$B192,TB!$O:$O,$C192,TB!$K:$K,H$1,TB!$P:$P,$D192)/1000 -> 1628.48057
E193: Participant Accounts’ fund
F195: =SUM(F181:F194)-F191 -> 13928.13256 | G195: =SUM(G181:G194)-G191 -> 0 | H195: =SUM(H181:H194)-H191 -> 49471.79129 | I195: =SUM(I181:I194) -> 63399.92385
G200: General | H200: Family
E201: REALISED GAINS/(LOSSES) | F201: Shareholders' | G201: Takaful | H201: Takaful
F202: fund | G202: fund | H202: fund | I202: Company
F203: RM'000 | G203: RM'000 | H203: RM'000 | I203: RM'000
E205: =TEXT(ValDay,"yyyy") -> 2021
E207: AFS financial assets
A208: CY | B208: FOCI | C208: Realised | D208: Equity | E208: Quoted Shares
A209: CY | B209: FOCI | C209: Realised | D209: PDS/Sukuk | E209: Unquoted Sukuk | F209: =-SUMIFS(TB!$I:$I,TB!$L:$L,$A209,TB!$M:$M,$B209,TB!$O:$O,$C209,TB!$K:$K,F$1,TB!$P:$P,$D209)/1000 -> 0 | G209: =-SUMIFS(TB!$I:$I,TB!$L:$L,$A209,TB!$M:$M,$B209,TB!$O:$O,$C209,TB!$K:$K,G$1,TB!$P:$P,$D209)/1000 -> 0 | H209: =-SUMIFS(TB!$I:$I,TB!$L:$L,$A209,TB!$M:$M,$B209,TB!$O:$O,$C209,TB!$K:$K,H$1,TB!$P:$P,$D209)/1000 -> 1124.47222 | I209: =SUM(F209:H209) -> 1124.47222
A210: CY | B210: FOCI | C210: Realised | D210: Cagamas | E210: Cagamas | F210: =-SUMIFS(TB!$I:$I,TB!$L:$L,$A210,TB!$M:$M,$B210,TB!$O:$O,$C210,TB!$K:$K,F$1,TB!$P:$P,$D210)/1000 -> 0 | G210: =-SUMIFS(TB!$I:$I,TB!$L:$L,$A210,TB!$M:$M,$B210,TB!$O:$O,$C210,TB!$K:$K,G$1,TB!$P:$P,$D210)/1000 -> 0 | H210: =-SUMIFS(TB!$I:$I,TB!$L:$L,$A210,TB!$M:$M,$B210,TB!$O:$O,$C210,TB!$K:$K,H$1,TB!$P:$P,$D210)/1000 -> 0 | I210: =SUM(F210:H210) -> 0
A211: CY | B211: FOCI | C211: Realised | D211: MGSGII | E211: Government Investment Issues | F211: =-SUMIFS(TB!$I:$I,TB!$L:$L,$A211,TB!$M:$M,$B211,TB!$O:$O,$C211,TB!$K:$K,F$1,TB!$P:$P,$D211)/1000 -> 680.8 | G211: =-SUMIFS(TB!$I:$I,TB!$L:$L,$A211,TB!$M:$M,$B211,TB!$O:$O,$C211,TB!$K:$K,G$1,TB!$P:$P,$D211)/1000 -> 0 | H211: =-SUMIFS(TB!$I:$I,TB!$L:$L,$A211,TB!$M:$M,$B211,TB!$O:$O,$C211,TB!$K:$K,H$1,TB!$P:$P,$D211)/1000 -> -21.24 | I211: 659.56
A212: CY | B212: FOCI | C212: Realised | D212: Unit Trusts | E212: Unit trust funds | F212: =-SUMIFS(TB!$I:$I,TB!$L:$L,$A212,TB!$M:$M,$B212,TB!$O:$O,$C212,TB!$K:$K,F$1,TB!$P:$P,$D212)/1000 -> 0 | G212: =-SUMIFS(TB!$I:$I,TB!$L:$L,$A212,TB!$M:$M,$B212,TB!$O:$O,$C212,TB!$K:$K,G$1,TB!$P:$P,$D212)/1000 -> 0 | H212: =-SUMIFS(TB!$I:$I,TB!$L:$L,$A212,TB!$M:$M,$B212,TB!$O:$O,$C212,TB!$K:$K,H$1,TB!$P:$P,$D212)/1000 -> 0 | I212: 0
F213: =SUM(F209:F212) -> 680.8 | G213: =SUM(G209:G212) -> 0 | H213: 1103.23222 | I213: 1784.03222
E215: =TEXT(PrevValDay,"yyyy") -> 2020
E217: AFS financial assets
A218: PY | B218: FOCI | C218: Realised | D218: Equity | E218: Quoted Shares
A219: PY | B219: FOCI | C219: Realised | D219: PDS/Sukuk | E219: Unquoted Sukuk | F219: =-SUMIFS(TB!$I:$I,TB!$L:$L,$A219,TB!$M:$M,$B219,TB!$O:$O,$C219,TB!$K:$K,F$1,TB!$P:$P,$D219)/1000 -> 46.5 | G219: =-SUMIFS(TB!$I:$I,TB!$L:$L,$A219,TB!$M:$M,$B219,TB!$O:$O,$C219,TB!$K:$K,G$1,TB!$P:$P,$D219)/1000 -> 0 | H219: =-SUMIFS(TB!$I:$I,TB!$L:$L,$A219,TB!$M:$M,$B219,TB!$O:$O,$C219,TB!$K:$K,H$1,TB!$P:$P,$D219)/1000 -> 1237.65 | I219: =SUM(F219:H219) -> 1284.15
A220: PY | B220: FOCI | C220: Realised | D220: Cagamas | E220: Cagamas | F220: =-SUMIFS(TB!$I:$I,TB!$L:$L,$A220,TB!$M:$M,$B220,TB!$O:$O,$C220,TB!$K:$K,F$1,TB!$P:$P,$D220)/1000 -> 0 | G220: =-SUMIFS(TB!$I:$I,TB!$L:$L,$A220,TB!$M:$M,$B220,TB!$O:$O,$C220,TB!$K:$K,G$1,TB!$P:$P,$D220)/1000 -> 0 | H220: =-SUMIFS(TB!$I:$I,TB!$L:$L,$A220,TB!$M:$M,$B220,TB!$O:$O,$C220,TB!$K:$K,H$1,TB!$P:$P,$D220)/1000 -> 0 | I220: =SUM(F220:H220) -> 0
A221: PY | B221: FOCI | C221: Realised | D221: MGSGII | E221: Government Investment Issues | F221: =-SUMIFS(TB!$I:$I,TB!$L:$L,$A221,TB!$M:$M,$B221,TB!$O:$O,$C221,TB!$K:$K,F$1,TB!$P:$P,$D221)/1000 -> -49.9 | G221: =-SUMIFS(TB!$I:$I,TB!$L:$L,$A221,TB!$M:$M,$B221,TB!$O:$O,$C221,TB!$K:$K,G$1,TB!$P:$P,$D221)/1000 -> 0 | H221: =-SUMIFS(TB!$I:$I,TB!$L:$L,$A221,TB!$M:$M,$B221,TB!$O:$O,$C221,TB!$K:$K,H$1,TB!$P:$P,$D221)/1000 -> 1660 | I221: 1610.1
A222: PY | B222: FOCI | C222: Realised | D222: Unit Trusts | E222: Unit trust funds | F222: =-SUMIFS(TB!$I:$I,TB!$L:$L,$A222,TB!$M:$M,$B222,TB!$O:$O,$C222,TB!$K:$K,F$1,TB!$P:$P,$D222)/1000 -> 0 | G222: =-SUMIFS(TB!$I:$I,TB!$L:$L,$A222,TB!$M:$M,$B222,TB!$O:$O,$C222,TB!$K:$K,G$1,TB!$P:$P,$D222)/1000 -> 0 | H222: =-SUMIFS(TB!$I:$I,TB!$L:$L,$A222,TB!$M:$M,$B222,TB!$O:$O,$C222,TB!$K:$K,H$1,TB!$P:$P,$D222)/1000 -> 0 | I222: 0
F223: =SUM(F219:F222) -> -3.4 | G223: =SUM(G219:G222) -> 0 | H223: 2897.65 | I223: 2894.25
E226: NET FAIR VALUE GAINS/(LOSSES) | G226: General | H226: Family
F227: Shareholders' | G227: Takaful | H227: Takaful
F228: fund | G228: fund | H228: fund | I228: Company
E229: =TEXT(ValDay,"yyyy") -> 2021 | F229: RM'000 | G229: RM'000 | H229: RM'000 | I229: RM'000
E231: FVTPL – designated upon initial recognition
A232: CY | B232: FVPL | C232: Realised | D232: >A | E232: - realised | F232: =-SUMIFS(TB!$I:$I,TB!$L:$L,$A232,TB!$M:$M,$B232,TB!$O:$O,$C232,TB!$K:$K,F$1,TB!$P:$P,$D232)/1000 -> 321.74467 | H232: =-SUMIFS(TB!$I:$I,TB!$L:$L,$A232,TB!$M:$M,$B232,TB!$O:$O,$C232,TB!$K:$K,H$1,TB!$P:$P,$D232)/1000+K232 -> 8591.71608 | I232: =SUM(F232:H232) -> 8913.46075 | K232: =-SUMIFS(TB!$I:$I,TB!$L:$L,$A232,TB!$M:$M,$B232,TB!$O:$O,$C232,TB!$K:$K,K$1,TB!$P:$P,$D232)/1000 -> 6501.47374
A233: CY | B233: FVPL | C233: Unrealised | D233: >A | E233: - unrealised | F233: =-SUMIFS(TB!$I:$I,TB!$L:$L,$A233,TB!$M:$M,$B233,TB!$O:$O,$C233,TB!$K:$K,F$1,TB!$P:$P,$D233)/1000 -> 133.93062 | H233: =-SUMIFS(TB!$I:$I,TB!$L:$L,$A233,TB!$M:$M,$B233,TB!$O:$O,$C233,TB!$K:$K,H$1,TB!$P:$P,$D233)/1000+K233 -> 8962.73588 | I233: 9096.6665 | K233: =-SUMIFS(TB!$I:$I,TB!$L:$L,$A233,TB!$M:$M,$B233,TB!$O:$O,$C233,TB!$K:$K,K$1,TB!$P:$P,$D233)/1000 -> 8632.23325
F235: =SUM(F232:F234) -> 455.67529 | G235: =SUM(G232:G234) -> 0 | H235: =SUM(H232:H234) -> 17554.45196 | I235: =SUM(I232:I234) -> 18010.12725
E237: =TEXT(PrevValDay,"yyyy") -> 2020
E239: FVTPL – designated upon initial recognition
A240: PY | B240: FVPL | C240: Realised | D240: >A | E240: - realised | F240: =-SUMIFS(TB!$I:$I,TB!$L:$L,$A240,TB!$M:$M,$B240,TB!$O:$O,$C240,TB!$K:$K,F$1,TB!$P:$P,$D240)/1000 -> 0 | H240: =-SUMIFS(TB!$I:$I,TB!$L:$L,$A240,TB!$M:$M,$B240,TB!$O:$O,$C240,TB!$K:$K,H$1,TB!$P:$P,$D240)/1000+K240 -> 13864.38024 | I240: =SUM(F240:H240) -> 13864.38024 | K240: =-SUMIFS(TB!$I:$I,TB!$L:$L,$A240,TB!$M:$M,$B240,TB!$O:$O,$C240,TB!$K:$K,K$1,TB!$P:$P,$D240)/1000 -> 1279.90421
A241: PY | B241: FVPL | C241: Unrealised | D241: >A | E241: - unrealised | F241: =-SUMIFS(TB!$I:$I,TB!$L:$L,$A241,TB!$M:$M,$B241,TB!$O:$O,$C241,TB!$K:$K,F$1,TB!$P:$P,$D241)/1000 -> 42.46057 | H241: =-SUMIFS(TB!$I:$I,TB!$L:$L,$A241,TB!$M:$M,$B241,TB!$O:$O,$C241,TB!$K:$K,H$1,TB!$P:$P,$D241)/1000+K241 -> 36455.44395 | I241: =SUM(F241:H241) -> 36497.90452 | K241: =-SUMIFS(TB!$I:$I,TB!$L:$L,$A241,TB!$M:$M,$B241,TB!$O:$O,$C241,TB!$K:$K,K$1,TB!$P:$P,$D241)/1000 -> 29452.64363 | M241: To change formula because Seed Money is classified under AFS for SLMT.
F244: =SUM(F240:F243) -> 42.46057 | G244: =SUM(G240:G243) -> 0 | H244: =SUM(H240:H243) -> 50319.82419 | I244: =SUM(I240:I243) -> 50362.28476

Sheet t.N2
D1: FOCI | E1: FOCI | F1: FOCI | H1: FVPL | I1: FVPL | L1: FVPL
D2: TSH | E2: GT | F2: FT | H2: TSH | I2: FT | L2: ILT
L3: Adjustments
B4: Carrying values of financial assets
F5: Available-for-sale | I5: FVTPL
E6: General | F6: Family | I6: Family
D7: Shareholders' | E7: Takaful | F7: Takaful | H7: Shareholders' | I7: Takaful
D8: fund | E8: fund | F8: fund | H8: fund | I8: fund | K8: Company
D9: RM'000 | E9: RM'000 | F9: RM'000 | H9: RM'000 | I9: RM'000 | K9: RM'000
B11: ="At " & TEXT(PrevValDay,"dd MMMM yyyy") & " /" & TEXT(PrevValDay+1,"dd MMMM yyyy") -> At 31 December 2020 /01 January 2021 | D11: =t.N1!F49 -> 409657.6869 | E11: =t.N1!G49 -> 0 | F11: =t.N1!H49 -> 1056331.071 | H11: =t.N1!F51 -> 1803.459 | I11: =t.N1!H51 -> 326869.7281 | K11: =t.N1!I53 -> 1783831.645
A13: P | B13: Purchases | D13: =SUMIFS(Tran!$J:$J,Tran!$E:$E,"CY",Tran!$D:$D,D$1,Tran!$C:$C,D$2,Tran!$A:$A,$A13)/1000 -> 65747.18 | E13: =SUMIFS(Tran!$J:$J,Tran!$E:$E,"CY",Tran!$D:$D,E$1,Tran!$C:$C,E$2,Tran!$A:$A,$A13)/1000 -> 0 | F13: =SUMIFS(Tran!$J:$J,Tran!$E:$E,"CY",Tran!$D:$D,F$1,Tran!$C:$C,F$2,Tran!$A:$A,$A13)/1000 -> 271192.25 | H13: =SUMIFS(Tran!$J:$J,Tran!$E:$E,"CY",Tran!$D:$D,H$1,Tran!$C:$C,H$2,Tran!$A:$A,$A13)/1000 -> 17478.9409 | I13: =SUMIFS(Tran!$J:$J,Tran!$E:$E,"CY",Tran!$D:$D,I$1,Tran!$C:$C,I$2,Tran!$A:$A,$A13)/1000+L13 -> 421915.6391 | K13: =SUM(D13:J13) -> 776334.01 | L13: =SUMIFS(Tran!$J:$J,Tran!$E:$E,"CY",Tran!$D:$D,L$1,Tran!$C:$C,L$2,Tran!$A:$A,$A13)/1000 -> 340370.6745
A14: M | B14: Maturities | D14: =SUMIFS(Tran!$J:$J,Tran!$E:$E,"CY",Tran!$D:$D,D$1,Tran!$C:$C,D$2,Tran!$A:$A,$A14)/1000 -> -2955 | E14: =SUMIFS(Tran!$J:$J,Tran!$E:$E,"CY",Tran!$D:$D,E$1,Tran!$C:$C,E$2,Tran!$A:$A,$A14)/1000 -> 0 | F14: =SUMIFS(Tran!$J:$J,Tran!$E:$E,"CY",Tran!$D:$D,F$1,Tran!$C:$C,F$2,Tran!$A:$A,$A14)/1000 -> -65291.00778 | H14: =SUMIFS(Tran!$J:$J,Tran!$E:$E,"CY",Tran!$D:$D,H$1,Tran!$C:$C,H$2,Tran!$A:$A,$A14)/1000 -> 0 | I14: =SUMIFS(Tran!$J:$J,Tran!$E:$E,"CY",Tran!$D:$D,I$1,Tran!$C:$C,I$2,Tran!$A:$A,$A14)/1000+L14 -> 0 | K14: =SUM(D14:J14) -> -68246.00778 | L14: =SUMIFS(Tran!$J:$J,Tran!$E:$E,"CY",Tran!$D:$D,L$1,Tran!$C:$C,L$2,Tran!$A:$A,$A14)/1000 -> 0
A15: S | B15: Disposal | D15: =SUMIFS(Tran!$J:$J,Tran!$E:$E,"CY",Tran!$D:$D,D$1,Tran!$C:$C,D$2,Tran!$A:$A,$A15)/1000 -> -10004.2 | E15: =SUMIFS(Tran!$J:$J,Tran!$E:$E,"CY",Tran!$D:$D,E$1,Tran!$C:$C,E$2,Tran!$A:$A,$A15)/1000 -> 0 | F15: =SUMIFS(Tran!$J:$J,Tran!$E:$E,"CY",Tran!$D:$D,F$1,Tran!$C:$C,F$2,Tran!$A:$A,$A15)/1000 -> -33728.56 | H15: =SUMIFS(Tran!$J:$J,Tran!$E:$E,"CY",Tran!$D:$D,H$1,Tran!$C:$C,H$2,Tran!$A:$A,$A15)/1000 -> -15438.51208 | I15: =SUMIFS(Tran!$J:$J,Tran!$E:$E,"CY",Tran!$D:$D,I$1,Tran!$C:$C,I$2,Tran!$A:$A,$A15)/1000+L15 -> -104121.8738 | K15: =SUM(D15:J15) -> -163293.1459 | L15: =SUMIFS(Tran!$J:$J,Tran!$E:$E,"CY",Tran!$D:$D,L$1,Tran!$C:$C,L$2,Tran!$A:$A,$A15)/1000 -> -44264.92854
A16: x | B16: Fair value gains/(losses) recorded in:
B17: Profit or loss | H17: =-SUMIFS(TB!$I:$I,TB!$L:$L,"CY",TB!$O:$O,"Unrealised",TB!$K:$K,"TSH",TB!$M:$M,"FVPL")/1000 -> 133.93062 | I17: =-SUMIFS(TB!$I:$I,TB!$L:$L,"CY",TB!$O:$O,"Unrealised",TB!$K:$K,"FT",TB!$M:$M,"FVPL")/1000-SUMIFS(TB!$I:$I,TB!$L:$L,"CY",TB!$O:$O,"Unrealised",TB!$K:$K,"ILT",TB!$M:$M,"FVPL")/1000 -> 8962.73588 | K17: =SUM(D17:J17) -> 9096.6665
A18: x | B18: Other comprehensive gain/loss) | D18: =-SUMIFS(TB!$I:$I,TB!$L:$L,"CY",TB!$O:$O,"Unrealised",TB!$K:$K,"TSH",TB!$M:$M,"FOCI")/1000 -> -20450.99908 | E18: =-SUMIFS(TB!$I:$I,TB!$L:$L,"CY",TB!$O:$O,"Unrealised",TB!$K:$K,"GT",TB!$M:$M,"FOCI")/1000 -> 0 | F18: =-SUMIFS(TB!$I:$I,TB!$L:$L,"CY",TB!$O:$O,"Unrealised",TB!$K:$K,"FT",TB!$M:$M,"FOCI")/1000 -> -55806.98852 | K18: =SUM(D18:J18)+L18 -> -76267.5876 | L18: =SUMIFS(TB!$I:$I,TB!$L:$L,"CY",TB!$O:$O,"Unrealised",TB!$P:$P,"IL Funds",TB!$J:$J,"SLMT")/1000 -> -9.6 | M18: Seed Money FV movement elimination from AFS line
B19: Elimination of Shareholders’ fund investment
B20: in investment-linked funds (Note 12(c))
B21: Movement in accrued profit | D21: =Q23/1000 -> 527.36211 | E21: =Q25/1000 -> 0 | F21: =Q27/1000 -> 2176.27803 | H21: 0 | I21: 0 | K21: =SUM(D21:J21) -> 2703.64014 | M21: Calc F54 | N21: Mvt in Accrued Profit
O22: CY | P22: PY | Q22: MVT
A23: x | B23: (Amortisation)/accretion adjustments | D23: =t.N1!F163 -> -1270.95092 | E23: =t.N1!G163 -> 0 | F23: =t.N1!H163 -> -907.2237 | H23: 0 | I23: 0 | K23: =SUM(D23:J23) -> -2178.17462 | M23: TSH | N23: 139 | O23: =SUMIFS(TB!$I:$I,TB!$L:$L,O$22,TB!$N:$N,$N23,TB!$K:$K,$M23,TB!$M:$M,"FOCI") -> 4818899.03 | P23: =SUMIFS(TB!$I:$I,TB!$L:$L,P$22,TB!$N:$N,$N23,TB!$K:$K,$M23,TB!$M:$M,"FOCI") -> 3990874.73 | Q23: =O23+O24-P23-P24 -> 527362.11
B24: (Note 18) | M24: TSH | N24: 130 | O24: =SUMIFS(TB!$I:$I,TB!$L:$L,O$22,TB!$N:$N,$N24,TB!$K:$K,$M24,TB!$M:$M,"FOCI") -> 0 | P24: =SUMIFS(TB!$I:$I,TB!$L:$L,P$22,TB!$N:$N,$N24,TB!$K:$K,$M24,TB!$M:$M,"FOCI") -> 300662.19 | Q24: =SUMIFS(TB!$I:$I,TB!$L:$L,Q$22,TB!$N:$N,$N24,TB!$K:$K,$M24) -> 0
M25: GT | N25: 139 | O25: =SUMIFS(TB!$I:$I,TB!$L:$L,O$22,TB!$N:$N,$N25,TB!$K:$K,$M25,TB!$M:$M,"FOCI") -> 0 | P25: =SUMIFS(TB!$I:$I,TB!$L:$L,P$22,TB!$N:$N,$N25,TB!$K:$K,$M25,TB!$M:$M,"FOCI") -> 0 | Q25: =O25+O26-P25-P26 -> 0
B26: ="At " & TEXT(ValDay,"dd MMMM yyyy") -> At 31 December 2021 | D26: =SUM(D11:D25) -> 441251.079 | E26: =SUM(E11:E25) -> 0 | F26: =SUM(F11:F25) -> 1173965.819 | H26: =SUM(H11:H25) -> 3977.81844 | I26: =SUM(I11:I25) -> 653626.2293 | K26: =SUBTOTAL(9,K11:K25) -> 2261981.046 | M26: GT | N26: 130 | O26: =SUMIFS(TB!$I:$I,TB!$L:$L,O$22,TB!$N:$N,$N26,TB!$K:$K,$M26,TB!$M:$M,"FOCI") -> 0 | P26: =SUMIFS(TB!$I:$I,TB!$L:$L,P$22,TB!$N:$N,$N26,TB!$K:$K,$M26,TB!$M:$M,"FOCI") -> 0 | Q26: =SUMIFS(TB!$I:$I,TB!$L:$L,Q$22,TB!$N:$N,$N26,TB!$K:$K,$M26) -> 0
D27: =D26-t.N1!F41 -> 0 | E27: =E26-t.N1!G45 -> 0 | F27: =F26-t.N1!H41 -> 0 | H27: =H26-t.N1!F43 -> -1.455191523e-11 | I27: =I26-t.N1!H43 -> -9.999726899e-06 | K27: =K26-t.N1!I18 -> -1.000100747e-05 | M27: FT | N27: 139 | O27: =SUMIFS(TB!$I:$I,TB!$L:$L,O$22,TB!$N:$N,$N27,TB!$K:$K,$M27,TB!$M:$M,"FOCI") -> 13223743.24 | P27: =SUMIFS(TB!$I:$I,TB!$L:$L,P$22,TB!$N:$N,$N27,TB!$K:$K,$M27,TB!$M:$M,"FOCI") -> 11740333.13 | Q27: =O27+O28-P27-P28 -> 2176278.03
M28: FT | N28: 130 | O28: =SUMIFS(TB!$I:$I,TB!$L:$L,O$22,TB!$N:$N,$N28,TB!$K:$K,$M28,TB!$M:$M,"FOCI") -> 813270.66 | P28: =SUMIFS(TB!$I:$I,TB!$L:$L,P$22,TB!$N:$N,$N28,TB!$K:$K,$M28,TB!$M:$M,"FOCI") -> 120402.74 | Q28: =SUMIFS(TB!$I:$I,TB!$L:$L,Q$22,TB!$N:$N,$N28,TB!$K:$K,$M28) -> 0
B35: Other comprehensive gain/loss) | D35: =D18 -> -20450.99908 | E35: =E18 -> 0 | F35: =F18 -> -55806.98852
B36: - Provision | D36: =D35-D37 -> -19534.92758 | E36: =E35-E37 -> 0 | F36: -54089.44036
B37: - Reversal | D37: -916.0715 | E37: 0 | F37: -1717.54816

Sheet t.N3
A1: Data: TB only
B3: To split the accrued interest by category
B4: ="The following table presents the Company’s financial assets that are carried at fair value as at " & TEXT(ValDay,"dd MMMM yyyy") -> The following table presents the Company’s financial assets that are carried at fair value as at 31 December 2021
D6: Level 1 | F6: Level 2 | H6: Total
D7: RM'000 | F7: RM'000 | H7: RM'000
B8: =TEXT(ValDay,"yyyy") -> 2021
B10: Shareholders' fund
B11: AFS
B12: - Government Investment Issues | F12: =t.N1!F10 -> 208750.3132 | H12: =SUM(D12:G12) -> 208750.3132
B13: - Cagamas | F13: 0 | H13: =SUM(D13:G13) -> 0
B14: - Unquoted Sukuk | F14: =t.N1!F12 -> 221660.8658 | H14: =SUM(D14:G14) -> 221660.8658
B15: - Investments in investment-linked funds | D15: =t.N1!F14 -> 10839.9 | H15: 10839.9
B16: - Accrued profit | F16: 0 | H16: 0
B18: FVTPL - designated upon initial recognition
B19: - Quoted equity securities | D19: =t.N1!F13 -> 3977.81844 | H19: 3977.81844
B20: - Unit trust funds | D20: =t.N1!F15 -> 0 | H20: 0
D21: =SUM(D12:D20) -> 14817.71844 | F21: =SUM(F12:F20) -> 430411.179 | H21: =SUM(H12:H20) -> 445228.8975
H22: =H21-t.N1!F18 -> 0
D23: Level 1 | F23: Level 2 | H23: Total
D24: RM'000 | F24: RM'000 | H24: RM'000
B25: =TEXT(ValDay,"yyyy") -> 2021
B27: General Takaful fund
B28: AFS
B29: - Government Investment Issues | F29: =t.N1!G10 -> 0 | H29: =SUM(D29:G29) -> 0
B30: - Unquoted Sukuk | F30: =t.N1!G12 -> 0 | H30: 0
B31: - Accrued profit | F31: 0 | H31: 0
D33: =SUM(D29:D31) -> 0 | F33: =SUM(F29:F31) -> 0 | H33: =SUM(H29:H31) -> 0
H34: =H33-t.N1!G18 -> 0
D35: Level 1 | F35: Level 2 | H35: Total
D36: RM'000 | F36: RM'000 | H36: RM'000
B37: =TEXT(ValDay,"yyyy") -> 2021
B39: Family Takaful fund
B40: AFS
B41: - Government Investment Issues | F41: =t.N1!H10 -> 192832.6231 | H41: =SUM(D41:G41) -> 192832.6231
B42: - Cagamas | F42: =t.N1!H11 -> 10508.9274 | H42: 10508.9274
B43: - Unquoted Sukuk | F43: =t.N1!H12 -> 970624.2684 | H43: 970624.2684
B44: - Accrued profit | F44: 0 | H44: 0
B46: FVTPL - designated upon initial recognition
B47: - Quoted equity securities | D47: =t.N1!H13 -> 111075.4133 | H47: =SUM(D47:G47) -> 111075.4133
B48: - Government Investment Issues | F48: 0 | H48: 0
B49: - Unquoted Sukuk | F49: 0 | H49: 0
B50: - Unit trust funds | D50: =t.N1!H15 -> 542550.8161 | H50: 542550.8161
B51: - Accrued profit | F51: 0 | H51: 0
D53: =SUM(D41:D52) -> 653626.2293 | F53: =SUM(F41:F52) -> 1173965.819 | H53: =SUM(H41:H52) -> 1827592.048
H54: =H53-t.N1!H18 -> 0
D55: Level 1 | F55: Level 2 | H55: Total
D56: RM'000 | F56: RM'000 | H56: RM'000
B57: =TEXT(ValDay,"yyyy") -> 2021
B59: Company
B60: AFS
B61: - Government Investment Issues | F61: =F12+F29+F41 -> 401582.9364 | H61: =SUM(D61:G61) -> 401582.9364
B62: - Cagamas | F62: =F13+F42 -> 10508.9274 | H62: 10508.9274
B63: - Unquoted Sukuk | F63: =F14+F30+F43 -> 1192285.134 | H63: 1192285.134
B64: - Investments in investment-linked funds | D64: =D15-D15 -> 0 | H64: =D64+F64-D64-F64 -> 0 | I64: elimination of Seed Money
B65: - Accrued profit | F65: 0 | H65: 0
B67: FVTPL - designated upon initial recognition
B68: - Quoted equity securities | D68: =D19+D47 -> 115053.2317 | H68: 115053.2317
B69: - Government Investment Issues | F69: 0 | H69: 0
B70: - Unquoted Sukuk | F70: 0 | H70: 0
B71: - Unit trust funds | D71: =D20+D50 -> 542550.8161 | H71: 542550.8161
B72: - Accrued profit | F72: 0 | H72: 0
D74: =SUM(D61:D73) -> 657604.0478 | F74: =SUM(F61:F73) -> 1604376.998 | H74: =SUM(H61:H73) -> 2261981.046
H75: =H74-t.N1!I18 -> 0

Sheet t.CreditExp
A1: Data: TB
B4: Credit exposure | E4: General | G4: Family | I4: Investment-
C5: Shareholders' | E5: Takaful | G5: Takaful | I5: linked
C6: fund | E6: fund | G6: fund | I6: fund | K6: Company
C7: RM'000 | E7: RM'000 | G7: RM'000 | I7: RM'000 | K7: RM'000
B8: =TEXT(ValDay,"yyyy") -> 2021
B10: Financing and receivables
B11: Fixed and call deposits | C11: =t.N1!F134 -> 36006.16214 | E11: =t.N1!G134 -> 0 | G11: =t.N1!H134 -> 106217.9339 | I11: 0 | K11: =SUM(C11:J11) -> 142224.0961
B12: Accrued profit | C12: =t.N1!F135 -> 26.78926 | E12: =t.N1!G135 -> 0 | G12: =t.N1!H135 -> 9.2234 | I12: 0 | K12: =SUM(C12:J12) -> 36.01266
B15: FVTPL - designated upon
B16: initial recognition
B17: Unquoted Sukuk | I17: 0 | K17: =SUM(C17:J17) -> 0
B18: Government Investment Issues | I18: 0 | K18: =SUM(C18:J18) -> 0
B19: Quoted equity securities | C19: =t.N1!F13 -> 3977.81844 | E19: =t.N1!G13 -> 0 | G19: =t.N1!H13 -> 111075.4133 | I19: -2e-05 | K19: =SUM(C19:J19) -> 115053.2317
A20: PV | B20: Unit trust funds | C20: =t.N1!F15 -> 0 | E20: =t.N1!G15 -> 0 | G20: =t.N1!H15-I20 -> 0 | I20: =t.N1!K15 -> 542550.8161 | K20: =SUM(C20:J20) -> 542550.8161
B21: Accrued profit | I21: 0 | K21: =SUM(C21:J21) -> 0
B23: Available-for-sale financial assets
B24: Government Investment Issues | C24: =t.N1!F10 -> 208750.3132 | E24: =t.N1!G10 -> 0 | G24: =t.N1!H10 -> 192832.6231 | K24: =SUM(C24:J24) -> 401582.9364
B25: Cagamas | C25: =t.N1!F11 -> 0 | E25: =t.N1!G11 -> 0 | G25: =t.N1!H11 -> 10508.9274 | K25: =SUM(C25:J25) -> 10508.9274
B26: Unquoted Sukuk | C26: =t.N1!F12 -> 221660.8658 | E26: =t.N1!G12 -> 0 | G26: =t.N1!H12 -> 970624.2684 | K26: =SUM(C26:J26) -> 1192285.134
B27: Investments in investment-linked funds | C27: =t.N1!F14 -> 10839.9 | E27: =t.N1!G14 -> 0 | G27: =t.N1!H14 -> 0 | K27: =SUM(C27:J27)-C27-E27-G27-I27 -> 0 | L27: Elimination of seed money
B28: Accrued profit | C28: 0 | E28: 0 | G28: 0 | K28: 0
C31: =SUBTOTAL(9,C10:C30) -> 481261.8489 | E31: =SUBTOTAL(9,E10:E30) -> 0 | G31: =SUBTOTAL(9,G10:G30) -> 1391268.39 | I31: =SUBTOTAL(9,I10:I30) -> 542550.8161 | K31: =SUBTOTAL(9,K10:K30) -> 2404241.154
K32: =K31-t.N1!I18-t.N1!I137 -> -2.000009408e-05
M33: Check Download TB

Sheet t.CreditRisk
E1: Data: MasterValDay | G1: AAA | I1: AA | K1: A | M1: BBB | O1: Not Rated | Q1: Not Subject to Credit Risk | S1: IL
O3: Neither past due nor impaired | Q3: Not subject | S3: Past due but | U3: Past due
F4: Shareholders' fund | G4: AAA | I4: AA | K4: A | M4: BBB | O4: Not rated | Q4: to credit risk | S4: not impaired | U4: and impaired | W4: Total
G5: RM'000 | I5: RM'000 | K5: RM'000 | M5: RM'000 | O5: RM'000 | Q5: RM'000 | S5: RM'000 | U5: RM'000 | W5: RM'000
F7: =TEXT(ValDay,"yyyy") -> 2021
F9: AFS financial assets
A10: Master!G:G | B10: TSH | C10: C | D10: PDS/Sukuk | F10: Unquoted Sukuk | G10: =SUMIFS(INDIRECT($A10),Master!$A:$A,$B10,Master!$T:$T,$C10,Master!$E:$E,G$1,Master!$C:$C,$D10)/1000-SUMIFS(Master!$AF:$AF,Master!$A:$A,$B10,Master!$T:$T,$C10,Master!$E:$E,G$1,Master!$C:$C,$D10)/1000 -> 37095.3 | I10: =SUMIFS(INDIRECT($A10),Master!$A:$A,$B10,Master!$T:$T,$C10,Master!$E:$E,I$1,Master!$C:$C,$D10)/1000-SUMIFS(Master!$AF:$AF,Master!$A:$A,$B10,Master!$T:$T,$C10,Master!$E:$E,I$1,Master!$C:$C,$D10)/1000 -> 27959 | K10: =SUMIFS(INDIRECT($A10),Master!$A:$A,$B10,Master!$T:$T,$C10,Master!$E:$E,K$1,Master!$C:$C,$D10)/1000-SUMIFS(Master!$AF:$AF,Master!$A:$A,$B10,Master!$T:$T,$C10,Master!$E:$E,K$1,Master!$C:$C,$D10)/1000 -> 0 | M10: =SUMIFS(INDIRECT($A10),Master!$A:$A,$B10,Master!$T:$T,$C10,Master!$E:$E,M$1,Master!$C:$C,$D10)/1000-SUMIFS(Master!$AF:$AF,Master!$A:$A,$B10,Master!$T:$T,$C10,Master!$E:$E,M$1,Master!$C:$C,$D10)/1000 -> 0 | O10: =SUMIFS(INDIRECT($A10),Master!$A:$A,$B10,Master!$T:$T,$C10,Master!$E:$E,O$1,Master!$C:$C,$D10)/1000-SUMIFS(Master!$AF:$AF,Master!$A:$A,$B10,Master!$T:$T,$C10,Master!$E:$E,O$1,Master!$C:$C,$D10)/1000 -> 154242.2 | Q10: =SUMIFS(INDIRECT($A10),Master!$A:$A,$B10,Master!$T:$T,$C10,Master!$E:$E,Q$1,Master!$C:$C,$D10)/1000-SUMIFS(Master!$AF:$AF,Master!$A:$A,$B10,Master!$T:$T,$C10,Master!$E:$E,Q$1,Master!$C:$C,$D10)/1000 -> 0 | W10: =SUM(G10:U10) -> 219296.5
A11: Master!H:H | B11: TSH | C11: C | D11: PDS/Sukuk | F11: Accrued Interest - Unquoted Sukuk | G11: =SUMIFS(INDIRECT($A11),Master!$A:$A,$B11,Master!$T:$T,$C11,Master!$E:$E,G$1,Master!$C:$C,$D11)/1000+SUMIFS(Master!$AF:$AF,Master!$A:$A,$B10,Master!$T:$T,$C10,Master!$E:$E,G$1,Master!$C:$C,$D10)/1000 -> 537.84726 | I11: =SUMIFS(INDIRECT($A11),Master!$A:$A,$B11,Master!$T:$T,$C11,Master!$E:$E,I$1,Master!$C:$C,$D11)/1000+SUMIFS(Master!$AF:$AF,Master!$A:$A,$B10,Master!$T:$T,$C10,Master!$E:$E,I$1,Master!$C:$C,$D10)/1000 -> 337.71233 | K11: =SUMIFS(INDIRECT($A11),Master!$A:$A,$B11,Master!$T:$T,$C11,Master!$E:$E,K$1,Master!$C:$C,$D11)/1000+SUMIFS(Master!$AF:$AF,Master!$A:$A,$B10,Master!$T:$T,$C10,Master!$E:$E,K$1,Master!$C:$C,$D10)/1000 -> 0 | M11: =SUMIFS(INDIRECT($A11),Master!$A:$A,$B11,Master!$T:$T,$C11,Master!$E:$E,M$1,Master!$C:$C,$D11)/1000+SUMIFS(Master!$AF:$AF,Master!$A:$A,$B10,Master!$T:$T,$C10,Master!$E:$E,M$1,Master!$C:$C,$D10)/1000 -> 0 | O11: =SUMIFS(INDIRECT($A11),Master!$A:$A,$B11,Master!$T:$T,$C11,Master!$E:$E,O$1,Master!$C:$C,$D11)/1000+SUMIFS(Master!$AF:$AF,Master!$A:$A,$B10,Master!$T:$T,$C10,Master!$E:$E,O$1,Master!$C:$C,$D10)/1000 -> 1488.80622 | Q11: =SUMIFS(INDIRECT($A11),Master!$A:$A,$B11,Master!$T:$T,$C11,Master!$E:$E,Q$1,Master!$C:$C,$D11)/1000+SUMIFS(Master!$AF:$AF,Master!$A:$A,$B10,Master!$T:$T,$C10,Master!$E:$E,Q$1,Master!$C:$C,$D10)/1000 -> 0 | W11: 2364.36581
A12: Master!G:G | B12: TSH | C12: C | D12: MGSGII | F12: Government Investment Issues | G12: =SUMIFS(INDIRECT($A12),Master!$A:$A,$B12,Master!$T:$T,$C12,Master!$E:$E,G$1,Master!$C:$C,$D12)/1000-SUMIFS(Master!$AF:$AF,Master!$A:$A,$B12,Master!$T:$T,$C12,Master!$E:$E,G$1,Master!$C:$C,$D12)/1000 -> 0 | I12: =SUMIFS(INDIRECT($A12),Master!$A:$A,$B12,Master!$T:$T,$C12,Master!$E:$E,I$1,Master!$C:$C,$D12)/1000-SUMIFS(Master!$AF:$AF,Master!$A:$A,$B12,Master!$T:$T,$C12,Master!$E:$E,I$1,Master!$C:$C,$D12)/1000 -> 0 | K12: =SUMIFS(INDIRECT($A12),Master!$A:$A,$B12,Master!$T:$T,$C12,Master!$E:$E,K$1,Master!$C:$C,$D12)/1000-SUMIFS(Master!$AF:$AF,Master!$A:$A,$B12,Master!$T:$T,$C12,Master!$E:$E,K$1,Master!$C:$C,$D12)/1000 -> 0 | M12: =SUMIFS(INDIRECT($A12),Master!$A:$A,$B12,Master!$T:$T,$C12,Master!$E:$E,M$1,Master!$C:$C,$D12)/1000-SUMIFS(Master!$AF:$AF,Master!$A:$A,$B12,Master!$T:$T,$C12,Master!$E:$E,M$1,Master!$C:$C,$D12)/1000 -> 0 | O12: =SUMIFS(INDIRECT($A12),Master!$A:$A,$B12,Master!$T:$T,$C12,Master!$E:$E,O$1,Master!$C:$C,$D12)/1000-SUMIFS(Master!$AF:$AF,Master!$A:$A,$B12,Master!$T:$T,$C12,Master!$E:$E,O$1,Master!$C:$C,$D12)/1000 -> 206295.78 | Q12: =SUMIFS(INDIRECT($A12),Master!$A:$A,$B12,Master!$T:$T,$C12,Master!$E:$E,Q$1,Master!$C:$C,$D12)/1000-SUMIFS(Master!$AF:$AF,Master!$A:$A,$B12,Master!$T:$T,$C12,Master!$E:$E,Q$1,Master!$C:$C,$D12)/1000 -> 0 | W12: 206295.78
A13: Master!H:H | B13: TSH | C13: C | D13: MGSGII | F13: Accrued Interest - GII | G13: =SUMIFS(INDIRECT($A13),Master!$A:$A,$B13,Master!$T:$T,$C13,Master!$E:$E,G$1,Master!$C:$C,$D13)/1000+SUMIFS(Master!$AF:$AF,Master!$A:$A,$B12,Master!$T:$T,$C12,Master!$E:$E,G$1,Master!$C:$C,$D12)/1000 -> 0 | I13: =SUMIFS(INDIRECT($A13),Master!$A:$A,$B13,Master!$T:$T,$C13,Master!$E:$E,I$1,Master!$C:$C,$D13)/1000+SUMIFS(Master!$AF:$AF,Master!$A:$A,$B12,Master!$T:$T,$C12,Master!$E:$E,I$1,Master!$C:$C,$D12)/1000 -> 0 | K13: =SUMIFS(INDIRECT($A13),Master!$A:$A,$B13,Master!$T:$T,$C13,Master!$E:$E,K$1,Master!$C:$C,$D13)/1000+SUMIFS(Master!$AF:$AF,Master!$A:$A,$B12,Master!$T:$T,$C12,Master!$E:$E,K$1,Master!$C:$C,$D12)/1000 -> 0 | M13: =SUMIFS(INDIRECT($A13),Master!$A:$A,$B13,Master!$T:$T,$C13,Master!$E:$E,M$1,Master!$C:$C,$D13)/1000+SUMIFS(Master!$AF:$AF,Master!$A:$A,$B12,Master!$T:$T,$C12,Master!$E:$E,M$1,Master!$C:$C,$D12)/1000 -> 0 | O13: =SUMIFS(INDIRECT($A13),Master!$A:$A,$B13,Master!$T:$T,$C13,Master!$E:$E,O$1,Master!$C:$C,$D13)/1000+SUMIFS(Master!$AF:$AF,Master!$A:$A,$B12,Master!$T:$T,$C12,Master!$E:$E,O$1,Master!$C:$C,$D12)/1000 -> 2454.53322 | Q13: =SUMIFS(INDIRECT($A13),Master!$A:$A,$B13,Master!$T:$T,$C13,Master!$E:$E,Q$1,Master!$C:$C,$D13)/1000+SUMIFS(Master!$AF:$AF,Master!$A:$A,$B12,Master!$T:$T,$C12,Master!$E:$E,Q$1,Master!$C:$C,$D12)/1000 -> 0 | W13: 2454.53322
A14: Master!G:G | B14: TSH | C14: F | D14: IL Funds | F14: Investment-linked funds | G14: =SUMIFS(INDIRECT($A14),Master!$A:$A,$B14,Master!$T:$T,$C14,Master!$E:$E,G$1,Master!$C:$C,$D14)/1000 -> 0 | I14: =SUMIFS(INDIRECT($A14),Master!$A:$A,$B14,Master!$T:$T,$C14,Master!$E:$E,I$1,Master!$C:$C,$D14)/1000 -> 0 | K14: =SUMIFS(INDIRECT($A14),Master!$A:$A,$B14,Master!$T:$T,$C14,Master!$E:$E,K$1,Master!$C:$C,$D14)/1000 -> 0 | M14: =SUMIFS(INDIRECT($A14),Master!$A:$A,$B14,Master!$T:$T,$C14,Master!$E:$E,M$1,Master!$C:$C,$D14)/1000 -> 0 | O14: =SUMIFS(INDIRECT($A14),Master!$A:$A,$B14,Master!$T:$T,$C14,Master!$E:$E,O$1,Master!$C:$C,$D14)/1000 -> 0 | Q14: =SUMIFS(INDIRECT($A14),Master!$A:$A,$B14,Master!$T:$T,$C14,Master!$E:$E,Q$1,Master!$C:$C,$D14)/1000 -> 10839.9 | W14: 10839.9
F15: Accrued profit
F17: FVYPL financial assets
A18: Master!G:G | B18: TSH | C18: F | D18: Equity | F18: Quoted equity securities | G18: =SUMIFS(INDIRECT($A18),Master!$A:$A,$B18,Master!$T:$T,$C18,Master!$E:$E,G$1,Master!$C:$C,$D18)/1000 -> 0 | I18: =SUMIFS(INDIRECT($A18),Master!$A:$A,$B18,Master!$T:$T,$C18,Master!$E:$E,I$1,Master!$C:$C,$D18)/1000 -> 0 | K18: =SUMIFS(INDIRECT($A18),Master!$A:$A,$B18,Master!$T:$T,$C18,Master!$E:$E,K$1,Master!$C:$C,$D18)/1000 -> 0 | M18: =SUMIFS(INDIRECT($A18),Master!$A:$A,$B18,Master!$T:$T,$C18,Master!$E:$E,M$1,Master!$C:$C,$D18)/1000 -> 0 | O18: =SUMIFS(INDIRECT($A18),Master!$A:$A,$B18,Master!$T:$T,$C18,Master!$E:$E,O$1,Master!$C:$C,$D18)/1000 -> 0 | Q18: =SUMIFS(INDIRECT($A18),Master!$A:$A,$B18,Master!$T:$T,$C18,Master!$E:$E,Q$1,Master!$C:$C,$D18)/1000 -> 3977.81844 | W18: =SUM(G18:U18) -> 3977.81844
A20: Master!G:G | B20: TSH | C20: F | D20: Unit Trusts | F20: =[3]N1!B57 -> Unit trust funds | G20: =SUMIFS(INDIRECT($A20),Master!$A:$A,$B20,Master!$T:$T,$C20,Master!$E:$E,G$1,Master!$C:$C,$D20)/1000 -> 0 | I20: =SUMIFS(INDIRECT($A20),Master!$A:$A,$B20,Master!$T:$T,$C20,Master!$E:$E,I$1,Master!$C:$C,$D20)/1000 -> 0 | K20: =SUMIFS(INDIRECT($A20),Master!$A:$A,$B20,Master!$T:$T,$C20,Master!$E:$E,K$1,Master!$C:$C,$D20)/1000 -> 0 | M20: =SUMIFS(INDIRECT($A20),Master!$A:$A,$B20,Master!$T:$T,$C20,Master!$E:$E,M$1,Master!$C:$C,$D20)/1000 -> 0 | O20: =SUMIFS(INDIRECT($A20),Master!$A:$A,$B20,Master!$T:$T,$C20,Master!$E:$E,O$1,Master!$C:$C,$D20)/1000 -> 0 | Q20: =SUMIFS(INDIRECT($A20),Master!$A:$A,$B20,Master!$T:$T,$C20,Master!$E:$E,Q$1,Master!$C:$C,$D20)/1000 -> 0 | W20: =SUM(G20:U20) -> 0
F21: Financing and receivables
A22: Master!G:G | B22: TSH | C22: C | D22: Deposit | F22: Fixed and call deposits | G22: =SUMIFS(INDIRECT($A22),Master!$A:$A,$B22,Master!$T:$T,$C22,Master!$E:$E,G$1,Master!$C:$C,$D22)/1000 -> 22648.72022 | I22: =SUMIFS(INDIRECT($A22),Master!$A:$A,$B22,Master!$T:$T,$C22,Master!$E:$E,I$1,Master!$C:$C,$D22)/1000 -> 12085.17942 | K22: =SUMIFS(INDIRECT($A22),Master!$A:$A,$B22,Master!$T:$T,$C22,Master!$E:$E,K$1,Master!$C:$C,$D22)/1000 -> 0 | M22: =SUMIFS(INDIRECT($A22),Master!$A:$A,$B22,Master!$T:$T,$C22,Master!$E:$E,M$1,Master!$C:$C,$D22)/1000 -> 0 | O22: =SUMIFS(INDIRECT($A22),Master!$A:$A,$B22,Master!$T:$T,$C22,Master!$E:$E,O$1,Master!$C:$C,$D22)/1000 -> 1272.2625 | Q22: =SUMIFS(INDIRECT($A22),Master!$A:$A,$B22,Master!$T:$T,$C22,Master!$E:$E,Q$1,Master!$C:$C,$D22)/1000 -> 0 | W22: =SUM(G22:U22) -> 36006.16214
A23: Master!H:H | B23: TSH | C23: C | D23: Deposit | F23: Accrued profit | G23: =SUMIFS(INDIRECT($A23),Master!$A:$A,$B23,Master!$T:$T,$C23,Master!$E:$E,G$1,Master!$C:$C,$D23)/1000 -> 2.3238 | I23: =SUMIFS(INDIRECT($A23),Master!$A:$A,$B23,Master!$T:$T,$C23,Master!$E:$E,I$1,Master!$C:$C,$D23)/1000 -> 2.07364 | K23: =SUMIFS(INDIRECT($A23),Master!$A:$A,$B23,Master!$T:$T,$C23,Master!$E:$E,K$1,Master!$C:$C,$D23)/1000 -> 0 | M23: =SUMIFS(INDIRECT($A23),Master!$A:$A,$B23,Master!$T:$T,$C23,Master!$E:$E,M$1,Master!$C:$C,$D23)/1000 -> 0 | O23: =SUMIFS(INDIRECT($A23),Master!$A:$A,$B23,Master!$T:$T,$C23,Master!$E:$E,O$1,Master!$C:$C,$D23)/1000 -> 22.39182 | Q23: =SUMIFS(INDIRECT($A23),Master!$A:$A,$B23,Master!$T:$T,$C23,Master!$E:$E,Q$1,Master!$C:$C,$D23)/1000 -> 0 | W23: =SUM(G23:U23) -> 26.78926
G25: =SUM(G10:G24) -> 60284.19128 | I25: =SUM(I10:I24) -> 40383.96539 | K25: =SUM(K10:K24) -> 0 | M25: =SUM(M10:M24) -> 0 | O25: =SUM(O10:O24) -> 365775.9738 | Q25: =SUM(Q10:Q24) -> 14817.71844 | S25: =SUM(S10:S24) -> 0 | U25: =SUM(U10:U24) -> 0 | W25: =SUM(W10:W24) -> 481261.8489
W26: =W25-t.N1!F18-t.N1!F137 -> 0
O30: Neither past due nor impaired | Q30: Not subject | S30: Past due but | U30: Past due
F31: General Takaful fund | G31: AAA | I31: AA | K31: A | M31: BBB | O31: Not rated | Q31: to credit risk | S31: not impaired | U31: and impaired | W31: Total
G32: RM'000 | I32: RM'000 | K32: RM'000 | M32: RM'000 | O32: RM'000 | Q32: RM'000 | S32: RM'000 | U32: RM'000 | W32: RM'000
F34: =TEXT(ValDay,"yyyy") -> 2021
F36: AFS financial assets
A37: Master!G:G | B37: GT | C37: C | D37: PDS/Sukuk | F37: Unquoted Sukuk | G37: =SUMIFS(INDIRECT($A37),Master!$A:$A,$B37,Master!$T:$T,$C37,Master!$E:$E,G$1,Master!$C:$C,$D37)/1000-SUMIFS(Master!$AF:$AF,Master!$A:$A,$B37,Master!$T:$T,$C37,Master!$E:$E,G$1,Master!$C:$C,$D37)/1000 -> 0 | I37: =SUMIFS(INDIRECT($A37),Master!$A:$A,$B37,Master!$T:$T,$C37,Master!$E:$E,I$1,Master!$C:$C,$D37)/1000-SUMIFS(Master!$AF:$AF,Master!$A:$A,$B37,Master!$T:$T,$C37,Master!$E:$E,I$1,Master!$C:$C,$D37)/1000 -> 0 | K37: =SUMIFS(INDIRECT($A37),Master!$A:$A,$B37,Master!$T:$T,$C37,Master!$E:$E,K$1,Master!$C:$C,$D37)/1000-SUMIFS(Master!$AF:$AF,Master!$A:$A,$B37,Master!$T:$T,$C37,Master!$E:$E,K$1,Master!$C:$C,$D37)/1000 -> 0 | M37: =SUMIFS(INDIRECT($A37),Master!$A:$A,$B37,Master!$T:$T,$C37,Master!$E:$E,M$1,Master!$C:$C,$D37)/1000-SUMIFS(Master!$AF:$AF,Master!$A:$A,$B37,Master!$T:$T,$C37,Master!$E:$E,M$1,Master!$C:$C,$D37)/1000 -> 0 | O37: =SUMIFS(INDIRECT($A37),Master!$A:$A,$B37,Master!$T:$T,$C37,Master!$E:$E,O$1,Master!$C:$C,$D37)/1000-SUMIFS(Master!$AF:$AF,Master!$A:$A,$B37,Master!$T:$T,$C37,Master!$E:$E,O$1,Master!$C:$C,$D37)/1000 -> 0 | Q37: =SUMIFS(INDIRECT($A37),Master!$A:$A,$B37,Master!$T:$T,$C37,Master!$E:$E,Q$1,Master!$C:$C,$D37)/1000-SUMIFS(Master!$AF:$AF,Master!$A:$A,$B37,Master!$T:$T,$C37,Master!$E:$E,Q$1,Master!$C:$C,$D37)/1000 -> 0 | W37: =SUM(G37:U37) -> 0
A38: Master!H:H | B38: GT | C38: C | D38: PDS/Sukuk | F38: Accrued Interest - Unquoted Sukuk | G38: =SUMIFS(INDIRECT($A38),Master!$A:$A,$B38,Master!$T:$T,$C38,Master!$E:$E,G$1,Master!$C:$C,$D38)/1000+SUMIFS(Master!$AF:$AF,Master!$A:$A,$B37,Master!$T:$T,$C37,Master!$E:$E,G$1,Master!$C:$C,$D37)/1000 -> 0 | I38: =SUMIFS(INDIRECT($A38),Master!$A:$A,$B38,Master!$T:$T,$C38,Master!$E:$E,I$1,Master!$C:$C,$D38)/1000+SUMIFS(Master!$AF:$AF,Master!$A:$A,$B37,Master!$T:$T,$C37,Master!$E:$E,I$1,Master!$C:$C,$D37)/1000 -> 0 | K38: =SUMIFS(INDIRECT($A38),Master!$A:$A,$B38,Master!$T:$T,$C38,Master!$E:$E,K$1,Master!$C:$C,$D38)/1000+SUMIFS(Master!$AF:$AF,Master!$A:$A,$B37,Master!$T:$T,$C37,Master!$E:$E,K$1,Master!$C:$C,$D37)/1000 -> 0 | M38: =SUMIFS(INDIRECT($A38),Master!$A:$A,$B38,Master!$T:$T,$C38,Master!$E:$E,M$1,Master!$C:$C,$D38)/1000+SUMIFS(Master!$AF:$AF,Master!$A:$A,$B37,Master!$T:$T,$C37,Master!$E:$E,M$1,Master!$C:$C,$D37)/1000 -> 0 | O38: =SUMIFS(INDIRECT($A38),Master!$A:$A,$B38,Master!$T:$T,$C38,Master!$E:$E,O$1,Master!$C:$C,$D38)/1000+SUMIFS(Master!$AF:$AF,Master!$A:$A,$B37,Master!$T:$T,$C37,Master!$E:$E,O$1,Master!$C:$C,$D37)/1000 -> 0 | Q38: =SUMIFS(INDIRECT($A38),Master!$A:$A,$B38,Master!$T:$T,$C38,Master!$E:$E,Q$1,Master!$C:$C,$D38)/1000+SUMIFS(Master!$AF:$AF,Master!$A:$A,$B37,Master!$T:$T,$C37,Master!$E:$E,Q$1,Master!$C:$C,$D37)/1000 -> 0 | W38: =SUM(G38:U38) -> 0
A39: Master!G:G | B39: GT | C39: C | D39: MGSGII | F39: Government Investment Issues | G39: =SUMIFS(INDIRECT($A39),Master!$A:$A,$B39,Master!$T:$T,$C39,Master!$E:$E,G$1,Master!$C:$C,$D39)/1000-SUMIFS(Master!$AF:$AF,Master!$A:$A,$B39,Master!$T:$T,$C39,Master!$E:$E,G$1,Master!$C:$C,$D39)/1000 -> 0 | I39: =SUMIFS(INDIRECT($A39),Master!$A:$A,$B39,Master!$T:$T,$C39,Master!$E:$E,I$1,Master!$C:$C,$D39)/1000-SUMIFS(Master!$AF:$AF,Master!$A:$A,$B39,Master!$T:$T,$C39,Master!$E:$E,I$1,Master!$C:$C,$D39)/1000 -> 0 | K39: =SUMIFS(INDIRECT($A39),Master!$A:$A,$B39,Master!$T:$T,$C39,Master!$E:$E,K$1,Master!$C:$C,$D39)/1000-SUMIFS(Master!$AF:$AF,Master!$A:$A,$B39,Master!$T:$T,$C39,Master!$E:$E,K$1,Master!$C:$C,$D39)/1000 -> 0 | M39: =SUMIFS(INDIRECT($A39),Master!$A:$A,$B39,Master!$T:$T,$C39,Master!$E:$E,M$1,Master!$C:$C,$D39)/1000-SUMIFS(Master!$AF:$AF,Master!$A:$A,$B39,Master!$T:$T,$C39,Master!$E:$E,M$1,Master!$C:$C,$D39)/1000 -> 0 | O39: =SUMIFS(INDIRECT($A39),Master!$A:$A,$B39,Master!$T:$T,$C39,Master!$E:$E,O$1,Master!$C:$C,$D39)/1000-SUMIFS(Master!$AF:$AF,Master!$A:$A,$B39,Master!$T:$T,$C39,Master!$E:$E,O$1,Master!$C:$C,$D39)/1000 -> 0 | Q39: =SUMIFS(INDIRECT($A39),Master!$A:$A,$B39,Master!$T:$T,$C39,Master!$E:$E,Q$1,Master!$C:$C,$D39)/1000-SUMIFS(Master!$AF:$AF,Master!$A:$A,$B39,Master!$T:$T,$C39,Master!$E:$E,Q$1,Master!$C:$C,$D39)/1000 -> 0 | W39: =SUM(G39:U39) -> 0
A40: Master!H:H | B40: GT | C40: C | D40: MGSGII | F40: Accrued Interest - GII | G40: =SUMIFS(INDIRECT($A40),Master!$A:$A,$B40,Master!$T:$T,$C40,Master!$E:$E,G$1,Master!$C:$C,$D40)/1000+SUMIFS(Master!$AF:$AF,Master!$A:$A,$B39,Master!$T:$T,$C39,Master!$E:$E,G$1,Master!$C:$C,$D39)/1000 -> 0 | I40: =SUMIFS(INDIRECT($A40),Master!$A:$A,$B40,Master!$T:$T,$C40,Master!$E:$E,I$1,Master!$C:$C,$D40)/1000+SUMIFS(Master!$AF:$AF,Master!$A:$A,$B39,Master!$T:$T,$C39,Master!$E:$E,I$1,Master!$C:$C,$D39)/1000 -> 0 | K40: =SUMIFS(INDIRECT($A40),Master!$A:$A,$B40,Master!$T:$T,$C40,Master!$E:$E,K$1,Master!$C:$C,$D40)/1000+SUMIFS(Master!$AF:$AF,Master!$A:$A,$B39,Master!$T:$T,$C39,Master!$E:$E,K$1,Master!$C:$C,$D39)/1000 -> 0 | M40: =SUMIFS(INDIRECT($A40),Master!$A:$A,$B40,Master!$T:$T,$C40,Master!$E:$E,M$1,Master!$C:$C,$D40)/1000+SUMIFS(Master!$AF:$AF,Master!$A:$A,$B39,Master!$T:$T,$C39,Master!$E:$E,M$1,Master!$C:$C,$D39)/1000 -> 0 | O40: =SUMIFS(INDIRECT($A40),Master!$A:$A,$B40,Master!$T:$T,$C40,Master!$E:$E,O$1,Master!$C:$C,$D40)/1000+SUMIFS(Master!$AF:$AF,Master!$A:$A,$B39,Master!$T:$T,$C39,Master!$E:$E,O$1,Master!$C:$C,$D39)/1000 -> 0 | Q40: =SUMIFS(INDIRECT($A40),Master!$A:$A,$B40,Master!$T:$T,$C40,Master!$E:$E,Q$1,Master!$C:$C,$D40)/1000+SUMIFS(Master!$AF:$AF,Master!$A:$A,$B39,Master!$T:$T,$C39,Master!$E:$E,Q$1,Master!$C:$C,$D39)/1000 -> 0 | W40: =SUM(G40:U40) -> 0
F41: Accrued profit
F43: Financing and receivables
A44: Master!G:G | B44: GT | C44: C | D44: Deposit | F44: Fixed and call deposits | G44: =SUMIFS(INDIRECT($A44),Master!$A:$A,$B44,Master!$T:$T,$C44,Master!$E:$E,G$1,Master!$C:$C,$D44)/1000 -> 0 | I44: =SUMIFS(INDIRECT($A44),Master!$A:$A,$B44,Master!$T:$T,$C44,Master!$E:$E,I$1,Master!$C:$C,$D44)/1000 -> 0 | K44: =SUMIFS(INDIRECT($A44),Master!$A:$A,$B44,Master!$T:$T,$C44,Master!$E:$E,K$1,Master!$C:$C,$D44)/1000 -> 0 | M44: =SUMIFS(INDIRECT($A44),Master!$A:$A,$B44,Master!$T:$T,$C44,Master!$E:$E,M$1,Master!$C:$C,$D44)/1000 -> 0 | O44: =SUMIFS(INDIRECT($A44),Master!$A:$A,$B44,Master!$T:$T,$C44,Master!$E:$E,O$1,Master!$C:$C,$D44)/1000 -> 0 | Q44: =SUMIFS(INDIRECT($A44),Master!$A:$A,$B44,Master!$T:$T,$C44,Master!$E:$E,Q$1,Master!$C:$C,$D44)/1000 -> 0 | W44: =SUM(G44:U44) -> 0
A45: Master!H:H | B45: GT | C45: C | D45: Deposit | F45: Accrued profit | G45: =SUMIFS(INDIRECT($A45),Master!$A:$A,$B45,Master!$T:$T,$C45,Master!$E:$E,G$1,Master!$C:$C,$D45)/1000 -> 0 | I45: =SUMIFS(INDIRECT($A45),Master!$A:$A,$B45,Master!$T:$T,$C45,Master!$E:$E,I$1,Master!$C:$C,$D45)/1000 -> 0 | K45: =SUMIFS(INDIRECT($A45),Master!$A:$A,$B45,Master!$T:$T,$C45,Master!$E:$E,K$1,Master!$C:$C,$D45)/1000 -> 0 | M45: =SUMIFS(INDIRECT($A45),Master!$A:$A,$B45,Master!$T:$T,$C45,Master!$E:$E,M$1,Master!$C:$C,$D45)/1000 -> 0 | O45: =SUMIFS(INDIRECT($A45),Master!$A:$A,$B45,Master!$T:$T,$C45,Master!$E:$E,O$1,Master!$C:$C,$D45)/1000 -> 0 | Q45: =SUMIFS(INDIRECT($A45),Master!$A:$A,$B45,Master!$T:$T,$C45,Master!$E:$E,Q$1,Master!$C:$C,$D45)/1000 -> 0 | W45: =SUM(G45:U45) -> 0
G47: =SUM(G37:G46) -> 0 | I47: =SUM(I37:I46) -> 0 | K47: =SUM(K37:K46) -> 0 | M47: =SUM(M37:M46) -> 0 | O47: =SUM(O37:O46) -> 0 | Q47: =SUM(Q37:Q46) -> 0 | S47: =SUM(S37:S46) -> 0 | U47: =SUM(U37:U46) -> 0 | W47: =SUM(W37:W46) -> 0
O52: Neither past due nor impaired | Q52: Not subject | S52: Investment- | U52: Past due but | W52: Past due
F53: Family Takaful fund | G53: AAA | I53: AA | K53: A | M53: BBB | O53: Not rated | Q53: to credit risk | S53: linked fund | U53: not impaired | W53: and impaired | Y53: Total
G54: RM'000 | I54: RM'000 | K54: RM'000 | M54: RM'000 | O54: RM'000 | Q54: RM'000 | S54: RM'000 | U54: RM'000 | W54: RM'000 | Y54: RM'000
F56: =TEXT(ValDay,"yyyy") -> 2021
F58: AFS financial assets
A59: Master!G:G | B59: FT | C59: C | D59: PDS/Sukuk | F59: Unquoted Sukuk | G59: =SUMIFS(INDIRECT($A59),Master!$A:$A,$B59,Master!$T:$T,$C59,Master!$E:$E,G$1,Master!$C:$C,$D59)/1000-SUMIFS(Master!$AF:$AF,Master!$A:$A,$B59,Master!$T:$T,$C59,Master!$E:$E,G$1,Master!$C:$C,$D59)/1000 -> 248938.25 | I59: =SUMIFS(INDIRECT($A59),Master!$A:$A,$B59,Master!$T:$T,$C59,Master!$E:$E,I$1,Master!$C:$C,$D59)/1000-SUMIFS(Master!$AF:$AF,Master!$A:$A,$B59,Master!$T:$T,$C59,Master!$E:$E,I$1,Master!$C:$C,$D59)/1000 -> 222566.35 | K59: =SUMIFS(INDIRECT($A59),Master!$A:$A,$B59,Master!$T:$T,$C59,Master!$E:$E,K$1,Master!$C:$C,$D59)/1000-SUMIFS(Master!$AF:$AF,Master!$A:$A,$B59,Master!$T:$T,$C59,Master!$E:$E,K$1,Master!$C:$C,$D59)/1000 -> 0 | M59: =SUMIFS(INDIRECT($A59),Master!$A:$A,$B59,Master!$T:$T,$C59,Master!$E:$E,M$1,Master!$C:$C,$D59)/1000-SUMIFS(Master!$AF:$AF,Master!$A:$A,$B59,Master!$T:$T,$C59,Master!$E:$E,M$1,Master!$C:$C,$D59)/1000 -> 0 | O59: =SUMIFS(INDIRECT($A59),Master!$A:$A,$B59,Master!$T:$T,$C59,Master!$E:$E,O$1,Master!$C:$C,$D59)/1000-SUMIFS(Master!$AF:$AF,Master!$A:$A,$B59,Master!$T:$T,$C59,Master!$E:$E,O$1,Master!$C:$C,$D59)/1000 -> 487556.09 | Q59: =SUMIFS(INDIRECT($A59),Master!$A:$A,$B59,Master!$T:$T,$C59,Master!$E:$E,Q$1,Master!$C:$C,$D59)/1000-SUMIFS(Master!$AF:$AF,Master!$A:$A,$B59,Master!$T:$T,$C59,Master!$E:$E,Q$1,Master!$C:$C,$D59)/1000 -> 0 | Y59: =SUM(G59:W59) -> 959060.69
A60: Master!H:H | B60: FT | C60: C | D60: PDS/Sukuk | F60: Accrued Interest - Unquoted Sukuk | G60: =SUMIFS(INDIRECT($A60),Master!$A:$A,$B60,Master!$T:$T,$C60,Master!$E:$E,G$1,Master!$C:$C,$D60)/1000+SUMIFS(Master!$AF:$AF,Master!$A:$A,$B59,Master!$T:$T,$C59,Master!$E:$E,G$1,Master!$C:$C,$D59)/1000 -> 3305.15667 | I60: =SUMIFS(INDIRECT($A60),Master!$A:$A,$B60,Master!$T:$T,$C60,Master!$E:$E,I$1,Master!$C:$C,$D60)/1000+SUMIFS(Master!$AF:$AF,Master!$A:$A,$B59,Master!$T:$T,$C59,Master!$E:$E,I$1,Master!$C:$C,$D59)/1000 -> 2828.83257 | K60: =SUMIFS(INDIRECT($A60),Master!$A:$A,$B60,Master!$T:$T,$C60,Master!$E:$E,K$1,Master!$C:$C,$D60)/1000+SUMIFS(Master!$AF:$AF,Master!$A:$A,$B59,Master!$T:$T,$C59,Master!$E:$E,K$1,Master!$C:$C,$D59)/1000 -> 0 | M60: =SUMIFS(INDIRECT($A60),Master!$A:$A,$B60,Master!$T:$T,$C60,Master!$E:$E,M$1,Master!$C:$C,$D60)/1000+SUMIFS(Master!$AF:$AF,Master!$A:$A,$B59,Master!$T:$T,$C59,Master!$E:$E,M$1,Master!$C:$C,$D59)/1000 -> 0 | O60: =SUMIFS(INDIRECT($A60),Master!$A:$A,$B60,Master!$T:$T,$C60,Master!$E:$E,O$1,Master!$C:$C,$D60)/1000+SUMIFS(Master!$AF:$AF,Master!$A:$A,$B59,Master!$T:$T,$C59,Master!$E:$E,O$1,Master!$C:$C,$D59)/1000 -> 5429.58912 | Q60: =SUMIFS(INDIRECT($A60),Master!$A:$A,$B60,Master!$T:$T,$C60,Master!$E:$E,Q$1,Master!$C:$C,$D60)/1000+SUMIFS(Master!$AF:$AF,Master!$A:$A,$B59,Master!$T:$T,$C59,Master!$E:$E,Q$1,Master!$C:$C,$D59)/1000 -> 0 | Y60: =SUM(G60:W60) -> 11563.57836
A61: Master!G:G | B61: FT | C61: C | D61: MGSGII | F61: Government Investment Issues | G61: =SUMIFS(INDIRECT($A61),Master!$A:$A,$B61,Master!$T:$T,$C61,Master!$E:$E,G$1,Master!$C:$C,$D61)/1000-SUMIFS(Master!$AF:$AF,Master!$A:$A,$B61,Master!$T:$T,$C61,Master!$E:$E,G$1,Master!$C:$C,$D61)/1000 -> 0 | I61: =SUMIFS(INDIRECT($A61),Master!$A:$A,$B61,Master!$T:$T,$C61,Master!$E:$E,I$1,Master!$C:$C,$D61)/1000-SUMIFS(Master!$AF:$AF,Master!$A:$A,$B61,Master!$T:$T,$C61,Master!$E:$E,I$1,Master!$C:$C,$D61)/1000 -> 0 | K61: =SUMIFS(INDIRECT($A61),Master!$A:$A,$B61,Master!$T:$T,$C61,Master!$E:$E,K$1,Master!$C:$C,$D61)/1000-SUMIFS(Master!$AF:$AF,Master!$A:$A,$B61,Master!$T:$T,$C61,Master!$E:$E,K$1,Master!$C:$C,$D61)/1000 -> 0 | M61: =SUMIFS(INDIRECT($A61),Master!$A:$A,$B61,Master!$T:$T,$C61,Master!$E:$E,M$1,Master!$C:$C,$D61)/1000-SUMIFS(Master!$AF:$AF,Master!$A:$A,$B61,Master!$T:$T,$C61,Master!$E:$E,M$1,Master!$C:$C,$D61)/1000 -> 0 | O61: =SUMIFS(INDIRECT($A61),Master!$A:$A,$B61,Master!$T:$T,$C61,Master!$E:$E,O$1,Master!$C:$C,$D61)/1000-SUMIFS(Master!$AF:$AF,Master!$A:$A,$B61,Master!$T:$T,$C61,Master!$E:$E,O$1,Master!$C:$C,$D61)/1000 -> 190440.215 | Q61: =SUMIFS(INDIRECT($A61),Master!$A:$A,$B61,Master!$T:$T,$C61,Master!$E:$E,Q$1,Master!$C:$C,$D61)/1000-SUMIFS(Master!$AF:$AF,Master!$A:$A,$B61,Master!$T:$T,$C61,Master!$E:$E,Q$1,Master!$C:$C,$D61)/1000 -> 0 | Y61: =SUM(G61:W61) -> 190440.215
A62: Master!H:H | B62: FT | C62: C | D62: MGSGII | F62: Accrued Interest - GII | G62: =SUMIFS(INDIRECT($A62),Master!$A:$A,$B62,Master!$T:$T,$C62,Master!$E:$E,G$1,Master!$C:$C,$D62)/1000+SUMIFS(Master!$AF:$AF,Master!$A:$A,$B61,Master!$T:$T,$C61,Master!$E:$E,G$1,Master!$C:$C,$D61)/1000 -> 0 | I62: =SUMIFS(INDIRECT($A62),Master!$A:$A,$B62,Master!$T:$T,$C62,Master!$E:$E,I$1,Master!$C:$C,$D62)/1000+SUMIFS(Master!$AF:$AF,Master!$A:$A,$B61,Master!$T:$T,$C61,Master!$E:$E,I$1,Master!$C:$C,$D61)/1000 -> 0 | K62: =SUMIFS(INDIRECT($A62),Master!$A:$A,$B62,Master!$T:$T,$C62,Master!$E:$E,K$1,Master!$C:$C,$D62)/1000+SUMIFS(Master!$AF:$AF,Master!$A:$A,$B61,Master!$T:$T,$C61,Master!$E:$E,K$1,Master!$C:$C,$D61)/1000 -> 0 | M62: =SUMIFS(INDIRECT($A62),Master!$A:$A,$B62,Master!$T:$T,$C62,Master!$E:$E,M$1,Master!$C:$C,$D62)/1000+SUMIFS(Master!$AF:$AF,Master!$A:$A,$B61,Master!$T:$T,$C61,Master!$E:$E,M$1,Master!$C:$C,$D61)/1000 -> 0 | O62: =SUMIFS(INDIRECT($A62),Master!$A:$A,$B62,Master!$T:$T,$C62,Master!$E:$E,O$1,Master!$C:$C,$D62)/1000+SUMIFS(Master!$AF:$AF,Master!$A:$A,$B61,Master!$T:$T,$C61,Master!$E:$E,O$1,Master!$C:$C,$D61)/1000 -> 2392.40814 | Q62: =SUMIFS(INDIRECT($A62),Master!$A:$A,$B62,Master!$T:$T,$C62,Master!$E:$E,Q$1,Master!$C:$C,$D62)/1000+SUMIFS(Master!$AF:$AF,Master!$A:$A,$B61,Master!$T:$T,$C61,Master!$E:$E,Q$1,Master!$C:$C,$D61)/1000 -> 0 | Y62: 2392.40814
A63: Master!G:G | B63: FT | C63: C | D63: Cagamas | F63: Cagamas | G63: =SUMIFS(INDIRECT($A63),Master!$A:$A,$B63,Master!$T:$T,$C63,Master!$E:$E,G$1,Master!$C:$C,$D63)/1000-SUMIFS(Master!$AF:$AF,Master!$A:$A,$B63,Master!$T:$T,$C63,Master!$E:$E,G$1,Master!$C:$C,$D63)/1000 -> 10427.9 | I63: =SUMIFS(INDIRECT($A63),Master!$A:$A,$B63,Master!$T:$T,$C63,Master!$E:$E,I$1,Master!$C:$C,$D63)/1000-SUMIFS(Master!$AF:$AF,Master!$A:$A,$B63,Master!$T:$T,$C63,Master!$E:$E,I$1,Master!$C:$C,$D63)/1000 -> 0 | K63: =SUMIFS(INDIRECT($A63),Master!$A:$A,$B63,Master!$T:$T,$C63,Master!$E:$E,K$1,Master!$C:$C,$D63)/1000-SUMIFS(Master!$AF:$AF,Master!$A:$A,$B63,Master!$T:$T,$C63,Master!$E:$E,K$1,Master!$C:$C,$D63)/1000 -> 0 | M63: =SUMIFS(INDIRECT($A63),Master!$A:$A,$B63,Master!$T:$T,$C63,Master!$E:$E,M$1,Master!$C:$C,$D63)/1000-SUMIFS(Master!$AF:$AF,Master!$A:$A,$B63,Master!$T:$T,$C63,Master!$E:$E,M$1,Master!$C:$C,$D63)/1000 -> 0 | O63: =SUMIFS(INDIRECT($A63),Master!$A:$A,$B63,Master!$T:$T,$C63,Master!$E:$E,O$1,Master!$C:$C,$D63)/1000-SUMIFS(Master!$AF:$AF,Master!$A:$A,$B63,Master!$T:$T,$C63,Master!$E:$E,O$1,Master!$C:$C,$D63)/1000 -> 0 | Q63: =SUMIFS(INDIRECT($A63),Master!$A:$A,$B63,Master!$T:$T,$C63,Master!$E:$E,Q$1,Master!$C:$C,$D63)/1000-SUMIFS(Master!$AF:$AF,Master!$A:$A,$B63,Master!$T:$T,$C63,Master!$E:$E,Q$1,Master!$C:$C,$D63)/1000 -> 0 | Y63: 10427.9
A64: Master!H:H | B64: FT | C64: C | D64: Cagamas | F64: Accrued Interest - Cagamas | G64: =SUMIFS(INDIRECT($A64),Master!$A:$A,$B64,Master!$T:$T,$C64,Master!$E:$E,G$1,Master!$C:$C,$D64)/1000+SUMIFS(Master!$AF:$AF,Master!$A:$A,$B63,Master!$T:$T,$C63,Master!$E:$E,G$1,Master!$C:$C,$D63)/1000 -> 81.0274 | I64: =SUMIFS(INDIRECT($A64),Master!$A:$A,$B64,Master!$T:$T,$C64,Master!$E:$E,I$1,Master!$C:$C,$D64)/1000+SUMIFS(Master!$AF:$AF,Master!$A:$A,$B63,Master!$T:$T,$C63,Master!$E:$E,I$1,Master!$C:$C,$D63)/1000 -> 0 | K64: =SUMIFS(INDIRECT($A64),Master!$A:$A,$B64,Master!$T:$T,$C64,Master!$E:$E,K$1,Master!$C:$C,$D64)/1000+SUMIFS(Master!$AF:$AF,Master!$A:$A,$B63,Master!$T:$T,$C63,Master!$E:$E,K$1,Master!$C:$C,$D63)/1000 -> 0 | M64: =SUMIFS(INDIRECT($A64),Master!$A:$A,$B64,Master!$T:$T,$C64,Master!$E:$E,M$1,Master!$C:$C,$D64)/1000+SUMIFS(Master!$AF:$AF,Master!$A:$A,$B63,Master!$T:$T,$C63,Master!$E:$E,M$1,Master!$C:$C,$D63)/1000 -> 0 | O64: =SUMIFS(INDIRECT($A64),Master!$A:$A,$B64,Master!$T:$T,$C64,Master!$E:$E,O$1,Master!$C:$C,$D64)/1000+SUMIFS(Master!$AF:$AF,Master!$A:$A,$B63,Master!$T:$T,$C63,Master!$E:$E,O$1,Master!$C:$C,$D63)/1000 -> 0 | Q64: =SUMIFS(INDIRECT($A64),Master!$A:$A,$B64,Master!$T:$T,$C64,Master!$E:$E,Q$1,Master!$C:$C,$D64)/1000+SUMIFS(Master!$AF:$AF,Master!$A:$A,$B63,Master!$T:$T,$C63,Master!$E:$E,Q$1,Master!$C:$C,$D63)/1000 -> 0 | Y64: 81.0274
F65: Accrued profit
F67: FVYPL financial assets
A68: Master!G:G | B68: FT | C68: F | D68: PDS/Sukuk | F68: Unquoted Sukuk | G68: =SUMIFS(INDIRECT($A68),Master!$A:$A,$B68,Master!$T:$T,$C68,Master!$E:$E,G$1,Master!$C:$C,$D68)/1000 -> 0 | I68: =SUMIFS(INDIRECT($A68),Master!$A:$A,$B68,Master!$T:$T,$C68,Master!$E:$E,I$1,Master!$C:$C,$D68)/1000 -> 0 | K68: =SUMIFS(INDIRECT($A68),Master!$A:$A,$B68,Master!$T:$T,$C68,Master!$E:$E,K$1,Master!$C:$C,$D68)/1000 -> 0 | M68: =SUMIFS(INDIRECT($A68),Master!$A:$A,$B68,Master!$T:$T,$C68,Master!$E:$E,M$1,Master!$C:$C,$D68)/1000 -> 0 | O68: =SUMIFS(INDIRECT($A68),Master!$A:$A,$B68,Master!$T:$T,$C68,Master!$E:$E,O$1,Master!$C:$C,$D68)/1000 -> 0 | Q68: =SUMIFS(INDIRECT($A68),Master!$A:$A,$B68,Master!$T:$T,$C68,Master!$E:$E,Q$1,Master!$C:$C,$D68)/1000 -> 0
A69: Master!G:G | B69: FT | C69: F | D69: MGSGII | F69: Government Investment Issues | G69: =SUMIFS(INDIRECT($A69),Master!$A:$A,$B69,Master!$T:$T,$C69,Master!$E:$E,G$1,Master!$C:$C,$D69)/1000 -> 0 | I69: =SUMIFS(INDIRECT($A69),Master!$A:$A,$B69,Master!$T:$T,$C69,Master!$E:$E,I$1,Master!$C:$C,$D69)/1000 -> 0 | K69: =SUMIFS(INDIRECT($A69),Master!$A:$A,$B69,Master!$T:$T,$C69,Master!$E:$E,K$1,Master!$C:$C,$D69)/1000 -> 0 | M69: =SUMIFS(INDIRECT($A69),Master!$A:$A,$B69,Master!$T:$T,$C69,Master!$E:$E,M$1,Master!$C:$C,$D69)/1000 -> 0 | O69: =SUMIFS(INDIRECT($A69),Master!$A:$A,$B69,Master!$T:$T,$C69,Master!$E:$E,O$1,Master!$C:$C,$D69)/1000 -> 0 | Q69: =SUMIFS(INDIRECT($A69),Master!$A:$A,$B69,Master!$T:$T,$C69,Master!$E:$E,Q$1,Master!$C:$C,$D69)/1000 -> 0
A70: Master!G:G | B70: FT | C70: F | D70: Equity | F70: Quoted equity securities | G70: =SUMIFS(INDIRECT($A70),Master!$A:$A,$B70,Master!$T:$T,$C70,Master!$E:$E,G$1,Master!$C:$C,$D70)/1000 -> 0 | I70: =SUMIFS(INDIRECT($A70),Master!$A:$A,$B70,Master!$T:$T,$C70,Master!$E:$E,I$1,Master!$C:$C,$D70)/1000 -> 0 | K70: =SUMIFS(INDIRECT($A70),Master!$A:$A,$B70,Master!$T:$T,$C70,Master!$E:$E,K$1,Master!$C:$C,$D70)/1000 -> 0 | M70: =SUMIFS(INDIRECT($A70),Master!$A:$A,$B70,Master!$T:$T,$C70,Master!$E:$E,M$1,Master!$C:$C,$D70)/1000 -> 0 | O70: =SUMIFS(INDIRECT($A70),Master!$A:$A,$B70,Master!$T:$T,$C70,Master!$E:$E,O$1,Master!$C:$C,$D70)/1000 -> 0 | Q70: =SUMIFS(INDIRECT($A70),Master!$A:$A,$B70,Master!$T:$T,$C70,Master!$E:$E,Q$1,Master!$C:$C,$D70)/1000 -> 111075.4133 | Y70: 111075.4133
A71: Master!G:G | B71: FT | C71: F | D71: Unit Trusts | F71: Unit trust funds | G71: =SUMIFS(INDIRECT($A71),Master!$A:$A,$B71,Master!$T:$T,$C71,Master!$E:$E,G$1,Master!$C:$C,$D71)/1000 -> 0 | I71: =SUMIFS(INDIRECT($A71),Master!$A:$A,$B71,Master!$T:$T,$C71,Master!$E:$E,I$1,Master!$C:$C,$D71)/1000 -> 0 | K71: =SUMIFS(INDIRECT($A71),Master!$A:$A,$B71,Master!$T:$T,$C71,Master!$E:$E,K$1,Master!$C:$C,$D71)/1000 -> 0 | M71: =SUMIFS(INDIRECT($A71),Master!$A:$A,$B71,Master!$T:$T,$C71,Master!$E:$E,M$1,Master!$C:$C,$D71)/1000 -> 0 | O71: =SUMIFS(INDIRECT($A71),Master!$A:$A,$B71,Master!$T:$T,$C71,Master!$E:$E,O$1,Master!$C:$C,$D71)/1000 -> 0 | Q71: =SUMIFS(INDIRECT($A71),Master!$A:$A,$B71,Master!$T:$T,$C71,Master!$E:$E,Q$1,Master!$C:$C,$D71)/1000 -> 0 | S71: =SUMIFS(Master!$G:$G,Master!$A:$A,"ILT",Master!$E:$E,S$1,Master!$T:$T,$C71)/1000 -> 542550.8161 | Y71: 542550.8161
F72: Accrued profit
F74: Financing and receivables
A75: Master!G:G | B75: FT | C75: C | D75: Deposit | F75: Fixed and call deposits | G75: =SUMIFS(INDIRECT($A75),Master!$A:$A,$B75,Master!$T:$T,$C75,Master!$E:$E,G$1,Master!$C:$C,$D75)/1000 -> 50473.1518 | I75: =SUMIFS(INDIRECT($A75),Master!$A:$A,$B75,Master!$T:$T,$C75,Master!$E:$E,I$1,Master!$C:$C,$D75)/1000 -> 55744.78213 | O75: =SUMIFS(INDIRECT($A75),Master!$A:$A,$B75,Master!$T:$T,$C75,Master!$E:$E,O$1,Master!$C:$C,$D75)/1000 -> 0 | Y75: 106217.9339 | AA75: Change Bank Persatuan to Non Rated
A76: Master!H:H | B76: FT | C76: C | D76: Deposit | F76: Accrued profit | G76: =SUMIFS(INDIRECT($A76),Master!$A:$A,$B76,Master!$T:$T,$C76,Master!$E:$E,G$1,Master!$C:$C,$D76)/1000 -> 4.67883 | I76: =SUMIFS(INDIRECT($A76),Master!$A:$A,$B76,Master!$T:$T,$C76,Master!$E:$E,I$1,Master!$C:$C,$D76)/1000 -> 4.54457 | O76: =SUMIFS(INDIRECT($A76),Master!$A:$A,$B76,Master!$T:$T,$C76,Master!$E:$E,O$1,Master!$C:$C,$D76)/1000 -> 0 | Y76: 9.2234 | AA76: Change KAF to AA
G77: =SUM(G59:G76) -> 313230.1647 | I77: =SUM(I59:I76) -> 281144.5093 | K77: =SUM(K59:K76) -> 0 | M77: =SUM(M59:M76) -> 0 | O77: =SUM(O59:O76) -> 685818.3023 | Q77: =SUM(Q59:Q76) -> 111075.4133 | S77: =SUM(S59:S76) -> 542550.8161 | U77: =SUM(U59:U76) -> 0 | W77: =SUM(W59:W76) -> 0 | Y77: =SUM(Y59:Y76) -> 1933819.206
Y78: =Y77-t.N1!H18-t.N1!H139 -> -1.00001489e-05
O84: Neither past due nor impaired | Q84: Not subject | S84: Investment- | U84: Past due but | W84: Past due
G85: AAA | I85: AA | K85: A | M85: BBB | O85: Not rated | Q85: to credit risk | S85: linked fund | U85: not impaired | W85: and impaired | Y85: Total
F86: Company | G86: RM'000 | I86: RM'000 | K86: RM'000 | M86: RM'000 | O86: RM'000 | Q86: RM'000 | S86: RM'000 | U86: RM'000 | W86: RM'000 | Y86: RM'000
F89: =TEXT(ValDay,"yyyy") -> 2021
F90: AFS financial assets
F91: Unquoted Sukuk | G91: =G10+G37+G59 -> 286033.55 | I91: =I10+I37+I59 -> 250525.35 | O91: =O10+O37+O59 -> 641798.29 | Y91: =SUM(G91:W91) -> 1178357.19 | Z91: =Y91+Y92-t.CreditExp!K26 -> 0
F92: Accrued Interest - Unquoted Sukuk | G92: =G11+G38+G60 -> 3843.00393 | I92: =I11+I38+I60 -> 3166.5449 | O92: =O11+O38+O60 -> 6918.39534 | Y92: =SUM(G92:W92) -> 13927.94417
F93: Government Investment Issues | O93: =O12+O39+O61 -> 396735.995 | Y93: 396735.995 | Z93: =Y93+Y94-t.CreditExp!K24 -> 0
F94: Accrued Interest - GII | O94: =O13+O40+O62 -> 4846.94136 | Y94: 4846.94136
F95: Cagamas | G95: =G63 -> 10427.9 | I95: =I63 -> 0 | Y95: 10427.9 | Z95: =Y95+Y96-t.CreditExp!K25 -> 0
F96: Accrued Interest - Cagamas | G96: =G64 -> 81.0274 | I96: =I64 -> 0 | Y96: =SUM(G96:W96) -> 81.0274
F97: Investment-linked funds | Q97: =Q14-Q14 -> 0 | Y97: =SUM(G97:W97)-SUM(G97:W97) -> 0 | Z97: =Y97-t.CreditExp!K27 -> 0 | AA97: elimination of seed money
F98: Accrued profit
F100: FVYPL financial assets
F101: Unquoted Sukuk | G101: =G68 -> 0 | I101: =I68 -> 0 | K101: 0 | M101: 0 | O101: 0 | Q101: 0 | S101: 0 | U101: 0 | W101: 0 | Y101: =SUM(G101:W101) -> 0
F102: Government Investment Issues | G102: =G69 -> 0 | I102: =I69 -> 0 | K102: 0 | M102: 0 | O102: 0 | Q102: 0 | S102: 0 | U102: 0 | W102: 0 | Y102: =SUM(G102:W102) -> 0
F103: Quoted equity securities | G103: =G70+G18 -> 0 | I103: =I70+I18 -> 0 | K103: 0 | M103: 0 | O103: 0 | Q103: 115053.2317 | S103: 0 | U103: 0 | Y103: =SUM(G103:W103) -> 115053.2317 | Z103: =Y103-t.CreditExp!K19 -> 2.000000677e-05
F104: Unit trust funds | G104: =G71 -> 0 | I104: =I71 -> 0 | K104: 0 | M104: 0 | O104: 0 | Q104: 0 | S104: =S71 -> 542550.8161 | U104: 0 | W104: 0 | Y104: =SUM(G104:W104) -> 542550.8161 | Z104: =Y104-t.CreditExp!K20 -> 0
F105: Accrued profit | Y105: =SUM(G105:W105) -> 0
F107: Financing and receivables
F108: Fixed and call deposits
F109: Fixed and call deposits | G109: =G22+G44+G75 -> 73121.87202 | I109: =I22+I44+I75 -> 67829.96155 | K109: =K22+K44+K75 -> 0 | M109: =M22+M44+M75 -> 0 | O109: =O22+O44+O75 -> 1272.2625 | Q109: =Q22+Q44+Q75 -> 0 | S109: =S22+S44+S75 -> 0 | Y109: 142224.0961 | Z109: =Y109-t.CreditExp!K11 -> -9.999988833e-06
F110: Accrued profit | G110: =G23+G45+G76 -> 7.00263 | I110: =I23+I45+I76 -> 6.61821 | K110: =K23+K45+K76 -> 0 | M110: =M23+M45+M76 -> 0 | O110: =O23+O45+O76 -> 22.39182 | Q110: =Q23+Q45+Q76 -> 0 | S110: =S23+S45+S76 -> 0 | Y110: 36.01266 | Z110: =Y110-t.CreditExp!K12 -> 0
G111: =SUM(G91:G110) -> 373514.356 | I111: =SUM(I91:I110) -> 321528.4747 | K111: =SUM(K91:K110) -> 0 | M111: =SUM(M91:M110) -> 0 | O111: =SUM(O91:O110) -> 1051594.276 | Q111: =SUM(Q91:Q110) -> 115053.2317 | S111: =SUM(S91:S110) -> 542550.8161 | U111: =SUM(U91:U110) -> 0 | W111: =SUM(W91:W110) -> 0 | Y111: =SUM(Y91:Y110) -> 2404241.154
Y112: =Y111-t.CreditExp!K31 -> 9.999610484e-06

Sheet t,Maturity
C1: Data: MasterValDay
E2: Carrying | F2: Up to a | G2: 1-3 | H2: 3-5 | I2: 5-15 | J2: Over 15 | K2: No maturity | L2: Investment-
E3: Value | F3: year | G3: years | H3: years | I3: years | J3: years | K3: date | L3: linked fund | M3: Total
D4: Shareholders' fund | E4: RM'000 | F4: RM'000 | G4: RM'000 | H4: RM'000 | I4: RM'000 | J4: RM'000 | K4: RM'000 | L4: RM'000 | M4: RM'000
D6: =TEXT(ValDay,"yyyy") -> 2021
D8: AFS financial assets
A9: TSH | B9: C | C9: MGSGII | D9: Government Investment Issues | E9: =t.CreditExp!C24 -> 208750.3132 | F9: =SUMIFS(Master!I:I,Master!$A:$A,$A9,Master!$T:$T,$B9,Master!$C:$C,$C9)/1000 -> 48977.37432 | G9: =SUMIFS(Master!J:J,Master!$A:$A,$A9,Master!$T:$T,$B9,Master!$C:$C,$C9)/1000 -> 28155.7611 | H9: =SUMIFS(Master!K:K,Master!$A:$A,$A9,Master!$T:$T,$B9,Master!$C:$C,$C9)/1000 -> 16986.96027 | I9: =SUMIFS(Master!L:L,Master!$A:$A,$A9,Master!$T:$T,$B9,Master!$C:$C,$C9)/1000 -> 135466.7874 | J9: =SUMIFS(Master!M:M,Master!$A:$A,$A9,Master!$T:$T,$B9,Master!$C:$C,$C9)/1000 -> 43928.73753 | K9: =SUMIFS(Master!N:N,Master!$A:$A,$A9,Master!$T:$T,$B9,Master!$C:$C,$C9)/1000 -> 0 | L9: =SUMIFS(Master!O:O,Master!$A:$A,$A9,Master!$T:$T,$B9,Master!$C:$C,$C9)/1000 -> 0 | M9: =SUM(F9:L9) -> 273515.6206
A10: TSH | B10: C | C10: PDS/Sukuk | D10: Unquoted Sukuk | E10: =t.CreditExp!C26 -> 221660.8658 | F10: =SUMIFS(Master!I:I,Master!$A:$A,$A10,Master!$T:$T,$B10,Master!$C:$C,$C10)/1000 -> 24384.04931 | G10: =SUMIFS(Master!J:J,Master!$A:$A,$A10,Master!$T:$T,$B10,Master!$C:$C,$C10)/1000 -> 42084.53836 | H10: =SUMIFS(Master!K:K,Master!$A:$A,$A10,Master!$T:$T,$B10,Master!$C:$C,$C10)/1000 -> 52001.25068 | I10: =SUMIFS(Master!L:L,Master!$A:$A,$A10,Master!$T:$T,$B10,Master!$C:$C,$C10)/1000 -> 169116.2493 | J10: =SUMIFS(Master!M:M,Master!$A:$A,$A10,Master!$T:$T,$B10,Master!$C:$C,$C10)/1000 -> 0 | K10: =SUMIFS(Master!N:N,Master!$A:$A,$A10,Master!$T:$T,$B10,Master!$C:$C,$C10)/1000 -> 0 | L10: =SUMIFS(Master!O:O,Master!$A:$A,$A10,Master!$T:$T,$B10,Master!$C:$C,$C10)/1000 -> 0 | M10: =SUM(F10:L10) -> 287586.0877
A11: TSH | B11: F | C11: IL Funds | D11: Investments in investment-linked funds | E11: =t.CreditExp!C27 -> 10839.9 | K11: =SUMIFS(Master!N:N,Master!$A:$A,$A11,Master!$T:$T,$B11,Master!$C:$C,$C11)/1000 -> 10839.9 | M11: =SUM(F11:L11) -> 10839.9
D12: Accrued profit
D14: FVTPL financial assets
A15: TSH | B15: F | C15: Equity | D15: Quoted equity securities | E15: =t.CreditRisk!W18 -> 3977.81844 | F15: =SUMIFS(Master!I:I,Master!$A:$A,"TSH",Master!$T:$T,$B15,Master!$C:$C,$C15)/1000 -> 0 | G15: =SUMIFS(Master!J:J,Master!$A:$A,"TSH",Master!$T:$T,$B15,Master!$C:$C,$C15)/1000 -> 33.34 | H15: =SUMIFS(Master!K:K,Master!$A:$A,"TSH",Master!$T:$T,$B15,Master!$C:$C,$C15)/1000 -> 41.066 | I15: =SUMIFS(Master!L:L,Master!$A:$A,"TSH",Master!$T:$T,$B15,Master!$C:$C,$C15)/1000 -> 0 | J15: =SUMIFS(Master!M:M,Master!$A:$A,"TSH",Master!$T:$T,$B15,Master!$C:$C,$C15)/1000 -> 0 | K15: =SUMIFS(Master!N:N,Master!$A:$A,"TSH",Master!$T:$T,$B15,Master!$C:$C,$C15)/1000 -> 3951.073 | L15: =SUMIFS(Master!O:O,Master!$A:$A,"TSH",Master!$T:$T,$B15,Master!$C:$C,$C15)/1000 -> 0 | M15: =SUM(F15:L15) -> 4025.479
A16: TSH | B16: F | C16: Unit Trusts | D16: Unit trust funds | E16: =t.CreditExp!C20 -> 0 | F16: =SUMIFS(Master!I:I,Master!$A:$A,"TSH",Master!$T:$T,$B16,Master!$C:$C,$C16)/1000 -> 0 | G16: =SUMIFS(Master!J:J,Master!$A:$A,"TSH",Master!$T:$T,$B16,Master!$C:$C,$C16)/1000 -> 0 | H16: =SUMIFS(Master!K:K,Master!$A:$A,"TSH",Master!$T:$T,$B16,Master!$C:$C,$C16)/1000 -> 0 | I16: =SUMIFS(Master!L:L,Master!$A:$A,"TSH",Master!$T:$T,$B16,Master!$C:$C,$C16)/1000 -> 0 | J16: =SUMIFS(Master!M:M,Master!$A:$A,"TSH",Master!$T:$T,$B16,Master!$C:$C,$C16)/1000 -> 0 | K16: =SUMIFS(Master!N:N,Master!$A:$A,"TSH",Master!$T:$T,$B16,Master!$C:$C,$C16)/1000 -> 0 | L16: =SUMIFS(Master!O:O,Master!$A:$A,"TSH",Master!$T:$T,$B16,Master!$C:$C,$C16)/1000 -> 0 | M16: =SUM(F16:L16) -> 0
D17: Financing and receivables
A18: TSH | B18: C | C18: Deposit | D18: Fixed and call deposits | E18: =t.CreditExp!C11+t.CreditExp!C12 -> 36032.9514 | F18: =SUMIFS(Master!I:I,Master!$A:$A,"TSH",Master!$T:$T,$B18,Master!$C:$C,$C18)/1000 -> 36045.66236 | L18: =SUMIFS(Master!O:O,Master!$A:$A,"TSH",Master!$T:$T,"C",Master!$C:$C,$C18)/1000 -> 0 | M18: =SUM(F18:L18) -> 36045.66236
D20: Total financial assets | E20: =SUM(E9:E19) -> 481261.8489 | F20: 109407.086 | G20: 70273.63945 | H20: 69029.27696 | I20: 304583.0367 | J20: 43928.73753 | K20: 14790.973 | L20: 0 | M20: =SUM(F20:L20) -> 612012.7497
D21: Old Values | E21: =E20-t.CreditExp!C31 -> 0
E25: Carrying | F25: Up to a | G25: 1-3 | H25: 3-5 | I25: 5-15 | J25: Over 15 | K25: No maturity | L25: Investment-
E26: Value | F26: year | G26: years | H26: years | I26: years | J26: years | K26: date | L26: linked fund | M26: Total
D27: General Takaful fund | E27: RM'000 | F27: RM'000 | G27: RM'000 | H27: RM'000 | I27: RM'000 | J27: RM'000 | K27: RM'000 | L27: RM'000 | M27: RM'000
D29: =TEXT(ValDay,"yyyy") -> 2021
D31: AFS financial assets
A32: GT | B32: C | C32: MGSGII | D32: Government Investment Issues | E32: =t.CreditExp!E24 -> 0 | F32: =SUMIFS(Master!I:I,Master!$A:$A,$A32,Master!$T:$T,$B32,Master!$C:$C,$C32)/1000 -> 0 | G32: =SUMIFS(Master!J:J,Master!$A:$A,$A32,Master!$T:$T,$B32,Master!$C:$C,$C32)/1000 -> 0 | H32: =SUMIFS(Master!K:K,Master!$A:$A,$A32,Master!$T:$T,$B32,Master!$C:$C,$C32)/1000 -> 0 | I32: =SUMIFS(Master!L:L,Master!$A:$A,$A32,Master!$T:$T,$B32,Master!$C:$C,$C32)/1000 -> 0 | J32: =SUMIFS(Master!M:M,Master!$A:$A,$A32,Master!$T:$T,$B32,Master!$C:$C,$C32)/1000 -> 0 | K32: =SUMIFS(Master!N:N,Master!$A:$A,$A32,Master!$T:$T,$B32,Master!$C:$C,$C32)/1000 -> 0 | L32: =SUMIFS(Master!O:O,Master!$A:$A,$A32,Master!$T:$T,$B32,Master!$C:$C,$C32)/1000 -> 0 | M32: =SUM(F32:L32) -> 0
A33: GT | B33: C | C33: PDS/Sukuk | D33: Unquoted Sukuk | E33: =t.CreditExp!E26 -> 0 | F33: =SUMIFS(Master!I:I,Master!$A:$A,$A33,Master!$T:$T,$B33,Master!$C:$C,$C33)/1000 -> 0 | G33: =SUMIFS(Master!J:J,Master!$A:$A,$A33,Master!$T:$T,$B33,Master!$C:$C,$C33)/1000 -> 0 | H33: =SUMIFS(Master!K:K,Master!$A:$A,$A33,Master!$T:$T,$B33,Master!$C:$C,$C33)/1000 -> 0 | I33: =SUMIFS(Master!L:L,Master!$A:$A,$A33,Master!$T:$T,$B33,Master!$C:$C,$C33)/1000 -> 0 | J33: =SUMIFS(Master!M:M,Master!$A:$A,$A33,Master!$T:$T,$B33,Master!$C:$C,$C33)/1000 -> 0 | K33: =SUMIFS(Master!N:N,Master!$A:$A,$A33,Master!$T:$T,$B33,Master!$C:$C,$C33)/1000 -> 0 | L33: =SUMIFS(Master!O:O,Master!$A:$A,$A33,Master!$T:$T,$B33,Master!$C:$C,$C33)/1000 -> 0 | M33: =SUM(F33:L33) -> 0
D34: Accrued profit
D36: Financing and receivables
A37: GT | B37: C | C37: Deposit | D37: Fixed and call deposits | E37: =t.CreditExp!E11+t.CreditExp!E12 -> 0 | F37: =SUMIFS(Master!I:I,Master!$A:$A,$A37,Master!$T:$T,$B37,Master!$C:$C,$C37)/1000 -> 0 | M37: =SUM(F37:L37) -> 0 | O37: Deposit
M38: =SUM(F38:L38) -> 0
D39: Total financial assets | E39: =SUM(E32:E38) -> 0 | F39: 0 | G39: 0 | H39: 0 | I39: 0 | J39: 0 | K39: 0 | L39: 0 | M39: 0
D40: Old Values | E40: =E39-t.CreditExp!E31 -> 0
E44: Carrying | F44: Up to a | G44: 1-3 | H44: 3-5 | I44: 5-15 | J44: Over 15 | K44: No maturity | L44: Investment-
E45: Value | F45: year | G45: years | H45: years | I45: years | J45: years | K45: date | L45: linked fund | M45: Total
D46: Family Takaful fund | E46: RM'000 | F46: RM'000 | G46: RM'000 | H46: RM'000 | I46: RM'000 | J46: RM'000 | K46: RM'000 | L46: RM'000 | M46: RM'000
D48: =TEXT(ValDay,"yyyy") -> 2021
D50: AFS financial assets
A51: FT | B51: C | C51: MGSGII | D51: Government Investment Issues | E51: =t.CreditExp!G24 -> 192832.6231 | F51: =SUMIFS(Master!I:I,Master!$A:$A,$A51,Master!$T:$T,$B51,Master!$C:$C,$C51)/1000 -> 8257.525 | G51: =SUMIFS(Master!J:J,Master!$A:$A,$A51,Master!$T:$T,$B51,Master!$C:$C,$C51)/1000 -> 16515.05 | H51: =SUMIFS(Master!K:K,Master!$A:$A,$A51,Master!$T:$T,$B51,Master!$C:$C,$C51)/1000 -> 16515.05 | I51: =SUMIFS(Master!L:L,Master!$A:$A,$A51,Master!$T:$T,$B51,Master!$C:$C,$C51)/1000 -> 145129.4727 | J51: =SUMIFS(Master!M:M,Master!$A:$A,$A51,Master!$T:$T,$B51,Master!$C:$C,$C51)/1000 -> 117789.8411 | K51: =SUMIFS(Master!N:N,Master!$A:$A,$A51,Master!$T:$T,$B51,Master!$C:$C,$C51)/1000 -> 0 | L51: =SUMIFS(Master!O:O,Master!$A:$A,$A51,Master!$T:$T,$B51,Master!$C:$C,$C51)/1000 -> 0 | M51: =SUM(F51:L51) -> 304206.9388
A52: FT | B52: C | C52: PDS/Sukuk | D52: Unquoted Sukuk | E52: =t.CreditExp!G26 -> 970624.2684 | F52: =SUMIFS(Master!I:I,Master!$A:$A,$A52,Master!$T:$T,$B52,Master!$C:$C,$C52)/1000 -> 68549.59657 | G52: =SUMIFS(Master!J:J,Master!$A:$A,$A52,Master!$T:$T,$B52,Master!$C:$C,$C52)/1000 -> 137915.4493 | H52: =SUMIFS(Master!K:K,Master!$A:$A,$A52,Master!$T:$T,$B52,Master!$C:$C,$C52)/1000 -> 169382.5063 | I52: =SUMIFS(Master!L:L,Master!$A:$A,$A52,Master!$T:$T,$B52,Master!$C:$C,$C52)/1000 -> 715721.3027 | J52: =SUMIFS(Master!M:M,Master!$A:$A,$A52,Master!$T:$T,$B52,Master!$C:$C,$C52)/1000 -> 319622.0679 | K52: =SUMIFS(Master!N:N,Master!$A:$A,$A52,Master!$T:$T,$B52,Master!$C:$C,$C52)/1000 -> 0 | L52: =SUMIFS(Master!O:O,Master!$A:$A,$A52,Master!$T:$T,$B52,Master!$C:$C,$C52)/1000 -> 0 | M52: =SUM(F52:L52) -> 1411190.923
A53: FT | B53: C | C53: Cagamas | D53: Cagamas | E53: =t.CreditExp!G25 -> 10508.9274 | F53: =SUMIFS(Master!I:I,Master!$A:$A,$A53,Master!$T:$T,$B53,Master!$C:$C,$C53)/1000 -> 455 | G53: =SUMIFS(Master!J:J,Master!$A:$A,$A53,Master!$T:$T,$B53,Master!$C:$C,$C53)/1000 -> 910 | H53: =SUMIFS(Master!K:K,Master!$A:$A,$A53,Master!$T:$T,$B53,Master!$C:$C,$C53)/1000 -> 10376.46575 | I53: =SUMIFS(Master!L:L,Master!$A:$A,$A53,Master!$T:$T,$B53,Master!$C:$C,$C53)/1000 -> 0 | J53: =SUMIFS(Master!M:M,Master!$A:$A,$A53,Master!$T:$T,$B53,Master!$C:$C,$C53)/1000 -> 0 | K53: =SUMIFS(Master!N:N,Master!$A:$A,$A53,Master!$T:$T,$B53,Master!$C:$C,$C53)/1000 -> 0 | L53: =SUMIFS(Master!O:O,Master!$A:$A,$A53,Master!$T:$T,$B53,Master!$C:$C,$C53)/1000 -> 0 | M53: =SUM(F53:L53) -> 11741.46575
D55: FVTPL financial assets
A56: FT | B56: F | C56: MGSGII | D56: Government Investment Issues | F56: =SUMIFS(Master!I:I,Master!$A:$A,$A56,Master!$T:$T,$B56,Master!$C:$C,$C56)/1000 -> 0 | G56: =SUMIFS(Master!J:J,Master!$A:$A,$A56,Master!$T:$T,$B56,Master!$C:$C,$C56)/1000 -> 0 | H56: =SUMIFS(Master!K:K,Master!$A:$A,$A56,Master!$T:$T,$B56,Master!$C:$C,$C56)/1000 -> 0 | I56: =SUMIFS(Master!L:L,Master!$A:$A,$A56,Master!$T:$T,$B56,Master!$C:$C,$C56)/1000 -> 0 | J56: =SUMIFS(Master!M:M,Master!$A:$A,$A56,Master!$T:$T,$B56,Master!$C:$C,$C56)/1000 -> 0 | K56: =SUMIFS(Master!N:N,Master!$A:$A,$A56,Master!$T:$T,$B56,Master!$C:$C,$C56)/1000 -> 0 | L56: =SUMIFS(Master!O:O,Master!$A:$A,$A56,Master!$T:$T,$B56,Master!$C:$C,$C56)/1000 -> 0
A57: FT | B57: F | C57: PDS/Sukuk | D57: Unquoted Sukuk | F57: =SUMIFS(Master!I:I,Master!$A:$A,$A57,Master!$T:$T,$B57,Master!$C:$C,$C57)/1000 -> 0 | G57: =SUMIFS(Master!J:J,Master!$A:$A,$A57,Master!$T:$T,$B57,Master!$C:$C,$C57)/1000 -> 0 | H57: =SUMIFS(Master!K:K,Master!$A:$A,$A57,Master!$T:$T,$B57,Master!$C:$C,$C57)/1000 -> 0 | I57: =SUMIFS(Master!L:L,Master!$A:$A,$A57,Master!$T:$T,$B57,Master!$C:$C,$C57)/1000 -> 0 | J57: =SUMIFS(Master!M:M,Master!$A:$A,$A57,Master!$T:$T,$B57,Master!$C:$C,$C57)/1000 -> 0 | K57: =SUMIFS(Master!N:N,Master!$A:$A,$A57,Master!$T:$T,$B57,Master!$C:$C,$C57)/1000 -> 0 | L57: =SUMIFS(Master!O:O,Master!$A:$A,$A57,Master!$T:$T,$B57,Master!$C:$C,$C57)/1000 -> 0
A58: FT | B58: F | C58: Equity | D58: Quoted equity securities | E58: =t.CreditExp!G19+t.CreditExp!I19 -> 111075.4132 | F58: =SUMIFS(Master!I:I,Master!$A:$A,$A58,Master!$T:$T,$B58,Master!$C:$C,$C58)/1000 -> 537.694 | G58: =SUMIFS(Master!J:J,Master!$A:$A,$A58,Master!$T:$T,$B58,Master!$C:$C,$C58)/1000 -> 196.74 | H58: =SUMIFS(Master!K:K,Master!$A:$A,$A58,Master!$T:$T,$B58,Master!$C:$C,$C58)/1000 -> 214.333 | I58: =SUMIFS(Master!L:L,Master!$A:$A,$A58,Master!$T:$T,$B58,Master!$C:$C,$C58)/1000 -> 0 | J58: =SUMIFS(Master!M:M,Master!$A:$A,$A58,Master!$T:$T,$B58,Master!$C:$C,$C58)/1000 -> 0 | K58: =SUMIFS(Master!N:N,Master!$A:$A,$A58,Master!$T:$T,$B58,Master!$C:$C,$C58)/1000 -> 110651.4835 | L58: =SUMIFS(Master!O:O,Master!$A:$A,$A58,Master!$T:$T,$B58,Master!$C:$C,$C58)/1000 -> 0 | M58: =SUM(F58:L58) -> 111600.2505
A59: FT | B59: F | C59: Unit Trusts | D59: Unit trust funds | E59: =t.CreditExp!G20+t.CreditExp!I20 -> 542550.8161 | F59: =SUMIFS(Master!I:I,Master!$A:$A,$A59,Master!$T:$T,$B59,Master!$C:$C,$C59)/1000 -> 0 | G59: =SUMIFS(Master!J:J,Master!$A:$A,$A59,Master!$T:$T,$B59,Master!$C:$C,$C59)/1000 -> 0 | H59: =SUMIFS(Master!K:K,Master!$A:$A,$A59,Master!$T:$T,$B59,Master!$C:$C,$C59)/1000 -> 0 | I59: =SUMIFS(Master!L:L,Master!$A:$A,$A59,Master!$T:$T,$B59,Master!$C:$C,$C59)/1000 -> 0 | J59: =SUMIFS(Master!M:M,Master!$A:$A,$A59,Master!$T:$T,$B59,Master!$C:$C,$C59)/1000 -> 0 | K59: =SUMIFS(Master!N:N,Master!$A:$A,$A59,Master!$T:$T,$B59,Master!$C:$C,$C59)/1000 -> 0 | L59: =t.CreditRisk!S71 -> 542550.8161 | M59: =SUM(F59:L59) -> 542550.8161
D61: Financing and receivables
A62: FT | B62: C | C62: Deposit | D62: Fixed and call deposits | E62: =t.CreditExp!G11+t.CreditExp!G12 -> 106227.1573 | F62: =SUMIFS(Master!I:I,Master!$A:$A,$A62,Master!$T:$T,$B62,Master!$C:$C,$C62)/1000 -> 106259.0644 | M62: =SUM(F62:L62) -> 106259.0644
D64: Total financial assets | E64: =SUM(E51:E62) -> 1933819.206 | F64: =SUM(F51:F62) -> 184058.8799 | G64: 155537.2393 | H64: 196488.3551 | I64: 860850.7755 | J64: 437411.909 | K64: 110651.4835 | L64: 542550.8161 | M64: =SUM(M51:M63) -> 2487549.458
D65: Old Values | E65: =E64-t.CreditExp!G31-t.CreditExp!I31 -> 0
E68: Carrying | F68: Up to a | G68: 1-3 | H68: 3-5 | I68: 5-15 | J68: Over 15 | K68: No maturity | L68: Investment-
E69: Value | F69: year | G69: years | H69: years | I69: years | J69: years | K69: date | L69: linked fund | M69: Total
D70: Company | E70: RM'000 | F70: RM'000 | G70: RM'000 | H70: RM'000 | I70: RM'000 | J70: RM'000 | K70: RM'000 | L70: RM'000 | M70: RM'000
D72: =TEXT(ValDay,"yyyy") -> 2021
D74: AFS financial assets
D75: Government Investment Issues | E75: =E9+E32+E51 -> 401582.9364 | F75: 57234.89932 | G75: 44670.8111 | H75: 33502.01027 | I75: 280596.2601 | J75: 161718.5786 | K75: 0 | L75: 0 | M75: =SUM(F75:L75) -> 577722.5595
D76: Unquoted Sukuk | E76: 1192285.134 | F76: 92933.64588 | G76: 179999.9877 | H76: 221383.757 | I76: 884837.5521 | J76: 319622.0679 | K76: 0 | L76: 0 | M76: =SUM(F76:L76) -> 1698777.011
D77: Cagamas | E77: =E53 -> 10508.9274 | F77: 455 | G77: 910 | H77: 10376.46575 | I77: 0 | J77: 0 | K77: 0 | L77: 0 | M77: =SUM(F77:L77) -> 11741.46575
D78: Investments in investment-linked funds | E78: =E11-E11 -> 0 | F78: 0 | G78: 0 | H78: 0 | I78: 0 | J78: 0 | K78: 0 | L78: 0 | M78: =SUM(F78:L78) -> 0 | N78: elimination of seed money
D80: FVTPL financial assets
D81: Government Investment Issues
D82: Unquoted Sukuk
D83: Quoted equity securities | E83: =E15+E58 -> 115053.2317 | F83: 537.694 | G83: 230.08 | H83: 255.399 | I83: 0 | J83: 0 | K83: 114602.5565 | M83: =SUM(F83:L83) -> 115625.7295 | N83: =M83-t.CreditExp!K19 -> 572.49777
D84: Unit trust funds | E84: 542550.8161 | F84: 0 | G84: 0 | H84: 0 | I84: 0 | J84: 0 | K84: 0 | L84: =L59 -> 542550.8161 | M84: =SUM(F84:L84) -> 542550.8161 | N84: =M84-t.CreditExp!K20 -> 0
D86: Financing and receivables
D87: Fixed and call deposits | E87: =E18+E37+E62 -> 142260.1087 | F87: =F18+F37+F62 -> 142304.7267 | H87: =H18+H37+H62 -> 0 | I87: =I18+I37+I62 -> 0 | J87: =J18+J37+J62 -> 0 | K87: =K18+K37+K62 -> 0 | M87: =SUM(F87:L87) -> 142304.7267
D89: Total financial assets | E89: =SUM(E75:E88) -> 2404241.154 | F89: 293465.9659 | G89: 225810.8788 | H89: 265517.632 | I89: 1165433.812 | J89: 481340.6466 | K89: 114602.5565 | L89: 542550.8161 | M89: 3088722.308
E90: =E89-t.CreditRisk!Y111 -> -9.999610484e-06

Sheet Map
A1: Fund Group | E1: Product GP | J1: GL Group | M1: Rating
A2: Fund | B2: Group | C2: Co | E2: Prod Code1 | F2: Prod Code | G2: N1 Group | H2: Description | J2: Code | K2: BS Group | M2: 0 | N2: Not Rated | P2: Fixed & Call Deposit (CSFD & CSFR & CSMM) - Group together
A3: BALA | B3: IL | C3: SLMA | F3: 000 | J3: 1 | K3: Asset | M3: 50 | N3: No Risk | P3: Quoted equity securities (SHLI & REIT & SHLW & SHUL) - Group together
A4: BALM | B4: IL | C4: SLMA | F4: 002 | J4: 2 | K4: Debtor | M4: 115 | N4: AAA | P4: Unit Trust (UTIL & UTEX & UTBX & UTCX) - Group together
A5: BALS | B5: IL | C5: SLMA | F5: 003 | J5: 3 | K5: Creditor | M5: =128 -> 128 | N5: AA | P5: MGS (BDMG & BDGI) - Group together
A6: CACF | B6: IL | C6: SLMA | E6: =VLOOKUP(VALUE(F6),$U$16:$W$70,2,1) -> SHLI | F6: 010 | G6: Equity | H6: =VLOOKUP(VALUE(F6),$U$16:$W$70,3,0) -> Local Listed Share | J6: 5 | K6: Bank | M6: 1 | N6: AAA | P6: Unquoted Corporate Debt Securities (BDCO & BDGG) - Group together
A7: CAGF | B7: IL | C7: SLMA | E7: =VLOOKUP(VALUE(F7),$U$16:$W$70,2,1) -> SHFL | F7: 015 | G7: Equity | H7: =VLOOKUP(VALUE(F7),$U$16:$W$70,3,0) -> Foreign Listed Equities | J7: 600 | K7: Realised | M7: 2 | N7: AA | P7: Cagamas Bond (BDCG)
A8: CAIBF | B8: ILT | C8: SLMT | E8: SHLW | F8: 020 | G8: Equity | H8: Warrant TSR | J8: 610 | K8: Realised | M8: 3 | N8: AA | P8: Investment-linked funds (UTSM)
A9: CAIEF | B9: ILT | C9: SLMT | E9: SHUL | F9: 030 | G9: Equity Unquoted | H9: =VLOOKUP(VALUE(F9),$U$16:$W$70,3,0) -> Local UnListed Share | J9: 619 | K9: Amort | M9: 180 | N9: D | P9: Wholesale Fund (UTBX - under LSHF) - suggest to have different code for wholesale fund
A10: CAII | B10: ILT | C10: SLMT | E10: BDCG | F10: 100 | G10: Cagamas | H10: Cagamas Bond | J10: 620 | K10: Realised | M10: 122 | N10: AA
A11: CAPI | B11: ILT | C11: SLMT | E11: BDCO | F11: 110 | G11: PDS/Sukuk | H11: Commercial Bond | J11: 629 | K11: Amort | M11: 125 | N11: AA
A12: CAWE | B12: ILT | C12: SLMT | E12: BXCO | F12: 115 | G12: PDS/Sukuk | H12: Foreign Commercial Bond | J12: 630 | K12: Interest
A13: FTFPA | B13: FT | C13: SLMT | E13: BDCP | F13: 120 | G13: PDS/Sukuk | H13: Commercial Paper | J13: 635 | K13: Dividend
A14: FTFPHW | B14: FT | C14: SLMT | E14: BPCP | F14: 121 | G14: PDS/Sukuk | H14: Commercial Paper Parent Co. | J14: 636 | K14: Dividend
A15: FTFPNA | B15: FT | C15: SLMT | E15: BXCP | F15: 125 | G15: PDS/Sukuk | H15: Foreign Commercial Paper | J15: 639 | K15: Interest | AA15: qGLCode | AB15: Description
A16: FTFPOP | B16: FT | C16: SLMT | E16: BDGG | F16: 130 | G16: PDS/Sukuk | H16: Government Guaranteed Bond | J16: 660 | K16: Impair | P16: 10 | Q16: SHLI | R16: Local Listed Share | T16: SHLI | U16: 10 | V16: SHLI | W16: Local Listed Share | X16: EQT | AA16: 139000 | AB16: Income Accrual
A17: FTFPUL | B17: FT | C17: SLMT | E17: BDGI | F17: 131 | G17: MGSGII | H17: GII by the Government Malaysia | J17: 670 | K17: Impair | P17: 15 | Q17: SHFL | R17: Foreign Listed Equities | T17: SHFL | U17: 15 | V17: SHFL | W17: Foreign Listed Equities | X17: O-EQT | AA17: 636002 | AB17: Income: Bank Interest
A18: FTGNSSBR | B18: FT | C18: SLMT | E18: BDGF | F18: 132 | G18: MGSGII | H18: Government Guaranteed Financing | J18: 689 | K18: Unrealised | P18: 20 | Q18: SHLW | R18: Warrant TSR | T18: SHLW | U18: 20 | V18: SHLW | W18: Warrant TSR | X18: EQT | AA18: 636003 | AB18: Income: Other Income
A19: FTGSS | B19: FT | C19: SLMT | E19: BDMG | F19: 140 | G19: MGSGII | H19: Malaysia Government Securities | J19: 699 | K19: Unrealised | P19: 30 | Q19: SHUL | R19: Local UnListed Share (TA) | T19: SHUL | U19: 30 | V19: SHUL | W19: Local UnListed Share | X19: EQT | AA19: 636004 | AB19: Income: Management Fee
A20: FTPNSS | B20: FT | C20: SLMT | E20: LNST | F20: 150 | G20: Loan Stock | H20: Loan Stock | J20: 7 | K20: Expenses | P20: 35 | Q20: SHFU | R20: Foreign Unlisted Equities (TA) | T20: BDCG | U20: 100 | V20: BDCG | W20: Cagamas Bond | X20: BND | AA20: 636005 | AB20: Income: Hibah
A21: FTPSS | B21: FT | C21: SLMT | F21: 151 | G21: Loan Stock | H21: Unquoted Loan Stock | J21: 8 | K21: Capital | P21: 100 | Q21: BDCG | R21: Cagamas Bond | T21: BDCO | U21: 110 | V21: BDCO | W21: Commercial Bond | X21: BND | AA21: 636006 | AB21: Income: Hibah (Parent Co)
A22: CAGB | B22: ILT | C22: SLMT | F22: 160 | G22: Treasury Bill | H22: Treasury Bill | J22: 910 | K22: Amort | P22: 110 | Q22: BDCO | R22: Commercial Bond | T22: BXCO | U22: 115 | V22: BXCO | W22: Foreign Commercial Bond | X22: O-BND
A23: ILNSS | B23: FT | C23: SLMT | F23: 170 | G23: Treasury Bill | H23: Bank Negara Commercial Paper | J23: 919 | K23: Amort | P23: 110 | Q23: BPDS | R23: Private Debt Securities | T23: BDCP | U23: 120 | V23: BDCP | W23: Commercial Paper | X23: CP
A24: ILO | B24: LNP | C24: SLMA | E24: MTNU | F24: 180 | G24: Bond | H24: Medium-term Notes Unsecured | J24: 920 | K24: Amort | P24: 115 | Q24: BDFX | R24: Foreign Bonds (TA) | T24: BPCP | U24: 121 | V24: BPCP | W24: Commercial Paper Parent Co. | X24: CP
A25: ILSS | B25: FT | C25: SLMT | E25: MTNS | F25: 181 | G25: Bond | H25: Medium-term Notes Secured | J25: 929 | K25: Amort | P25: 120 | Q25: BDCP | R25: Commercial Paper | T25: BXCP | U25: 125 | V25: BXCP | W25: Foreign Commercial Paper | X25: O-CP
A26: LFNPHW | B26: LNP | C26: SLMA | E26: BNID | F26: 190 | G26: Bond | H26: NID | J26: 939 | K26: Interest | P26: 130 | Q26: BDGG | R26: Government Guaranteed Bond (CIMB) | T26: BDGG | U26: 130 | V26: BDGG | W26: Government Guaranteed Bond | X26: BND
A27: LFNPI | B27: LNP | C27: SLMA | E27: BNIP | F27: 191 | G27: Bond | H27: NID Parent Co. | J27: 960 | K27: Impair | P27: 140 | Q27: BDMG | R27: Malaysia Government Securities | T27: BDGI | U27: 131 | V27: BDGI | W27: GII by the Government Malaysia | X27: BND
A28: LFNPNA | B28: LNP | C28: SLMA | E28: CSMM | F28: 210 | G28: Deposit | H28: Local Money Market Placement | J28: 970 | K28: Impair | P28: 150 | Q28: LNST | R28: Loan Stock | T28: BDGF | U28: 132 | V28: BDGF | W28: Government Guaranteed Financing | X28: BND
A29: LFNPOP | B29: LNP | C29: SLMA | E29: CMCM | F29: 211 | G29: Deposit | H29: =VLOOKUP(VALUE(F29),$U$16:$W$70,3,0) -> Commodity Murabahah | J29: 989 | K29: Unrealised | P29: 160 | Q29: BDTB | R29: Treasury Bill | T29: BDMG | U29: 140 | V29: BDMG | W29: Malaysia Government Securities | X29: BND
A30: LFNPS | B30: LNP | C30: SLMA | E30: CMCB | F30: 212 | G30: Deposit | H30: Commodity Murabahah Parent Co | J30: 999 | K30: Unrealised | P30: 170 | Q30: BNCP | R30: Bank Negara Commercial Paper | T30: LNST | U30: 150 | V30: LNST | W30: Loan Stock | X30: LNS
A31: LFNPUL | B31: LNP | C31: SLMA | E31: CMBT | F31: 213 | G31: Deposit | H31: Commodity Murabahah BancaTakaful | J31: 640001 | K31: Fee | P31: 180 | Q31: ICUL | R31: Unquoted Loan Stock | U31: 151 | W31: Unquoted Loan Stock | X31: LNS
A32: LFP | B32: LNP | C32: SLMA | E32: CMBB | F32: 214 | G32: Deposit | H32: Commodity Murabahah BancaTakaful Parent Co | J32: 640002 | K32: Other | P32: 210 | Q32: CSMM | R32: Local Money Market Placement | U32: 160 | W32: Treasury Bill | X32: BND
A33: LSHF | B33: LSH | C33: SLMA | E33: CSMF | F33: 215 | G33: Deposit | H33: Foreign Money Market Placement | J33: 640003 | K33: Fee | P33: 210 | Q33: CSRP | R33: Local Money Market Placement (AFFIN) | U33: 170 | W33: Bank Negara Commercial Paper | X33: CP
A34: SLDI | B34: IL | C34: SLMA | E34: CSFD | F34: 220 | G34: Deposit | H34: Local Fixed Deposit Placement | J34: 640004 | K34: Fee | P34: 215 | Q34: CSFX | R34: Foreign Money Market Placement (TA) | T34: MTNU | U34: 180 | V34: MTNU | W34: Medium-term Notes Unsecured | X34: BND
A35: SLMEI | B35: IL | C35: SLMA | F35: 230 | G35: Deposit | H35: Local Money Market Placement - Reciprocal | P35: 215 | Q35: CSMF | R35: Foreign Money Market Placement | T35: MTNS | U35: 181 | V35: MTNS | W35: Medium-term Notes Secured | X35: BND
A36: SLMGT | B36: IL | C36: SLMA | F36: 240 | G36: Deposit | H36: Local Fixed Deposit Placement - Reciprocal | P36: 220 | Q36: CSFD | R36: FD Placement (TA) | T36: BNID | U36: 190 | V36: BNID | W36: NID | X36: NID
A37: SLMHSA | B37: IL | C37: SLMA | E37: FUDE | F37: 300 | G37: Derivatives | H37: Futures | P37: 310 | Q37: FORD | R37: Forward Contract | T37: BNIP | U37: 191 | V37: BNIP | W37: NID Parent Co. | X37: NID
A38: SLPI | B38: IL | C38: SLMA | E38: FORD | F38: 310 | G38: Derivatives | H38: Forward Contract | P38: 320 | Q38: OPLO | R38: Options Local | T38: CSMM | U38: 210 | V38: CSMM | W38: Local Money Market Placement | X38: MM
A39: SLWE | B39: IL | C39: SLMA | E39: OPLO | F39: 320 | G39: Derivatives | H39: Options Local | P39: 325 | Q39: OPFO | R39: Options Foreign | T39: CMCM | U39: 211 | V39: CMCM | W39: Commodity Murabahah | X39: MM
A40: TSHF | B40: TSH | C40: SLMT | E40: OPFO | F40: 325 | G40: Derivatives | H40: Options Foreign | P40: 330 | Q40: DEVCF | R40: Derivative | T40: CMCB | U40: 212 | V40: CMCB | W40: Commodity Murabahah Parent Co | X40: MM
A41: FTGNSS | B41: FT | C41: SLMT | E41: =VLOOKUP(VALUE(F41),$U$16:$W$70,2,1) -> DEVCF | F41: 330 | G41: Derivatives | H41: Derivative | P41: 360 | Q41: FUTR | R41: Exchange Traded Futures (TA) | T41: CMBT | U41: 213 | V41: CMBT | W41: Commodity Murabahah BancaTakaful | X41: MM
A42: SLGS | B42: IL | C42: SLMA | E42: =VLOOKUP(VALUE(F42),$U$16:$W$70,2,1) -> DEVCF | F42: 340 | G42: Structured Investment | H42: Contract for Difference (CFD) | P42: 410 | Q42: UTEX | R42: Local Unit Trust | T42: CMBB | U42: 214 | V42: CMBB | W42: Commodity Murabahah BancaTakaful Parent Co | X42: MM
A43: LNULHW | B43: LNP | C43: SLMA | E43: UTEX | F43: 410 | G43: Unit Trusts | H43: Local Unit Trust | P43: 415 | Q43: UTFX | R43: Foreign Unit Trust | T43: CSMF | U43: 215 | V43: CSMF | W43: Foreign Money Market Placement | X43: O-MM
A44: TSHFHW | B44: TSH | C44: SLMT | E44: UTEP | F44: 411 | G44: Unit Trusts | H44: Local Unit Trust Parent Co. | P44: 420 | Q44: UTIL | R44: Investment Link / Unqouted Unit Trust | T44: CSFD | U44: 220 | V44: CSFD | W44: Local Fixed Deposit Placement | X44: FD
A45: CAAW | B45: ILT | C45: SLMT | E45: UTFX | F45: 415 | G45: Unit Trusts | H45: Foreign Unit Trust | P45: 460 | Q45: REIT | R45: Real Estate Investment Trust | U45: 230 | W45: Local Money Market Placement - Reciprocal | X45: MM
A46: CABW | B46: ILT | C46: SLMT | E46: UTFP | F46: 416 | G46: Unit Trusts | H46: Foreign Unit Trust Parent Co. | P46: 500 | Q46: MOGE | R46: Mortgage | U46: 240 | W46: Local Fixed Deposit Placement - Reciprocal | X46: MM
A47: CACW | B47: ILT | C47: SLMT | E47: UTIL | F47: 420 | G47: Unit Trusts | H47: Investment Link / Unqouted Unit Trust | P47: 600 | Q47: BMGL | R47: Properties (not used) | T47: FUDE | U47: 300 | V47: FUDE | W47: Futures | X47: DEV
A48: SLSB | B48: IL | C48: SLMA | E48: UTCX | F48: 430 | G48: Unit Trusts | H48: Local Cash Unit Trust | T48: FORD | U48: 310 | V48: FORD | W48: Forward Contract | X48: FWD
A49: CAID | B49: ILT | C49: SLMT | E49: UTCP | F49: 431 | G49: Unit Trusts | H49: Local Cash Unit Trust Parent Co. | T49: OPLO | U49: 320 | V49: OPLO | W49: Options Local | X49: DEV
A50: LSHFHW | B50: LSH | C50: SLMA | E50: UTBX | F50: 440 | G50: Unit Trusts | H50: Local Bond Unit Trust | T50: OPFO | U50: 325 | V50: OPFO | W50: Options Foreign | X50: DEV
E51: UTBP | F51: 441 | G51: Unit Trusts | H51: Local Bond Unit Trust Parent Co. | P51: 015 | Q51: FRDV | R51: Foreign Dividend | T51: DEVCF | U51: 330 | V51: DEVCF | W51: Derivative | X51: DEV
F52: 450 | G52: Unit Trusts | H52: =VLOOKUP(VALUE(F52),$U$16:$W$70,3,0) -> Local MGS Unit Trust | P52: 460 | Q52: RTDV | R52: REIT Dividend | T52: UTEX | U52: 410 | V52: UTEX | W52: Local Unit Trust | X52: UT
E53: REIT | F53: 460 | G53: Equity | H53: Real Estate Investment Trust | P53: 010 | Q53: SHDV | R53: Share Dividend (Transaction) | T53: UTEP | U53: 411 | V53: UTEP | W53: Local Unit Trust Parent Co. | X53: UT
E54: REIF | F54: 465 | G54: Equity | H54: Foreign Real Estate Investment Trust | P54: 410 | Q54: UTDV | R54: Unit Trust Dividend | T54: UTFX | U54: 415 | V54: UTFX | W54: Foreign Unit Trust | X54: O-UT
E55: SBLL | F55: 600 | G55: SBL | H55: Local Security Borrowing Lending | P55: 460 | Q55: REDV | R55: REIT Dividend (TA) ??????????? | T55: UTFP | U55: 416 | V55: UTFP | W55: Foreign Unit Trust Parent Co. | X55: O-UT
F56: 602 | G56: Loan | H56: Loan Receivable | T56: UTIL | U56: 420 | V56: UTIL | W56: Investment Link / Unqouted Unit Trust | X56: IL
F57: 604 | G57: IL Funds | H57: Seed Money | T57: UTCX | U57: 430 | V57: UTCX | W57: Local Cash Unit Trust | X57: UT
E58: PROL | F58: 710 | G58: Property | H58: Local Property | T58: UTCP | U58: 431 | V58: UTCP | W58: Local Cash Unit Trust Parent Co. | X58: UT
F59: 715 | G59: Property | H59: Foreign Property | T59: UTBX | U59: 440 | V59: UTBX | W59: Local Bond Unit Trust | X59: UT
T60: UTBP | U60: 441 | V60: UTBP | W60: Local Bond Unit Trust Parent Co. | X60: UT
U61: 450 | W61: Local MGS Unit Trust | X61: BND
T62: REIT | U62: 460 | V62: REIT | W62: Real Estate Investment Trust | X62: REIT
T63: REIF | U63: 465 | V63: REIF | W63: Foreign Real Estate Investment Trust | X63: O-REIT
T64: SBLL | U64: 600 | V64: SBLL | W64: Local Security Borrowing Lending | X64: SBL
U65: 602 | W65: Loan Receivable | X65: LON
U66: 604 | W66: Seed Money | X66: UT
T67: PROL | U67: 710 | V67: PROL | W67: Local Property | X67: PRP
U68: 715 | W68: Foreign Property | X68: PRP
U69: 715 | W69: Foreign Property | X69: PRP

Sheet LstMaster
A1: FdGp | B1: Company | C1: AssetGp | D1: Tenor | E1: Credit | F1: YearInt | G1: CleanMV | H1: AccInt | I1: CF 0-1 | J1: CF 1-3 | K1: CF 3-5 | L1: CF 5-15 | M1: CF 15 > | N1: CF NoMat | O1: CF IL | P1: HistoryDate | Q1: qStockCode | R1: qProductType | S1: qAssetAccType | T1: AccType | U1: PurchaseDate | V1: Coupon | W1: qFundCode | X1: UnitFaceValue | Y1: CostSC | Z1: CostFC | AA1: Status | AB1: BookValue | AC1: BookValue1Int | AD1: MarketValueSC | AE1: MarketValueFC | AF1: LastMarketValue | AG1: ExchgRate | AH1: UnrealisedGainsStock | AI1: UnrealisedGainsExchg | AJ1: DRGainsExchg | AK1: CRGainsExchg | AL1: ValGains | AM1: AccruedInterest | AN1: AmortAccreation | AO1: Diminution | AP1: qRank | AQ1: MaturityDate | AR1: qCpCode
A2: =VLOOKUP(W2,FdGroup,2,0) -> ILT | B2: =VLOOKUP(W2,FdGroup,3,0) -> SLMT | C2: =VLOOKUP(S2,Map!$F$6:$H$81,2,0) -> Unit Trusts | D2: =(AQ2-P2)/365 -> 979.6520548 | E2: =IF(LEFT(A2,2)="IL","IL",IF(OR(R2="BND",R2="CSH"),VLOOKUP(AP2,Map!$M$2:$N$50,2,0),"Not Subject to Credit Risk")) -> IL | F2: =IF(D2<1,D2,1)*V2*X2 -> 0 | G2: =AE2-AM2 -> 5364560.89 | H2: =AM2 -> 0 | I2: =IF((O2+N2)>0,0,IF($D2<1,$X2+$H2+$F2,$F2))*IF(E2="D",0,1)*IF($E2="D",0,1) -> 0 | J2: =IF((O2+N2)>0,0,IF($D2>1,IF($D2<3,$X2+$F2*$D2-$F2,$F2*2),0))*IF($E2="D",0,1) -> 0 | K2: =IF((O2+N2)>0,0,IF($D2>3,IF($D2<5,$X2+$F2*($D2-3),$F2*2),0))*IF($E2="D",0,1) -> 0 | L2: =IF((O2+N2)>0,0,IF($D2>5,IF($D2<15,$X2+$F2*($D2-5),$F2*10),0))*IF($E2="D",0,1) -> 0 | M2: =IF((O2+N2)>0,0,IF($D2>15,IF($D2<99,$X2+$F2*($D2-15),0),0))*IF($E2="D",0,1) -> 0 | N2: =IF(AND(LEFT($A2,2)<>"IL",$D2>99),$AE2,0) -> 0 | O2: =IF(LEFT($A2,2)="IL",IF(D2<99,$X2+$F2*$D2,$AE2),0) -> 5364560.89 | P2: 2020-12-31 | Q2: CPIAW | R2: EQT | S2: 420 | T2: F | U2: 2018-01-15 | V2: 0 | W2: CAAW | X2: 4780396.44 | Y2: 4616521.46 | Z2: 4616521.46 | AA2: A | AB2: 4616521.46 | AC2: 4616521.46 | AD2: 5364560.89 | AE2: 5364560.89 | AF2: 0 | AG2: 1 | AH2: 748039.43 | AI2: 0 | AL2: -3894.06 | AM2: 0 | AN2: 0 | AO2: 0 | AP2: 0 | AQ2: 3000-01-01 | AR2: N/A
A3: ILT | B3: SLMT | C3: =VLOOKUP(S3,Map!$F$6:$H$81,2,0) -> Unit Trusts | D3: 979.6520548 | E3: =IF(LEFT(A3,2)="IL","IL",IF(OR(R3="BND",R3="CSH"),VLOOKUP(AP3,Map!$M$2:$N$50,2,0),"Not Subject to Credit Risk")) -> IL | F3: 0 | G3: 1248592.37 | H3: 0 | I3: 0 | J3: 0 | K3: 0 | L3: 0 | M3: 0 | N3: 0 | O3: 1248592.37 | P3: 2020-12-31 | Q3: CPIBW | R3: EQT | S3: 420 | T3: F | U3: 2018-04-27 | V3: 0 | W3: CABW | X3: 1142562.56 | Y3: 1180870.29 | Z3: 1180870.29 | AA3: A | AB3: 1180870.29 | AC3: 1180870.29 | AD3: 1248592.37 | AE3: 1248592.37 | AF3: 0 | AG3: 1 | AH3: 67722.08 | AI3: 0 | AL3: -3976.44 | AM3: 0 | AN3: 0 | AO3: 0 | AP3: 0 | AQ3: 3000-01-01 | AR3: N/A
A4: ILT | B4: SLMT | C4: =VLOOKUP(S4,Map!$F$6:$H$81,2,0) -> Unit Trusts | D4: 979.6520548 | E4: =IF(LEFT(A4,2)="IL","IL",IF(OR(R4="BND",R4="CSH"),VLOOKUP(AP4,Map!$M$2:$N$50,2,0),"Not Subject to Credit Risk")) -> IL | F4: 0 | G4: 77666.67 | H4: 0 | I4: 0 | J4: 0 | K4: 0 | L4: 0 | M4: 0 | N4: 0 | O4: 77666.67 | P4: 2020-12-31 | Q4: CPICW | R4: EQT | S4: 420 | T4: F | U4: 2018-07-02 | V4: 0 | W4: CACW | X4: 70503.51 | Y4: 74047.46 | Z4: 74047.46 | AA4: A | AB4: 74047.46 | AC4: 74047.46 | AD4: 77666.67 | AE4: 77666.67 | AF4: 0 | AG4: 1 | AH4: 3619.21 | AI4: 0 | AL4: -63.76 | AM4: 0 | AN4: 0 | AO4: 0 | AP4: 0 | AQ4: 3000-01-01 | AR4: N/A
A5: ILT | B5: SLMT | C5: =VLOOKUP(S5,Map!$F$6:$H$81,2,0) -> Unit Trusts | D5: 979.6520548 | E5: =IF(LEFT(A5,2)="IL","IL",IF(OR(R5="BND",R5="CSH"),VLOOKUP(AP5,Map!$M$2:$N$50,2,0),"Not Subject to Credit Risk")) -> IL | F5: 0 | G5: 23731522.01 | H5: 0 | I5: 0 | J5: 0 | K5: 0 | L5: 0 | M5: 0 | N5: 0 | O5: 23731522.01 | P5: 2020-12-31 | Q5: OSIF | R5: EQT | S5: 440 | T5: F | U5: 2018-10-24 | V5: 0 | W5: CAIBF | X5: 22831943.44 | Y5: 24087074.04 | Z5: 24087074.04 | AA5: A | AB5: 24087074.04 | AC5: 24087074.04 | AD5: 23731522.01 | AE5: 23731522.01 | AF5: 0 | AG5: 1 | AH5: -355552.03 | AI5: 0 | AL5: 45663.88 | AM5: 0 | AN5: 0 | AO5: 0 | AP5: 0 | AQ5: 3000-01-01 | AR5: N/A
A6: ILT | B6: SLMT | C6: =VLOOKUP(S6,Map!$F$6:$H$81,2,0) -> Unit Trusts | D6: 979.6520548 | E6: =IF(LEFT(A6,2)="IL","IL",IF(OR(R6="BND",R6="CSH"),VLOOKUP(AP6,Map!$M$2:$N$50,2,0),"Not Subject to Credit Risk")) -> IL | F6: 0 | G6: 194913.86 | H6: 0 | I6: 0 | J6: 0 | K6: 0 | L6: 0 | M6: 0 | N6: 0 | O6: 194913.86 | P6: 2020-12-31 | Q6: CPID | R6: EQT | S6: 430 | T6: F | U6: 2019-04-12 | V6: 0 | W6: CAID | X6: 194660.8 | Y6: 194978.21 | Z6: 194978.21 | AA6: A | AB6: 194978.21 | AC6: 194978.21 | AD6: 194913.86 | AE6: 194913.86 | AF6: 0 | AG6: 1 | AH6: -64.35 | AI6: 0 | AL6: -268.02 | AM6: 0 | AN6: 0 | AO6: 0 | AP6: 0 | AQ6: 3000-01-01 | AR6: N/A
A7: ILT | B7: SLMT | C7: =VLOOKUP(S7,Map!$F$6:$H$81,2,0) -> Unit Trusts | D7: 979.6520548 | E7: =IF(LEFT(A7,2)="IL","IL",IF(OR(R7="BND",R7="CSH"),VLOOKUP(AP7,Map!$M$2:$N$50,2,0),"Not Subject to Credit Risk")) -> IL | F7: 0 | G7: 37673271.25 | H7: 0 | I7: 0 | J7: 0 | K7: 0 | L7: 0 | M7: 0 | N7: 0 | O7: 37673271.25 | P7: 2020-12-31 | Q7: AHAGF | R7: EQT | S7: 410 | T7: F | U7: 2017-05-24 | V7: 0 | W7: CAIEF | X7: 27122585.49 | Y7: 29619250.55 | Z7: 29619250.55 | AA7: A | AB7: 29619250.55 | AC7: 29619250.55 | AD7: 37673271.25 | AE7: 37673271.25 | AF7: 0 | AG7: 1 | AH7: 8054020.7 | AI7: 0 | AL7: 43402.15 | AM7: 0 | AN7: 0 | AO7: 0 | AP7: 0 | AQ7: 3000-01-01 | AR7: N/A
A8: ILT | B8: SLMT | C8: =VLOOKUP(S8,Map!$F$6:$H$81,2,0) -> Unit Trusts | D8: 979.6520548 | E8: =IF(LEFT(A8,2)="IL","IL",IF(OR(R8="BND",R8="CSH"),VLOOKUP(AP8,Map!$M$2:$N$50,2,0),"Not Subject to Credit Risk")) -> IL | F8: 0 | G8: 14931652.72 | H8: 0 | I8: 0 | J8: 0 | K8: 0 | L8: 0 | M8: 0 | N8: 0 | O8: 14931652.72 | P8: 2020-12-31 | Q8: AHASIF | R8: EQT | S8: 420 | T8: F | U8: 2015-06-16 | V8: 0 | W8: CAII | X8: 29226174.82 | Y8: 14926961.97 | Z8: 14926961.97 | AA8: A | AB8: 14926961.97 | AC8: 14926961.97 | AD8: 14931652.72 | AE8: 14931652.72 | AF8: 0 | AG8: 1 | AH8: 4690.75 | AI8: 0 | AL8: 78930.01 | AM8: 0 | AN8: 0 | AO8: 0 | AP8: 0 | AQ8: 3000-01-01 | AR8: N/A
A9: ILT | B9: SLMT | C9: =VLOOKUP(S9,Map!$F$6:$H$81,2,0) -> Unit Trusts | D9: 979.6520548 | E9: =IF(LEFT(A9,2)="IL","IL",IF(OR(R9="BND",R9="CSH"),VLOOKUP(AP9,Map!$M$2:$N$50,2,0),"Not Subject to Credit Risk")) -> IL | F9: 0 | G9: 114021113.1 | H9: 0 | I9: 0 | J9: 0 | K9: 0 | L9: 0 | M9: 0 | N9: 0 | O9: 114021113.1 | P9: 2020-12-31 | Q9: CPIAPE | R9: EQT | S9: 410 | T9: F | U9: 2019-05-14 | V9: 0 | W9: CAPI | X9: 105117648.3 | Y9: 94525141.83 | Z9: 94525141.83 | AA9: A | AB9: 94525141.83 | AC9: 94525141.83 | AD9: 114021113.1 | AE9: 114021113.1 | AF9: 0 | AG9: 1 | AH9: 19495971.26 | AI9: 0 | AL9: 1444519.44 | AM9: 0 | AN9: 0 | AO9: 0 | AP9: 0 | AQ9: 3000-01-01 | AR9: N/A
A10: ILT | B10: SLMT | C10: =VLOOKUP(S10,Map!$F$6:$H$81,2,0) -> Unit Trusts | D10: 979.6520548 | E10: =IF(LEFT(A10,2)="IL","IL",IF(OR(R10="BND",R10="CSH"),VLOOKUP(AP10,Map!$M$2:$N$50,2,0),"Not Subject to Credit Risk")) -> IL | F10: 0 | G10: 40569544.03 | H10: 0 | I10: 0 | J10: 0 | K10: 0 | L10: 0 | M10: 0 | N10: 0 | O10: 40569544.03 | P10: 2020-12-31 | Q10: AIWEF | R10: EQT | S10: 410 | T10: F | U10: 2019-05-14 | V10: 0 | W10: CAWE | X10: 19857828.7 | Y10: 36280653.76 | Z10: 36280653.76 | AA10: A | AB10: 36280653.76 | AC10: 36280653.76 | AD10: 40569544.03 | AE10: 40569544.03 | AF10: 0 | AG10: 1 | AH10: 4288890.27 | AI10: 0 | AL10: -73473.96 | AM10: 0 | AN10: 0 | AO10: 0 | AP10: 0 | AQ10: 3000-01-01 | AR10: N/A
A11: FT | B11: SLMT | C11: =VLOOKUP(S11,Map!$F$6:$H$81,2,0) -> PDS/Sukuk | D11: 0.6547945205 | E11: =IF(LEFT(A11,2)="IL","IL",IF(OR(R11="BND",R11="CSH"),VLOOKUP(AP11,Map!$M$2:$N$50,2,0),"Not Subject to Credit Risk")) -> AA | F11: 152894.5205 | G11: 5069300 | H11: 80605.48 | I11: 5233500.001 | J11: 0 | K11: 0 | L11: 0 | M11: 0 | N11: 0 | O11: 0 | P11: 2020-12-31 | Q11: VH170239 | R11: BND | S11: 110 | T11: C | U11: 2017-08-25 | V11: 0.0467 | W11: FTFPA | X11: 5000000 | Y11: 5003500 | Z11: 5003500 | AA11: A | AB11: 5000618.8 | AC11: 5081224.28 | AD11: 5149905.48 | AE11: 5149905.48 | AF11: 0 | AG11: 1 | AH11: 68681.2 | AI11: 0 | AL11: 2258.9 | AM11: 80605.48 | AN11: 2881.2 | AO11: 0 | AP11: 128 | AQ11: 2021-08-27 | AR11: N/A
A12: FT | B12: SLMT | C12: =VLOOKUP(S12,Map!$F$6:$H$81,2,0) -> PDS/Sukuk | D12: 2.832876712 | E12: =IF(LEFT(A12,2)="IL","IL",IF(OR(R12="BND",R12="CSH"),VLOOKUP(AP12,Map!$M$2:$N$50,2,0),"Not Subject to Credit Risk")) -> AA | F12: 479000 | G12: 10549300 | H12: 82676.71 | I12: 479000 | J12: 10877947.95 | K12: 0 | L12: 0 | M12: 0 | N12: 0 | O12: 0 | P12: 2020-12-31 | Q12: VJ170344 | R12: BND | S12: 110 | T12: C | U12: 2017-10-27 | V12: 0.0479 | W12: FTFPA | X12: 10000000 | Y12: 10000000 | Z12: 10000000 | AA12: A | AB12: 10000000 | AC12: 10082676.71 | AD12: 10631976.71 | AE12: 10631976.71 | AF12: 0 | AG12: 1 | AH12: 549300 | AI12: 0 | AL12: 9749.32 | AM12: 82676.71 | AN12: 0 | AO12: 0 | AP12: 128 | AQ12: 2023-10-31 | AR12: N/A
A13: FT | B13: SLMT | C13: =VLOOKUP(S13,Map!$F$6:$H$81,2,0) -> PDS/Sukuk | D13: 2.832876712 | E13: =IF(LEFT(A13,2)="IL","IL",IF(OR(R13="BND",R13="CSH"),VLOOKUP(AP13,Map!$M$2:$N$50,2,0),"Not Subject to Credit Risk")) -> AA | F13: 479000 | G13: 10549300 | H13: 82676.71 | I13: 479000 | J13: 10877947.95 | K13: 0 | L13: 0 | M13: 0 | N13: 0 | O13: 0 | P13: 2020-12-31 | Q13: VJ170344 | R13: BND | S13: 110 | T13: C | U13: 2017-12-11 | V13: 0.0479 | W13: FTFPA | X13: 10000000 | Y13: 10013000 | Z13: 10013000 | AA13: A | AB13: 10006709.79 | AC13: 10089386.5 | AD13: 10631976.71 | AE13: 10631976.71 | AF13: 0 | AG13: 1 | AH13: 542590.21 | AI13: 0 | AL13: 9749.32 | AM13: 82676.71 | AN13: 6290.21 | AO13: 0 | AP13: 128 | AQ13: 2023-10-31 | AR13: N/A
A14: FT | B14: SLMT | C14: =VLOOKUP(S14,Map!$F$6:$H$81,2,0) -> PDS/Sukuk | D14: 0.898630137 | E14: =IF(LEFT(A14,2)="IL","IL",IF(OR(R14="BND",R14="CSH"),VLOOKUP(AP14,Map!$M$2:$N$50,2,0),"Not Subject to Credit Risk")) -> AA | F14: 125358.9041 | G14: 3057750 | H14: 14523.29 | I14: 3139882.194 | J14: 0 | K14: 0 | L14: 0 | M14: 0 | N14: 0 | O14: 0 | P14: 2020-12-31 | Q14: VK140367 | R14: BND | S14: 110 | T14: C | U14: 2014-11-24 | V14: 0.0465 | W14: FTFPA | X14: 3000000 | Y14: 3000000 | Z14: 3000000 | AA14: A | AB14: 3000000 | AC14: 3014523.29 | AD14: 3072273.29 | AE14: 3072273.29 | AF14: 0 | AG14: 1 | AH14: 57750 | AI14: 0 | AL14: 1558.76 | AM14: 14523.29 | AN14: 0 | AO14: 0 | AP14: 125 | AQ14: 2021-11-24 | AR14: N/A
A15: FT | B15: SLMT | C15: =VLOOKUP(S15,Map!$F$6:$H$81,2,0) -> PDS/Sukuk | D15: 5.884931507 | E15: =IF(LEFT(A15,2)="IL","IL",IF(OR(R15="BND",R15="CSH"),VLOOKUP(AP15,Map!$M$2:$N$50,2,0),"Not Subject to Credit Risk")) -> AA | F15: 205850 | G15: 5189200 | H15: 24814.79 | I15: 205850 | J15: 411700 | K15: 411700 | L15: 5182163.151 | M15: 0 | N15: 0 | O15: 0 | P15: 2020-12-31 | Q15: VK190235 | R15: BND | S15: 110 | T15: C | U15: 2019-11-18 | V15: 0.04117 | W15: FTFPA | X15: 5000000 | Y15: 5005000 | Z15: 5005000 | AA15: A | AB15: 5004293.51 | AC15: 5029108.3 | AD15: 5214014.79 | AE15: 5214014.79 | AF15: 0 | AG15: 1 | AH15: 184906.49 | AI15: 0 | AL15: 8355.89 | AM15: 24814.79 | AN15: 706.49 | AO15: 0 | AP15: 128 | AQ15: 2026-11-18 | AR15: N/A
A16: FT | B16: SLMT | C16: =VLOOKUP(S16,Map!$F$6:$H$81,2,0) -> PDS/Sukuk | D16: 3.835616438 | E16: =IF(LEFT(A16,2)="IL","IL",IF(OR(R16="BND",R16="CSH"),VLOOKUP(AP16,Map!$M$2:$N$50,2,0),"Not Subject to Credit Risk")) -> AA | F16: 242500 | G16: 5361800 | H16: 41856.16 | I16: 242500 | J16: 485000 | K16: 5202636.986 | L16: 0 | M16: 0 | N16: 0 | O16: 0 | P16: 2020-12-31 | Q16: VK170346 | R16: BND | S16: 110 | T16: C | U16: 2017-10-27 | V16: 0.0485 | W16: FTFPA | X16: 5000000 | Y16: 5000000 | Z16: 5000000 | AA16: A | AB16: 5000000 | AC16: 5041856.16 | AD16: 5403656.16 | AE16: 5403656.16 | AF16: 0 | AG16: 1 | AH16: 361800 | AI16: 0 | AL16: 6707.54 | AM16: 41856.16 | AN16: 0 | AO16: 0 | AP16: 128 | AQ16: 2024-10-31 | AR16: N/A
A17: FT | B17: SLMT | C17: =VLOOKUP(S17,Map!$F$6:$H$81,2,0) -> PDS/Sukuk | D17: 0.5095890411 | E17: =IF(LEFT(A17,2)="IL","IL",IF(OR(R17="BND",R17="CSH"),VLOOKUP(AP17,Map!$M$2:$N$50,2,0),"Not Subject to Credit Risk")) -> AA | F17: 115931.5068 | G17: 5052400 | H17: 113438.36 | I17: 5229369.867 | J17: 0 | K17: 0 | L17: 0 | M17: 0 | N17: 0 | O17: 0 | P17: 2020-12-31 | Q17: VL130203 | R17: BND | S17: 110 | T17: C | U17: 2018-01-09 | V17: 0.0455 | W17: FTFPA | X17: 5000000 | Y17: 5026000 | Z17: 5026000 | AA17: A | AB17: 5004057.54 | AC17: 5117495.9 | AD17: 5165838.36 | AE17: 5165838.36 | AF17: 0 | AG17: 1 | AH17: 48342.46 | AI17: 0 | AL17: 2243.15 | AM17: 113438.36 | AN17: 21942.46 | AO17: 0 | AP17: 122 | AQ17: 2021-07-05 | AR17: N/A
A18: FT | B18: SLMT | C18: =VLOOKUP(S18,Map!$F$6:$H$81,2,0) -> PDS/Sukuk | D18: 1.775342466 | E18: =IF(LEFT(A18,2)="IL","IL",IF(OR(R18="BND",R18="CSH"),VLOOKUP(AP18,Map!$M$2:$N$50,2,0),"Not Subject to Credit Risk")) -> AA | F18: 237500 | G18: 5173600 | H18: 52705.48 | I18: 237500 | J18: 5184143.836 | K18: 0 | L18: 0 | M18: 0 | N18: 0 | O18: 0 | P18: 2020-12-31 | Q18: VL140346 | R18: BND | S18: 110 | T18: C | U18: 2014-10-16 | V18: 0.0475 | W18: FTFPA | X18: 5000000 | Y18: 5029750 | Z18: 5029750 | AA18: A | AB18: 5007599.17 | AC18: 5060304.65 | AD18: 5226305.48 | AE18: 5226305.48 | AF18: 0 | AG18: 1 | AH18: 166000.83 | AI18: 0 | AL18: 3402.74 | AM18: 52705.48 | AN18: 22150.83 | AO18: 0 | AP18: 125 | AQ18: 2022-10-10 | AR18: N/A
A19: FT | B19: SLMT | C19: =VLOOKUP(S19,Map!$F$6:$H$81,2,0) -> PDS/Sukuk | D19: 2.419178082 | E19: =IF(LEFT(A19,2)="IL","IL",IF(OR(R19="BND",R19="CSH"),VLOOKUP(AP19,Map!$M$2:$N$50,2,0),"Not Subject to Credit Risk")) -> AA | F19: 464000 | G19: 10360100 | H19: 35594.52 | I19: 464000 | J19: 10658498.63 | K19: 0 | L19: 0 | M19: 0 | N19: 0 | O19: 0 | P19: 2020-12-31 | Q19: VL150127 | R19: BND | S19: 110 | T19: C | U19: 2017-12-05 | V19: 0.0464 | W19: FTFPA | X19: 10000000 | Y19: 10031000 | Z19: 10031000 | AA19: A | AB19: 10014623.32 | AC19: 10050217.84 | AD19: 10395694.52 | AE19: 10395694.52 | AF19: 0 | AG19: 1 | AH19: 345476.68 | AI19: 0 | AL19: 7684.93 | AM19: 35594.52 | AN19: 16376.68 | AO19: 0 | AP19: 128 | AQ19: 2023-06-02 | AR19: N/A
A20: FT | B20: SLMT | C20: =VLOOKUP(S20,Map!$F$6:$H$81,2,0) -> PDS/Sukuk | D20: 2.608219178 | E20: =IF(LEFT(A20,2)="IL","IL",IF(OR(R20="BND",R20="CSH"),VLOOKUP(AP20,Map!$M$2:$N$50,2,0),"Not Subject to Credit Risk")) -> AA | F20: 242500 | G20: 5255550 | H20: 53815.07 | I20: 242500 | J20: 5389993.151 | K20: 0 | L20: 0 | M20: 0 | N20: 0 | O20: 0 | P20: 2020-12-31 | Q20: VM140347 | R20: BND | S20: 110 | T20: C | U20: 2014-10-16 | V20: 0.0485 | W20: FTFPA | X20: 5000000 | Y20: 5035400 | Z20: 5035400 | AA20: A | AB20: 5012049.71 | AC20: 5065864.78 | AD20: 5309365.07 | AE20: 5309365.07 | AF20: 0 | AG20: 1 | AH20: 243500.29 | AI20: 0 | AL20: 3657.53 | AM20: 53815.07 | AN20: 23350.29 | AO20: 0 | AP20: 125 | AQ20: 2023-08-10 | AR20: N/A
A21: FT | B21: SLMT | C21: =VLOOKUP(S21,Map!$F$6:$H$81,2,0) -> PDS/Sukuk | D21: 0.1068493151 | E21: =IF(LEFT(A21,2)="IL","IL",IF(OR(R21="BND",R21="CSH"),VLOOKUP(AP21,Map!$M$2:$N$50,2,0),"Not Subject to Credit Risk")) -> Not Rated | F21: 11833.56164 | G21: 2505900 | H21: 43693.15 | I21: 2555526.712 | J21: 0 | K21: 0 | L21: 0 | M21: 0 | N21: 0 | O21: 0 | P21: 2020-12-31 | Q21: VN110016 | R21: BND | S21: 130 | T21: C | U21: 2011-03-11 | V21: 0.0443 | W21: FTFPA | X21: 2500000 | Y21: 2516000 | Z21: 2516000 | AA21: A | AB21: 2500211.64 | AC21: 2543904.79 | AD21: 2549593.15 | AE21: 2549593.15 | AF21: 0 | AG21: 1 | AH21: 5688.36 | AI21: 0 | AL21: 1038.7 | AM21: 43693.15 | AN21: 15788.36 | AO21: 0 | AP21: 0 | AQ21: 2021-02-08 | AR21: N/A
A22: FT | B22: SLMT | C22: =VLOOKUP(S22,Map!$F$6:$H$81,2,0) -> PDS/Sukuk | D22: 0.8054794521 | E22: =IF(LEFT(A22,2)="IL","IL",IF(OR(R22="BND",R22="CSH"),VLOOKUP(AP22,Map!$M$2:$N$50,2,0),"Not Subject to Credit Risk")) -> AAA | F22: 165123.2877 | G22: 5076050 | H22: 40438.36 | I22: 5205561.648 | J22: 0 | K22: 0 | L22: 0 | M22: 0 | N22: 0 | O22: 0 | P22: 2020-12-31 | Q22: VN110401 | R22: BND | S22: 110 | T22: C | U22: 2018-01-19 | V22: 0.041 | W22: FTFPA | X22: 5000000 | Y22: 4969000 | Z22: 4969000 | AA22: A | AB22: 4992902.42 | AC22: 5033340.78 | AD22: 5116488.36 | AE22: 5116488.36 | AF22: 0 | AG22: 1 | AH22: 83147.58 | AI22: 0 | AL22: 3396.57 | AM22: 40438.36 | AN22: -23902.42 | AO22: 0 | AP22: 115 | AQ22: 2021-10-21 | AR22: N/A
A23: FT | B23: SLMT | C23: =VLOOKUP(S23,Map!$F$6:$H$81,2,0) -> PDS/Sukuk | D23: 1.882191781 | E23: =IF(LEFT(A23,2)="IL","IL",IF(OR(R23="BND",R23="CSH"),VLOOKUP(AP23,Map!$M$2:$N$50,2,0),"Not Subject to Credit Risk")) -> Not Rated | F23: 374000 | G23: 10321000 | H23: 44060.27 | I23: 374000 | J23: 10329939.73 | K23: 0 | L23: 0 | M23: 0 | N23: 0 | O23: 0 | P23: 2020-12-31 | Q23: VN120393 | R23: BND | S23: 130 | T23: C | U23: 2017-12-06 | V23: 0.0374 | W23: FTFPA | X23: 10000000 | Y23: 9809000 | Z23: 9809000 | AA23: A | AB23: 9922704.13 | AC23: 9966764.4 | AD23: 10365060.27 | AE23: 10365060.27 | AF23: 0 | AG23: 1 | AH23: 398295.87 | AI23: 0 | AL23: 5298.63 | AM23: 44060.27 | AN23: -113704.13 | AO23: 0 | AP23: 0 | AQ23: 2022-11-18 | AR23: N/A
A24: FT | B24: SLMT | C24: =VLOOKUP(S24,Map!$F$6:$H$81,2,0) -> PDS/Sukuk | D24: 3.509589041 | E24: =IF(LEFT(A24,2)="IL","IL",IF(OR(R24="BND",R24="CSH"),VLOOKUP(AP24,Map!$M$2:$N$50,2,0),"Not Subject to Credit Risk")) -> AAA | F24: 250000 | G24: 5414500 | H24: 122602.74 | I24: 250000 | J24: 500000 | K24: 5127397.26 | L24: 0 | M24: 0 | N24: 0 | O24: 0 | P24: 2020-12-31 | Q24: VN140171 | R24: BND | S24: 110 | T24: C | U24: 2017-12-11 | V24: 0.05 | W24: FTFPA | X24: 5000000 | Y24: 5124500 | Z24: 5124500 | AA24: A | AB24: 5071174.01 | AC24: 5193776.75 | AD24: 5537102.74 | AE24: 5537102.74 | AF24: 0 | AG24: 1 | AH24: 343325.99 | AI24: 0 | AL24: 4339.72 | AM24: 122602.74 | AN24: 53325.99 | AO24: 0 | AP24: 115 | AQ24: 2024-07-04 | AR24: N/A
A25: FT | B25: SLMT | C25: =VLOOKUP(S25,Map!$F$6:$H$81,2,0) -> PDS/Sukuk | D25: 3.564383562 | E25: =IF(LEFT(A25,2)="IL","IL",IF(OR(R25="BND",R25="CSH"),VLOOKUP(AP25,Map!$M$2:$N$50,2,0),"Not Subject to Credit Risk")) -> Not Rated | F25: 220500 | G25: 5372000 | H25: 97261.64 | I25: 220500 | J25: 441000 | K25: 5124446.575 | L25: 0 | M25: 0 | N25: 0 | O25: 0 | P25: 2020-12-31 | Q25: VN140197 | R25: BND | S25: 130 | T25: C | U25: 2015-09-02 | V25: 0.0441 | W25: FTFPA | X25: 5000000 | Y25: 4928000 | Z25: 4928000 | AA25: A | AB25: 4967529.7 | AC25: 5064791.34 | AD25: 5469261.64 | AE25: 5469261.64 | AF25: 0 | AG25: 1 | AH25: 404470.3 | AI25: 0 | AL25: 3916.44 | AM25: 97261.64 | AN25: -39529.7 | AO25: 0 | AP25: 0 | AQ25: 2024-07-24 | AR25: N/A
A26: FT | B26: SLMT | C26: =VLOOKUP(S26,Map!$F$6:$H$81,2,0) -> PDS/Sukuk | D26: 4.616438356 | E26: =IF(LEFT(A26,2)="IL","IL",IF(OR(R26="BND",R26="CSH"),VLOOKUP(AP26,Map!$M$2:$N$50,2,0),"Not Subject to Credit Risk")) -> AA | F26: 229000 | G26: 5378800 | H26: 89090.41 | I26: 229000 | J26: 458000 | K26: 5370164.384 | L26: 0 | M26: 0 | N26: 0 | O26: 0 | P26: 2020-12-31 | Q26: VN150157 | R26: BND | S26: 110 | T26: C | U26: 2016-07-28 | V26: 0.0458 | W26: FTFPA | X26: 5000000 | Y26: 5048000 | Z26: 5048000 | AA26: A | AB26: 5026923.57 | AC26: 5116013.98 | AD26: 5467890.41 | AE26: 5467890.41 | AF26: 0 | AG26: 1 | AH26: 351876.43 | AI26: 0 | AL26: 2309.59 | AM26: 89090.41 | AN26: 21076.43 | AO26: 0 | AP26: 122 | AQ26: 2025-08-12 | AR26: N/A
A27: FT | B27: SLMT | C27: =VLOOKUP(S27,Map!$F$6:$H$81,2,0) -> PDS/Sukuk | D27: 4.632876712 | E27: =IF(LEFT(A27,2)="IL","IL",IF(OR(R27="BND",R27="CSH"),VLOOKUP(AP27,Map!$M$2:$N$50,2,0),"Not Subject to Credit Risk")) -> AAA | F27: 237500 | G27: 5459000 | H27: 88493.15 | I27: 237500 | J27: 475000 | K27: 5387808.219 | L27: 0 | M27: 0 | N27: 0 | O27: 0 | P27: 2020-12-31 | Q27: VN150159 | R27: BND | S27: 110 | T27: C | U27: 2015-08-17 | V27: 0.0475 | W27: FTFPA | X27: 5000000 | Y27: 5000000 | Z27: 5000000 | AA27: A | AB27: 5000000 | AC27: 5088493.15 | AD27: 5547493.15 | AE27: 5547493.15 | AF27: 0 | AG27: 1 | AH27: 459000 | AI27: 0 | AL27: 4602.74 | AM27: 88493.15 | AN27: 0 | AO27: 0 | AP27: 115 | AQ27: 2025-08-18 | AR27: N/A
A28: FT | B28: SLMT | C28: =VLOOKUP(S28,Map!$F$6:$H$81,2,0) -> PDS/Sukuk | D28: 5.575342466 | E28: =IF(LEFT(A28,2)="IL","IL",IF(OR(R28="BND",R28="CSH"),VLOOKUP(AP28,Map!$M$2:$N$50,2,0),"Not Subject to Credit Risk")) -> Not Rated | F28: 210000 | G28: 5427100 | H28: 90328.77 | I28: 210000 | J28: 420000 | K28: 420000 | L28: 5120821.918 | M28: 0 | N28: 0 | O28: 0 | P28: 2020-12-31 | Q28: VN160235 | R28: BND | S28: 130 | T28: C | U28: 2018-05-23 | V28: 0.042 | W28: FTFPA | X28: 5000000 | Y28: 4873500 | Z28: 4873500 | AA28: A | AB28: 4908809.97 | AC28: 4999138.74 | AD28: 5517428.77 | AE28: 5517428.77 | AF28: 0 | AG28: 1 | AH28: 518290.03 | AI28: 0 | AL28: 4551.37 | AM28: 90328.77 | AN28: -35309.97 | AO28: 0 | AP28: 0 | AQ28: 2026-07-28 | AR28: N/A
A29: FT | B29: SLMT | C29: =VLOOKUP(S29,Map!$F$6:$H$81,2,0) -> PDS/Sukuk | D29: 6.879452055 | E29: =IF(LEFT(A29,2)="IL","IL",IF(OR(R29="BND",R29="CSH"),VLOOKUP(AP29,Map!$M$2:$N$50,2,0),"Not Subject to Credit Risk")) -> Not Rated | F29: 225000 | G29: 5539950 | H29: 28356.16 | I29: 225000 | J29: 450000 | K29: 450000 | L29: 5422876.712 | M29: 0 | N29: 0 | O29: 0 | P29: 2020-12-31 | Q29: VN170375 | R29: BND | S29: 130 | T29: C | U29: 2017-11-15 | V29: 0.045 | W29: FTFPA | X29: 5000000 | Y29: 5000000 | Z29: 5000000 | AA29: A | AB29: 5000000 | AC29: 5028356.16 | AD29: 5568306.16 | AE29: 5568306.16 | AF29: 0 | AG29: 1 | AH29: 539950 | AI29: 0 | AL29: 5565.76 | AM29: 28356.16 | AN29: 0 | AO29: 0 | AP29: 0 | AQ29: 2027-11-16 | AR29: N/A
A30: FT | B30: SLMT | C30: =VLOOKUP(S30,Map!$F$6:$H$81,2,0) -> PDS/Sukuk | D30: 7.232876712 | E30: =IF(LEFT(A30,2)="IL","IL",IF(OR(R30="BND",R30="CSH"),VLOOKUP(AP30,Map!$M$2:$N$50,2,0),"Not Subject to Credit Risk")) -> AA | F30: 570000 | G30: 11085400 | H30: 148356.16 | I30: 570000 | J30: 1140000 | K30: 1140000 | L30: 11272739.73 | M30: 0 | N30: 0 | O30: 0 | P30: 2020-12-31 | Q30: VN180095 | R30: BND | S30: 110 | T30: C | U30: 2018-03-23 | V30: 0.057 | W30: FTFPA | X30: 10000000 | Y30: 10000000 | Z30: 10000000 | AA30: A | AB30: 10000000 | AC30: 10148356.16 | AD30: 11233756.16 | AE30: 11233756.16 | AF30: 0 | AG30: 1 | AH30: 1085400 | AI30: 0 | AL30: 25846.58 | AM30: 148356.16 | AN30: 0 | AO30: 0 | AP30: 128 | AQ30: 2028-03-24 | AR30: N/A
A31: FT | B31: SLMT | C31: =VLOOKUP(S31,Map!$F$6:$H$81,2,0) -> PDS/Sukuk | D31: 7.232876712 | E31: =IF(LEFT(A31,2)="IL","IL",IF(OR(R31="BND",R31="CSH"),VLOOKUP(AP31,Map!$M$2:$N$50,2,0),"Not Subject to Credit Risk")) -> AA | F31: 285000 | G31: 5542700 | H31: 74178.08 | I31: 285000 | J31: 570000 | K31: 570000 | L31: 5636369.863 | M31: 0 | N31: 0 | O31: 0 | P31: 2020-12-31 | Q31: VN180095 | R31: BND | S31: 110 | T31: C | U31: 2019-02-13 | V31: 0.057 | W31: FTFPA | X31: 5000000 | Y31: 5053000 | Z31: 5053000 | AA31: A | AB31: 5044157.11 | AC31: 5118335.19 | AD31: 5616878.08 | AE31: 5616878.08 | AF31: 0 | AG31: 1 | AH31: 498542.89 | AI31: 0 | AL31: 12923.29 | AM31: 74178.08 | AN31: 8842.89 | AO31: 0 | AP31: 128 | AQ31: 2028-03-24 | AR31: N/A
A32: FT | B32: SLMT | C32: =VLOOKUP(S32,Map!$F$6:$H$81,2,0) -> PDS/Sukuk | D32: 8.745205479 | E32: =IF(LEFT(A32,2)="IL","IL",IF(OR(R32="BND",R32="CSH"),VLOOKUP(AP32,Map!$M$2:$N$50,2,0),"Not Subject to Credit Risk")) -> AA | F32: 562500 | G32: 15568950 | H32: 146404.11 | I32: 562500 | J32: 1125000 | K32: 1125000 | L32: 17106678.08 | M32: 0 | N32: 0 | O32: 0 | P32: 2020-12-31 | Q32: VN190188 | R32: BND | S32: 110 | T32: C | U32: 2019-09-25 | V32: 0.0375 | W32: FTFPA | X32: 15000000 | Y32: 15000000 | Z32: 15000000 | AA32: A | AB32: 15000000 | AC32: 15146404.11 | AD32: 15715354.11 | AE32: 15715354.11 | AF32: 0 | AG32: 1 | AH32: 568950 | AI32: 0 | AL32: 6014.38 | AM32: 146404.11 | AN32: 0 | AO32: 0 | AP32: 122 | AQ32: 2029-09-27 | AR32: N/A
A33: FT | B33: SLMT | C33: =VLOOKUP(S33,Map!$F$6:$H$81,2,0) -> PDS/Sukuk | D33: 6.169863014 | E33: =IF(LEFT(A33,2)="IL","IL",IF(OR(R33="BND",R33="CSH"),VLOOKUP(AP33,Map!$M$2:$N$50,2,0),"Not Subject to Credit Risk")) -> AAA | F33: 462000 | G33: 10933100 | H33: 154425.41 | I33: 462000 | J33: 924000 | K33: 924000 | L33: 10540476.71 | M33: 0 | N33: 0 | O33: 0 | P33: 2020-12-31 | Q33: VN170041 | R33: BND | S33: 110 | T33: C | U33: 2019-08-06 | V33: 0.0462 | W33: FTFPA | X33: 10000000 | Y33: 10464100 | Z33: 10464100 | AA33: A | AB33: 10388157.06 | AC33: 10542582.47 | AD33: 11087525.41 | AE33: 11087525.41 | AF33: 0 | AG33: 1 | AH33: 544942.94 | AI33: 0 | AL33: 13504.98 | AM33: 154425.41 | AN33: 75942.94 | AO33: 0 | AP33: 115 | AQ33: 2027-03-02 | AR33: N/A
A34: FT | B34: SLMT | C34: =VLOOKUP(S34,Map!$F$6:$H$81,2,0) -> PDS/Sukuk | D34: 6.216438356 | E34: =IF(LEFT(A34,2)="IL","IL",IF(OR(R34="BND",R34="CSH"),VLOOKUP(AP34,Map!$M$2:$N$50,2,0),"Not Subject to Credit Risk")) -> Not Rated | F34: 228000 | G34: 5539150 | H34: 63715.07 | I34: 228000 | J34: 456000 | K34: 456000 | L34: 5277347.945 | M34: 0 | N34: 0 | O34: 0 | P34: 2020-12-31 | Q34: VN170118 | R34: BND | S34: 130 | T34: C | U34: 2017-03-17 | V34: 0.0456 | W34: FTFPA | X34: 5000000 | Y34: 5000000 | Z34: 5000000 | AA34: A | AB34: 5000000 | AC34: 5063715.07 | AD34: 5602865.07 | AE34: 5602865.07 | AF34: 0 | AG34: 1 | AH34: 539150 | AI34: 0 | AL34: 4998.63 | AM34: 63715.07 | AN34: 0 | AO34: 0 | AP34: 0 | AQ34: 2027-03-19 | AR34: N/A
A35: FT | B35: SLMT | C35: =VLOOKUP(S35,Map!$F$6:$H$81,2,0) -> PDS/Sukuk | D35: 3.923287671 | E35: =IF(LEFT(A35,2)="IL","IL",IF(OR(R35="BND",R35="CSH"),VLOOKUP(AP35,Map!$M$2:$N$50,2,0),"Not Subject to Credit Risk")) -> AA | F35: 237500 | G35: 5262800 | H35: 19520.55 | I35: 237500 | J35: 475000 | K35: 5219280.822 | L35: 0 | M35: 0 | N35: 0 | O35: 0 | P35: 2020-12-31 | Q35: VO130301 | R35: BND | S35: 110 | T35: C | U35: 2018-07-10 | V35: 0.0475 | W35: FTFPA | X35: 5000000 | Y35: 5001000 | Z35: 5001000 | AA35: A | AB35: 5000648.79 | AC35: 5020169.34 | AD35: 5282320.55 | AE35: 5282320.55 | AF35: 0 | AG35: 1 | AH35: 262151.21 | AI35: 0 | AL35: 6752.74 | AM35: 19520.55 | AN35: 351.21 | AO35: 0 | AP35: 128 | AQ35: 2024-12-02 | AR35: N/A
A36: FT | B36: SLMT | C36: =VLOOKUP(S36,Map!$F$6:$H$81,2,0) -> Cagamas | D36: 4.82739726 | E36: =IF(LEFT(A36,2)="IL","IL",IF(OR(R36="BND",R36="CSH"),VLOOKUP(AP36,Map!$M$2:$N$50,2,0),"Not Subject to Credit Risk")) -> AAA | F36: 227500 | G36: 5453700 | H36: 40513.7 | I36: 227500 | J36: 455000 | K36: 5415732.877 | L36: 0 | M36: 0 | N36: 0 | O36: 0 | P36: 2020-12-31 | Q36: VP130258 | R36: BND | S36: 100 | T36: C | U36: 2014-06-06 | V36: 0.0455 | W36: FTFPA | X36: 5000000 | Y36: 4926500 | Z36: 4926500 | AA36: A | AB36: 4964017.59 | AC36: 5004531.29 | AD36: 5494213.7 | AE36: 5494213.7 | AF36: 0 | AG36: 1 | AH36: 489682.41 | AI36: 0 | AL36: 4843.15 | AM36: 40513.7 | AN36: -37517.59 | AO36: 0 | AP36: 115 | AQ36: 2025-10-28 | AR36: N/A
A37: FT | B37: SLMT | C37: =VLOOKUP(S37,Map!$F$6:$H$81,2,0) -> Cagamas | D37: 4.82739726 | E37: =IF(LEFT(A37,2)="IL","IL",IF(OR(R37="BND",R37="CSH"),VLOOKUP(AP37,Map!$M$2:$N$50,2,0),"Not Subject to Credit Risk")) -> AAA | F37: 227500 | G37: 5453700 | H37: 40513.7 | I37: 227500 | J37: 455000 | K37: 5415732.877 | L37: 0 | M37: 0 | N37: 0 | O37: 0 | P37: 2020-12-31 | Q37: VP130258 | R37: BND | S37: 100 | T37: C | U37: 2014-08-26 | V37: 0.0455 | W37: FTFPA | X37: 5000000 | Y37: 4970000 | Z37: 4970000 | AA37: A | AB37: 4985134.56 | AC37: 5025648.26 | AD37: 5494213.7 | AE37: 5494213.7 | AF37: 0 | AG37: 1 | AH37: 468565.44 | AI37: 0 | AL37: 4843.15 | AM37: 40513.7 | AN37: -15134.56 | AO37: 0 | AP37: 115 | AQ37: 2025-10-28 | AR37: N/A
A38: FT | B38: SLMT | C38: =VLOOKUP(S38,Map!$F$6:$H$81,2,0) -> PDS/Sukuk | D38: 5.410958904 | E38: =IF(LEFT(A38,2)="IL","IL",IF(OR(R38="BND",R38="CSH"),VLOOKUP(AP38,Map!$M$2:$N$50,2,0),"Not Subject to Credit Risk")) -> AAA | F38: 246500 | G38: 5545350 | H38: 21610.96 | I38: 246500 | J38: 493000 | K38: 493000 | L38: 5101301.37 | M38: 0 | N38: 0 | O38: 0 | P38: 2020-12-31 | Q38: VP140145 | R38: BND | S38: 110 | T38: C | U38: 2014-05-30 | V38: 0.0493 | W38: FTFPA | X38: 5000000 | Y38: 5000000 | Z38: 5000000 | AA38: A | AB38: 5000000 | AC38: 5021610.96 | AD38: 5566960.96 | AE38: 5566960.96 | AF38: 0 | AG38: 1 | AH38: 545350 | AI38: 0 | AL38: 7501.37 | AM38: 21610.96 | AN38: 0 | AO38: 0 | AP38: 115 | AQ38: 2026-05-29 | AR38: N/A
A39: FT | B39: SLMT | C39: =VLOOKUP(S39,Map!$F$6:$H$81,2,0) -> PDS/Sukuk | D39: 5.410958904 | E39: =IF(LEFT(A39,2)="IL","IL",IF(OR(R39="BND",R39="CSH"),VLOOKUP(AP39,Map!$M$2:$N$50,2,0),"Not Subject to Credit Risk")) -> AAA | F39: 493000 | G39: 11090700 | H39: 43221.92 | I39: 493000 | J39: 986000 | K39: 986000 | L39: 10202602.74 | M39: 0 | N39: 0 | O39: 0 | P39: 2020-12-31 | Q39: VP140145 | R39: BND | S39: 110 | T39: C | U39: 2015-06-11 | V39: 0.0493 | W39: FTFPA | X39: 10000000 | Y39: 10343500 | Z39: 10343500 | AA39: A | AB39: 10190790.62 | AC39: 10234012.54 | AD39: 11133921.92 | AE39: 11133921.92 | AF39: 0 | AG39: 1 | AH39: 899909.38 | AI39: 0 | AL39: 15002.74 | AM39: 43221.92 | AN39: 152709.38 | AO39: 0 | AP39: 115 | AQ39: 2026-05-29 | AR39: N/A
A40: FT | B40: SLMT | C40: =VLOOKUP(S40,Map!$F$6:$H$81,2,0) -> MGSGII | D40: 0.3287671233 | E40: =IF(LEFT(A40,2)="IL","IL",IF(OR(R40="BND",R40="CSH"),VLOOKUP(AP40,Map!$M$2:$N$50,2,0),"Not Subject to Credit Risk")) -> Not Rated | F40: 82257.53425 | G40: 6044700 | H40: 42851.93 | I40: 6125109.464 | J40: 0 | K40: 0 | L40: 0 | M40: 0 | N40: 0 | O40: 0 | P40: 2020-12-31 | Q40: GN110025 | R40: BND | S40: 131 | T40: C | U40: 2011-04-28 | V40: 0.0417 | W40: FTFPA | X40: 6000000 | Y40: 5999040 | Z40: 5999040 | AA40: A | AB40: 5999961.71 | AC40: 6042813.64 | AD40: 6087551.93 | AE40: 6087551.93 | AF40: 0 | AG40: 1 | AH40: 44738.29 | AI40: 0 | AL40: 2764.64 | AM40: 42851.93 | AN40: -921.71 | AO40: 0 | AP40: 0 | AQ40: 2021-04-30 | AR40: N/A
A41: FT | B41: SLMT | C41: =VLOOKUP(S41,Map!$F$6:$H$81,2,0) -> MGSGII | D41: 9.753424658 | E41: =IF(LEFT(A41,2)="IL","IL",IF(OR(R41="BND",R41="CSH"),VLOOKUP(AP41,Map!$M$2:$N$50,2,0),"Not Subject to Credit Risk")) -> Not Rated | F41: 424500 | G41: 11222600 | H41: 108457.42 | I41: 424500 | J41: 849000 | K41: 849000 | L41: 12017828.77 | M41: 0 | N41: 0 | O41: 0 | P41: 2020-12-31 | Q41: GT150003 | R41: BND | S41: 131 | T41: C | U41: 2019-12-30 | V41: 0.04245 | W41: FTFPA | X41: 10000000 | Y41: 10650000 | Z41: 10650000 | AA41: A | AB41: 10599118.48 | AC41: 10707575.9 | AD41: 11331057.42 | AE41: 11331057.42 | AF41: 0 | AG41: 1 | AH41: 623481.52 | AI41: 0 | AL41: 32064.83 | AM41: 108457.42 | AN41: 50881.52 | AO41: 0 | AP41: 0 | AQ41: 2030-09-30 | AR41: N/A
A42: FT | B42: SLMT | C42: =VLOOKUP(S42,Map!$F$6:$H$81,2,0) -> MGSGII | D42: 12.4630137 | E42: =IF(LEFT(A42,2)="IL","IL",IF(OR(R42="BND",R42="CSH"),VLOOKUP(AP42,Map!$M$2:$N$50,2,0),"Not Subject to Credit Risk")) -> Not Rated | F42: 472400 | G42: 11448500 | H42: 22062.64 | I42: 472400 | J42: 944800 | K42: 944800 | L42: 13525527.67 | M42: 0 | N42: 0 | O42: 0 | P42: 2020-12-31 | Q42: GT170006 | R42: BND | S42: 131 | T42: C | U42: 2018-06-28 | V42: 0.04724 | W42: FTFPA | X42: 10000000 | Y42: 9929900 | Z42: 9929900 | AA42: A | AB42: 9938438.75 | AC42: 9960501.39 | AD42: 11470562.64 | AE42: 11470562.64 | AF42: 0 | AG42: 1 | AH42: 1510061.25 | AI42: 0 | AL42: 68891.21 | AM42: 22062.64 | AN42: -8538.75 | AO42: 0 | AP42: 0 | AQ42: 2033-06-15 | AR42: N/A
A43: FT | B43: SLMT | C43: =VLOOKUP(S43,Map!$F$6:$H$81,2,0) -> MGSGII | D43: 12.4630137 | E43: =IF(LEFT(A43,2)="IL","IL",IF(OR(R43="BND",R43="CSH"),VLOOKUP(AP43,Map!$M$2:$N$50,2,0),"Not Subject to Credit Risk")) -> Not Rated | F43: 472400 | G43: 11448500 | H43: 22062.64 | I43: 472400 | J43: 944800 | K43: 944800 | L43: 13525527.67 | M43: 0 | N43: 0 | O43: 0 | P43: 2020-12-31 | Q43: GT170006 | R43: BND | S43: 131 | T43: C | U43: 2018-06-28 | V43: 0.04724 | W43: FTFPA | X43: 10000000 | Y43: 9919300 | Z43: 9919300 | AA43: A | AB43: 9929087.47 | AC43: 9951150.11 | AD43: 11470562.64 | AE43: 11470562.64 | AF43: 0 | AG43: 1 | AH43: 1519412.53 | AI43: 0 | AL43: 68891.21 | AM43: 22062.64 | AN43: -9787.47 | AO43: 0 | AP43: 0 | AQ43: 2033-06-15 | AR43: N/A
A44: FT | B44: SLMT | C44: =VLOOKUP(S44,Map!$F$6:$H$81,2,0) -> MGSGII | D44: 14.84109589 | E44: =IF(LEFT(A44,2)="IL","IL",IF(OR(R44="BND",R44="CSH"),VLOOKUP(AP44,Map!$M$2:$N$50,2,0),"Not Subject to Credit Risk")) -> Not Rated | F44: 478600 | G44: 11643200 | H44: 81970.17 | I44: 478600 | J44: 957200 | K44: 957200 | L44: 14709948.49 | M44: 0 | N44: 0 | O44: 0 | P44: 2020-12-31 | Q44: GX150006 | R44: BND | S44: 131 | T44: C | U44: 2018-11-22 | V44: 0.04786 | W44: FTFPA | X44: 10000000 | Y44: 9980000 | Z44: 9980000 | AA44: A | AB44: 9981694.46 | AC44: 10063664.63 | AD44: 11725170.17 | AE44: 11725170.17 | AF44: 0 | AG44: 1 | AH44: 1661505.54 | AI44: 0 | AL44: 50688.39 | AM44: 81970.17 | AN44: -1694.46 | AO44: 0 | AP44: 0 | AQ44: 2035-10-31 | AR44: N/A
A45: FT | B45: SLMT | C45: =VLOOKUP(S45,Map!$F$6:$H$81,2,0) -> MGSGII | D45: 14.84109589 | E45: =IF(LEFT(A45,2)="IL","IL",IF(OR(R45="BND",R45="CSH"),VLOOKUP(AP45,Map!$M$2:$N$50,2,0),"Not Subject to Credit Risk")) -> Not Rated | F45: 478600 | G45: 11643200 | H45: 81970.17 | I45: 478600 | J45: 957200 | K45: 957200 | L45: 14709948.49 | M45: 0 | N45: 0 | O45: 0 | P45: 2020-12-31 | Q45: GX150006 | R45: BND | S45: 131 | T45: C | U45: 2018-11-22 | V45: 0.04786 | W45: FTFPA | X45: 10000000 | Y45: 9980000 | Z45: 9980000 | AA45: A | AB45: 9981694.46 | AC45: 10063664.63 | AD45: 11725170.17 | AE45: 11725170.17 | AF45: 0 | AG45: 1 | AH45: 1661505.54 | AI45: 0 | AL45: 50688.39 | AM45: 81970.17 | AN45: -1694.46 | AO45: 0 | AP45: 0 | AQ45: 2035-10-31 | AR45: N/A
A46: FT | B46: SLMT | C46: =VLOOKUP(S46,Map!$F$6:$H$81,2,0) -> MGSGII | D46: 14.84109589 | E46: =IF(LEFT(A46,2)="IL","IL",IF(OR(R46="BND",R46="CSH"),VLOOKUP(AP46,Map!$M$2:$N$50,2,0),"Not Subject to Credit Risk")) -> Not Rated | F46: 478600 | G46: 11643200 | H46: 81970.17 | I46: 478600 | J46: 957200 | K46: 957200 | L46: 14709948.49 | M46: 0 | N46: 0 | O46: 0 | P46: 2020-12-31 | Q46: GX150006 | R46: BND | S46: 131 | T46: C | U46: 2019-01-14 | V46: 0.04786 | W46: FTFPA | X46: 10000000 | Y46: 10096500 | Z46: 10096500 | AA46: A | AB46: 10088752.46 | AC46: 10170722.63 | AD46: 11725170.17 | AE46: 11725170.17 | AF46: 0 | AG46: 1 | AH46: 1554447.54 | AI46: 0 | AL46: 50688.39 | AM46: 81970.17 | AN46: 7747.54 | AO46: 0 | AP46: 0 | AQ46: 2035-10-31 | AR46: N/A
A47: FT | B47: SLMT | C47: =VLOOKUP(S47,Map!$F$6:$H$81,2,0) -> MGSGII | D47: 16.60273973 | E47: =IF(LEFT(A47,2)="IL","IL",IF(OR(R47="BND",R47="CSH"),VLOOKUP(AP47,Map!$M$2:$N$50,2,0),"Not Subject to Credit Risk")) -> Not Rated | F47: 475500 | G47: 11432800 | H47: 193817.93 | I47: 475500 | J47: 951000 | K47: 951000 | L47: 4755000 | M47: 10762102.74 | N47: 0 | O47: 0 | P47: 2020-12-31 | Q47: GX170005 | R47: BND | S47: 131 | T47: C | U47: 2018-08-06 | V47: 0.04755 | W47: FTFPA | X47: 10000000 | Y47: 9970200 | Z47: 9970200 | AA47: A | AB47: 9972650.05 | AC47: 10166467.98 | AD47: 11626617.93 | AE47: 11626617.93 | AF47: 0 | AG47: 1 | AH47: 1460149.95 | AI47: 0 | AL47: 54268.48 | AM47: 193817.93 | AN47: -2450.05 | AO47: 0 | AP47: 0 | AQ47: 2037-08-04 | AR47: N/A
A48: FT | B48: SLMT | C48: =VLOOKUP(S48,Map!$F$6:$H$81,2,0) -> MGSGII | D48: 16.60273973 | E48: =IF(LEFT(A48,2)="IL","IL",IF(OR(R48="BND",R48="CSH"),VLOOKUP(AP48,Map!$M$2:$N$50,2,0),"Not Subject to Credit Risk")) -> Not Rated | F48: 475500 | G48: 11432800 | H48: 193817.93 | I48: 475500 | J48: 951000 | K48: 951000 | L48: 4755000 | M48: 10762102.74 | N48: 0 | O48: 0 | P48: 2020-12-31 | Q48: GX170005 | R48: BND | S48: 131 | T48: C | U48: 2018-08-06 | V48: 0.04755 | W48: FTFPA | X48: 10000000 | Y48: 9982600 | Z48: 9982600 | AA48: A | AB48: 9984031.95 | AC48: 10177849.88 | AD48: 11626617.93 | AE48: 11626617.93 | AF48: 0 | AG48: 1 | AH48: 1448768.05 | AI48: 0 | AL48: 54268.48 | AM48: 193817.93 | AN48: -1431.95 | AO48: 0 | AP48: 0 | AQ48: 2037-08-04 | AR48: N/A
A49: FT | B49: SLMT | C49: =VLOOKUP(S49,Map!$F$6:$H$81,2,0) -> MGSGII | D49: 16.60273973 | E49: =IF(LEFT(A49,2)="IL","IL",IF(OR(R49="BND",R49="CSH"),VLOOKUP(AP49,Map!$M$2:$N$50,2,0),"Not Subject to Credit Risk")) -> Not Rated | F49: 951000 | G49: 22865600 | H49: 387635.87 | I49: 951000 | J49: 1902000 | K49: 1902000 | L49: 9510000 | M49: 21524205.48 | N49: 0 | O49: 0 | P49: 2020-12-31 | Q49: GX170005 | R49: BND | S49: 131 | T49: C | U49: 2018-08-06 | V49: 0.04755 | W49: FTFPA | X49: 20000000 | Y49: 19990000 | Z49: 19990000 | AA49: A | AB49: 19990822.95 | AC49: 20378458.82 | AD49: 23253235.87 | AE49: 23253235.87 | AF49: 0 | AG49: 1 | AH49: 2874777.05 | AI49: 0 | AL49: 108536.96 | AM49: 387635.87 | AN49: -822.95 | AO49: 0 | AP49: 0 | AQ49: 2037-08-04 | AR49: N/A
A50: FT | B50: SLMT | C50: =VLOOKUP(S50,Map!$F$6:$H$81,2,0) -> MGSGII | D50: 16.60273973 | E50: =IF(LEFT(A50,2)="IL","IL",IF(OR(R50="BND",R50="CSH"),VLOOKUP(AP50,Map!$M$2:$N$50,2,0),"Not Subject to Credit Risk")) -> Not Rated | F50: 475500 | G50: 11432800 | H50: 193817.93 | I50: 475500 | J50: 951000 | K50: 951000 | L50: 4755000 | M50: 10762102.74 | N50: 0 | O50: 0 | P50: 2020-12-31 | Q50: GX170005 | R50: BND | S50: 131 | T50: C | U50: 2018-10-10 | V50: 0.04755 | W50: FTFPA | X50: 10000000 | Y50: 9971700 | Z50: 9971700 | AA50: A | AB50: 9973876.28 | AC50: 10167694.21 | AD50: 11626617.93 | AE50: 11626617.93 | AF50: 0 | AG50: 1 | AH50: 1458923.72 | AI50: 0 | AL50: 54268.48 | AM50: 193817.93 | AN50: -2176.28 | AO50: 0 | AP50: 0 | AQ50: 2037-08-04 | AR50: N/A
A51: FT | B51: SLMT | C51: =VLOOKUP(S51,Map!$F$6:$H$81,2,0) -> MGSGII | D51: 16.60273973 | E51: =IF(LEFT(A51,2)="IL","IL",IF(OR(R51="BND",R51="CSH"),VLOOKUP(AP51,Map!$M$2:$N$50,2,0),"Not Subject to Credit Risk")) -> Not Rated | F51: 237750 | G51: 5716400 | H51: 96908.97 | I51: 237750 | J51: 475500 | K51: 475500 | L51: 2377500 | M51: 5381051.37 | N51: 0 | O51: 0 | P51: 2020-12-31 | Q51: GX170005 | R51: BND | S51: 131 | T51: C | U51: 2018-10-10 | V51: 0.04755 | W51: FTFPA | X51: 5000000 | Y51: 4985850 | Z51: 4985850 | AA51: A | AB51: 4986938.14 | AC51: 5083847.11 | AD51: 5813308.97 | AE51: 5813308.97 | AF51: 0 | AG51: 1 | AH51: 729461.86 | AI51: 0 | AL51: 27134.24 | AM51: 96908.97 | AN51: -1088.14 | AO51: 0 | AP51: 0 | AQ51: 2037-08-04 | AR51: N/A
A52: FT | B52: SLMT | C52: =VLOOKUP(S52,Map!$F$6:$H$81,2,0) -> MGSGII | D52: 16.60273973 | E52: =IF(LEFT(A52,2)="IL","IL",IF(OR(R52="BND",R52="CSH"),VLOOKUP(AP52,Map!$M$2:$N$50,2,0),"Not Subject to Credit Risk")) -> Not Rated | F52: 237750 | G52: 5716400 | H52: 96908.97 | I52: 237750 | J52: 475500 | K52: 475500 | L52: 2377500 | M52: 5381051.37 | N52: 0 | O52: 0 | P52: 2020-12-31 | Q52: GX170005 | R52: BND | S52: 131 | T52: C | U52: 2018-10-16 | V52: 0.04755 | W52: FTFPA | X52: 5000000 | Y52: 4940300 | Z52: 4940300 | AA52: A | AB52: 4944828.24 | AC52: 5041737.21 | AD52: 5813308.97 | AE52: 5813308.97 | AF52: 0 | AG52: 1 | AH52: 771571.76 | AI52: 0 | AL52: 27134.24 | AM52: 96908.97 | AN52: -4528.24 | AO52: 0 | AP52: 0 | AQ52: 2037-08-04 | AR52: N/A
A53: FT | B53: SLMT | C53: =VLOOKUP(S53,Map!$F$6:$H$81,2,0) -> MGSGII | D53: 18.71780822 | E53: =IF(LEFT(A53,2)="IL","IL",IF(OR(R53="BND",R53="CSH"),VLOOKUP(AP53,Map!$M$2:$N$50,2,0),"Not Subject to Credit Risk")) -> Not Rated | F53: 446700 | G53: 11250000 | H53: 133269.61 | I53: 446700 | J53: 893400 | K53: 893400 | L53: 4467000 | M53: 11660744.93 | N53: 0 | O53: 0 | P53: 2020-12-31 | Q53: GY190002 | R53: BND | S53: 131 | T53: C | U53: 2019-10-14 | V53: 0.04467 | W53: FTFPA | X53: 10000000 | Y53: 10871400 | Z53: 10871400 | AA53: A | AB53: 10835229.99 | AC53: 10968499.6 | AD53: 11383269.61 | AE53: 11383269.61 | AF53: 0 | AG53: 1 | AH53: 414770.01 | AI53: 0 | AL53: 54935.91 | AM53: 133269.61 | AN53: 36170.01 | AO53: 0 | AP53: 0 | AQ53: 2039-09-15 | AR53: N/A
A54: FT | B54: SLMT | C54: =VLOOKUP(S54,Map!$F$6:$H$81,2,0) -> MGSGII | D54: 18.71780822 | E54: =IF(LEFT(A54,2)="IL","IL",IF(OR(R54="BND",R54="CSH"),VLOOKUP(AP54,Map!$M$2:$N$50,2,0),"Not Subject to Credit Risk")) -> Not Rated | F54: 446700 | G54: 11250000 | H54: 133269.61 | I54: 446700 | J54: 893400 | K54: 893400 | L54: 4467000 | M54: 11660744.93 | N54: 0 | O54: 0 | P54: 2020-12-31 | Q54: GY190002 | R54: BND | S54: 131 | T54: C | U54: 2019-12-30 | V54: 0.04467 | W54: FTFPA | X54: 10000000 | Y54: 10855000 | Z54: 10855000 | AA54: A | AB54: 10825296.75 | AC54: 10958566.36 | AD54: 11383269.61 | AE54: 11383269.61 | AF54: 0 | AG54: 1 | AH54: 424703.25 | AI54: 0 | AL54: 54935.91 | AM54: 133269.61 | AN54: 29703.25 | AO54: 0 | AP54: 0 | AQ54: 2039-09-15 | AR54: N/A
A55: FT | B55: SLMT | C55: =VLOOKUP(S55,Map!$F$6:$H$81,2,0) -> MGSGII | D55: 18.71780822 | E55: =IF(LEFT(A55,2)="IL","IL",IF(OR(R55="BND",R55="CSH"),VLOOKUP(AP55,Map!$M$2:$N$50,2,0),"Not Subject to Credit Risk")) -> Not Rated | F55: 446700 | G55: 11250000 | H55: 133269.61 | I55: 446700 | J55: 893400 | K55: 893400 | L55: 4467000 | M55: 11660744.93 | N55: 0 | O55: 0 | P55: 2020-12-31 | Q55: GY190002 | R55: BND | S55: 131 | T55: C | U55: 2020-03-12 | V55: 0.04467 | W55: FTFPA | X55: 10000000 | Y55: 11570000 | Z55: 11570000 | AA55: A | AB55: 11523552.88 | AC55: 11656822.49 | AD55: 11383269.61 | AE55: 11383269.61 | AF55: 0 | AG55: 1 | AH55: -273552.88 | AI55: 0 | AL55: 54935.91 | AM55: 133269.61 | AN55: 46447.12 | AO55: 0 | AP55: 0 | AQ55: 2039-09-15 | AR55: N/A
A56: FT | B56: SLMT | C56: =VLOOKUP(S56,Map!$F$6:$H$81,2,0) -> MGSGII | D56: 18.71780822 | E56: =IF(LEFT(A56,2)="IL","IL",IF(OR(R56="BND",R56="CSH"),VLOOKUP(AP56,Map!$M$2:$N$50,2,0),"Not Subject to Credit Risk")) -> Not Rated | F56: 446700 | G56: 11250000 | H56: 133269.61 | I56: 446700 | J56: 893400 | K56: 893400 | L56: 4467000 | M56: 11660744.93 | N56: 0 | O56: 0 | P56: 2020-12-31 | Q56: GY190002 | R56: BND | S56: 131 | T56: C | U56: 2020-03-13 | V56: 0.04467 | W56: FTFPA | X56: 10000000 | Y56: 11300000 | Z56: 11300000 | AA56: A | AB56: 11262360.09 | AC56: 11395629.7 | AD56: 11383269.61 | AE56: 11383269.61 | AF56: 0 | AG56: 1 | AH56: -12360.09 | AI56: 0 | AL56: 54935.91 | AM56: 133269.61 | AN56: 37639.91 | AO56: 0 | AP56: 0 | AQ56: 2039-09-15 | AR56: N/A
A57: FT | B57: SLMT | C57: =VLOOKUP(S57,Map!$F$6:$H$81,2,0) -> PDS/Sukuk | D57: 10.83835616 | E57: =IF(LEFT(A57,2)="IL","IL",IF(OR(R57="BND",R57="CSH"),VLOOKUP(AP57,Map!$M$2:$N$50,2,0),"Not Subject to Credit Risk")) -> Not Rated | F57: 237500 | G57: 5670950 | H57: 39041.1 | I57: 237500 | J57: 475000 | K57: 475000 | L57: 6386609.589 | M57: 0 | N57: 0 | O57: 0 | P57: 2020-12-31 | Q57: VQ180307 | R57: BND | S57: 130 | T57: C | U57: 2018-12-10 | V57: 0.0475 | W57: FTFPA | X57: 5000000 | Y57: 5002150 | Z57: 5002150 | AA57: A | AB57: 5001888.73 | AC57: 5040929.83 | AD57: 5709991.1 | AE57: 5709991.1 | AF57: 0 | AG57: 1 | AH57: 669061.27 | AI57: 0 | AL57: 23502.74 | AM57: 39041.1 | AN57: 261.27 | AO57: 0 | AP57: 0 | AQ57: 2031-10-31 | AR57: N/A
A58: FT | B58: SLMT | C58: =VLOOKUP(S58,Map!$F$6:$H$81,2,0) -> PDS/Sukuk | D58: 10.33424658 | E58: =IF(LEFT(A58,2)="IL","IL",IF(OR(R58="BND",R58="CSH"),VLOOKUP(AP58,Map!$M$2:$N$50,2,0),"Not Subject to Credit Risk")) -> AA | F58: 262500 | G58: 5782150 | H58: 45308.22 | I58: 262500 | J58: 525000 | K58: 525000 | L58: 6400239.726 | M58: 0 | N58: 0 | O58: 0 | P58: 2020-12-31 | Q58: VR170359 | R58: BND | S58: 110 | T58: C | U58: 2020-09-09 | V58: 0.0525 | W58: FTFPA | X58: 5000000 | Y58: 5908500 | Z58: 5908500 | AA58: A | AB58: 5886230.69 | AC58: 5931538.91 | AD58: 5827458.22 | AE58: 5827458.22 | AF58: 0 | AG58: 1 | AH58: -104080.69 | AI58: 0 | AL58: 12126.71 | AM58: 45308.22 | AN58: 22269.31 | AO58: 0 | AP58: 128 | AQ58: 2031-04-30 | AR58: N/A
A59: FT | B59: SLMT | C59: =VLOOKUP(S59,Map!$F$6:$H$81,2,0) -> PDS/Sukuk | D59: 11.08767123 | E59: =IF(LEFT(A59,2)="IL","IL",IF(OR(R59="BND",R59="CSH"),VLOOKUP(AP59,Map!$M$2:$N$50,2,0),"Not Subject to Credit Risk")) -> AA | F59: 298000 | G59: 5491050 | H59: 126547.95 | I59: 298000 | J59: 596000 | K59: 596000 | L59: 6814126.027 | M59: 0 | N59: 0 | O59: 0 | P59: 2020-12-31 | Q59: VR180061 | R59: BND | S59: 110 | T59: C | U59: 2019-03-29 | V59: 0.0596 | W59: FTFPA | X59: 5000000 | Y59: 5145000 | Z59: 5145000 | AA59: A | AB59: 5130839.74 | AC59: 5257387.69 | AD59: 5617597.95 | AE59: 5617597.95 | AF59: 0 | AG59: 1 | AH59: 360210.26 | AI59: 0 | AL59: 11765.75 | AM59: 126547.95 | AN59: 14160.26 | AO59: 0 | AP59: 128 | AQ59: 2032-01-30 | AR59: N/A
A60: FT | B60: SLMT | C60: =VLOOKUP(S60,Map!$F$6:$H$81,2,0) -> PDS/Sukuk | D60: 5.594520548 | E60: =IF(LEFT(A60,2)="IL","IL",IF(OR(R60="BND",R60="CSH"),VLOOKUP(AP60,Map!$M$2:$N$50,2,0),"Not Subject to Credit Risk")) -> Not Rated | F60: 348000 | G60: 8751040 | H60: 141847.83 | I60: 348000 | J60: 696000 | K60: 696000 | L60: 8206893.151 | M60: 0 | N60: 0 | O60: 0 | P60: 2020-12-31 | Q60: VS110260 | R60: BND | S60: 130 | T60: C | U60: 2011-08-04 | V60: 0.0435 | W60: FTFPA | X60: 8000000 | Y60: 8000000 | Z60: 8000000 | AA60: A | AB60: 8000000 | AC60: 8141847.83 | AD60: 8892887.83 | AE60: 8892887.83 | AF60: 0 | AG60: 1 | AH60: 751040 | AI60: 0 | AL60: 7782.6 | AM60: 141847.83 | AN60: 0 | AO60: 0 | AP60: 0 | AQ60: 2026-08-04 | AR60: N/A
A61: FT | B61: SLMT | C61: =VLOOKUP(S61,Map!$F$6:$H$81,2,0) -> PDS/Sukuk | D61: 5.594520548 | E61: =IF(LEFT(A61,2)="IL","IL",IF(OR(R61="BND",R61="CSH"),VLOOKUP(AP61,Map!$M$2:$N$50,2,0),"Not Subject to Credit Risk")) -> Not Rated | F61: 217500 | G61: 5469400 | H61: 88654.89 | I61: 217500 | J61: 435000 | K61: 435000 | L61: 5129308.219 | M61: 0 | N61: 0 | O61: 0 | P61: 2020-12-31 | Q61: VS110260 | R61: BND | S61: 130 | T61: C | U61: 2018-03-13 | V61: 0.0435 | W61: FTFPA | X61: 5000000 | Y61: 4956000 | Z61: 4956000 | AA61: A | AB61: 4968880.19 | AC61: 5057535.08 | AD61: 5558054.89 | AE61: 5558054.89 | AF61: 0 | AG61: 1 | AH61: 500519.81 | AI61: 0 | AL61: 4864.13 | AM61: 88654.89 | AN61: -12880.19 | AO61: 0 | AP61: 0 | AQ61: 2026-08-04 | AR61: N/A
A62: FT | B62: SLMT | C62: =VLOOKUP(S62,Map!$F$6:$H$81,2,0) -> PDS/Sukuk | D62: 6.035616438 | E62: =IF(LEFT(A62,2)="IL","IL",IF(OR(R62="BND",R62="CSH"),VLOOKUP(AP62,Map!$M$2:$N$50,2,0),"Not Subject to Credit Risk")) -> AAA | F62: 240000 | G62: 5499350 | H62: 113095.89 | I62: 240000 | J62: 480000 | K62: 480000 | L62: 5248547.945 | M62: 0 | N62: 0 | O62: 0 | P62: 2020-12-31 | Q62: VS120014 | R62: BND | S62: 110 | T62: C | U62: 2014-08-08 | V62: 0.048 | W62: FTFPA | X62: 5000000 | Y62: 5028500 | Z62: 5028500 | AA62: A | AB62: 5015918.79 | AC62: 5129014.68 | AD62: 5612445.89 | AE62: 5612445.89 | AF62: 0 | AG62: 1 | AH62: 483431.21 | AI62: 0 | AL62: 6780.14 | AM62: 113095.89 | AN62: 12581.21 | AO62: 0 | AP62: 115 | AQ62: 2027-01-12 | AR62: N/A
A63: FT | B63: SLMT | C63: =VLOOKUP(S63,Map!$F$6:$H$81,2,0) -> PDS/Sukuk | D63: 6.57260274 | E63: =IF(LEFT(A63,2)="IL","IL",IF(OR(R63="BND",R63="CSH"),VLOOKUP(AP63,Map!$M$2:$N$50,2,0),"Not Subject to Credit Risk")) -> AAA | F63: 211500 | G63: 5409100 | H63: 91553.42 | I63: 211500 | J63: 423000 | K63: 423000 | L63: 5332605.479 | M63: 0 | N63: 0 | O63: 0 | P63: 2020-12-31 | Q63: VS120283 | R63: BND | S63: 110 | T63: C | U63: 2014-08-18 | V63: 0.0423 | W63: FTFPA | X63: 5000000 | Y63: 4760500 | Z63: 4760500 | AA63: A | AB63: 4860266.25 | AC63: 4951819.67 | AD63: 5500653.42 | AE63: 5500653.42 | AF63: 0 | AG63: 1 | AH63: 548833.75 | AI63: 0 | AL63: 7767.81 | AM63: 91553.42 | AN63: -99766.25 | AO63: 0 | AP63: 115 | AQ63: 2027-07-27 | AR63: N/A
A64: FT | B64: SLMT | C64: =VLOOKUP(S64,Map!$F$6:$H$81,2,0) -> PDS/Sukuk | D64: 7.879452055 | E64: =IF(LEFT(A64,2)="IL","IL",IF(OR(R64="BND",R64="CSH"),VLOOKUP(AP64,Map!$M$2:$N$50,2,0),"Not Subject to Credit Risk")) -> Not Rated | F64: 228000 | G64: 5586750 | H64: 28734.25 | I64: 228000 | J64: 456000 | K64: 456000 | L64: 5656515.068 | M64: 0 | N64: 0 | O64: 0 | P64: 2020-12-31 | Q64: VS130284 | R64: BND | S64: 130 | T64: C | U64: 2014-12-15 | V64: 0.0456 | W64: FTFPA | X64: 5000000 | Y64: 4930000 | Z64: 4930000 | AA64: A | AB64: 4954900.87 | AC64: 4983635.12 | AD64: 5615484.25 | AE64: 5615484.25 | AF64: 0 | AG64: 1 | AH64: 631849.13 | AI64: 0 | AL64: 8298.63 | AM64: 28734.25 | AN64: -24900.87 | AO64: 0 | AP64: 0 | AQ64: 2028-11-15 | AR64: N/A
A65: FT | B65: SLMT | C65: =VLOOKUP(S65,Map!$F$6:$H$81,2,0) -> PDS/Sukuk | D65: 7.879452055 | E65: =IF(LEFT(A65,2)="IL","IL",IF(OR(R65="BND",R65="CSH"),VLOOKUP(AP65,Map!$M$2:$N$50,2,0),"Not Subject to Credit Risk")) -> Not Rated | F65: 456000 | G65: 11173500 | H65: 57468.49 | I65: 456000 | J65: 912000 | K65: 912000 | L65: 11313030.14 | M65: 0 | N65: 0 | O65: 0 | P65: 2020-12-31 | Q65: VS130284 | R65: BND | S65: 130 | T65: C | U65: 2014-12-16 | V65: 0.0456 | W65: FTFPA | X65: 10000000 | Y65: 9843000 | Z65: 9843000 | AA65: A | AB65: 9898796.9 | AC65: 9956265.39 | AD65: 11230968.49 | AE65: 11230968.49 | AF65: 0 | AG65: 1 | AH65: 1274703.1 | AI65: 0 | AL65: 16597.26 | AM65: 57468.49 | AN65: -55796.9 | AO65: 0 | AP65: 0 | AQ65: 2028-11-15 | AR65: N/A
A66: =VLOOKUP(W66,FdGroup,2,0) -> FT | B66: =VLOOKUP(W66,FdGroup,3,0) -> SLMT | C66: =VLOOKUP(S66,Map!$F$6:$H$81,2,0) -> PDS/Sukuk | D66: =(AQ66-P66)/365 -> 8.238356164 | E66: =IF(LEFT(A66,2)="IL","IL",IF(OR(R66="BND",R66="CSH"),VLOOKUP(AP66,Map!$M$2:$N$50,2,0),"Not Subject to Credit Risk")) -> AAA | F66: =IF(D66<1,D66,1)*V66*X66 -> 520000 | G66: =AE66-AM66 -> 11525400 | H66: =AM66 -> 137988.83 | I66: =IF((O66+N66)>0,0,IF($D66<1,$X66+$H66+$F66,$F66))*IF(E66="D",0,1)*IF($E66="D",0,1) -> 520000 | J66: =IF((O66+N66)>0,0,IF($D66>1,IF($D66<3,$X66+$F66*$D66-$F66,$F66*2),0))*IF($E66="D",0,1) -> 1040000 | K66: =IF((O66+N66)>0,0,IF($D66>3,IF($D66<5,$X66+$F66*($D66-3),$F66*2),0))*IF($E66="D",0,1) -> 1040000 | L66: =IF((O66+N66)>0,0,IF($D66>5,IF($D66<15,$X66+$F66*($D66-5),$F66*10),0))*IF($E66="D",0,1) -> 11683945.21 | M66: =IF((O66+N66)>0,0,IF($D66>15,IF($D66<99,$X66+$F66*($D66-15),0),0))*IF($E66="D",0,1) -> 0 | N66: =IF(AND(LEFT($A66,2)<>"IL",$D66>99),$AE66,0) -> 0 | O66: =IF(LEFT($A66,2)="IL",IF(D66<99,$X66+$F66*$D66,$AE66),0) -> 0 | P66: 2020-12-31 | Q66: VS140056 | R66: BND | S66: 110 | T66: C | U66: 2014-06-23 | V66: 0.052 | W66: FTFPA | X66: 10000000 | Y66: 10207000 | Z66: 10207000 | AA66: A | AB66: 10133857.15 | AC66: 10271845.98 | AD66: 11663388.83 | AE66: 11663388.83 | AF66: 0 | AG66: 1 | AH66: 1391542.85 | AI66: 0 | AL66: 32910.05 | AM66: 137988.83 | AN66: 73142.85 | AO66: 0 | AP66: 115 | AQ66: 2029-03-26 | AR66: N/A
A67: FT | B67: SLMT | C67: =VLOOKUP(S67,Map!$F$6:$H$81,2,0) -> PDS/Sukuk | D67: 8.238356164 | E67: =IF(LEFT(A67,2)="IL","IL",IF(OR(R67="BND",R67="CSH"),VLOOKUP(AP67,Map!$M$2:$N$50,2,0),"Not Subject to Credit Risk")) -> AAA | F67: 260000 | G67: 5762700 | H67: 68994.41 | I67: 260000 | J67: 520000 | K67: 520000 | L67: 5841972.603 | M67: 0 | N67: 0 | O67: 0 | P67: 2020-12-31 | Q67: VS140056 | R67: BND | S67: 110 | T67: C | U67: 2015-06-19 | V67: 0.052 | W67: FTFPA | X67: 5000000 | Y67: 5284750 | Z67: 5284750 | AA67: A | AB67: 5191600.18 | AC67: 5260594.59 | AD67: 5831694.41 | AE67: 5831694.41 | AF67: 0 | AG67: 1 | AH67: 571099.82 | AI67: 0 | AL67: 16455.03 | AM67: 68994.41 | AN67: 93149.82 | AO67: 0 | AP67: 115 | AQ67: 2029-03-26 | AR67: N/A
A68: FT | B68: SLMT | C68: =VLOOKUP(S68,Map!$F$6:$H$81,2,0) -> PDS/Sukuk | D68: 8.416438356 | E68: =IF(LEFT(A68,2)="IL","IL",IF(OR(R68="BND",R68="CSH"),VLOOKUP(AP68,Map!$M$2:$N$50,2,0),"Not Subject to Credit Risk")) -> AAA | F68: 256500 | G68: 5757350 | H68: 22487.67 | I68: 256500 | J68: 513000 | K68: 513000 | L68: 5876316.438 | M68: 0 | N68: 0 | O68: 0 | P68: 2020-12-31 | Q68: VS140146 | R68: BND | S68: 110 | T68: C | U68: 2014-05-30 | V68: 0.0513 | W68: FTFPA | X68: 5000000 | Y68: 5000000 | Z68: 5000000 | AA68: A | AB68: 5000000 | AC68: 5022487.67 | AD68: 5779837.67 | AE68: 5779837.67 | AF68: 0 | AG68: 1 | AH68: 757350 | AI68: 0 | AL68: 12960.96 | AM68: 22487.67 | AN68: 0 | AO68: 0 | AP68: 115 | AQ68: 2029-05-30 | AR68: N/A
A69: FT | B69: SLMT | C69: =VLOOKUP(S69,Map!$F$6:$H$81,2,0) -> PDS/Sukuk | D69: 9.084931507 | E69: =IF(LEFT(A69,2)="IL","IL",IF(OR(R69="BND",R69="CSH"),VLOOKUP(AP69,Map!$M$2:$N$50,2,0),"Not Subject to Credit Risk")) -> AAA | F69: 244000 | G69: 5677350 | H69: 104284.93 | I69: 244000 | J69: 488000 | K69: 488000 | L69: 5996723.288 | M69: 0 | N69: 0 | O69: 0 | P69: 2020-12-31 | Q69: VS150002 | R69: BND | S69: 110 | T69: C | U69: 2015-06-16 | V69: 0.0488 | W69: FTFPA | X69: 5000000 | Y69: 5121500 | Z69: 5121500 | AA69: A | AB69: 5084835.4 | AC69: 5189120.33 | AD69: 5781634.93 | AE69: 5781634.93 | AF69: 0 | AG69: 1 | AH69: 592514.6 | AI69: 0 | AL69: 16473.97 | AM69: 104284.93 | AN69: 36664.6 | AO69: 0 | AP69: 115 | AQ69: 2030-01-29 | AR69: N/A
A70: FT | B70: SLMT | C70: =VLOOKUP(S70,Map!$F$6:$H$81,2,0) -> PDS/Sukuk | D70: 9.084931507 | E70: =IF(LEFT(A70,2)="IL","IL",IF(OR(R70="BND",R70="CSH"),VLOOKUP(AP70,Map!$M$2:$N$50,2,0),"Not Subject to Credit Risk")) -> AAA | F70: 244000 | G70: 5677350 | H70: 104284.93 | I70: 244000 | J70: 488000 | K70: 488000 | L70: 5996723.288 | M70: 0 | N70: 0 | O70: 0 | P70: 2020-12-31 | Q70: VS150002 | R70: BND | S70: 110 | T70: C | U70: 2015-07-29 | V70: 0.0488 | W70: FTFPA | X70: 5000000 | Y70: 5104500 | Z70: 5104500 | AA70: A | AB70: 5073428.07 | AC70: 5177713 | AD70: 5781634.93 | AE70: 5781634.93 | AF70: 0 | AG70: 1 | AH70: 603921.93 | AI70: 0 | AL70: 16473.97 | AM70: 104284.93 | AN70: 31071.93 | AO70: 0 | AP70: 115 | AQ70: 2030-01-29 | AR70: N/A
A71: FT | B71: SLMT | C71: =VLOOKUP(S71,Map!$F$6:$H$81,2,0) -> PDS/Sukuk | D71: 9.123287671 | E71: =IF(LEFT(A71,2)="IL","IL",IF(OR(R71="BND",R71="CSH"),VLOOKUP(AP71,Map!$M$2:$N$50,2,0),"Not Subject to Credit Risk")) -> Not Rated | F71: 231500 | G71: 5633000 | H71: 90063.01 | I71: 231500 | J71: 463000 | K71: 463000 | L71: 5954541.096 | M71: 0 | N71: 0 | O71: 0 | P71: 2020-12-31 | Q71: VS150025 | R71: BND | S71: 130 | T71: C | U71: 2015-02-12 | V71: 0.0463 | W71: FTFPA | X71: 5000000 | Y71: 5016100 | Z71: 5016100 | AA71: A | AB71: 5011065.34 | AC71: 5101128.35 | AD71: 5723063.01 | AE71: 5723063.01 | AF71: 0 | AG71: 1 | AH71: 621934.66 | AI71: 0 | AL71: 15086.99 | AM71: 90063.01 | AN71: 5034.66 | AO71: 0 | AP71: 0 | AQ71: 2030-02-12 | AR71: N/A
A72: FT | B72: SLMT | C72: =VLOOKUP(S72,Map!$F$6:$H$81,2,0) -> PDS/Sukuk | D72: 8.704109589 | E72: =IF(LEFT(A72,2)="IL","IL",IF(OR(R72="BND",R72="CSH"),VLOOKUP(AP72,Map!$M$2:$N$50,2,0),"Not Subject to Credit Risk")) -> Not Rated | F72: 712500 | G72: 16960350 | H72: 216934.36 | I72: 712500 | J72: 1425000 | K72: 1425000 | L72: 17639178.08 | M72: 0 | N72: 0 | O72: 0 | P72: 2020-12-31 | Q72: VS140224 | R72: BND | S72: 130 | T72: C | U72: 2015-06-11 | V72: 0.0475 | W72: FTFPA | X72: 15000000 | Y72: 15288750 | Z72: 15288750 | AA72: A | AB72: 15197957.74 | AC72: 15414892.1 | AD72: 17177284.36 | AE72: 17177284.36 | AF72: 0 | AG72: 1 | AH72: 1762392.26 | AI72: 0 | AL72: 39160.89 | AM72: 216934.36 | AN72: 90792.26 | AO72: 0 | AP72: 0 | AQ72: 2029-09-12 | AR72: N/A
A73: FT | B73: SLMT | C73: =VLOOKUP(S73,Map!$F$6:$H$81,2,0) -> PDS/Sukuk | D73: 9.22739726 | E73: =IF(LEFT(A73,2)="IL","IL",IF(OR(R73="BND",R73="CSH"),VLOOKUP(AP73,Map!$M$2:$N$50,2,0),"Not Subject to Credit Risk")) -> Not Rated | F73: 232000 | G73: 5637250 | H73: 62926.03 | I73: 232000 | J73: 464000 | K73: 464000 | L73: 5980756.164 | M73: 0 | N73: 0 | O73: 0 | P73: 2020-12-31 | Q73: VS150043 | R73: BND | S73: 130 | T73: C | U73: 2015-06-19 | V73: 0.0464 | W73: FTFPA | X73: 5000000 | Y73: 5031500 | Z73: 5031500 | AA73: A | AB73: 5022099.99 | AC73: 5085026.02 | AD73: 5700176.03 | AE73: 5700176.03 | AF73: 0 | AG73: 1 | AH73: 615150.01 | AI73: 0 | AL73: 15692.46 | AM73: 62926.03 | AN73: 9400.01 | AO73: 0 | AP73: 0 | AQ73: 2030-03-22 | AR73: N/A
A74: FT | B74: SLMT | C74: =VLOOKUP(S74,Map!$F$6:$H$81,2,0) -> PDS/Sukuk | D74: 11.17534247 | E74: =IF(LEFT(A74,2)="IL","IL",IF(OR(R74="BND",R74="CSH"),VLOOKUP(AP74,Map!$M$2:$N$50,2,0),"Not Subject to Credit Risk")) -> AAA | F74: 249000 | G74: 5669050 | H74: 83229.28 | I74: 249000 | J74: 498000 | K74: 498000 | L74: 6537660.274 | M74: 0 | N74: 0 | O74: 0 | P74: 2020-12-31 | Q74: VS170042 | R74: BND | S74: 110 | T74: C | U74: 2019-07-23 | V74: 0.0498 | W74: FTFPA | X74: 5000000 | Y74: 5424500 | Z74: 5424500 | AA74: A | AB74: 5386383.62 | AC74: 5469612.9 | AD74: 5752279.28 | AE74: 5752279.28 | AF74: 0 | AG74: 1 | AH74: 282666.38 | AI74: 0 | AL74: 18451.38 | AM74: 83229.28 | AN74: 38116.38 | AO74: 0 | AP74: 115 | AQ74: 2032-03-02 | AR74: N/A
A75: FT | B75: SLMT | C75: =VLOOKUP(S75,Map!$F$6:$H$81,2,0) -> PDS/Sukuk | D75: 11.59726027 | E75: =IF(LEFT(A75,2)="IL","IL",IF(OR(R75="BND",R75="CSH"),VLOOKUP(AP75,Map!$M$2:$N$50,2,0),"Not Subject to Credit Risk")) -> AAA | F75: 247500 | G75: 5741150 | H75: 102390.41 | I75: 247500 | J75: 495000 | K75: 495000 | L75: 6632821.918 | M75: 0 | N75: 0 | O75: 0 | P75: 2020-12-31 | Q75: VS170227 | R75: BND | S75: 110 | T75: C | U75: 2019-07-23 | V75: 0.0495 | W75: FTFPA | X75: 5000000 | Y75: 5511150 | Z75: 5511150 | AA75: A | AB75: 5466679.85 | AC75: 5569070.26 | AD75: 5843540.41 | AE75: 5843540.41 | AF75: 0 | AG75: 1 | AH75: 274470.15 | AI75: 0 | AL75: 19662.33 | AM75: 102390.41 | AN75: 44470.15 | AO75: 0 | AP75: 115 | AQ75: 2032-08-03 | AR75: N/A
A76: FT | B76: SLMT | C76: =VLOOKUP(S76,Map!$F$6:$H$81,2,0) -> PDS/Sukuk | D76: 12.90958904 | E76: =IF(LEFT(A76,2)="IL","IL",IF(OR(R76="BND",R76="CSH"),VLOOKUP(AP76,Map!$M$2:$N$50,2,0),"Not Subject to Credit Risk")) -> AAA | F76: 247500 | G76: 5721650 | H76: 24410.96 | I76: 247500 | J76: 495000 | K76: 495000 | L76: 6957623.288 | M76: 0 | N76: 0 | O76: 0 | P76: 2020-12-31 | Q76: VS180336 | R76: BND | S76: 110 | T76: C | U76: 2018-11-23 | V76: 0.0495 | W76: FTFPA | X76: 5000000 | Y76: 5000000 | Z76: 5000000 | AA76: A | AB76: 5000000 | AC76: 5024410.96 | AD76: 5746060.96 | AE76: 5746060.96 | AF76: 0 | AG76: 1 | AH76: 721650 | AI76: 0 | AL76: 21612.33 | AM76: 24410.96 | AN76: 0 | AO76: 0 | AP76: 115 | AQ76: 2033-11-25 | AR76: N/A
A77: FT | B77: SLMT | C77: =VLOOKUP(S77,Map!$F$6:$H$81,2,0) -> PDS/Sukuk | D77: 7.035616438 | E77: =IF(LEFT(A77,2)="IL","IL",IF(OR(R77="BND",R77="CSH"),VLOOKUP(AP77,Map!$M$2:$N$50,2,0),"Not Subject to Credit Risk")) -> AAA | F77: 488000 | G77: 11116200 | H77: 229961.64 | I77: 488000 | J77: 976000 | K77: 976000 | L77: 10993380.82 | M77: 0 | N77: 0 | O77: 0 | P77: 2020-12-31 | Q77: VT120015 | R77: BND | S77: 110 | T77: C | U77: 2014-06-26 | V77: 0.0488 | W77: FTFPA | X77: 10000000 | Y77: 9865000 | Z77: 9865000 | AA77: A | AB77: 9918626.87 | AC77: 10148588.51 | AD77: 11346161.64 | AE77: 11346161.64 | AF77: 0 | AG77: 1 | AH77: 1197573.13 | AI77: 0 | AL77: 18247.95 | AM77: 229961.64 | AN77: -53626.87 | AO77: 0 | AP77: 115 | AQ77: 2028-01-12 | AR77: N/A
A78: FT | B78: SLMT | C78: =VLOOKUP(S78,Map!$F$6:$H$81,2,0) -> PDS/Sukuk | D78: 13.09041096 | E78: =IF(LEFT(A78,2)="IL","IL",IF(OR(R78="BND",R78="CSH"),VLOOKUP(AP78,Map!$M$2:$N$50,2,0),"Not Subject to Credit Risk")) -> AA | F78: 615000 | G78: 11099300 | H78: 261164.38 | I78: 615000 | J78: 1230000 | K78: 1230000 | L78: 14975602.74 | M78: 0 | N78: 0 | O78: 0 | P78: 2020-12-31 | Q78: VT180063 | R78: BND | S78: 110 | T78: C | U78: 2019-03-29 | V78: 0.0615 | W78: FTFPA | X78: 10000000 | Y78: 10355000 | Z78: 10355000 | AA78: A | AB78: 10327181.07 | AC78: 10588345.45 | AD78: 11360464.38 | AE78: 11360464.38 | AF78: 0 | AG78: 1 | AH78: 772118.93 | AI78: 0 | AL78: 25939.73 | AM78: 261164.38 | AN78: 27818.93 | AO78: 0 | AP78: 128 | AQ78: 2034-01-30 | AR78: N/A
A79: FT | B79: SLMT | C79: =VLOOKUP(S79,Map!$F$6:$H$81,2,0) -> PDS/Sukuk | D79: 16.26027397 | E79: =IF(LEFT(A79,2)="IL","IL",IF(OR(R79="BND",R79="CSH"),VLOOKUP(AP79,Map!$M$2:$N$50,2,0),"Not Subject to Credit Risk")) -> Not Rated | F79: 226500 | G79: 5535900 | H79: 57090.41 | I79: 226500 | J79: 453000 | K79: 453000 | L79: 2265000 | M79: 5285452.055 | N79: 0 | O79: 0 | P79: 2020-12-31 | Q79: VV190072 | R79: BND | S79: 130 | T79: C | U79: 2019-12-05 | V79: 0.0453 | W79: FTFPA | X79: 5000000 | Y79: 5329000 | Z79: 5329000 | AA79: A | AB79: 5314563.37 | AC79: 5371653.78 | AD79: 5592990.41 | AE79: 5592990.41 | AF79: 0 | AG79: 1 | AH79: 221336.63 | AI79: 0 | AL79: 23882.19 | AM79: 57090.41 | AN79: 14436.63 | AO79: 0 | AP79: 0 | AQ79: 2037-04-01 | AR79: N/A
A80: FT | B80: SLMT | C80: =VLOOKUP(S80,Map!$F$6:$H$81,2,0) -> PDS/Sukuk | D80: 10.03287671 | E80: =IF(LEFT(A80,2)="IL","IL",IF(OR(R80="BND",R80="CSH"),VLOOKUP(AP80,Map!$M$2:$N$50,2,0),"Not Subject to Credit Risk")) -> AAA | F80: 253500 | G80: 5741100 | H80: 119457.53 | I80: 253500 | J80: 507000 | K80: 507000 | L80: 6275834.247 | M80: 0 | N80: 0 | O80: 0 | P80: 2020-12-31 | Q80: VW120018 | R80: BND | S80: 110 | T80: C | U80: 2012-01-12 | V80: 0.0507 | W80: FTFPA | X80: 5000000 | Y80: 5042500 | Z80: 5042500 | AA80: A | AB80: 5027329.8 | AC80: 5146787.33 | AD80: 5860557.53 | AE80: 5860557.53 | AF80: 0 | AG80: 1 | AH80: 713770.2 | AI80: 0 | AL80: 16378.09 | AM80: 119457.53 | AN80: 15170.2 | AO80: 0 | AP80: 115 | AQ80: 2031-01-10 | AR80: N/A
A81: FT | B81: SLMT | C81: =VLOOKUP(S81,Map!$F$6:$H$81,2,0) -> PDS/Sukuk | D81: 10.03287671 | E81: =IF(LEFT(A81,2)="IL","IL",IF(OR(R81="BND",R81="CSH"),VLOOKUP(AP81,Map!$M$2:$N$50,2,0),"Not Subject to Credit Risk")) -> AAA | F81: 507000 | G81: 11482200 | H81: 238915.07 | I81: 507000 | J81: 1014000 | K81: 1014000 | L81: 12551668.49 | M81: 0 | N81: 0 | O81: 0 | P81: 2020-12-31 | Q81: VW120018 | R81: BND | S81: 110 | T81: C | U81: 2014-06-24 | V81: 0.0507 | W81: FTFPA | X81: 10000000 | Y81: 9802000 | Z81: 9802000 | AA81: A | AB81: 9860404.54 | AC81: 10099319.61 | AD81: 11721115.07 | AE81: 11721115.07 | AF81: 0 | AG81: 1 | AH81: 1621795.46 | AI81: 0 | AL81: 32756.16 | AM81: 238915.07 | AN81: -58404.54 | AO81: 0 | AP81: 115 | AQ81: 2031-01-10 | AR81: N/A
A82: FT | B82: SLMT | C82: =VLOOKUP(S82,Map!$F$6:$H$81,2,0) -> PDS/Sukuk | D82: 10.36712329 | E82: =IF(LEFT(A82,2)="IL","IL",IF(OR(R82="BND",R82="CSH"),VLOOKUP(AP82,Map!$M$2:$N$50,2,0),"Not Subject to Credit Risk")) -> AAA | F82: 252500 | G82: 5761450 | H82: 34875.69 | I82: 252500 | J82: 505000 | K82: 505000 | L82: 6355198.63 | M82: 0 | N82: 0 | O82: 0 | P82: 2020-12-31 | Q82: VX110056 | R82: BND | S82: 110 | T82: C | U82: 2011-05-26 | V82: 0.0505 | W82: FTFPA | X82: 5000000 | Y82: 5063000 | Z82: 5063000 | AA82: A | AB82: 5040269.96 | AC82: 5075145.65 | AD82: 5796325.69 | AE82: 5796325.69 | AF82: 0 | AG82: 1 | AH82: 721180.04 | AI82: 0 | AL82: 16840.06 | AM82: 34875.69 | AN82: 22730.04 | AO82: 0 | AP82: 115 | AQ82: 2031-05-12 | AR82: N/A
A83: FT | B83: SLMT | C83: =VLOOKUP(S83,Map!$F$6:$H$81,2,0) -> PDS/Sukuk | D83: 12.84109589 | E83: =IF(LEFT(A83,2)="IL","IL",IF(OR(R83="BND",R83="CSH"),VLOOKUP(AP83,Map!$M$2:$N$50,2,0),"Not Subject to Credit Risk")) -> Not Rated | F83: 480000 | G83: 11367700 | H83: 82849.32 | I83: 480000 | J83: 960000 | K83: 960000 | L83: 13763726.03 | M83: 0 | N83: 0 | O83: 0 | P83: 2020-12-31 | Q83: VX130278 | R83: BND | S83: 130 | T83: C | U83: 2014-04-07 | V83: 0.048 | W83: FTFPA | X83: 10000000 | Y83: 9643000 | Z83: 9643000 | AA83: A | AB83: 9728479.22 | AC83: 9811328.54 | AD83: 11450549.32 | AE83: 11450549.32 | AF83: 0 | AG83: 1 | AH83: 1639220.78 | AI83: 0 | AL83: 54060.27 | AM83: 82849.32 | AN83: -85479.22 | AO83: 0 | AP83: 0 | AQ83: 2033-10-31 | AR83: N/A
A84: FT | B84: SLMT | C84: =VLOOKUP(S84,Map!$F$6:$H$81,2,0) -> PDS/Sukuk | D84: 13.70684932 | E84: =IF(LEFT(A84,2)="IL","IL",IF(OR(R84="BND",R84="CSH"),VLOOKUP(AP84,Map!$M$2:$N$50,2,0),"Not Subject to Credit Risk")) -> Not Rated | F84: 242500 | G84: 5697200 | H84: 73833.8 | I84: 242500 | J84: 485000 | K84: 485000 | L84: 7111410.959 | M84: 0 | N84: 0 | O84: 0 | P84: 2020-12-31 | Q84: VX140225 | R84: BND | S84: 130 | T84: C | U84: 2014-11-06 | V84: 0.0485 | W84: FTFPA | X84: 5000000 | Y84: 5037500 | Z84: 5037500 | AA84: A | AB84: 5029408.09 | AC84: 5103241.89 | AD84: 5771033.8 | AE84: 5771033.8 | AF84: 0 | AG84: 1 | AH84: 667791.91 | AI84: 0 | AL84: 27159.5 | AM84: 73833.8 | AN84: 8091.91 | AO84: 0 | AP84: 0 | AQ84: 2034-09-12 | AR84: N/A
A85: FT | B85: SLMT | C85: =VLOOKUP(S85,Map!$F$6:$H$81,2,0) -> PDS/Sukuk | D85: 13.98356164 | E85: =IF(LEFT(A85,2)="IL","IL",IF(OR(R85="BND",R85="CSH"),VLOOKUP(AP85,Map!$M$2:$N$50,2,0),"Not Subject to Credit Risk")) -> Not Rated | F85: 488000 | G85: 11412800 | H85: 13369.86 | I85: 488000 | J85: 976000 | K85: 976000 | L85: 14383978.08 | M85: 0 | N85: 0 | O85: 0 | P85: 2020-12-31 | Q85: VX140397 | R85: BND | S85: 130 | T85: C | U85: 2014-12-22 | V85: 0.0488 | W85: FTFPA | X85: 10000000 | Y85: 10000000 | Z85: 10000000 | AA85: A | AB85: 10000000 | AC85: 10013369.86 | AD85: 11426169.86 | AE85: 11426169.86 | AF85: 0 | AG85: 1 | AH85: 1412800 | AI85: 0 | AL85: 56147.95 | AM85: 13369.86 | AN85: 0 | AO85: 0 | AP85: 0 | AQ85: 2034-12-22 | AR85: N/A
A86: FT | B86: SLMT | C86: =VLOOKUP(S86,Map!$F$6:$H$81,2,0) -> PDS/Sukuk | D86: 14.27123288 | E86: =IF(LEFT(A86,2)="IL","IL",IF(OR(R86="BND",R86="CSH"),VLOOKUP(AP86,Map!$M$2:$N$50,2,0),"Not Subject to Credit Risk")) -> Not Rated | F86: 239500 | G86: 5671750 | H86: 57086.3 | I86: 239500 | J86: 479000 | K86: 479000 | L86: 7220460.274 | M86: 0 | N86: 0 | O86: 0 | P86: 2020-12-31 | Q86: VX150048 | R86: BND | S86: 130 | T86: C | U86: 2018-11-22 | V86: 0.0479 | W86: FTFPA | X86: 5000000 | Y86: 5012700 | Z86: 5012700 | AA86: A | AB86: 5011565.86 | AC86: 5068652.16 | AD86: 5728836.3 | AE86: 5728836.3 | AF86: 0 | AG86: 1 | AH86: 660184.14 | AI86: 0 | AL86: 28974.66 | AM86: 57086.3 | AN86: 1134.14 | AO86: 0 | AP86: 0 | AQ86: 2035-04-06 | AR86: N/A
A87: FT | B87: SLMT | C87: =VLOOKUP(S87,Map!$F$6:$H$81,2,0) -> PDS/Sukuk | D87: 15.3260274 | E87: =IF(LEFT(A87,2)="IL","IL",IF(OR(R87="BND",R87="CSH"),VLOOKUP(AP87,Map!$M$2:$N$50,2,0),"Not Subject to Credit Risk")) -> AAA | F87: 259000 | G87: 5816450 | H87: 47542.47 | I87: 259000 | J87: 518000 | K87: 518000 | L87: 2590000 | M87: 5084441.096 | N87: 0 | O87: 0 | P87: 2020-12-31 | Q87: VX160108 | R87: BND | S87: 110 | T87: C | U87: 2020-08-26 | V87: 0.0518 | W87: FTFPA | X87: 5000000 | Y87: 6128000 | Z87: 6128000 | AA87: A | AB87: 6108801.39 | AC87: 6156343.86 | AD87: 5863992.47 | AE87: 5863992.47 | AF87: 0 | AG87: 1 | AH87: -292351.39 | AI87: 0 | AL87: 21188.35 | AM87: 47542.47 | AN87: 19198.61 | AO87: 0 | AP87: 115 | AQ87: 2036-04-25 | AR87: N/A
A88: FT | B88: SLMT | C88: =VLOOKUP(S88,Map!$F$6:$H$81,2,0) -> PDS/Sukuk | D88: 15.65205479 | E88: =IF(LEFT(A88,2)="IL","IL",IF(OR(R88="BND",R88="CSH"),VLOOKUP(AP88,Map!$M$2:$N$50,2,0),"Not Subject to Credit Risk")) -> AA | F88: 306500 | G88: 5623100 | H88: 109164.38 | I88: 306500 | J88: 613000 | K88: 613000 | L88: 3065000 | M88: 5199854.795 | N88: 0 | O88: 0 | P88: 2020-12-31 | Q88: VX160267 | R88: BND | S88: 110 | T88: C | U88: 2016-08-22 | V88: 0.0613 | W88: FTFPA | X88: 5000000 | Y88: 5116000 | Z88: 5116000 | AA88: A | AB88: 5100966.56 | AC88: 5210130.94 | AD88: 5732264.38 | AE88: 5732264.38 | AF88: 0 | AG88: 1 | AH88: 522133.44 | AI88: 0 | AL88: 14958.91 | AM88: 109164.38 | AN88: 15033.44 | AO88: 0 | AP88: 128 | AQ88: 2036-08-22 | AR88: N/A
A89: FT | B89: SLMT | C89: =VLOOKUP(S89,Map!$F$6:$H$81,2,0) -> PDS/Sukuk | D89: 15.34520548 | E89: =IF(LEFT(A89,2)="IL","IL",IF(OR(R89="BND",R89="CSH"),VLOOKUP(AP89,Map!$M$2:$N$50,2,0),"Not Subject to Credit Risk")) -> Not Rated | F89: 238000 | G89: 5664550 | H89: 38471.23 | I89: 238000 | J89: 476000 | K89: 476000 | L89: 2380000 | M89: 5082158.904 | N89: 0 | O89: 0 | P89: 2020-12-31 | Q89: VX160129 | R89: BND | S89: 130 | T89: C | U89: 2018-05-28 | V89: 0.0476 | W89: FTFPA | X89: 5000000 | Y89: 4830500 | Z89: 4830500 | AA89: A | AB89: 4846566.86 | AC89: 4885038.09 | AD89: 5703021.23 | AE89: 5703021.23 | AF89: 0 | AG89: 1 | AH89: 817983.14 | AI89: 0 | AL89: 27158.22 | AM89: 38471.23 | AN89: -16066.86 | AO89: 0 | AP89: 0 | AQ89: 2036-05-02 | AR89: N/A
A90: FT | B90: SLMT | C90: =VLOOKUP(S90,Map!$F$6:$H$81,2,0) -> PDS/Sukuk | D90: 17.19452055 | E90: =IF(LEFT(A90,2)="IL","IL",IF(OR(R90="BND",R90="CSH"),VLOOKUP(AP90,Map!$M$2:$N$50,2,0),"Not Subject to Credit Risk")) -> Not Rated | F90: 256000 | G90: 5896400 | H90: 80657.53 | I90: 256000 | J90: 512000 | K90: 512000 | L90: 2560000 | M90: 5561797.26 | N90: 0 | O90: 0 | P90: 2020-12-31 | Q90: VX180083 | R90: BND | S90: 130 | T90: C | U90: 2018-03-13 | V90: 0.0512 | W90: FTFPA | X90: 5000000 | Y90: 5031500 | Z90: 5031500 | AA90: A | AB90: 5028763.48 | AC90: 5109421.01 | AD90: 5977057.53 | AE90: 5977057.53 | AF90: 0 | AG90: 1 | AH90: 867636.52 | AI90: 0 | AL90: 32955.48 | AM90: 80657.53 | AN90: 2736.52 | AO90: 0 | AP90: 0 | AQ90: 2038-03-08 | AR90: N/A
A91: FT | B91: SLMT | C91: =VLOOKUP(S91,Map!$F$6:$H$81,2,0) -> PDS/Sukuk | D91: 17.93424658 | E91: =IF(LEFT(A91,2)="IL","IL",IF(OR(R91="BND",R91="CSH"),VLOOKUP(AP91,Map!$M$2:$N$50,2,0),"Not Subject to Credit Risk")) -> Not Rated | F91: 502000 | G91: 11700000 | H91: 38509.59 | I91: 502000 | J91: 1004000 | K91: 1004000 | L91: 5020000 | M91: 11472991.78 | N91: 0 | O91: 0 | P91: 2020-12-31 | Q91: VX180350 | R91: BND | S91: 130 | T91: C | U91: 2020-11-24 | V91: 0.0502 | W91: FTFPA | X91: 10000000 | Y91: 11798000 | Z91: 11798000 | AA91: A | AB91: 11790844.16 | AC91: 11829353.75 | AD91: 11738509.59 | AE91: 11738509.59 | AF91: 0 | AG91: 1 | AH91: -90844.16 | AI91: 0 | AL91: 67301.37 | AM91: 38509.59 | AN91: 7155.84 | AO91: 0 | AP91: 0 | AQ91: 2038-12-03 | AR91: N/A
A92: FT | B92: SLMT | C92: =VLOOKUP(S92,Map!$F$6:$H$81,2,0) -> PDS/Sukuk | D92: 18.28767123 | E92: =IF(LEFT(A92,2)="IL","IL",IF(OR(R92="BND",R92="CSH"),VLOOKUP(AP92,Map!$M$2:$N$50,2,0),"Not Subject to Credit Risk")) -> Not Rated | F92: 229000 | G92: 5573044.52 | H92: 32624.66 | I92: 229000 | J92: 458000 | K92: 458000 | L92: 2290000 | M92: 5752876.712 | N92: 0 | O92: 0 | P92: 2020-12-31 | Q92: VX190083 | R92: BND | S92: 130 | T92: C | U92: 2020-11-06 | V92: 0.0458 | W92: FTFPA | X92: 5000000 | Y92: 5613000 | Z92: 5613000 | AA92: A | AB92: 5609481.9 | AC92: 5660301.08 | AD92: 5605669.18 | AE92: 5605669.18 | AF92: 18194.52 | AG92: 1 | AH92: -54631.9 | AI92: 0 | AL92: 16509.59 | AM92: 32624.66 | AN92: 3518.1 | AO92: 0 | AP92: 0 | AQ92: 2039-04-11 | AR92: N/A
A93: FT | B93: SLMT | C93: =VLOOKUP(S93,Map!$F$6:$H$81,2,0) -> PDS/Sukuk | D93: 19.23835616 | E93: =IF(LEFT(A93,2)="IL","IL",IF(OR(R93="BND",R93="CSH"),VLOOKUP(AP93,Map!$M$2:$N$50,2,0),"Not Subject to Credit Risk")) -> Not Rated | F93: 375000 | G93: 10009100 | H93: 101712.33 | I93: 375000 | J93: 750000 | K93: 750000 | L93: 3750000 | M93: 11589383.56 | N93: 0 | O93: 0 | P93: 2020-12-31 | Q93: VX200058 | R93: BND | S93: 130 | T93: C | U93: 2020-09-09 | V93: 0.0375 | W93: FTFPA | X93: 10000000 | Y93: 10347000 | Z93: 10347000 | AA93: A | AB93: 10343151.61 | AC93: 10444863.94 | AD93: 10110812.33 | AE93: 10110812.33 | AF93: 0 | AG93: 1 | AH93: -334051.61 | AI93: 0 | AL93: 64309.59 | AM93: 101712.33 | AN93: 3848.39 | AO93: 0 | AP93: 0 | AQ93: 2040-03-23 | AR93: N/A
A94: FT | B94: SLMT | C94: =VLOOKUP(S94,Map!$F$6:$H$81,2,0) -> PDS/Sukuk | D94: 17.04383562 | E94: =IF(LEFT(A94,2)="IL","IL",IF(OR(R94="BND",R94="CSH"),VLOOKUP(AP94,Map!$M$2:$N$50,2,0),"Not Subject to Credit Risk")) -> Not Rated | F94: 364500 | G94: 8549400 | H94: 171764.38 | I94: 364500 | J94: 729000 | K94: 729000 | L94: 3645000 | M94: 8244978.082 | N94: 0 | O94: 0 | P94: 2020-12-31 | Q94: VZ120002 | R94: BND | S94: 130 | T94: C | U94: 2012-01-12 | V94: 0.0486 | W94: FTFPA | X94: 7500000 | Y94: 7566750 | Z94: 7566750 | AA94: A | AB94: 7552293.59 | AC94: 7724057.97 | AD94: 8721164.38 | AE94: 8721164.38 | AF94: 0 | AG94: 1 | AH94: 997106.41 | AI94: 0 | AL94: 31444.52 | AM94: 171764.38 | AN94: 14456.41 | AO94: 0 | AP94: 0 | AQ94: 2038-01-12 | AR94: N/A
A95: FT | B95: SLMT | C95: =VLOOKUP(S95,Map!$F$6:$H$81,2,0) -> PDS/Sukuk | D95: 17.04383562 | E95: =IF(LEFT(A95,2)="IL","IL",IF(OR(R95="BND",R95="CSH"),VLOOKUP(AP95,Map!$M$2:$N$50,2,0),"Not Subject to Credit Risk")) -> Not Rated | F95: 1093500 | G95: 25648200 | H95: 515293.15 | I95: 1093500 | J95: 2187000 | K95: 2187000 | L95: 10935000 | M95: 24734934.25 | N95: 0 | O95: 0 | P95: 2020-12-31 | Q95: VZ120002 | R95: BND | S95: 130 | T95: C | U95: 2012-01-12 | V95: 0.0486 | W95: FTFPA | X95: 22500000 | Y95: 23037750 | Z95: 23037750 | AA95: A | AB95: 22920020.01 | AC95: 23435313.16 | AD95: 26163493.15 | AE95: 26163493.15 | AF95: 0 | AG95: 1 | AH95: 2728179.99 | AI95: 0 | AL95: 94333.56 | AM95: 515293.15 | AN95: 117729.99 | AO95: 0 | AP95: 0 | AQ95: 2038-01-12 | AR95: N/A
A96: FT | B96: SLMT | C96: =VLOOKUP(S96,Map!$F$6:$H$81,2,0) -> PDS/Sukuk | D96: 17.04383562 | E96: =IF(LEFT(A96,2)="IL","IL",IF(OR(R96="BND",R96="CSH"),VLOOKUP(AP96,Map!$M$2:$N$50,2,0),"Not Subject to Credit Risk")) -> Not Rated | F96: 486000 | G96: 11399200 | H96: 229019.18 | I96: 486000 | J96: 972000 | K96: 972000 | L96: 4860000 | M96: 10993304.11 | N96: 0 | O96: 0 | P96: 2020-12-31 | Q96: VZ120002 | R96: BND | S96: 130 | T96: C | U96: 2015-06-09 | V96: 0.0486 | W96: FTFPA | X96: 10000000 | Y96: 10148500 | Z96: 10148500 | AA96: A | AB96: 10125190.83 | AC96: 10354210.01 | AD96: 11628219.18 | AE96: 11628219.18 | AF96: 0 | AG96: 1 | AH96: 1274009.17 | AI96: 0 | AL96: 41926.03 | AM96: 229019.18 | AN96: 23309.17 | AO96: 0 | AP96: 0 | AQ96: 2038-01-12 | AR96: N/A
A97: FT | B97: SLMT | C97: =VLOOKUP(S97,Map!$F$6:$H$81,2,0) -> PDS/Sukuk | D97: 18.31506849 | E97: =IF(LEFT(A97,2)="IL","IL",IF(OR(R97="BND",R97="CSH"),VLOOKUP(AP97,Map!$M$2:$N$50,2,0),"Not Subject to Credit Risk")) -> Not Rated | F97: 269000 | G97: 6109100 | H97: 53063.01 | I97: 269000 | J97: 538000 | K97: 538000 | L97: 2690000 | M97: 5891753.425 | N97: 0 | O97: 0 | P97: 2020-12-31 | Q97: VZ140102 | R97: BND | S97: 130 | T97: C | U97: 2018-07-05 | V97: 0.0538 | W97: FTFPA | X97: 5000000 | Y97: 5184500 | Z97: 5184500 | AA97: A | AB97: 5171299 | AC97: 5224362.01 | AD97: 6162163.01 | AE97: 6162163.01 | AF97: 0 | AG97: 1 | AH97: 937801 | AI97: 0 | AL97: 17847.95 | AM97: 53063.01 | AN97: 13201 | AO97: 0 | AP97: 0 | AQ97: 2039-04-21 | AR97: N/A
A98: FT | B98: SLMT | C98: =VLOOKUP(S98,Map!$F$6:$H$81,2,0) -> PDS/Sukuk | D98: 18.56712329 | E98: =IF(LEFT(A98,2)="IL","IL",IF(OR(R98="BND",R98="CSH"),VLOOKUP(AP98,Map!$M$2:$N$50,2,0),"Not Subject to Credit Risk")) -> Not Rated | F98: 257000 | G98: 5953950 | H98: 113361.64 | I98: 257000 | J98: 514000 | K98: 514000 | L98: 2570000 | M98: 5916750.685 | N98: 0 | O98: 0 | P98: 2020-12-31 | Q98: VZ140200 | R98: BND | S98: 130 | T98: C | U98: 2018-05-30 | V98: 0.0514 | W98: FTFPA | X98: 5000000 | Y98: 4987500 | Z98: 4987500 | AA98: A | AB98: 4988401.9 | AC98: 5101763.54 | AD98: 6067311.64 | AE98: 6067311.64 | AF98: 0 | AG98: 1 | AH98: 965548.1 | AI98: 0 | AL98: 16166.44 | AM98: 113361.64 | AN98: -901.9 | AO98: 0 | AP98: 0 | AQ98: 2039-07-22 | AR98: N/A
A99: FT | B99: SLMT | C99: =VLOOKUP(S99,Map!$F$6:$H$81,2,0) -> PDS/Sukuk | D99: 24.27945205 | E99: =IF(LEFT(A99,2)="IL","IL",IF(OR(R99="BND",R99="CSH"),VLOOKUP(AP99,Map!$M$2:$N$50,2,0),"Not Subject to Credit Risk")) -> Not Rated | F99: 1262500 | G99: 29101000 | H99: 300924.66 | I99: 1262500 | J99: 2525000 | K99: 2525000 | L99: 12625000 | M99: 36715308.22 | N99: 0 | O99: 0 | P99: 2020-12-31 | Q99: VZ150046 | R99: BND | S99: 130 | T99: C | U99: 2015-04-03 | V99: 0.0505 | W99: FTFPA | X99: 25000000 | Y99: 25000000 | Z99: 25000000 | AA99: A | AB99: 25000000 | AC99: 25300924.66 | AD99: 29401924.66 | AE99: 29401924.66 | AF99: 0 | AG99: 1 | AH99: 4101000 | AI99: 0 | AL99: 60585.61 | AM99: 300924.66 | AN99: 0 | AO99: 0 | AP99: 0 | AQ99: 2045-04-06 | AR99: N/A
A100: FT | B100: SLMT | C100: =VLOOKUP(S100,Map!$F$6:$H$81,2,0) -> PDS/Sukuk | D100: 24.27945205 | E100: =IF(LEFT(A100,2)="IL","IL",IF(OR(R100="BND",R100="CSH"),VLOOKUP(AP100,Map!$M$2:$N$50,2,0),"Not Subject to Credit Risk")) -> Not Rated | F100: 252500 | G100: 5820200 | H100: 60184.93 | I100: 252500 | J100: 505000 | K100: 505000 | L100: 2525000 | M100: 7343061.644 | N100: 0 | O100: 0 | P100: 2020-12-31 | Q100: VZ150046 | R100: BND | S100: 130 | T100: C | U100: 2015-06-19 | V100: 0.0505 | W100: FTFPA | X100: 5000000 | Y100: 5073000 | Z100: 5073000 | AA100: A | AB100: 5066192.7 | AC100: 5126377.63 | AD100: 5880384.93 | AE100: 5880384.93 | AF100: 0 | AG100: 1 | AH100: 754007.3 | AI100: 0 | AL100: 12117.12 | AM100: 60184.93 | AN100: 6807.3 | AO100: 0 | AP100: 0 | AQ100: 2045-04-06 | AR100: N/A
A101: FT | B101: SLMT | C101: =VLOOKUP(S101,Map!$F$6:$H$81,2,0) -> PDS/Sukuk | D101: 19.27671233 | E101: =IF(LEFT(A101,2)="IL","IL",IF(OR(R101="BND",R101="CSH"),VLOOKUP(AP101,Map!$M$2:$N$50,2,0),"Not Subject to Credit Risk")) -> Not Rated | F101: 495000 | G101: 11654100 | H101: 117986.3 | I101: 495000 | J101: 990000 | K101: 990000 | L101: 4950000 | M101: 12116972.6 | N101: 0 | O101: 0 | P101: 2020-12-31 | Q101: VZ150047 | R101: BND | S101: 130 | T101: C | U101: 2020-02-11 | V101: 0.0495 | W101: FTFPA | X101: 10000000 | Y101: 12094000 | Z101: 12094000 | AA101: A | AB101: 12029506.52 | AC101: 12147492.82 | AD101: 11772086.3 | AE101: 11772086.3 | AF101: 0 | AG101: 1 | AH101: -375406.52 | AI101: 0 | AL101: 27824.66 | AM101: 117986.3 | AN101: 64493.48 | AO101: 0 | AP101: 0 | AQ101: 2040-04-06 | AR101: N/A
A102: FT | B102: SLMT | C102: =VLOOKUP(S102,Map!$F$6:$H$81,2,0) -> PDS/Sukuk | D102: 24.87671233 | E102: =IF(LEFT(A102,2)="IL","IL",IF(OR(R102="BND",R102="CSH"),VLOOKUP(AP102,Map!$M$2:$N$50,2,0),"Not Subject to Credit Risk")) -> Not Rated | F102: 257500 | G102: 5875500 | H102: 35273.97 | I102: 257500 | J102: 515000 | K102: 515000 | L102: 2575000 | M102: 7543253.425 | N102: 0 | O102: 0 | P102: 2020-12-31 | Q102: VZ150258 | R102: BND | S102: 130 | T102: C | U102: 2015-11-20 | V102: 0.0515 | W102: FTFPA | X102: 5000000 | Y102: 5007750 | Z102: 5007750 | AA102: A | AB102: 5007116.37 | AC102: 5042390.34 | AD102: 5910773.97 | AE102: 5910773.97 | AF102: 0 | AG102: 1 | AH102: 868383.63 | AI102: 0 | AL102: 13221.92 | AM102: 35273.97 | AN102: 633.63 | AO102: 0 | AP102: 0 | AQ102: 2045-11-10 | AR102: N/A
A103: FT | B103: SLMT | C103: =VLOOKUP(S103,Map!$F$6:$H$81,2,0) -> PDS/Sukuk | D103: 25.35342466 | E103: =IF(LEFT(A103,2)="IL","IL",IF(OR(R103="BND",R103="CSH"),VLOOKUP(AP103,Map!$M$2:$N$50,2,0),"Not Subject to Credit Risk")) -> Not Rated | F103: 251000 | G103: 5761800 | H103: 40572.6 | I103: 251000 | J103: 502000 | K103: 502000 | L103: 2510000 | M103: 7598709.589 | N103: 0 | O103: 0 | P103: 2020-12-31 | Q103: VZ160131 | R103: BND | S103: 130 | T103: C | U103: 2020-08-25 | V103: 0.0502 | W103: FTFPA | X103: 5000000 | Y103: 6107500 | Z103: 6107500 | AA103: A | AB103: 6098364.57 | AC103: 6138937.17 | AD103: 5802372.6 | AE103: 5802372.6 | AF103: 0 | AG103: 1 | AH103: -336564.57 | AI103: 0 | AL103: 12250.69 | AM103: 40572.6 | AN103: 9135.43 | AO103: 0 | AP103: 0 | AQ103: 2046-05-03 | AR103: N/A
A104: FT | B104: SLMT | C104: =VLOOKUP(S104,Map!$F$6:$H$81,2,0) -> PDS/Sukuk | D104: 25.35342466 | E104: =IF(LEFT(A104,2)="IL","IL",IF(OR(R104="BND",R104="CSH"),VLOOKUP(AP104,Map!$M$2:$N$50,2,0),"Not Subject to Credit Risk")) -> Not Rated | F104: 251000 | G104: 5761800 | H104: 40572.6 | I104: 251000 | J104: 502000 | K104: 502000 | L104: 2510000 | M104: 7598709.589 | N104: 0 | O104: 0 | P104: 2020-12-31 | Q104: VZ160131 | R104: BND | S104: 130 | T104: C | U104: 2020-08-27 | V104: 0.0502 | W104: FTFPA | X104: 5000000 | Y104: 6135000 | Z104: 6135000 | AA104: A | AB104: 6125742.63 | AC104: 6166315.23 | AD104: 5802372.6 | AE104: 5802372.6 | AF104: 0 | AG104: 1 | AH104: -363942.63 | AI104: 0 | AL104: 12250.69 | AM104: 40572.6 | AN104: 9257.37 | AO104: 0 | AP104: 0 | AQ104: 2046-05-03 | AR104: N/A
A105: FT | B105: SLMT | C105: =VLOOKUP(S105,Map!$F$6:$H$81,2,0) -> PDS/Sukuk | D105: 20.8109589 | E105: =IF(LEFT(A105,2)="IL","IL",IF(OR(R105="BND",R105="CSH"),VLOOKUP(AP105,Map!$M$2:$N$50,2,0),"Not Subject to Credit Risk")) -> Not Rated | F105: 191200 | G105: 4557160 | H105: 38240 | I105: 191200 | J105: 382400 | K105: 382400 | L105: 1912000 | M105: 5111055.342 | N105: 0 | O105: 0 | P105: 2020-12-31 | Q105: VZ160322 | R105: BND | S105: 130 | T105: C | U105: 2016-10-19 | V105: 0.0478 | W105: FTFPA | X105: 4000000 | Y105: 4000000 | Z105: 4000000 | AA105: A | AB105: 4000000 | AC105: 4038240 | AD105: 4595400 | AE105: 4595400 | AF105: 0 | AG105: 1 | AH105: 557160 | AI105: 0 | AL105: 8255.34 | AM105: 38240 | AN105: 0 | AO105: 0 | AP105: 0 | AQ105: 2041-10-18 | AR105: N/A
A106: FT | B106: SLMT | C106: =VLOOKUP(S106,Map!$F$6:$H$81,2,0) -> PDS/Sukuk | D106: 20.8109589 | E106: =IF(LEFT(A106,2)="IL","IL",IF(OR(R106="BND",R106="CSH"),VLOOKUP(AP106,Map!$M$2:$N$50,2,0),"Not Subject to Credit Risk")) -> Not Rated | F106: 239000 | G106: 5696450 | H106: 47800 | I106: 239000 | J106: 478000 | K106: 478000 | L106: 2390000 | M106: 6388819.178 | N106: 0 | O106: 0 | P106: 2020-12-31 | Q106: VZ160322 | R106: BND | S106: 130 | T106: C | U106: 2018-11-22 | V106: 0.0478 | W106: FTFPA | X106: 5000000 | Y106: 4842150 | Z106: 4842150 | AA106: A | AB106: 4850311.29 | AC106: 4898111.29 | AD106: 5744250 | AE106: 5744250 | AF106: 0 | AG106: 1 | AH106: 846138.71 | AI106: 0 | AL106: 10319.18 | AM106: 47800 | AN106: -8161.29 | AO106: 0 | AP106: 0 | AQ106: 2041-10-18 | AR106: N/A
A107: FT | B107: SLMT | C107: =VLOOKUP(S107,Map!$F$6:$H$81,2,0) -> PDS/Sukuk | D107: 26.89041096 | E107: =IF(LEFT(A107,2)="IL","IL",IF(OR(R107="BND",R107="CSH"),VLOOKUP(AP107,Map!$M$2:$N$50,2,0),"Not Subject to Credit Risk")) -> Not Rated | F107: 267500 | G107: 5994250 | H107: 33712.33 | I107: 267500 | J107: 535000 | K107: 535000 | L107: 2675000 | M107: 8180684.932 | N107: 0 | O107: 0 | P107: 2020-12-31 | Q107: VZ170378 | R107: BND | S107: 130 | T107: C | U107: 2019-09-24 | V107: 0.0535 | W107: FTFPA | X107: 5000000 | Y107: 6086000 | Z107: 6086000 | AA107: A | AB107: 6059144.03 | AC107: 6092856.36 | AD107: 6027962.33 | AE107: 6027962.33 | AF107: 0 | AG107: 1 | AH107: -64894.03 | AI107: 0 | AL107: 12081.51 | AM107: 33712.33 | AN107: 26855.97 | AO107: 0 | AP107: 0 | AQ107: 2047-11-15 | AR107: N/A
A108: FT | B108: SLMT | C108: =VLOOKUP(S108,Map!$F$6:$H$81,2,0) -> PDS/Sukuk | D108: 28.75068493 | E108: =IF(LEFT(A108,2)="IL","IL",IF(OR(R108="BND",R108="CSH"),VLOOKUP(AP108,Map!$M$2:$N$50,2,0),"Not Subject to Credit Risk")) -> Not Rated | F108: 195000 | G108: 4774150 | H108: 50753.42 | I108: 195000 | J108: 390000 | K108: 390000 | L108: 1950000 | M108: 7681383.562 | N108: 0 | O108: 0 | P108: 2020-12-31 | Q108: VZ190182 | R108: BND | S108: 130 | T108: C | U108: 2019-09-24 | V108: 0.039 | W108: FTFPA | X108: 5000000 | Y108: 5000000 | Z108: 5000000 | AA108: A | AB108: 5000000 | AC108: 5050753.42 | AD108: 4824903.42 | AE108: 4824903.42 | AF108: 0 | AG108: 1 | AH108: -225850 | AI108: 0 | AL108: 4586.99 | AM108: 50753.42 | AN108: 0 | AO108: 0 | AP108: 0 | AQ108: 2049-09-24 | AR108: N/A
A109: FT | B109: SLMT | C109: =VLOOKUP(S109,Map!$F$6:$H$81,2,0) -> PDS/Sukuk | D109: 24.24383562 | E109: =IF(LEFT(A109,2)="IL","IL",IF(OR(R109="BND",R109="CSH"),VLOOKUP(AP109,Map!$M$2:$N$50,2,0),"Not Subject to Credit Risk")) -> Not Rated | F109: 195000 | G109: 4940250 | H109: 52890.41 | I109: 195000 | J109: 390000 | K109: 390000 | L109: 1950000 | M109: 6802547.945 | N109: 0 | O109: 0 | P109: 2020-12-31 | Q109: VZ200057 | R109: BND | S109: 130 | T109: C | U109: 2020-03-20 | V109: 0.039 | W109: FTFPA | X109: 5000000 | Y109: 5000000 | Z109: 5000000 | AA109: A | AB109: 5000000 | AC109: 5052890.41 | AD109: 4993140.41 | AE109: 4993140.41 | AF109: 0 | AG109: 1 | AH109: -59750 | AI109: 0 | AL109: 29086.99 | AM109: 52890.41 | AN109: 0 | AO109: 0 | AP109: 0 | AQ109: 2045-03-24 | AR109: N/A
A110: FT | B110: SLMT | C110: =VLOOKUP(S110,Map!$F$6:$H$81,2,0) -> PDS/Sukuk | D110: 29.74794521 | E110: =IF(LEFT(A110,2)="IL","IL",IF(OR(R110="BND",R110="CSH"),VLOOKUP(AP110,Map!$M$2:$N$50,2,0),"Not Subject to Credit Risk")) -> Not Rated | F110: 200500 | G110: 4839300 | H110: 54931.51 | I110: 200500 | J110: 401000 | K110: 401000 | L110: 2005000 | M110: 7956963.014 | N110: 0 | O110: 0 | P110: 2020-12-31 | Q110: VZ200201 | R110: BND | S110: 130 | T110: C | U110: 2020-09-21 | V110: 0.0401 | W110: FTFPA | X110: 5000000 | Y110: 5000000 | Z110: 5000000 | AA110: A | AB110: 5000000 | AC110: 5054931.51 | AD110: 4894231.51 | AE110: 4894231.51 | AF110: 0 | AG110: 1 | AH110: -160700 | AI110: 0 | AL110: 3047.26 | AM110: 54931.51 | AN110: 0 | AO110: 0 | AP110: 0 | AQ110: 2050-09-23 | AR110: N/A
A111: FT | B111: SLMT | C111: =VLOOKUP(S111,Map!$F$6:$H$81,2,0) -> Deposit | D111: 0.01369863014 | E111: =IF(LEFT(A111,2)="IL","IL",IF(OR(R111="BND",R111="CSH"),VLOOKUP(AP111,Map!$M$2:$N$50,2,0),"Not Subject to Credit Risk")) -> AA | F111: 1569.575342 | G111: 7902000 | H111: 2825.24 | I111: 7906394.815 | J111: 0 | K111: 0 | L111: 0 | M111: 0 | N111: 0 | O111: 0 | P111: 2020-12-31 | Q111: RPI*MYR*RHBIS | R111: CSH | S111: 210 | T111: C | U111: 2020-12-23 | V111: 0.0145 | W111: FTFPA | X111: 7902000 | Y111: 7902000 | Z111: 7902000 | AA111: A | AB111: 7902000 | AC111: 7904825.24 | AD111: 7904825.24 | AE111: 7904825.24 | AF111: 0 | AG111: 1 | AH111: 0 | AI111: 0 | AL111: 1255.66 | AM111: 2825.24 | AN111: 0 | AO111: 0 | AP111: 125 | AQ111: 2021-01-05 | AR111: RHBISLAMIC
A112: FT | B112: SLMT | C112: =VLOOKUP(S112,Map!$F$6:$H$81,2,0) -> Deposit | D112: 0.01643835616 | E112: =IF(LEFT(A112,2)="IL","IL",IF(OR(R112="BND",R112="CSH"),VLOOKUP(AP112,Map!$M$2:$N$50,2,0),"Not Subject to Credit Risk")) -> AAA | F112: 3336.509589 | G112: 13998000 | H112: 1112.17 | I112: 14002448.68 | J112: 0 | K112: 0 | L112: 0 | M112: 0 | N112: 0 | O112: 0 | P112: 2020-12-31 | Q112: RPI*MYR*MBBISL | R112: CSH | S112: 210 | T112: C | U112: 2020-12-30 | V112: 0.0145 | W112: FTFPA | X112: 13998000 | Y112: 13998000 | Z112: 13998000 | AA112: A | AB112: 13998000 | AC112: 13999112.17 | AD112: 13999112.17 | AE112: 13999112.17 | AF112: 0 | AG112: 1 | AH112: 0 | AI112: 0 | AL112: 2224.34 | AM112: 1112.17 | AN112: 0 | AO112: 0 | AP112: 115 | AQ112: 2021-01-06 | AR112: MBISMYKL
A113: FT | B113: SLMT | C113: =VLOOKUP(S113,Map!$F$6:$H$81,2,0) -> Deposit | D113: 0.01917808219 | E113: =IF(LEFT(A113,2)="IL","IL",IF(OR(R113="BND",R113="CSH"),VLOOKUP(AP113,Map!$M$2:$N$50,2,0),"Not Subject to Credit Risk")) -> AAA | F113: 1192.286404 | G113: 4287532.39 | H113: 170.33 | I113: 4288895.006 | J113: 0 | K113: 0 | L113: 0 | M113: 0 | N113: 0 | O113: 0 | P113: 2020-12-31 | Q113: RPI*MYR*MBBISL | R113: CSH | S113: 210 | T113: C | U113: 2020-12-31 | V113: 0.0145 | W113: FTFPA | X113: 4287532.39 | Y113: 4287532.39 | Z113: 4287532.39 | AA113: A | AB113: 4287532.39 | AC113: 4287702.72 | AD113: 4287702.72 | AE113: 4287702.72 | AF113: 0 | AG113: 1 | AH113: 0 | AI113: 0 | AL113: 851.63 | AM113: 170.33 | AN113: 0 | AO113: 0 | AP113: 115 | AQ113: 2021-01-07 | AR113: MBISMYKL
A114: FT | B114: SLMT | C114: =VLOOKUP(S114,Map!$F$6:$H$81,2,0) -> Deposit | D114: 0.01643835616 | E114: =IF(LEFT(A114,2)="IL","IL",IF(OR(R114="BND",R114="CSH"),VLOOKUP(AP114,Map!$M$2:$N$50,2,0),"Not Subject to Credit Risk")) -> AAA | F114: 68.18630137 | G114: 244000 | H114: 113.64 | I114: 244181.8263 | J114: 0 | K114: 0 | L114: 0 | M114: 0 | N114: 0 | O114: 0 | P114: 2020-12-31 | Q114: RPI*MYR*CIMBI | R114: CSH | S114: 210 | T114: C | U114: 2020-12-22 | V114: 0.017 | W114: FTFPA | X114: 244000 | Y114: 244000 | Z114: 244000 | AA114: A | AB114: 244000 | AC114: 244113.64 | AD114: 244113.64 | AE114: 244113.64 | AF114: 0 | AG114: 1 | AH114: 0 | AI114: 0 | AL114: 45.46 | AM114: 113.64 | AN114: 0 | AO114: 0 | AP114: 115 | AQ114: 2021-01-06 | AR114: CIMBISLAMIC
A115: FT | B115: SLMT | C115: =VLOOKUP(S115,Map!$F$6:$H$81,2,0) -> Deposit | D115: 0.01369863014 | E115: =IF(LEFT(A115,2)="IL","IL",IF(OR(R115="BND",R115="CSH"),VLOOKUP(AP115,Map!$M$2:$N$50,2,0),"Not Subject to Credit Risk")) -> AAA | F115: 559.0520077 | G115: 2473381.61 | H115: 223.62 | I115: 2474164.282 | J115: 0 | K115: 0 | L115: 0 | M115: 0 | N115: 0 | O115: 0 | P115: 2020-12-31 | Q115: RPI*MYR*CIMBI | R115: CSH | S115: 210 | T115: C | U115: 2020-12-30 | V115: 0.0165 | W115: FTFPA | X115: 2473381.61 | Y115: 2473381.61 | Z115: 2473381.61 | AA115: A | AB115: 2473381.61 | AC115: 2473605.23 | AD115: 2473605.23 | AE115: 2473605.23 | AF115: 0 | AG115: 1 | AH115: 0 | AI115: 0 | AL115: 447.24 | AM115: 223.62 | AN115: 0 | AO115: 0 | AP115: 115 | AQ115: 2021-01-05 | AR115: CIMBISLAMIC
A116: FT | B116: SLMT | C116: =VLOOKUP(S116,Map!$F$6:$H$81,2,0) -> Deposit | D116: 0.01095890411 | E116: =IF(LEFT(A116,2)="IL","IL",IF(OR(R116="BND",R116="CSH"),VLOOKUP(AP116,Map!$M$2:$N$50,2,0),"Not Subject to Credit Risk")) -> AAA | F116: 90.4109589 | G116: 500000 | H116: 22.6 | I116: 500113.011 | J116: 0 | K116: 0 | L116: 0 | M116: 0 | N116: 0 | O116: 0 | P116: 2020-12-31 | Q116: RPI*MYR*CIMBI | R116: CSH | S116: 210 | T116: C | U116: 2020-12-31 | V116: 0.0165 | W116: FTFPA | X116: 500000 | Y116: 500000 | Z116: 500000 | AA116: A | AB116: 500000 | AC116: 500022.6 | AD116: 500022.6 | AE116: 500022.6 | AF116: 0 | AG116: 1 | AH116: 0 | AI116: 0 | AL116: 90.41 | AM116: 22.6 | AN116: 0 | AO116: 0 | AP116: 115 | AQ116: 2021-01-04 | AR116: CIMBISLAMIC
A117: FT | B117: SLMT | C117: =VLOOKUP(S117,Map!$F$6:$H$81,2,0) -> Deposit | D117: 0.01369863014 | E117: =IF(LEFT(A117,2)="IL","IL",IF(OR(R117="BND",R117="CSH"),VLOOKUP(AP117,Map!$M$2:$N$50,2,0),"Not Subject to Credit Risk")) -> AA | F117: 1356.922348 | G117: 6003353.42 | H117: 542.77 | I117: 6005253.112 | J117: 0 | K117: 0 | L117: 0 | M117: 0 | N117: 0 | O117: 0 | P117: 2020-12-31 | Q117: RPI*MYR*HLBIS | R117: CSH | S117: 210 | T117: C | U117: 2020-12-30 | V117: 0.0165 | W117: FTFPA | X117: 6003353.42 | Y117: 6003353.42 | Z117: 6003353.42 | AA117: A | AB117: 6003353.42 | AC117: 6003896.19 | AD117: 6003896.19 | AE117: 6003896.19 | AF117: 0 | AG117: 1 | AH117: 0 | AI117: 0 | AL117: 1085.54 | AM117: 542.77 | AN117: 0 | AO117: 0 | AP117: 122 | AQ117: 2021-01-05 | AR117: HLBISLAM
A118: FT | B118: SLMT | C118: =VLOOKUP(S118,Map!$F$6:$H$81,2,0) -> Deposit | D118: 0.01095890411 | E118: =IF(LEFT(A118,2)="IL","IL",IF(OR(R118="BND",R118="CSH"),VLOOKUP(AP118,Map!$M$2:$N$50,2,0),"Not Subject to Credit Risk")) -> AA | F118: 1271.919562 | G118: 7253916.25 | H118: 317.98 | I118: 7255506.15 | J118: 0 | K118: 0 | L118: 0 | M118: 0 | N118: 0 | O118: 0 | P118: 2020-12-31 | Q118: RPI*MYR*HLBIS | R118: CSH | S118: 210 | T118: C | U118: 2020-12-31 | V118: 0.016 | W118: FTFPA | X118: 7253916.25 | Y118: 7253916.25 | Z118: 7253916.25 | AA118: A | AB118: 7253916.25 | AC118: 7254234.23 | AD118: 7254234.23 | AE118: 7254234.23 | AF118: 0 | AG118: 1 | AH118: 0 | AI118: 0 | AL118: 1271.92 | AM118: 317.98 | AN118: 0 | AO118: 0 | AP118: 122 | AQ118: 2021-01-04 | AR118: HLBISLAM
A119: FT | B119: SLMT | C119: =VLOOKUP(S119,Map!$F$6:$H$81,2,0) -> Deposit | D119: 0.01095890411 | E119: =IF(LEFT(A119,2)="IL","IL",IF(OR(R119="BND",R119="CSH"),VLOOKUP(AP119,Map!$M$2:$N$50,2,0),"Not Subject to Credit Risk")) -> AAA | F119: 1870.771991 | G119: 9227456.44 | H119: 467.69 | I119: 9229794.902 | J119: 0 | K119: 0 | L119: 0 | M119: 0 | N119: 0 | O119: 0 | P119: 2020-12-31 | Q119: RPI*MYR*CIMBI | R119: CSH | S119: 210 | T119: C | U119: 2020-12-31 | V119: 0.0185 | W119: FTFPHW | X119: 9227456.44 | Y119: 9227456.44 | Z119: 9227456.44 | AA119: A | AB119: 9227456.44 | AC119: 9227924.13 | AD119: 9227924.13 | AE119: 9227924.13 | AF119: 0 | AG119: 1 | AH119: 0 | AI119: 0 | AL119: 1870.77 | AM119: 467.69 | AN119: 0 | AO119: 0 | AP119: 115 | AQ119: 2021-01-04 | AR119: CIMBISLAMIC
A120: FT | B120: SLMT | C120: =VLOOKUP(S120,Map!$F$6:$H$81,2,0) -> Deposit | D120: 0.01095890411 | E120: =IF(LEFT(A120,2)="IL","IL",IF(OR(R120="BND",R120="CSH"),VLOOKUP(AP120,Map!$M$2:$N$50,2,0),"Not Subject to Credit Risk")) -> AAA | F120: 1949.983776 | G120: 9365053.66 | H120: 487.5 | I120: 9367491.144 | J120: 0 | K120: 0 | L120: 0 | M120: 0 | N120: 0 | O120: 0 | P120: 2020-12-31 | Q120: RPI*MYR*PIBB | R120: CSH | S120: 210 | T120: C | U120: 2020-12-31 | V120: 0.019 | W120: FTFPHW | X120: 9365053.66 | Y120: 9365053.66 | Z120: 9365053.66 | AA120: A | AB120: 9365053.66 | AC120: 9365541.16 | AD120: 9365541.16 | AE120: 9365541.16 | AF120: 0 | AG120: 1 | AH120: 0 | AI120: 0 | AL120: 1949.98 | AM120: 487.5 | AN120: 0 | AO120: 0 | AP120: 115 | AQ120: 2021-01-04 | AR120: PIBB
A121: FT | B121: SLMT | C121: =VLOOKUP(S121,Map!$F$6:$H$81,2,0) -> Equity | D121: 979.6520548 | E121: =IF(LEFT(A121,2)="IL","IL",IF(OR(R121="BND",R121="CSH"),VLOOKUP(AP121,Map!$M$2:$N$50,2,0),"Not Subject to Credit Risk")) -> Not Subject to Credit Risk | F121: 0 | G121: 1716188.3 | H121: 0 | I121: 0 | J121: 0 | K121: 0 | L121: 0 | M121: 0 | N121: 1716188.3 | O121: 0 | P121: 2020-12-31 | Q121: 0021 | R121: EQT | S121: 010 | T121: F | U121: 2020-06-09 | V121: 0 | W121: FTFPHW | X121: 903257 | Y121: 1179218.61 | Z121: 1179218.61 | AA121: A | AB121: 1179218.61 | AC121: 1179218.61 | AD121: 1716188.3 | AE121: 1716188.3 | AF121: 0 | AG121: 1 | AH121: 536969.69 | AI121: 0 | AL121: -9032.57 | AM121: 0 | AN121: 0 | AO121: 0 | AP121: 0 | AQ121: 3000-01-01 | AR121: N/A
A122: FT | B122: SLMT | C122: =VLOOKUP(S122,Map!$F$6:$H$81,2,0) -> Equity | D122: 979.6520548 | E122: =IF(LEFT(A122,2)="IL","IL",IF(OR(R122="BND",R122="CSH"),VLOOKUP(AP122,Map!$M$2:$N$50,2,0),"Not Subject to Credit Risk")) -> Not Subject to Credit Risk | F122: 0 | G122: 1586495 | H122: 0 | I122: 0 | J122: 0 | K122: 0 | L122: 0 | M122: 0 | N122: 1586495 | O122: 0 | P122: 2020-12-31 | Q122: 0128 | R122: EQT | S122: 010 | T122: F | U122: 2020-06-12 | V122: 0 | W122: FTFPHW | X122: 446900 | Y122: 1159746.83 | Z122: 1159746.83 | AA122: A | AB122: 1159746.83 | AC122: 1159746.83 | AD122: 1586495 | AE122: 1586495 | AF122: 0 | AG122: 1 | AH122: 426748.17 | AI122: 0 | AL122: 44690 | AM122: 0 | AN122: 0 | AO122: 0 | AP122: 0 | AQ122: 3000-01-01 | AR122: N/A
A123: FT | B123: SLMT | C123: =VLOOKUP(S123,Map!$F$6:$H$81,2,0) -> Equity | D123: 979.6520548 | E123: =IF(LEFT(A123,2)="IL","IL",IF(OR(R123="BND",R123="CSH"),VLOOKUP(AP123,Map!$M$2:$N$50,2,0),"Not Subject to Credit Risk")) -> Not Subject to Credit Risk | F123: 0 | G123: 998712.96 | H123: 0 | I123: 0 | J123: 0 | K123: 0 | L123: 0 | M123: 0 | N123: 998712.96 | O123: 0 | P123: 2020-12-31 | Q123: 0138 | R123: EQT | S123: 010 | T123: F | U123: 2020-06-11 | V123: 0 | W123: FTFPHW | X123: 520163 | Y123: 745859.02 | Z123: 745859.02 | AA123: A | AB123: 745859.02 | AC123: 745859.02 | AD123: 998712.96 | AE123: 998712.96 | AF123: 0 | AG123: 1 | AH123: 252853.94 | AI123: 0 | AL123: 0 | AM123: 0 | AN123: 0 | AO123: 0 | AP123: 0 | AQ123: 3000-01-01 | AR123: N/A
A124: FT | B124: SLMT | C124: =VLOOKUP(S124,Map!$F$6:$H$81,2,0) -> Equity | D124: 979.6520548 | E124: =IF(LEFT(A124,2)="IL","IL",IF(OR(R124="BND",R124="CSH"),VLOOKUP(AP124,Map!$M$2:$N$50,2,0),"Not Subject to Credit Risk")) -> Not Subject to Credit Risk | F124: 0 | G124: 1096824 | H124: 0 | I124: 0 | J124: 0 | K124: 0 | L124: 0 | M124: 0 | N124: 1096824 | O124: 0 | P124: 2020-12-31 | Q124: 0166 | R124: EQT | S124: 010 | T124: F | U124: 2018-05-16 | V124: 0 | W124: FTFPHW | X124: 397400 | Y124: 790720.15 | Z124: 790720.15 | AA124: A | AB124: 790720.15 | AC124: 790720.15 | AD124: 1096824 | AE124: 1096824 | AF124: 0 | AG124: 1 | AH124: 306103.85 | AI124: 0 | AL124: -15896 | AM124: 0 | AN124: 0 | AO124: 0 | AP124: 0 | AQ124: 3000-01-01 | AR124: N/A
A125: FT | B125: SLMT | C125: =VLOOKUP(S125,Map!$F$6:$H$81,2,0) -> Equity | D125: 979.6520548 | E125: =IF(LEFT(A125,2)="IL","IL",IF(OR(R125="BND",R125="CSH"),VLOOKUP(AP125,Map!$M$2:$N$50,2,0),"Not Subject to Credit Risk")) -> Not Subject to Credit Risk | F125: 0 | G125: 591090 | H125: 0 | I125: 0 | J125: 0 | K125: 0 | L125: 0 | M125: 0 | N125: 591090 | O125: 0 | P125: 2020-12-31 | Q125: 1651 | R125: EQT | S125: 010 | T125: F | U125: 2020-05-18 | V125: 0 | W125: FTFPHW | X125: 1244400 | Y125: 638030.99 | Z125: 638030.99 | AA125: A | AB125: 638030.99 | AC125: 638030.99 | AD125: 591090 | AE125: 591090 | AF125: 0 | AG125: 1 | AH125: -46940.99 | AI125: 0 | AL125: -31110 | AM125: 0 | AN125: 0 | AO125: 0 | AP125: 0 | AQ125: 3000-01-01 | AR125: N/A
A126: FT | B126: SLMT | C126: =VLOOKUP(S126,Map!$F$6:$H$81,2,0) -> Equity | D126: 979.6520548 | E126: =IF(LEFT(A126,2)="IL","IL",IF(OR(R126="BND",R126="CSH"),VLOOKUP(AP126,Map!$M$2:$N$50,2,0),"Not Subject to Credit Risk")) -> Not Subject to Credit Risk | F126: 0 | G126: 1141376 | H126: 0 | I126: 0 | J126: 0 | K126: 0 | L126: 0 | M126: 0 | N126: 1141376 | O126: 0 | P126: 2020-12-31 | Q126: 2445 | R126: EQT | S126: 010 | T126: F | U126: 2020-12-21 | V126: 0 | W126: FTFPHW | X126: 48200 | Y126: 1154085.56 | Z126: 1154085.56 | AA126: A | AB126: 1154085.56 | AC126: 1154085.56 | AD126: 1141376 | AE126: 1141376 | AF126: 0 | AG126: 1 | AH126: -12709.56 | AI126: 0 | AL126: 2892 | AM126: 0 | AN126: 0 | AO126: 0 | AP126: 0 | AQ126: 3000-01-01 | AR126: N/A
A127: FT | B127: SLMT | C127: =VLOOKUP(S127,Map!$F$6:$H$81,2,0) -> Equity | D127: 979.6520548 | E127: =IF(LEFT(A127,2)="IL","IL",IF(OR(R127="BND",R127="CSH"),VLOOKUP(AP127,Map!$M$2:$N$50,2,0),"Not Subject to Credit Risk")) -> Not Subject to Credit Risk | F127: 0 | G127: 1358708 | H127: 0 | I127: 0 | J127: 0 | K127: 0 | L127: 0 | M127: 0 | N127: 1358708 | O127: 0 | P127: 2020-12-31 | Q127: 2852 | R127: EQT | S127: 010 | T127: F | U127: 2020-04-16 | V127: 0 | W127: FTFPHW | X127: 640900 | Y127: 972688.87 | Z127: 972688.87 | AA127: A | AB127: 972688.87 | AC127: 972688.87 | AD127: 1358708 | AE127: 1358708 | AF127: 0 | AG127: 1 | AH127: 386019.13 | AI127: 0 | AL127: 19227 | AM127: 0 | AN127: 0 | AO127: 0 | AP127: 0 | AQ127: 3000-01-01 | AR127: N/A
A128: FT | B128: SLMT | C128: =VLOOKUP(S128,Map!$F$6:$H$81,2,0) -> Equity | D128: 979.6520548 | E128: =IF(LEFT(A128,2)="IL","IL",IF(OR(R128="BND",R128="CSH"),VLOOKUP(AP128,Map!$M$2:$N$50,2,0),"Not Subject to Credit Risk")) -> Not Subject to Credit Risk | F128: 0 | G128: 1784076 | H128: 0 | I128: 0 | J128: 0 | K128: 0 | L128: 0 | M128: 0 | N128: 1784076 | O128: 0 | P128: 2020-12-31 | Q128: 4731 | R128: EQT | S128: 010 | T128: F | U128: 2016-01-12 | V128: 0 | W128: FTFPHW | X128: 140700 | Y128: 1086381.4 | Z128: 1086381.4 | AA128: A | AB128: 1086381.4 | AC128: 1086381.4 | AD128: 1784076 | AE128: 1784076 | AF128: 0 | AG128: 1 | AH128: 697694.6 | AI128: 0 | AL128: -7035 | AM128: 0 | AN128: 0 | AO128: 0 | AP128: 0 | AQ128: 3000-01-01 | AR128: N/A
A129: FT | B129: SLMT | C129: =VLOOKUP(S129,Map!$F$6:$H$81,2,0) -> Equity | D129: 979.6520548 | E129: =IF(LEFT(A129,2)="IL","IL",IF(OR(R129="BND",R129="CSH"),VLOOKUP(AP129,Map!$M$2:$N$50,2,0),"Not Subject to Credit Risk")) -> Not Subject to Credit Risk | F129: 0 | G129: 1478490 | H129: 0 | I129: 0 | J129: 0 | K129: 0 | L129: 0 | M129: 0 | N129: 1478490 | O129: 0 | P129: 2020-12-31 | Q129: 5031 | R129: EQT | S129: 010 | T129: F | U129: 2019-04-05 | V129: 0 | W129: FTFPHW | X129: 111500 | Y129: 974790 | Z129: 974790 | AA129: A | AB129: 974790 | AC129: 974790 | AD129: 1478490 | AE129: 1478490 | AF129: 0 | AG129: 1 | AH129: 503700 | AI129: 0 | AL129: 15610 | AM129: 0 | AN129: 0 | AO129: 0 | AP129: 0 | AQ129: 3000-01-01 | AR129: N/A
A130: =VLOOKUP(W130,FdGroup,2,0) -> FT | B130: =VLOOKUP(W130,FdGroup,3,0) -> SLMT | C130: =VLOOKUP(S130,Map!$F$6:$H$81,2,0) -> Equity | D130: =(AQ130-P130)/365 -> 979.6520548 | E130: =IF(LEFT(A130,2)="IL","IL",IF(OR(R130="BND",R130="CSH"),VLOOKUP(AP130,Map!$M$2:$N$50,2,0),"Not Subject to Credit Risk")) -> Not Subject to Credit Risk | F130: =IF(D130<1,D130,1)*V130*X130 -> 0 | G130: =AE130-AM130 -> 1004187 | H130: =AM130 -> 0 | I130: =IF((O130+N130)>0,0,IF($D130<1,$X130+$H130+$F130,$F130))*IF(E130="D",0,1)*IF($E130="D",0,1) -> 0 | J130: =IF((O130+N130)>0,0,IF($D130>1,IF($D130<3,$X130+$F130*$D130-$F130,$F130*2),0))*IF($E130="D",0,1) -> 0 | K130: =IF((O130+N130)>0,0,IF($D130>3,IF($D130<5,$X130+$F130*($D130-3),$F130*2),0))*IF($E130="D",0,1) -> 0 | L130: =IF((O130+N130)>0,0,IF($D130>5,IF($D130<15,$X130+$F130*($D130-5),$F130*10),0))*IF($E130="D",0,1) -> 0 | M130: =IF((O130+N130)>0,0,IF($D130>15,IF($D130<99,$X130+$F130*($D130-15),0),0))*IF($E130="D",0,1) -> 0 | N130: =IF(AND(LEFT($A130,2)<>"IL",$D130>99),$AE130,0) -> 1004187 | O130: =IF(LEFT($A130,2)="IL",IF(D130<99,$X130+$F130*$D130,$AE130),0) -> 0 | P130: 2020-12-31 | Q130: 5102 | R130: EQT | S130: 010 | T130: F | U130: 2020-01-08 | V130: 0 | W130: FTFPHW | X130: 376100 | Y130: 1111618.22 | Z130: 1111618.22 | AA130: A | AB130: 1111618.22 | AC130: 1111618.22 | AD130: 1004187 | AE130: 1004187 | AF130: 0 | AG130: 1 | AH130: -107431.22 | AI130: 0 | AL130: 0 | AM130: 0 | AN130: 0 | AO130: 0 | AP130: 0 | AQ130: 3000-01-01 | AR130: N/A
A131: FT | B131: SLMT | C131: =VLOOKUP(S131,Map!$F$6:$H$81,2,0) -> Equity | D131: 979.6520548 | E131: =IF(LEFT(A131,2)="IL","IL",IF(OR(R131="BND",R131="CSH"),VLOOKUP(AP131,Map!$M$2:$N$50,2,0),"Not Subject to Credit Risk")) -> Not Subject to Credit Risk | F131: 0 | G131: 2272891.53 | H131: 0 | I131: 0 | J131: 0 | K131: 0 | L131: 0 | M131: 0 | N131: 2272891.53 | O131: 0 | P131: 2020-12-31 | Q131: 5106 | R131: EQT | S131: 460 | T131: F | U131: 2016-10-21 | V131: 0 | W131: FTFPHW | X131: 1119651 | Y131: 1861157.44 | Z131: 1861157.44 | AA131: A | AB131: 1861157.44 | AC131: 1861157.44 | AD131: 2272891.53 | AE131: 2272891.53 | AF131: 0 | AG131: 1 | AH131: 411734.09 | AI131: 0 | AL131: 78375.57 | AM131: 0 | AN131: 0 | AO131: 0 | AP131: 0 | AQ131: 3000-01-01 | AR131: N/A
A132: FT | B132: SLMT | C132: =VLOOKUP(S132,Map!$F$6:$H$81,2,0) -> Equity | D132: 979.6520548 | E132: =IF(LEFT(A132,2)="IL","IL",IF(OR(R132="BND",R132="CSH"),VLOOKUP(AP132,Map!$M$2:$N$50,2,0),"Not Subject to Credit Risk")) -> Not Subject to Credit Risk | F132: 0 | G132: 1863152.46 | H132: 0 | I132: 0 | J132: 0 | K132: 0 | L132: 0 | M132: 0 | N132: 1863152.46 | O132: 0 | P132: 2020-12-31 | Q132: 5142 | R132: EQT | S132: 010 | T132: F | U132: 2020-01-08 | V132: 0 | W132: FTFPHW | X132: 2343588 | Y132: 2143940.22 | Z132: 2143940.22 | AA132: A | AB132: 2143940.22 | AC132: 2143940.22 | AD132: 1863152.46 | AE132: 1863152.46 | AF132: 0 | AG132: 1 | AH132: -280787.76 | AI132: 0 | AL132: 222640.86 | AM132: 0 | AN132: 0 | AO132: 0 | AP132: 0 | AQ132: 3000-01-01 | AR132: N/A
A133: FT | B133: SLMT | C133: =VLOOKUP(S133,Map!$F$6:$H$81,2,0) -> Equity | D133: 979.6520548 | E133: =IF(LEFT(A133,2)="IL","IL",IF(OR(R133="BND",R133="CSH"),VLOOKUP(AP133,Map!$M$2:$N$50,2,0),"Not Subject to Credit Risk")) -> Not Subject to Credit Risk | F133: 0 | G133: 642695 | H133: 0 | I133: 0 | J133: 0 | K133: 0 | L133: 0 | M133: 0 | N133: 642695 | O133: 0 | P133: 2020-12-31 | Q133: 5183 | R133: EQT | S133: 010 | T133: F | U133: 2018-01-16 | V133: 0 | W133: FTFPHW | X133: 86500 | Y133: 639187.23 | Z133: 639187.23 | AA133: A | AB133: 639187.23 | AC133: 639187.23 | AD133: 642695 | AE133: 642695 | AF133: 0 | AG133: 1 | AH133: 3507.77 | AI133: 0 | AL133: -19030 | AM133: 0 | AN133: 0 | AO133: 0 | AP133: 0 | AQ133: 3000-01-01 | AR133: N/A
A134: FT | B134: SLMT | C134: =VLOOKUP(S134,Map!$F$6:$H$81,2,0) -> Equity | D134: 979.6520548 | E134: =IF(LEFT(A134,2)="IL","IL",IF(OR(R134="BND",R134="CSH"),VLOOKUP(AP134,Map!$M$2:$N$50,2,0),"Not Subject to Credit Risk")) -> Not Subject to Credit Risk | F134: 0 | G134: 861055 | H134: 0 | I134: 0 | J134: 0 | K134: 0 | L134: 0 | M134: 0 | N134: 861055 | O134: 0 | P134: 2020-12-31 | Q134: 5200 | R134: EQT | S134: 010 | T134: F | U134: 2019-06-20 | V134: 0 | W134: FTFPHW | X134: 509500 | Y134: 1148054.03 | Z134: 1148054.03 | AA134: A | AB134: 1148054.03 | AC134: 1148054.03 | AD134: 861055 | AE134: 861055 | AF134: 0 | AG134: 1 | AH134: -286999.03 | AI134: 0 | AL134: 0 | AM134: 0 | AN134: 0 | AO134: 0 | AP134: 0 | AQ134: 3000-01-01 | AR134: N/A
A135: FT | B135: SLMT | C135: =VLOOKUP(S135,Map!$F$6:$H$81,2,0) -> Equity | D135: 979.6520548 | E135: =IF(LEFT(A135,2)="IL","IL",IF(OR(R135="BND",R135="CSH"),VLOOKUP(AP135,Map!$M$2:$N$50,2,0),"Not Subject to Credit Risk")) -> Not Subject to Credit Risk | F135: 0 | G135: 1328623.52 | H135: 0 | I135: 0 | J135: 0 | K135: 0 | L135: 0 | M135: 0 | N135: 1328623.52 | O135: 0 | P135: 2020-12-31 | Q135: 5211 | R135: EQT | S135: 010 | T135: F | U135: 2017-05-16 | V135: 0 | W135: FTFPHW | X135: 825232 | Y135: 1258090.43 | Z135: 1258090.43 | AA135: A | AB135: 1258090.43 | AC135: 1258090.43 | AD135: 1328623.52 | AE135: 1328623.52 | AF135: 0 | AG135: 1 | AH135: 70533.09 | AI135: 0 | AL135: -24756.96 | AM135: 0 | AN135: 0 | AO135: 0 | AP135: 0 | AQ135: 3000-01-01 | AR135: N/A
A136: FT | B136: SLMT | C136: =VLOOKUP(S136,Map!$F$6:$H$81,2,0) -> Equity | D136: 979.6520548 | E136: =IF(LEFT(A136,2)="IL","IL",IF(OR(R136="BND",R136="CSH"),VLOOKUP(AP136,Map!$M$2:$N$50,2,0),"Not Subject to Credit Risk")) -> Not Subject to Credit Risk | F136: 0 | G136: 991200 | H136: 0 | I136: 0 | J136: 0 | K136: 0 | L136: 0 | M136: 0 | N136: 991200 | O136: 0 | P136: 2020-12-31 | Q136: 5235SS | R136: EQT | S136: 460 | T136: F | U136: 2016-10-21 | V136: 0 | W136: FTFPHW | X136: 140000 | Y136: 1079742.96 | Z136: 1079742.96 | AA136: A | AB136: 1079742.96 | AC136: 1079742.96 | AD136: 991200 | AE136: 991200 | AF136: 0 | AG136: 1 | AH136: -88542.96 | AI136: 0 | AL136: -7000 | AM136: 0 | AN136: 0 | AO136: 0 | AP136: 0 | AQ136: 3000-01-01 | AR136: N/A
A137: FT | B137: SLMT | C137: =VLOOKUP(S137,Map!$F$6:$H$81,2,0) -> Equity | D137: 979.6520548 | E137: =IF(LEFT(A137,2)="IL","IL",IF(OR(R137="BND",R137="CSH"),VLOOKUP(AP137,Map!$M$2:$N$50,2,0),"Not Subject to Credit Risk")) -> Not Subject to Credit Risk | F137: 0 | G137: 879284.67 | H137: 0 | I137: 0 | J137: 0 | K137: 0 | L137: 0 | M137: 0 | N137: 879284.67 | O137: 0 | P137: 2020-12-31 | Q137: 5236 | R137: EQT | S137: 010 | T137: F | U137: 2014-01-09 | V137: 0 | W137: FTFPHW | X137: 496771 | Y137: 984195.74 | Z137: 984195.74 | AA137: A | AB137: 984195.74 | AC137: 984195.74 | AD137: 879284.67 | AE137: 879284.67 | AF137: 0 | AG137: 1 | AH137: -104911.07 | AI137: 0 | AL137: 14903.13 | AM137: 0 | AN137: 0 | AO137: 0 | AP137: 0 | AQ137: 3000-01-01 | AR137: N/A
A138: FT | B138: SLMT | C138: =VLOOKUP(S138,Map!$F$6:$H$81,2,0) -> Equity | D138: 979.6520548 | E138: =IF(LEFT(A138,2)="IL","IL",IF(OR(R138="BND",R138="CSH"),VLOOKUP(AP138,Map!$M$2:$N$50,2,0),"Not Subject to Credit Risk")) -> Not Subject to Credit Risk | F138: 0 | G138: 404238 | H138: 0 | I138: 0 | J138: 0 | K138: 0 | L138: 0 | M138: 0 | N138: 404238 | O138: 0 | P138: 2020-12-31 | Q138: 9261 | R138: EQT | S138: 010 | T138: F | U138: 2019-06-25 | V138: 0 | W138: FTFPHW | X138: 908400 | Y138: 808244.59 | Z138: 808244.59 | AA138: A | AB138: 808244.59 | AC138: 808244.59 | AD138: 404238 | AE138: 404238 | AF138: 0 | AG138: 1 | AH138: -404006.59 | AI138: 0 | AL138: -22710 | AM138: 0 | AN138: 0 | AO138: 0 | AP138: 0 | AQ138: 3000-01-01 | AR138: N/A
A139: FT | B139: SLMT | C139: =VLOOKUP(S139,Map!$F$6:$H$81,2,0) -> Equity | D139: -0.3890410959 | E139: =IF(LEFT(A139,2)="IL","IL",IF(OR(R139="BND",R139="CSH"),VLOOKUP(AP139,Map!$M$2:$N$50,2,0),"Not Subject to Credit Risk")) -> Not Subject to Credit Risk | F139: 0 | G139: 282156.63 | H139: 0 | I139: 532371 | J139: 0 | K139: 0 | L139: 0 | M139: 0 | N139: 0 | O139: 0 | P139: 2020-12-31 | Q139: 9679 | R139: EQT | S139: 010 | T139: F | U139: 2019-08-06 | V139: 0 | W139: FTFPHW | X139: 532371 | Y139: 568967.47 | Z139: 568967.47 | AA139: A | AB139: 568967.47 | AC139: 568967.47 | AD139: 282156.63 | AE139: 282156.63 | AF139: 0 | AG139: 1 | AH139: -286810.84 | AI139: 0 | AL139: -10647.42 | AM139: 0 | AN139: 0 | AO139: 0 | AP139: 0 | AQ139: 2020-08-11 | AR139: N/A
A140: FT | B140: SLMT | C140: =VLOOKUP(S140,Map!$F$6:$H$81,2,0) -> Equity | D140: 979.6520548 | E140: =IF(LEFT(A140,2)="IL","IL",IF(OR(R140="BND",R140="CSH"),VLOOKUP(AP140,Map!$M$2:$N$50,2,0),"Not Subject to Credit Risk")) -> Not Subject to Credit Risk | F140: 0 | G140: 875670 | H140: 0 | I140: 0 | J140: 0 | K140: 0 | L140: 0 | M140: 0 | N140: 875670 | O140: 0 | P140: 2020-12-31 | Q140: 7160 | R140: EQT | S140: 010 | T140: F | U140: 2020-06-29 | V140: 0 | W140: FTFPHW | X140: 173400 | Y140: 723164.69 | Z140: 723164.69 | AA140: A | AB140: 723164.69 | AC140: 723164.69 | AD140: 875670 | AE140: 875670 | AF140: 0 | AG140: 1 | AH140: 152505.31 | AI140: 0 | AL140: 15606 | AM140: 0 | AN140: 0 | AO140: 0 | AP140: 0 | AQ140: 3000-01-01 | AR140: N/A
A141: FT | B141: SLMT | C141: =VLOOKUP(S141,Map!$F$6:$H$81,2,0) -> Equity | D141: 979.6520548 | E141: =IF(LEFT(A141,2)="IL","IL",IF(OR(R141="BND",R141="CSH"),VLOOKUP(AP141,Map!$M$2:$N$50,2,0),"Not Subject to Credit Risk")) -> Not Subject to Credit Risk | F141: 0 | G141: 459360 | H141: 0 | I141: 0 | J141: 0 | K141: 0 | L141: 0 | M141: 0 | N141: 459360 | O141: 0 | P141: 2020-12-31 | Q141: 7248 | R141: EQT | S141: 010 | T141: F | U141: 2019-07-09 | V141: 0 | W141: FTFPHW | X141: 510400 | Y141: 660792.11 | Z141: 660792.11 | AA141: A | AB141: 660792.11 | AC141: 660792.11 | AD141: 459360 | AE141: 459360 | AF141: 0 | AG141: 1 | AH141: -201432.11 | AI141: 0 | AL141: 10208 | AM141: 0 | AN141: 0 | AO141: 0 | AP141: 0 | AQ141: 3000-01-01 | AR141: N/A
A142: FT | B142: SLMT | C142: =VLOOKUP(S142,Map!$F$6:$H$81,2,0) -> Equity | D142: 979.6520548 | E142: =IF(LEFT(A142,2)="IL","IL",IF(OR(R142="BND",R142="CSH"),VLOOKUP(AP142,Map!$M$2:$N$50,2,0),"Not Subject to Credit Risk")) -> Not Subject to Credit Risk | F142: 0 | G142: 1500405 | H142: 0 | I142: 0 | J142: 0 | K142: 0 | L142: 0 | M142: 0 | N142: 1500405 | O142: 0 | P142: 2020-12-31 | Q142: 7277 | R142: EQT | S142: 010 | T142: F | U142: 2020-04-03 | V142: 0 | W142: FTFPHW | X142: 434900 | Y142: 1419219.54 | Z142: 1419219.54 | AA142: A | AB142: 1419219.54 | AC142: 1419219.54 | AD142: 1500405 | AE142: 1500405 | AF142: 0 | AG142: 1 | AH142: 81185.46 | AI142: 0 | AL142: 8698 | AM142: 0 | AN142: 0 | AO142: 0 | AP142: 0 | AQ142: 3000-01-01 | AR142: N/A
A143: FT | B143: SLMT | C143: =VLOOKUP(S143,Map!$F$6:$H$81,2,0) -> Equity | D143: 979.6520548 | E143: =IF(LEFT(A143,2)="IL","IL",IF(OR(R143="BND",R143="CSH"),VLOOKUP(AP143,Map!$M$2:$N$50,2,0),"Not Subject to Credit Risk")) -> Not Subject to Credit Risk | F143: 0 | G143: 933471 | H143: 0 | I143: 0 | J143: 0 | K143: 0 | L143: 0 | M143: 0 | N143: 933471 | O143: 0 | P143: 2020-12-31 | Q143: 8664 | R143: EQT | S143: 010 | T143: F | U143: 2020-05-29 | V143: 0 | W143: FTFPHW | X143: 942900 | Y143: 915475.68 | Z143: 915475.68 | AA143: A | AB143: 915475.68 | AC143: 915475.68 | AD143: 933471 | AE143: 933471 | AF143: 0 | AG143: 1 | AH143: 17995.32 | AI143: 0 | AL143: -18858 | AM143: 0 | AN143: 0 | AO143: 0 | AP143: 0 | AQ143: 3000-01-01 | AR143: N/A
A144: FT | B144: SLMT | C144: =VLOOKUP(S144,Map!$F$6:$H$81,2,0) -> Equity | D144: 979.6520548 | E144: =IF(LEFT(A144,2)="IL","IL",IF(OR(R144="BND",R144="CSH"),VLOOKUP(AP144,Map!$M$2:$N$50,2,0),"Not Subject to Credit Risk")) -> Not Subject to Credit Risk | F144: 0 | G144: 319200 | H144: 0 | I144: 0 | J144: 0 | K144: 0 | L144: 0 | M144: 0 | N144: 319200 | O144: 0 | P144: 2020-12-31 | Q144: 8664PA | R144: EQT | S144: 010 | T144: F | U144: 2016-12-22 | V144: 0 | W144: FTFPHW | X144: 420000 | Y144: 447895 | Z144: 447895 | AA144: A | AB144: 447895 | AC144: 447895 | AD144: 319200 | AE144: 319200 | AF144: 0 | AG144: 1 | AH144: -128695 | AI144: 0 | AL144: 0 | AM144: 0 | AN144: 0 | AO144: 0 | AP144: 0 | AQ144: 3000-01-01 | AR144: N/A
A145: FT | B145: SLMT | C145: =VLOOKUP(S145,Map!$F$6:$H$81,2,0) -> Equity | D145: 979.6520548 | E145: =IF(LEFT(A145,2)="IL","IL",IF(OR(R145="BND",R145="CSH"),VLOOKUP(AP145,Map!$M$2:$N$50,2,0),"Not Subject to Credit Risk")) -> Not Subject to Credit Risk | F145: 0 | G145: 1203475 | H145: 0 | I145: 0 | J145: 0 | K145: 0 | L145: 0 | M145: 0 | N145: 1203475 | O145: 0 | P145: 2020-12-31 | Q145: 7293 | R145: EQT | S145: 010 | T145: F | U145: 2019-05-23 | V145: 0 | W145: FTFPHW | X145: 209300 | Y145: 1283184.44 | Z145: 1283184.44 | AA145: A | AB145: 1283184.44 | AC145: 1283184.44 | AD145: 1203475 | AE145: 1203475 | AF145: 0 | AG145: 1 | AH145: -79709.44 | AI145: 0 | AL145: 14651 | AM145: 0 | AN145: 0 | AO145: 0 | AP145: 0 | AQ145: 3000-01-01 | AR145: N/A
A146: FT | B146: SLMT | C146: =VLOOKUP(S146,Map!$F$6:$H$81,2,0) -> Equity | D146: 979.6520548 | E146: =IF(LEFT(A146,2)="IL","IL",IF(OR(R146="BND",R146="CSH"),VLOOKUP(AP146,Map!$M$2:$N$50,2,0),"Not Subject to Credit Risk")) -> Not Subject to Credit Risk | F146: 0 | G146: 362440 | H146: 0 | I146: 0 | J146: 0 | K146: 0 | L146: 0 | M146: 0 | N146: 362440 | O146: 0 | P146: 2020-12-31 | Q146: 5253 | R146: EQT | S146: 010 | T146: F | U146: 2018-07-20 | V146: 0 | W146: FTFPHW | X146: 697000 | Y146: 584863.1 | Z146: 584863.1 | AA146: A | AB146: 584863.1 | AC146: 584863.1 | AD146: 362440 | AE146: 362440 | AF146: 0 | AG146: 1 | AH146: -222423.1 | AI146: 0 | AL146: -13940 | AM146: 0 | AN146: 0 | AO146: 0 | AP146: 0 | AQ146: 3000-01-01 | AR146: N/A
A147: FT | B147: SLMT | C147: =VLOOKUP(S147,Map!$F$6:$H$81,2,0) -> Equity | D147: 979.6520548 | E147: =IF(LEFT(A147,2)="IL","IL",IF(OR(R147="BND",R147="CSH"),VLOOKUP(AP147,Map!$M$2:$N$50,2,0),"Not Subject to Credit Risk")) -> Not Subject to Credit Risk | F147: 0 | G147: 1171926 | H147: 0 | I147: 0 | J147: 0 | K147: 0 | L147: 0 | M147: 0 | N147: 1171926 | O147: 0 | P147: 2020-12-31 | Q147: 5258 | R147: EQT | S147: 010 | T147: F | U147: 2019-02-18 | V147: 0 | W147: FTFPHW | X147: 275100 | Y147: 1097966.41 | Z147: 1097966.41 | AA147: A | AB147: 1097966.41 | AC147: 1097966.41 | AD147: 1171926 | AE147: 1171926 | AF147: 0 | AG147: 1 | AH147: 73959.59 | AI147: 0 | AL147: 11004 | AM147: 0 | AN147: 0 | AO147: 0 | AP147: 0 | AQ147: 3000-01-01 | AR147: N/A
A148: FT | B148: SLMT | C148: =VLOOKUP(S148,Map!$F$6:$H$81,2,0) -> Equity | D148: 979.6520548 | E148: =IF(LEFT(A148,2)="IL","IL",IF(OR(R148="BND",R148="CSH"),VLOOKUP(AP148,Map!$M$2:$N$50,2,0),"Not Subject to Credit Risk")) -> Not Subject to Credit Risk | F148: 0 | G148: 548208 | H148: 0 | I148: 0 | J148: 0 | K148: 0 | L148: 0 | M148: 0 | N148: 548208 | O148: 0 | P148: 2020-12-31 | Q148: 5263 | R148: EQT | S148: 010 | T148: F | U148: 2019-08-06 | V148: 0 | W148: FTFPHW | X148: 291600 | Y148: 576984.74 | Z148: 576984.74 | AA148: A | AB148: 576984.74 | AC148: 576984.74 | AD148: 548208 | AE148: 548208 | AF148: 0 | AG148: 1 | AH148: -28776.74 | AI148: 0 | AL148: 0 | AM148: 0 | AN148: 0 | AO148: 0 | AP148: 0 | AQ148: 3000-01-01 | AR148: N/A
A149: FT | B149: SLMT | C149: =VLOOKUP(S149,Map!$F$6:$H$81,2,0) -> Equity | D149: 979.6520548 | E149: =IF(LEFT(A149,2)="IL","IL",IF(OR(R149="BND",R149="CSH"),VLOOKUP(AP149,Map!$M$2:$N$50,2,0),"Not Subject to Credit Risk")) -> Not Subject to Credit Risk | F149: 0 | G149: 2793980 | H149: 0 | I149: 0 | J149: 0 | K149: 0 | L149: 0 | M149: 0 | N149: 2793980 | O149: 0 | P149: 2020-12-31 | Q149: 5292 | R149: EQT | S149: 010 | T149: F | U149: 2020-06-12 | V149: 0 | W149: FTFPHW | X149: 285100 | Y149: 1155166.24 | Z149: 1155166.24 | AA149: A | AB149: 1155166.24 | AC149: 1155166.24 | AD149: 2793980 | AE149: 2793980 | AF149: 0 | AG149: 1 | AH149: 1638813.76 | AI149: 0 | AL149: 0 | AM149: 0 | AN149: 0 | AO149: 0 | AP149: 0 | AQ149: 3000-01-01 | AR149: N/A
A150: FT | B150: SLMT | C150: =VLOOKUP(S150,Map!$F$6:$H$81,2,0) -> Equity | D150: 979.6520548 | E150: =IF(LEFT(A150,2)="IL","IL",IF(OR(R150="BND",R150="CSH"),VLOOKUP(AP150,Map!$M$2:$N$50,2,0),"Not Subject to Credit Risk")) -> Not Subject to Credit Risk | F150: 0 | G150: 1322510 | H150: 0 | I150: 0 | J150: 0 | K150: 0 | L150: 0 | M150: 0 | N150: 1322510 | O150: 0 | P150: 2020-12-31 | Q150: 5293 | R150: EQT | S150: 010 | T150: F | U150: 2020-08-13 | V150: 0 | W150: FTFPHW | X150: 539800 | Y150: 992749.93 | Z150: 992749.93 | AA150: A | AB150: 992749.93 | AC150: 992749.93 | AD150: 1322510 | AE150: 1322510 | AF150: 0 | AG150: 1 | AH150: 329760.07 | AI150: 0 | AL150: -80970 | AM150: 0 | AN150: 0 | AO150: 0 | AP150: 0 | AQ150: 3000-01-01 | AR150: N/A
A151: FT | B151: SLMT | C151: =VLOOKUP(S151,Map!$F$6:$H$81,2,0) -> Equity | D151: 979.6520548 | E151: =IF(LEFT(A151,2)="IL","IL",IF(OR(R151="BND",R151="CSH"),VLOOKUP(AP151,Map!$M$2:$N$50,2,0),"Not Subject to Credit Risk")) -> Not Subject to Credit Risk | F151: 0 | G151: 1992304 | H151: 0 | I151: 0 | J151: 0 | K151: 0 | L151: 0 | M151: 0 | N151: 1992304 | O151: 0 | P151: 2020-12-31 | Q151: 5347 | R151: EQT | S151: 010 | T151: F | U151: 2014-01-09 | V151: 0 | W151: FTFPHW | X151: 191200 | Y151: 2713806.38 | Z151: 2713806.38 | AA151: A | AB151: 2713806.38 | AC151: 2713806.38 | AD151: 1992304 | AE151: 1992304 | AF151: 0 | AG151: 1 | AH151: -721502.38 | AI151: 0 | AL151: 7648 | AM151: 0 | AN151: 0 | AO151: 0 | AP151: 0 | AQ151: 3000-01-01 | AR151: N/A
A152: FT | B152: SLMT | C152: =VLOOKUP(S152,Map!$F$6:$H$81,2,0) -> Equity | D152: 979.6520548 | E152: =IF(LEFT(A152,2)="IL","IL",IF(OR(R152="BND",R152="CSH"),VLOOKUP(AP152,Map!$M$2:$N$50,2,0),"Not Subject to Credit Risk")) -> Not Subject to Credit Risk | F152: 0 | G152: 1190340 | H152: 0 | I152: 0 | J152: 0 | K152: 0 | L152: 0 | M152: 0 | N152: 1190340 | O152: 0 | P152: 2020-12-31 | Q152: 5398 | R152: EQT | S152: 010 | T152: F | U152: 2020-05-18 | V152: 0 | W152: FTFPHW | X152: 306000 | Y152: 1095791.86 | Z152: 1095791.86 | AA152: A | AB152: 1095791.86 | AC152: 1095791.86 | AD152: 1190340 | AE152: 1190340 | AF152: 0 | AG152: 1 | AH152: 94548.14 | AI152: 0 | AL152: -48960 | AM152: 0 | AN152: 0 | AO152: 0 | AP152: 0 | AQ152: 3000-01-01 | AR152: N/A
A153: FT | B153: SLMT | C153: =VLOOKUP(S153,Map!$F$6:$H$81,2,0) -> Equity | D153: 979.6520548 | E153: =IF(LEFT(A153,2)="IL","IL",IF(OR(R153="BND",R153="CSH"),VLOOKUP(AP153,Map!$M$2:$N$50,2,0),"Not Subject to Credit Risk")) -> Not Subject to Credit Risk | F153: 0 | G153: 1447160 | H153: 0 | I153: 0 | J153: 0 | K153: 0 | L153: 0 | M153: 0 | N153: 1447160 | O153: 0 | P153: 2020-12-31 | Q153: 6139 | R153: EQT | S153: 010 | T153: F | U153: 2019-01-22 | V153: 0 | W153: FTFPHW | X153: 299000 | Y153: 1323031.65 | Z153: 1323031.65 | AA153: A | AB153: 1323031.65 | AC153: 1323031.65 | AD153: 1447160 | AE153: 1447160 | AF153: 0 | AG153: 1 | AH153: 124128.35 | AI153: 0 | AL153: -11960 | AM153: 0 | AN153: 0 | AO153: 0 | AP153: 0 | AQ153: 3000-01-01 | AR153: N/A
A154: FT | B154: SLMT | C154: =VLOOKUP(S154,Map!$F$6:$H$81,2,0) -> Equity | D154: 979.6520548 | E154: =IF(LEFT(A154,2)="IL","IL",IF(OR(R154="BND",R154="CSH"),VLOOKUP(AP154,Map!$M$2:$N$50,2,0),"Not Subject to Credit Risk")) -> Not Subject to Credit Risk | F154: 0 | G154: 1331519 | H154: 0 | I154: 0 | J154: 0 | K154: 0 | L154: 0 | M154: 0 | N154: 1331519 | O154: 0 | P154: 2020-12-31 | Q154: 6963 | R154: EQT | S154: 010 | T154: F | U154: 2020-07-07 | V154: 0 | W154: FTFPHW | X154: 514100 | Y154: 571394.43 | Z154: 571394.43 | AA154: A | AB154: 571394.43 | AC154: 571394.43 | AD154: 1331519 | AE154: 1331519 | AF154: 0 | AG154: 1 | AH154: 760124.57 | AI154: 0 | AL154: 5141 | AM154: 0 | AN154: 0 | AO154: 0 | AP154: 0 | AQ154: 3000-01-01 | AR154: N/A
A155: FT | B155: SLMT | C155: =VLOOKUP(S155,Map!$F$6:$H$81,2,0) -> Equity | D155: 979.6520548 | E155: =IF(LEFT(A155,2)="IL","IL",IF(OR(R155="BND",R155="CSH"),VLOOKUP(AP155,Map!$M$2:$N$50,2,0),"Not Subject to Credit Risk")) -> Not Subject to Credit Risk | F155: 0 | G155: 4687.8 | H155: 0 | I155: 0 | J155: 0 | K155: 0 | L155: 0 | M155: 0 | N155: 4687.8 | O155: 0 | P155: 2020-12-31 | Q155: 7106 | R155: EQT | S155: 010 | T155: F | U155: 2020-12-08 | V155: 0 | W155: FTFPHW | X155: 780 | Y155: 1391.53 | Z155: 1391.53 | AA155: A | AB155: 1391.53 | AC155: 1391.53 | AD155: 4687.8 | AE155: 4687.8 | AF155: 0 | AG155: 1 | AH155: 3296.27 | AI155: 0 | AL155: -390 | AM155: 0 | AN155: 0 | AO155: 0 | AP155: 0 | AQ155: 3000-01-01 | AR155: N/A
A156: FT | B156: SLMT | C156: =VLOOKUP(S156,Map!$F$6:$H$81,2,0) -> Deposit | D156: 0.01095890411 | E156: =IF(LEFT(A156,2)="IL","IL",IF(OR(R156="BND",R156="CSH"),VLOOKUP(AP156,Map!$M$2:$N$50,2,0),"Not Subject to Credit Risk")) -> AAA | F156: 402.7579318 | G156: 2100094.93 | H156: 100.69 | I156: 2100598.378 | J156: 0 | K156: 0 | L156: 0 | M156: 0 | N156: 0 | O156: 0 | P156: 2020-12-31 | Q156: RPI*MYR*CIMBI | R156: CSH | S156: 210 | T156: C | U156: 2020-12-31 | V156: 0.0175 | W156: FTFPNA | X156: 2100094.93 | Y156: 2100094.93 | Z156: 2100094.93 | AA156: A | AB156: 2100094.93 | AC156: 2100195.62 | AD156: 2100195.62 | AE156: 2100195.62 | AF156: 0 | AG156: 1 | AH156: 0 | AI156: 0 | AL156: 402.76 | AM156: 100.69 | AN156: 0 | AO156: 0 | AP156: 115 | AQ156: 2021-01-04 | AR156: CIMBISLAMIC
A157: FT | B157: SLMT | C157: =VLOOKUP(S157,Map!$F$6:$H$81,2,0) -> Equity | D157: 979.6520548 | E157: =IF(LEFT(A157,2)="IL","IL",IF(OR(R157="BND",R157="CSH"),VLOOKUP(AP157,Map!$M$2:$N$50,2,0),"Not Subject to Credit Risk")) -> Not Subject to Credit Risk | F157: 0 | G157: 1442906 | H157: 0 | I157: 0 | J157: 0 | K157: 0 | L157: 0 | M157: 0 | N157: 1442906 | O157: 0 | P157: 2020-12-31 | Q157: 5183 | R157: EQT | S157: 010 | T157: F | U157: 2017-01-25 | V157: 0 | W157: FTFPNA | X157: 194200 | Y157: 1528005.68 | Z157: 1528005.68 | AA157: A | AB157: 1528005.68 | AC157: 1528005.68 | AD157: 1442906 | AE157: 1442906 | AF157: 0 | AG157: 1 | AH157: -85099.68 | AI157: 0 | AL157: -42724 | AM157: 0 | AN157: 0 | AO157: 0 | AP157: 0 | AQ157: 3000-01-01 | AR157: N/A
A158: FT | B158: SLMT | C158: =VLOOKUP(S158,Map!$F$6:$H$81,2,0) -> Equity | D158: 979.6520548 | E158: =IF(LEFT(A158,2)="IL","IL",IF(OR(R158="BND",R158="CSH"),VLOOKUP(AP158,Map!$M$2:$N$50,2,0),"Not Subject to Credit Risk")) -> Not Subject to Credit Risk | F158: 0 | G158: 1439350 | H158: 0 | I158: 0 | J158: 0 | K158: 0 | L158: 0 | M158: 0 | N158: 1439350 | O158: 0 | P158: 2020-12-31 | Q158: 5225 | R158: EQT | S158: 010 | T158: F | U158: 2017-03-14 | V158: 0 | W158: FTFPNA | X158: 261700 | Y158: 1487483.03 | Z158: 1487483.03 | AA158: A | AB158: 1487483.03 | AC158: 1487483.03 | AD158: 1439350 | AE158: 1439350 | AF158: 0 | AG158: 1 | AH158: -48133.03 | AI158: 0 | AL158: 5234 | AM158: 0 | AN158: 0 | AO158: 0 | AP158: 0 | AQ158: 3000-01-01 | AR158: N/A
A159: FT | B159: SLMT | C159: =VLOOKUP(S159,Map!$F$6:$H$81,2,0) -> Equity | D159: 979.6520548 | E159: =IF(LEFT(A159,2)="IL","IL",IF(OR(R159="BND",R159="CSH"),VLOOKUP(AP159,Map!$M$2:$N$50,2,0),"Not Subject to Credit Risk")) -> Not Subject to Credit Risk | F159: 0 | G159: 1617847.14 | H159: 0 | I159: 0 | J159: 0 | K159: 0 | L159: 0 | M159: 0 | N159: 1617847.14 | O159: 0 | P159: 2020-12-31 | Q159: 5211 | R159: EQT | S159: 010 | T159: F | U159: 2018-08-01 | V159: 0 | W159: FTFPNA | X159: 1004874 | Y159: 1516453.65 | Z159: 1516453.65 | AA159: A | AB159: 1516453.65 | AC159: 1516453.65 | AD159: 1617847.14 | AE159: 1617847.14 | AF159: 0 | AG159: 1 | AH159: 101393.49 | AI159: 0 | AL159: -30146.22 | AM159: 0 | AN159: 0 | AO159: 0 | AP159: 0 | AQ159: 3000-01-01 | AR159: N/A
A160: FT | B160: SLMT | C160: =VLOOKUP(S160,Map!$F$6:$H$81,2,0) -> Equity | D160: 979.6520548 | E160: =IF(LEFT(A160,2)="IL","IL",IF(OR(R160="BND",R160="CSH"),VLOOKUP(AP160,Map!$M$2:$N$50,2,0),"Not Subject to Credit Risk")) -> Not Subject to Credit Risk | F160: 0 | G160: 1129020 | H160: 0 | I160: 0 | J160: 0 | K160: 0 | L160: 0 | M160: 0 | N160: 1129020 | O160: 0 | P160: 2020-12-31 | Q160: 5168 | R160: EQT | S160: 010 | T160: F | U160: 2019-03-18 | V160: 0 | W160: FTFPNA | X160: 93000 | Y160: 1181744.37 | Z160: 1181744.37 | AA160: A | AB160: 1181744.37 | AC160: 1181744.37 | AD160: 1129020 | AE160: 1129020 | AF160: 0 | AG160: 1 | AH160: -52724.37 | AI160: 0 | AL160: -154380 | AM160: 0 | AN160: 0 | AO160: 0 | AP160: 0 | AQ160: 3000-01-01 | AR160: N/A
A161: FT | B161: SLMT | C161: =VLOOKUP(S161,Map!$F$6:$H$81,2,0) -> Equity | D161: 979.6520548 | E161: =IF(LEFT(A161,2)="IL","IL",IF(OR(R161="BND",R161="CSH"),VLOOKUP(AP161,Map!$M$2:$N$50,2,0),"Not Subject to Credit Risk")) -> Not Subject to Credit Risk | F161: 0 | G161: 1677303.74 | H161: 0 | I161: 0 | J161: 0 | K161: 0 | L161: 0 | M161: 0 | N161: 1677303.74 | O161: 0 | P161: 2020-12-31 | Q161: 5106 | R161: EQT | S161: 460 | T161: F | U161: 2019-10-31 | V161: 0 | W161: FTFPNA | X161: 826258 | Y161: 1515494.01 | Z161: 1515494.01 | AA161: A | AB161: 1515494.01 | AC161: 1515494.01 | AD161: 1677303.74 | AE161: 1677303.74 | AF161: 0 | AG161: 1 | AH161: 161809.73 | AI161: 0 | AL161: 57838.06 | AM161: 0 | AN161: 0 | AO161: 0 | AP161: 0 | AQ161: 3000-01-01 | AR161: N/A
A162: FT | B162: SLMT | C162: =VLOOKUP(S162,Map!$F$6:$H$81,2,0) -> Equity | D162: 979.6520548 | E162: =IF(LEFT(A162,2)="IL","IL",IF(OR(R162="BND",R162="CSH"),VLOOKUP(AP162,Map!$M$2:$N$50,2,0),"Not Subject to Credit Risk")) -> Not Subject to Credit Risk | F162: 0 | G162: 1538160 | H162: 0 | I162: 0 | J162: 0 | K162: 0 | L162: 0 | M162: 0 | N162: 1538160 | O162: 0 | P162: 2020-12-31 | Q162: 5031 | R162: EQT | S162: 010 | T162: F | U162: 2020-06-03 | V162: 0 | W162: FTFPNA | X162: 116000 | Y162: 1271077.39 | Z162: 1271077.39 | AA162: A | AB162: 1271077.39 | AC162: 1271077.39 | AD162: 1538160 | AE162: 1538160 | AF162: 0 | AG162: 1 | AH162: 267082.61 | AI162: 0 | AL162: 16240 | AM162: 0 | AN162: 0 | AO162: 0 | AP162: 0 | AQ162: 3000-01-01 | AR162: N/A
A163: FT | B163: SLMT | C163: =VLOOKUP(S163,Map!$F$6:$H$81,2,0) -> Equity | D163: 979.6520548 | E163: =IF(LEFT(A163,2)="IL","IL",IF(OR(R163="BND",R163="CSH"),VLOOKUP(AP163,Map!$M$2:$N$50,2,0),"Not Subject to Credit Risk")) -> Not Subject to Credit Risk | F163: 0 | G163: 1356760 | H163: 0 | I163: 0 | J163: 0 | K163: 0 | L163: 0 | M163: 0 | N163: 1356760 | O163: 0 | P163: 2020-12-31 | Q163: 4731 | R163: EQT | S163: 010 | T163: F | U163: 2018-06-21 | V163: 0 | W163: FTFPNA | X163: 107000 | Y163: 833842.76 | Z163: 833842.76 | AA163: A | AB163: 833842.76 | AC163: 833842.76 | AD163: 1356760 | AE163: 1356760 | AF163: 0 | AG163: 1 | AH163: 522917.24 | AI163: 0 | AL163: -5350 | AM163: 0 | AN163: 0 | AO163: 0 | AP163: 0 | AQ163: 3000-01-01 | AR163: N/A
A164: FT | B164: SLMT | C164: =VLOOKUP(S164,Map!$F$6:$H$81,2,0) -> Equity | D164: 979.6520548 | E164: =IF(LEFT(A164,2)="IL","IL",IF(OR(R164="BND",R164="CSH"),VLOOKUP(AP164,Map!$M$2:$N$50,2,0),"Not Subject to Credit Risk")) -> Not Subject to Credit Risk | F164: 0 | G164: 1530606 | H164: 0 | I164: 0 | J164: 0 | K164: 0 | L164: 0 | M164: 0 | N164: 1530606 | O164: 0 | P164: 2020-12-31 | Q164: 4197 | R164: EQT | S164: 010 | T164: F | U164: 2020-05-22 | V164: 0 | W164: FTFPNA | X164: 662600 | Y164: 1423279.85 | Z164: 1423279.85 | AA164: A | AB164: 1423279.85 | AC164: 1423279.85 | AD164: 1530606 | AE164: 1530606 | AF164: 0 | AG164: 1 | AH164: 107326.15 | AI164: 0 | AL164: -6626 | AM164: 0 | AN164: 0 | AO164: 0 | AP164: 0 | AQ164: 3000-01-01 | AR164: N/A
A165: FT | B165: SLMT | C165: =VLOOKUP(S165,Map!$F$6:$H$81,2,0) -> Equity | D165: 979.6520548 | E165: =IF(LEFT(A165,2)="IL","IL",IF(OR(R165="BND",R165="CSH"),VLOOKUP(AP165,Map!$M$2:$N$50,2,0),"Not Subject to Credit Risk")) -> Not Subject to Credit Risk | F165: 0 | G165: 819510 | H165: 0 | I165: 0 | J165: 0 | K165: 0 | L165: 0 | M165: 0 | N165: 819510 | O165: 0 | P165: 2020-12-31 | Q165: 4707 | R165: EQT | S165: 010 | T165: F | U165: 2018-11-12 | V165: 0 | W165: FTFPNA | X165: 5900 | Y165: 852233.14 | Z165: 852233.14 | AA165: A | AB165: 852233.14 | AC165: 852233.14 | AD165: 819510 | AE165: 819510 | AF165: 0 | AG165: 1 | AH165: -32723.14 | AI165: 0 | AL165: -1180 | AM165: 0 | AN165: 0 | AO165: 0 | AP165: 0 | AQ165: 3000-01-01 | AR165: N/A
A166: FT | B166: SLMT | C166: =VLOOKUP(S166,Map!$F$6:$H$81,2,0) -> Equity | D166: 979.6520548 | E166: =IF(LEFT(A166,2)="IL","IL",IF(OR(R166="BND",R166="CSH"),VLOOKUP(AP166,Map!$M$2:$N$50,2,0),"Not Subject to Credit Risk")) -> Not Subject to Credit Risk | F166: 0 | G166: 1650050 | H166: 0 | I166: 0 | J166: 0 | K166: 0 | L166: 0 | M166: 0 | N166: 1650050 | O166: 0 | P166: 2020-12-31 | Q166: 4863 | R166: EQT | S166: 010 | T166: F | U166: 2020-08-28 | V166: 0 | W166: FTFPNA | X166: 305000 | Y166: 1368309.5 | Z166: 1368309.5 | AA166: A | AB166: 1368309.5 | AC166: 1368309.5 | AD166: 1650050 | AE166: 1650050 | AF166: 0 | AG166: 1 | AH166: 281740.5 | AI166: 0 | AL166: 3050 | AM166: 0 | AN166: 0 | AO166: 0 | AP166: 0 | AQ166: 3000-01-01 | AR166: N/A
A167: FT | B167: SLMT | C167: =VLOOKUP(S167,Map!$F$6:$H$81,2,0) -> Equity | D167: 979.6520548 | E167: =IF(LEFT(A167,2)="IL","IL",IF(OR(R167="BND",R167="CSH"),VLOOKUP(AP167,Map!$M$2:$N$50,2,0),"Not Subject to Credit Risk")) -> Not Subject to Credit Risk | F167: 0 | G167: 2310810 | H167: 0 | I167: 0 | J167: 0 | K167: 0 | L167: 0 | M167: 0 | N167: 2310810 | O167: 0 | P167: 2020-12-31 | Q167: 3069 | R167: EQT | S167: 010 | T167: F | U167: 2017-04-17 | V167: 0 | W167: FTFPNA | X167: 334900 | Y167: 1241069.21 | Z167: 1241069.21 | AA167: A | AB167: 1241069.21 | AC167: 1241069.21 | AD167: 2310810 | AE167: 2310810 | AF167: 0 | AG167: 1 | AH167: 1069740.79 | AI167: 0 | AL167: 83725 | AM167: 0 | AN167: 0 | AO167: 0 | AP167: 0 | AQ167: 3000-01-01 | AR167: N/A
A168: FT | B168: SLMT | C168: =VLOOKUP(S168,Map!$F$6:$H$81,2,0) -> Equity | D168: 979.6520548 | E168: =IF(LEFT(A168,2)="IL","IL",IF(OR(R168="BND",R168="CSH"),VLOOKUP(AP168,Map!$M$2:$N$50,2,0),"Not Subject to Credit Risk")) -> Not Subject to Credit Risk | F168: 0 | G168: 956672 | H168: 0 | I168: 0 | J168: 0 | K168: 0 | L168: 0 | M168: 0 | N168: 956672 | O168: 0 | P168: 2020-12-31 | Q168: 2445 | R168: EQT | S168: 010 | T168: F | U168: 2019-01-10 | V168: 0 | W168: FTFPNA | X168: 40400 | Y168: 972829.49 | Z168: 972829.49 | AA168: A | AB168: 972829.49 | AC168: 972829.49 | AD168: 956672 | AE168: 956672 | AF168: 0 | AG168: 1 | AH168: -16157.49 | AI168: 0 | AL168: 2424 | AM168: 0 | AN168: 0 | AO168: 0 | AP168: 0 | AQ168: 3000-01-01 | AR168: N/A
A169: FT | B169: SLMT | C169: =VLOOKUP(S169,Map!$F$6:$H$81,2,0) -> Equity | D169: 979.6520548 | E169: =IF(LEFT(A169,2)="IL","IL",IF(OR(R169="BND",R169="CSH"),VLOOKUP(AP169,Map!$M$2:$N$50,2,0),"Not Subject to Credit Risk")) -> Not Subject to Credit Risk | F169: 0 | G169: 1272107 | H169: 0 | I169: 0 | J169: 0 | K169: 0 | L169: 0 | M169: 0 | N169: 1272107 | O169: 0 | P169: 2020-12-31 | Q169: 1961 | R169: EQT | S169: 010 | T169: F | U169: 2019-10-29 | V169: 0 | W169: FTFPNA | X169: 291100 | Y169: 1302696.96 | Z169: 1302696.96 | AA169: A | AB169: 1302696.96 | AC169: 1302696.96 | AD169: 1272107 | AE169: 1272107 | AF169: 0 | AG169: 1 | AH169: -30589.96 | AI169: 0 | AL169: 17466 | AM169: 0 | AN169: 0 | AO169: 0 | AP169: 0 | AQ169: 3000-01-01 | AR169: N/A
A170: FT | B170: SLMT | C170: =VLOOKUP(S170,Map!$F$6:$H$81,2,0) -> Equity | D170: 979.6520548 | E170: =IF(LEFT(A170,2)="IL","IL",IF(OR(R170="BND",R170="CSH"),VLOOKUP(AP170,Map!$M$2:$N$50,2,0),"Not Subject to Credit Risk")) -> Not Subject to Credit Risk | F170: 0 | G170: 1062600 | H170: 0 | I170: 0 | J170: 0 | K170: 0 | L170: 0 | M170: 0 | N170: 1062600 | O170: 0 | P170: 2020-12-31 | Q170: 0166 | R170: EQT | S170: 010 | T170: F | U170: 2020-08-10 | V170: 0 | W170: FTFPNA | X170: 385000 | Y170: 799393.27 | Z170: 799393.27 | AA170: A | AB170: 799393.27 | AC170: 799393.27 | AD170: 1062600 | AE170: 1062600 | AF170: 0 | AG170: 1 | AH170: 263206.73 | AI170: 0 | AL170: -15400 | AM170: 0 | AN170: 0 | AO170: 0 | AP170: 0 | AQ170: 3000-01-01 | AR170: N/A
A171: FT | B171: SLMT | C171: =VLOOKUP(S171,Map!$F$6:$H$81,2,0) -> Equity | D171: 979.6520548 | E171: =IF(LEFT(A171,2)="IL","IL",IF(OR(R171="BND",R171="CSH"),VLOOKUP(AP171,Map!$M$2:$N$50,2,0),"Not Subject to Credit Risk")) -> Not Subject to Credit Risk | F171: 0 | G171: 1054907 | H171: 0 | I171: 0 | J171: 0 | K171: 0 | L171: 0 | M171: 0 | N171: 1054907 | O171: 0 | P171: 2020-12-31 | Q171: 6963 | R171: EQT | S171: 010 | T171: F | U171: 2020-12-21 | V171: 0 | W171: FTFPNA | X171: 407300 | Y171: 1040963.67 | Z171: 1040963.67 | AA171: A | AB171: 1040963.67 | AC171: 1040963.67 | AD171: 1054907 | AE171: 1054907 | AF171: 0 | AG171: 1 | AH171: 13943.33 | AI171: 0 | AL171: 4073 | AM171: 0 | AN171: 0 | AO171: 0 | AP171: 0 | AQ171: 3000-01-01 | AR171: N/A
A172: FT | B172: SLMT | C172: =VLOOKUP(S172,Map!$F$6:$H$81,2,0) -> Equity | D172: 979.6520548 | E172: =IF(LEFT(A172,2)="IL","IL",IF(OR(R172="BND",R172="CSH"),VLOOKUP(AP172,Map!$M$2:$N$50,2,0),"Not Subject to Credit Risk")) -> Not Subject to Credit Risk | F172: 0 | G172: 909072 | H172: 0 | I172: 0 | J172: 0 | K172: 0 | L172: 0 | M172: 0 | N172: 909072 | O172: 0 | P172: 2020-12-31 | Q172: 7090 | R172: EQT | S172: 010 | T172: F | U172: 2020-02-06 | V172: 0 | W172: FTFPNA | X172: 256800 | Y172: 694772.66 | Z172: 694772.66 | AA172: A | AB172: 694772.66 | AC172: 694772.66 | AD172: 909072 | AE172: 909072 | AF172: 0 | AG172: 1 | AH172: 214299.34 | AI172: 0 | AL172: -17976 | AM172: 0 | AN172: 0 | AO172: 0 | AP172: 0 | AQ172: 3000-01-01 | AR172: N/A
A173: FT | B173: SLMT | C173: =VLOOKUP(S173,Map!$F$6:$H$81,2,0) -> Equity | D173: 979.6520548 | E173: =IF(LEFT(A173,2)="IL","IL",IF(OR(R173="BND",R173="CSH"),VLOOKUP(AP173,Map!$M$2:$N$50,2,0),"Not Subject to Credit Risk")) -> Not Subject to Credit Risk | F173: 0 | G173: 1313641.34 | H173: 0 | I173: 0 | J173: 0 | K173: 0 | L173: 0 | M173: 0 | N173: 1313641.34 | O173: 0 | P173: 2020-12-31 | Q173: 6888 | R173: EQT | S173: 010 | T173: F | U173: 2017-01-31 | V173: 0 | W173: FTFPNA | X173: 351241 | Y173: 1720353.21 | Z173: 1720353.21 | AA173: A | AB173: 1720353.21 | AC173: 1720353.21 | AD173: 1313641.34 | AE173: 1313641.34 | AF173: 0 | AG173: 1 | AH173: -406711.87 | AI173: 0 | AL173: -14049.64 | AM173: 0 | AN173: 0 | AO173: 0 | AP173: 0 | AQ173: 3000-01-01 | AR173: N/A
A174: FT | B174: SLMT | C174: =VLOOKUP(S174,Map!$F$6:$H$81,2,0) -> Equity | D174: 979.6520548 | E174: =IF(LEFT(A174,2)="IL","IL",IF(OR(R174="BND",R174="CSH"),VLOOKUP(AP174,Map!$M$2:$N$50,2,0),"Not Subject to Credit Risk")) -> Not Subject to Credit Risk | F174: 0 | G174: 1290600 | H174: 0 | I174: 0 | J174: 0 | K174: 0 | L174: 0 | M174: 0 | N174: 1290600 | O174: 0 | P174: 2020-12-31 | Q174: 7022 | R174: EQT | S174: 010 | T174: F | U174: 2020-06-12 | V174: 0 | W174: FTFPNA | X174: 478000 | Y174: 1201019 | Z174: 1201019 | AA174: A | AB174: 1201019 | AC174: 1201019 | AD174: 1290600 | AE174: 1290600 | AF174: 0 | AG174: 1 | AH174: 89581 | AI174: 0 | AL174: 52580 | AM174: 0 | AN174: 0 | AO174: 0 | AP174: 0 | AQ174: 3000-01-01 | AR174: N/A
A175: FT | B175: SLMT | C175: =VLOOKUP(S175,Map!$F$6:$H$81,2,0) -> Equity | D175: 979.6520548 | E175: =IF(LEFT(A175,2)="IL","IL",IF(OR(R175="BND",R175="CSH"),VLOOKUP(AP175,Map!$M$2:$N$50,2,0),"Not Subject to Credit Risk")) -> Not Subject to Credit Risk | F175: 0 | G175: 1613705 | H175: 0 | I175: 0 | J175: 0 | K175: 0 | L175: 0 | M175: 0 | N175: 1613705 | O175: 0 | P175: 2020-12-31 | Q175: 7084 | R175: EQT | S175: 010 | T175: F | U175: 2016-04-15 | V175: 0 | W175: FTFPNA | X175: 278225 | Y175: 1143694.9 | Z175: 1143694.9 | AA175: A | AB175: 1143694.9 | AC175: 1143694.9 | AD175: 1613705 | AE175: 1613705 | AF175: 0 | AG175: 1 | AH175: 470010.1 | AI175: 0 | AL175: 27822.5 | AM175: 0 | AN175: 0 | AO175: 0 | AP175: 0 | AQ175: 3000-01-01 | AR175: N/A
A176: FT | B176: SLMT | C176: =VLOOKUP(S176,Map!$F$6:$H$81,2,0) -> Equity | D176: 979.6520548 | E176: =IF(LEFT(A176,2)="IL","IL",IF(OR(R176="BND",R176="CSH"),VLOOKUP(AP176,Map!$M$2:$N$50,2,0),"Not Subject to Credit Risk")) -> Not Subject to Credit Risk | F176: 0 | G176: 1460142.62 | H176: 0 | I176: 0 | J176: 0 | K176: 0 | L176: 0 | M176: 0 | N176: 1460142.62 | O176: 0 | P176: 2020-12-31 | Q176: 5398 | R176: EQT | S176: 010 | T176: F | U176: 2019-06-14 | V176: 0 | W176: FTFPNA | X176: 375358 | Y176: 1331910.86 | Z176: 1331910.86 | AA176: A | AB176: 1331910.86 | AC176: 1331910.86 | AD176: 1460142.62 | AE176: 1460142.62 | AF176: 0 | AG176: 1 | AH176: 128231.76 | AI176: 0 | AL176: -60057.28 | AM176: 0 | AN176: 0 | AO176: 0 | AP176: 0 | AQ176: 3000-01-01 | AR176: N/A
A177: FT | B177: SLMT | C177: =VLOOKUP(S177,Map!$F$6:$H$81,2,0) -> Equity | D177: 979.6520548 | E177: =IF(LEFT(A177,2)="IL","IL",IF(OR(R177="BND",R177="CSH"),VLOOKUP(AP177,Map!$M$2:$N$50,2,0),"Not Subject to Credit Risk")) -> Not Subject to Credit Risk | F177: 0 | G177: 1219780 | H177: 0 | I177: 0 | J177: 0 | K177: 0 | L177: 0 | M177: 0 | N177: 1219780 | O177: 0 | P177: 2020-12-31 | Q177: 6033 | R177: EQT | S177: 010 | T177: F | U177: 2020-05-21 | V177: 0 | W177: FTFPNA | X177: 71000 | Y177: 1206233.88 | Z177: 1206233.88 | AA177: A | AB177: 1206233.88 | AC177: 1206233.88 | AD177: 1219780 | AE177: 1219780 | AF177: 0 | AG177: 1 | AH177: 13546.12 | AI177: 0 | AL177: 1420 | AM177: 0 | AN177: 0 | AO177: 0 | AP177: 0 | AQ177: 3000-01-01 | AR177: N/A
A178: FT | B178: SLMT | C178: =VLOOKUP(S178,Map!$F$6:$H$81,2,0) -> Equity | D178: 979.6520548 | E178: =IF(LEFT(A178,2)="IL","IL",IF(OR(R178="BND",R178="CSH"),VLOOKUP(AP178,Map!$M$2:$N$50,2,0),"Not Subject to Credit Risk")) -> Not Subject to Credit Risk | F178: 0 | G178: 3294804 | H178: 0 | I178: 0 | J178: 0 | K178: 0 | L178: 0 | M178: 0 | N178: 3294804 | O178: 0 | P178: 2020-12-31 | Q178: 5347 | R178: EQT | S178: 010 | T178: F | U178: 2017-02-13 | V178: 0 | W178: FTFPNA | X178: 316200 | Y178: 4084479.56 | Z178: 4084479.56 | AA178: A | AB178: 4084479.56 | AC178: 4084479.56 | AD178: 3294804 | AE178: 3294804 | AF178: 0 | AG178: 1 | AH178: -789675.56 | AI178: 0 | AL178: 12648 | AM178: 0 | AN178: 0 | AO178: 0 | AP178: 0 | AQ178: 3000-01-01 | AR178: N/A
A179: FT | B179: SLMT | C179: =VLOOKUP(S179,Map!$F$6:$H$81,2,0) -> Equity | D179: 979.6520548 | E179: =IF(LEFT(A179,2)="IL","IL",IF(OR(R179="BND",R179="CSH"),VLOOKUP(AP179,Map!$M$2:$N$50,2,0),"Not Subject to Credit Risk")) -> Not Subject to Credit Risk | F179: 0 | G179: 624260 | H179: 0 | I179: 0 | J179: 0 | K179: 0 | L179: 0 | M179: 0 | N179: 624260 | O179: 0 | P179: 2020-12-31 | Q179: 5293 | R179: EQT | S179: 010 | T179: F | U179: 2020-09-03 | V179: 0 | W179: FTFPNA | X179: 254800 | Y179: 475487.92 | Z179: 475487.92 | AA179: A | AB179: 475487.92 | AC179: 475487.92 | AD179: 624260 | AE179: 624260 | AF179: 0 | AG179: 1 | AH179: 148772.08 | AI179: 0 | AL179: -38220 | AM179: 0 | AN179: 0 | AO179: 0 | AP179: 0 | AQ179: 3000-01-01 | AR179: N/A
A180: FT | B180: SLMT | C180: =VLOOKUP(S180,Map!$F$6:$H$81,2,0) -> Equity | D180: 979.6520548 | E180: =IF(LEFT(A180,2)="IL","IL",IF(OR(R180="BND",R180="CSH"),VLOOKUP(AP180,Map!$M$2:$N$50,2,0),"Not Subject to Credit Risk")) -> Not Subject to Credit Risk | F180: 0 | G180: 580944 | H180: 0 | I180: 0 | J180: 0 | K180: 0 | L180: 0 | M180: 0 | N180: 580944 | O180: 0 | P180: 2020-12-31 | Q180: 5296 | R180: EQT | S180: 010 | T180: F | U180: 2020-10-15 | V180: 0 | W180: FTFPNA | X180: 186200 | Y180: 303365.25 | Z180: 303365.25 | AA180: A | AB180: 303365.25 | AC180: 303365.25 | AD180: 580944 | AE180: 580944 | AF180: 0 | AG180: 1 | AH180: 277578.75 | AI180: 0 | AL180: 3724 | AM180: 0 | AN180: 0 | AO180: 0 | AP180: 0 | AQ180: 3000-01-01 | AR180: N/A
A181: FT | B181: SLMT | C181: =VLOOKUP(S181,Map!$F$6:$H$81,2,0) -> Equity | D181: 979.6520548 | E181: =IF(LEFT(A181,2)="IL","IL",IF(OR(R181="BND",R181="CSH"),VLOOKUP(AP181,Map!$M$2:$N$50,2,0),"Not Subject to Credit Risk")) -> Not Subject to Credit Risk | F181: 0 | G181: 2022720 | H181: 0 | I181: 0 | J181: 0 | K181: 0 | L181: 0 | M181: 0 | N181: 2022720 | O181: 0 | P181: 2020-12-31 | Q181: 5292 | R181: EQT | S181: 010 | T181: F | U181: 2020-05-20 | V181: 0 | W181: FTFPNA | X181: 206400 | Y181: 759726.05 | Z181: 759726.05 | AA181: A | AB181: 759726.05 | AC181: 759726.05 | AD181: 2022720 | AE181: 2022720 | AF181: 0 | AG181: 1 | AH181: 1262993.95 | AI181: 0 | AL181: 0 | AM181: 0 | AN181: 0 | AO181: 0 | AP181: 0 | AQ181: 3000-01-01 | AR181: N/A
A182: FT | B182: SLMT | C182: =VLOOKUP(S182,Map!$F$6:$H$81,2,0) -> Equity | D182: 979.6520548 | E182: =IF(LEFT(A182,2)="IL","IL",IF(OR(R182="BND",R182="CSH"),VLOOKUP(AP182,Map!$M$2:$N$50,2,0),"Not Subject to Credit Risk")) -> Not Subject to Credit Risk | F182: 0 | G182: 1087046.55 | H182: 0 | I182: 0 | J182: 0 | K182: 0 | L182: 0 | M182: 0 | N182: 1087046.55 | O182: 0 | P182: 2020-12-31 | Q182: 5285 | R182: EQT | S182: 010 | T182: F | U182: 2017-11-27 | V182: 0 | W182: FTFPNA | X182: 217845 | Y182: 1220123.16 | Z182: 1220123.16 | AA182: A | AB182: 1220123.16 | AC182: 1220123.16 | AD182: 1087046.55 | AE182: 1087046.55 | AF182: 0 | AG182: 1 | AH182: -133076.61 | AI182: 0 | AL182: 0 | AM182: 0 | AN182: 0 | AO182: 0 | AP182: 0 | AQ182: 3000-01-01 | AR182: N/A
A183: FT | B183: SLMT | C183: =VLOOKUP(S183,Map!$F$6:$H$81,2,0) -> Equity | D183: 979.6520548 | E183: =IF(LEFT(A183,2)="IL","IL",IF(OR(R183="BND",R183="CSH"),VLOOKUP(AP183,Map!$M$2:$N$50,2,0),"Not Subject to Credit Risk")) -> Not Subject to Credit Risk | F183: 0 | G183: 1251730 | H183: 0 | I183: 0 | J183: 0 | K183: 0 | L183: 0 | M183: 0 | N183: 1251730 | O183: 0 | P183: 2020-12-31 | Q183: 5246 | R183: EQT | S183: 010 | T183: F | U183: 2018-02-09 | V183: 0 | W183: FTFPNA | X183: 291100 | Y183: 1036383.76 | Z183: 1036383.76 | AA183: A | AB183: 1036383.76 | AC183: 1036383.76 | AD183: 1251730 | AE183: 1251730 | AF183: 0 | AG183: 1 | AH183: 215346.24 | AI183: 0 | AL183: 23288 | AM183: 0 | AN183: 0 | AO183: 0 | AP183: 0 | AQ183: 3000-01-01 | AR183: N/A
A184: FT | B184: SLMT | C184: =VLOOKUP(S184,Map!$F$6:$H$81,2,0) -> Equity | D184: 979.6520548 | E184: =IF(LEFT(A184,2)="IL","IL",IF(OR(R184="BND",R184="CSH"),VLOOKUP(AP184,Map!$M$2:$N$50,2,0),"Not Subject to Credit Risk")) -> Not Subject to Credit Risk | F184: 0 | G184: 1171032 | H184: 0 | I184: 0 | J184: 0 | K184: 0 | L184: 0 | M184: 0 | N184: 1171032 | O184: 0 | P184: 2020-12-31 | Q184: 5235SS | R184: EQT | S184: 460 | T184: F | U184: 2017-05-12 | V184: 0 | W184: FTFPNA | X184: 165400 | Y184: 1261692 | Z184: 1261692 | AA184: A | AB184: 1261692 | AC184: 1261692 | AD184: 1171032 | AE184: 1171032 | AF184: 0 | AG184: 1 | AH184: -90660 | AI184: 0 | AL184: -8270 | AM184: 0 | AN184: 0 | AO184: 0 | AP184: 0 | AQ184: 3000-01-01 | AR184: N/A
A185: FT | B185: SLMT | C185: =VLOOKUP(S185,Map!$F$6:$H$81,2,0) -> Equity | D185: 979.6520548 | E185: =IF(LEFT(A185,2)="IL","IL",IF(OR(R185="BND",R185="CSH"),VLOOKUP(AP185,Map!$M$2:$N$50,2,0),"Not Subject to Credit Risk")) -> Not Subject to Credit Risk | F185: 0 | G185: 645250 | H185: 0 | I185: 0 | J185: 0 | K185: 0 | L185: 0 | M185: 0 | N185: 645250 | O185: 0 | P185: 2020-12-31 | Q185: 5248 | R185: EQT | S185: 010 | T185: F | U185: 2020-06-11 | V185: 0 | W185: FTFPNA | X185: 445000 | Y185: 676545.5 | Z185: 676545.5 | AA185: A | AB185: 676545.5 | AC185: 676545.5 | AD185: 645250 | AE185: 645250 | AF185: 0 | AG185: 1 | AH185: -31295.5 | AI185: 0 | AL185: 13350 | AM185: 0 | AN185: 0 | AO185: 0 | AP185: 0 | AQ185: 3000-01-01 | AR185: N/A
A186: FT | B186: SLMT | C186: =VLOOKUP(S186,Map!$F$6:$H$81,2,0) -> Equity | D186: 979.6520548 | E186: =IF(LEFT(A186,2)="IL","IL",IF(OR(R186="BND",R186="CSH"),VLOOKUP(AP186,Map!$M$2:$N$50,2,0),"Not Subject to Credit Risk")) -> Not Subject to Credit Risk | F186: 0 | G186: 1807225 | H186: 0 | I186: 0 | J186: 0 | K186: 0 | L186: 0 | M186: 0 | N186: 1807225 | O186: 0 | P186: 2020-12-31 | Q186: 7293 | R186: EQT | S186: 010 | T186: F | U186: 2017-12-13 | V186: 0 | W186: FTFPNA | X186: 314300 | Y186: 1611051.35 | Z186: 1611051.35 | AA186: A | AB186: 1611051.35 | AC186: 1611051.35 | AD186: 1807225 | AE186: 1807225 | AF186: 0 | AG186: 1 | AH186: 196173.65 | AI186: 0 | AL186: 22001 | AM186: 0 | AN186: 0 | AO186: 0 | AP186: 0 | AQ186: 3000-01-01 | AR186: N/A
A187: FT | B187: SLMT | C187: =VLOOKUP(S187,Map!$F$6:$H$81,2,0) -> Equity | D187: 979.6520548 | E187: =IF(LEFT(A187,2)="IL","IL",IF(OR(R187="BND",R187="CSH"),VLOOKUP(AP187,Map!$M$2:$N$50,2,0),"Not Subject to Credit Risk")) -> Not Subject to Credit Risk | F187: 0 | G187: 2194890 | H187: 0 | I187: 0 | J187: 0 | K187: 0 | L187: 0 | M187: 0 | N187: 2194890 | O187: 0 | P187: 2020-12-31 | Q187: 7277 | R187: EQT | S187: 010 | T187: F | U187: 2017-05-17 | V187: 0 | W187: FTFPNA | X187: 636200 | Y187: 1727619.18 | Z187: 1727619.18 | AA187: A | AB187: 1727619.18 | AC187: 1727619.18 | AD187: 2194890 | AE187: 2194890 | AF187: 0 | AG187: 1 | AH187: 467270.82 | AI187: 0 | AL187: 12724 | AM187: 0 | AN187: 0 | AO187: 0 | AP187: 0 | AQ187: 3000-01-01 | AR187: N/A
A188: FT | B188: SLMT | C188: =VLOOKUP(S188,Map!$F$6:$H$81,2,0) -> Equity | D188: 979.6520548 | E188: =IF(LEFT(A188,2)="IL","IL",IF(OR(R188="BND",R188="CSH"),VLOOKUP(AP188,Map!$M$2:$N$50,2,0),"Not Subject to Credit Risk")) -> Not Subject to Credit Risk | F188: 0 | G188: 1020100 | H188: 0 | I188: 0 | J188: 0 | K188: 0 | L188: 0 | M188: 0 | N188: 1020100 | O188: 0 | P188: 2020-12-31 | Q188: 7160 | R188: EQT | S188: 010 | T188: F | U188: 2020-11-27 | V188: 0 | W188: FTFPNA | X188: 202000 | Y188: 985655.2 | Z188: 985655.2 | AA188: A | AB188: 985655.2 | AC188: 985655.2 | AD188: 1020100 | AE188: 1020100 | AF188: 0 | AG188: 1 | AH188: 34444.8 | AI188: 0 | AL188: 18180 | AM188: 0 | AN188: 0 | AO188: 0 | AP188: 0 | AQ188: 3000-01-01 | AR188: N/A
A189: FT | B189: SLMT | C189: =VLOOKUP(S189,Map!$F$6:$H$81,2,0) -> Equity | D189: 979.6520548 | E189: =IF(LEFT(A189,2)="IL","IL",IF(OR(R189="BND",R189="CSH"),VLOOKUP(AP189,Map!$M$2:$N$50,2,0),"Not Subject to Credit Risk")) -> Not Subject to Credit Risk | F189: 0 | G189: 2429640 | H189: 0 | I189: 0 | J189: 0 | K189: 0 | L189: 0 | M189: 0 | N189: 2429640 | O189: 0 | P189: 2020-12-31 | Q189: 7113 | R189: EQT | S189: 010 | T189: F | U189: 2020-05-13 | V189: 0 | W189: FTFPNA | X189: 397000 | Y189: 2004513.18 | Z189: 2004513.18 | AA189: A | AB189: 2004513.18 | AC189: 2004513.18 | AD189: 2429640 | AE189: 2429640 | AF189: 0 | AG189: 1 | AH189: 425126.82 | AI189: 0 | AL189: -246140 | AM189: 0 | AN189: 0 | AO189: 0 | AP189: 0 | AQ189: 3000-01-01 | AR189: N/A
A190: FT | B190: SLMT | C190: =VLOOKUP(S190,Map!$F$6:$H$81,2,0) -> Equity | D190: 979.6520548 | E190: =IF(LEFT(A190,2)="IL","IL",IF(OR(R190="BND",R190="CSH"),VLOOKUP(AP190,Map!$M$2:$N$50,2,0),"Not Subject to Credit Risk")) -> Not Subject to Credit Risk | F190: 0 | G190: 1096500 | H190: 0 | I190: 0 | J190: 0 | K190: 0 | L190: 0 | M190: 0 | N190: 1096500 | O190: 0 | P190: 2020-12-31 | Q190: 7155 | R190: EQT | S190: 010 | T190: F | U190: 2019-07-11 | V190: 0 | W190: FTFPNA | X190: 510000 | Y190: 741756.23 | Z190: 741756.23 | AA190: A | AB190: 741756.23 | AC190: 741756.23 | AD190: 1096500 | AE190: 1096500 | AF190: 0 | AG190: 1 | AH190: 354743.77 | AI190: 0 | AL190: -25500 | AM190: 0 | AN190: 0 | AO190: 0 | AP190: 0 | AQ190: 3000-01-01 | AR190: N/A
A191: FT | B191: SLMT | C191: =VLOOKUP(S191,Map!$F$6:$H$81,2,0) -> Equity | D191: 979.6520548 | E191: =IF(LEFT(A191,2)="IL","IL",IF(OR(R191="BND",R191="CSH"),VLOOKUP(AP191,Map!$M$2:$N$50,2,0),"Not Subject to Credit Risk")) -> Not Subject to Credit Risk | F191: 0 | G191: 1049100 | H191: 0 | I191: 0 | J191: 0 | K191: 0 | L191: 0 | M191: 0 | N191: 1049100 | O191: 0 | P191: 2020-12-31 | Q191: 7100 | R191: EQT | S191: 010 | T191: F | U191: 2020-03-10 | V191: 0 | W191: FTFPNA | X191: 403500 | Y191: 915277.18 | Z191: 915277.18 | AA191: A | AB191: 915277.18 | AC191: 915277.18 | AD191: 1049100 | AE191: 1049100 | AF191: 0 | AG191: 1 | AH191: 133822.82 | AI191: 0 | AL191: -8070 | AM191: 0 | AN191: 0 | AO191: 0 | AP191: 0 | AQ191: 3000-01-01 | AR191: N/A
A192: FT | B192: SLMT | C192: =VLOOKUP(S192,Map!$F$6:$H$81,2,0) -> Equity | D192: 979.6520548 | E192: =IF(LEFT(A192,2)="IL","IL",IF(OR(R192="BND",R192="CSH"),VLOOKUP(AP192,Map!$M$2:$N$50,2,0),"Not Subject to Credit Risk")) -> Not Subject to Credit Risk | F192: 0 | G192: 378000 | H192: 0 | I192: 0 | J192: 0 | K192: 0 | L192: 0 | M192: 0 | N192: 378000 | O192: 0 | P192: 2020-12-31 | Q192: 9598 | R192: EQT | S192: 010 | T192: F | U192: 2019-09-06 | V192: 0 | W192: FTFPNA | X192: 140000 | Y192: 449383.58 | Z192: 449383.58 | AA192: A | AB192: 449383.58 | AC192: 449383.58 | AD192: 378000 | AE192: 378000 | AF192: 0 | AG192: 1 | AH192: -71383.58 | AI192: 0 | AL192: -9800 | AM192: 0 | AN192: 0 | AO192: 0 | AP192: 0 | AQ192: 3000-01-01 | AR192: N/A
A193: FT | B193: SLMT | C193: =VLOOKUP(S193,Map!$F$6:$H$81,2,0) -> PDS/Sukuk | D193: 8.745205479 | E193: =IF(LEFT(A193,2)="IL","IL",IF(OR(R193="BND",R193="CSH"),VLOOKUP(AP193,Map!$M$2:$N$50,2,0),"Not Subject to Credit Risk")) -> AA | F193: 187500 | G193: 5189650 | H193: 48801.37 | I193: 187500 | J193: 375000 | K193: 375000 | L193: 5702226.027 | M193: 0 | N193: 0 | O193: 0 | P193: 2020-12-31 | Q193: VN190188 | R193: BND | S193: 110 | T193: C | U193: 2019-09-25 | V193: 0.0375 | W193: FTFPUL | X193: 5000000 | Y193: 5000000 | Z193: 5000000 | AA193: A | AB193: 5000000 | AC193: 5048801.37 | AD193: 5238451.37 | AE193: 5238451.37 | AF193: 0 | AG193: 1 | AH193: 189650 | AI193: 0 | AL193: 2004.79 | AM193: 48801.37 | AN193: 0 | AO193: 0 | AP193: 122 | AQ193: 2029-09-27 | AR193: N/A
A194: =VLOOKUP(W194,FdGroup,2,0) -> FT | B194: =VLOOKUP(W194,FdGroup,3,0) -> SLMT | C194: =VLOOKUP(S194,Map!$F$6:$H$81,2,0) -> PDS/Sukuk | D194: =(AQ194-P194)/365 -> 5.846575342 | E194: =IF(LEFT(A194,2)="IL","IL",IF(OR(R194="BND",R194="CSH"),VLOOKUP(AP194,Map!$M$2:$N$50,2,0),"Not Subject to Credit Risk")) -> AAA | F194: =IF(D194<1,D194,1)*V194*X194 -> 45000 | G194: =AE194-AM194 -> 1084570 | H194: =AM194 -> 7209.94 | I194: =IF((O194+N194)>0,0,IF($D194<1,$X194+$H194+$F194,$F194))*IF(E194="D",0,1)*IF($E194="D",0,1) -> 45000 | J194: =IF((O194+N194)>0,0,IF($D194>1,IF($D194<3,$X194+$F194*$D194-$F194,$F194*2),0))*IF($E194="D",0,1) -> 90000 | K194: =IF((O194+N194)>0,0,IF($D194>3,IF($D194<5,$X194+$F194*($D194-3),$F194*2),0))*IF($E194="D",0,1) -> 90000 | L194: =IF((O194+N194)>0,0,IF($D194>5,IF($D194<15,$X194+$F194*($D194-5),$F194*10),0))*IF($E194="D",0,1) -> 1038095.89 | M194: =IF((O194+N194)>0,0,IF($D194>15,IF($D194<99,$X194+$F194*($D194-15),0),0))*IF($E194="D",0,1) -> 0 | N194: =IF(AND(LEFT($A194,2)<>"IL",$D194>99),$AE194,0) -> 0 | O194: =IF(LEFT($A194,2)="IL",IF(D194<99,$X194+$F194*$D194,$AE194),0) -> 0 | P194: 2020-12-31 | Q194: VN160330 | R194: BND | S194: 110 | T194: C | U194: 2016-11-02 | V194: 0.045 | W194: FTFPUL | X194: 1000000 | Y194: 1000000 | Z194: 1000000 | AA194: A | AB194: 1000000 | AC194: 1007209.94 | AD194: 1091779.94 | AE194: 1091779.94 | AF194: 0 | AG194: 1 | AH194: 84570 | AI194: 0 | AL194: 1237.24 | AM194: 7209.94 | AN194: 0 | AO194: 0 | AP194: 115 | AQ194: 2026-11-04 | AR194: N/A
A195: FT | B195: SLMT | C195: =VLOOKUP(S195,Map!$F$6:$H$81,2,0) -> PDS/Sukuk | D195: 4.868493151 | E195: =IF(LEFT(A195,2)="IL","IL",IF(OR(R195="BND",R195="CSH"),VLOOKUP(AP195,Map!$M$2:$N$50,2,0),"Not Subject to Credit Risk")) -> AA | F195: 580000 | G195: 10925300 | H195: 79452.05 | I195: 580000 | J195: 1160000 | K195: 11083726.03 | L195: 0 | M195: 0 | N195: 0 | O195: 0 | P195: 2020-12-31 | Q195: VN150260 | R195: BND | S195: 110 | T195: C | U195: 2018-10-23 | V195: 0.058 | W195: FTFPUL | X195: 10000000 | Y195: 10180000 | Z195: 10180000 | AA195: A | AB195: 10131469.66 | AC195: 10210921.71 | AD195: 11004752.05 | AE195: 11004752.05 | AF195: 0 | AG195: 1 | AH195: 793830.34 | AI195: 0 | AL195: 15156.17 | AM195: 79452.05 | AN195: 48530.34 | AO195: 0 | AP195: 128 | AQ195: 2025-11-12 | AR195: N/A
A196: FT | B196: SLMT | C196: =VLOOKUP(S196,Map!$F$6:$H$81,2,0) -> PDS/Sukuk | D196: 2.657534247 | E196: =IF(LEFT(A196,2)="IL","IL",IF(OR(R196="BND",R196="CSH"),VLOOKUP(AP196,Map!$M$2:$N$50,2,0),"Not Subject to Credit Risk")) -> AA | F196: 141000 | G196: 3042450 | H196: 48673.97 | I196: 141000 | J196: 3233712.329 | K196: 0 | L196: 0 | M196: 0 | N196: 0 | O196: 0 | P196: 2020-12-31 | Q196: VH200018 | R196: BND | S196: 110 | T196: C | U196: 2020-02-27 | V196: 0.047 | W196: FTFPUL | X196: 3000000 | Y196: 3008310 | Z196: 3008310 | AA196: A | AB196: 3006427.98 | AC196: 3055101.95 | AD196: 3091123.97 | AE196: 3091123.97 | AF196: 0 | AG196: 1 | AH196: 36022.02 | AI196: 0 | AL196: 2175.21 | AM196: 48673.97 | AN196: 1882.02 | AO196: 0 | AP196: 128 | AQ196: 2023-08-28 | AR196: N/A
A197: FT | B197: SLMT | C197: =VLOOKUP(S197,Map!$F$6:$H$81,2,0) -> MGSGII | D197: 0.3287671233 | E197: =IF(LEFT(A197,2)="IL","IL",IF(OR(R197="BND",R197="CSH"),VLOOKUP(AP197,Map!$M$2:$N$50,2,0),"Not Subject to Credit Risk")) -> Not Rated | F197: 20564.38356 | G197: 1511175 | H197: 10712.98 | I197: 1531277.364 | J197: 0 | K197: 0 | L197: 0 | M197: 0 | N197: 0 | O197: 0 | P197: 2020-12-31 | Q197: GN110025 | R197: BND | S197: 131 | T197: C | U197: 2017-12-07 | V197: 0.0417 | W197: FTFPUL | X197: 1500000 | Y197: 1522200 | Z197: 1522200 | AA197: A | AB197: 1502274.11 | AC197: 1512987.09 | AD197: 1521887.98 | AE197: 1521887.98 | AF197: 0 | AG197: 1 | AH197: 8900.89 | AI197: 0 | AL197: 691.16 | AM197: 10712.98 | AN197: 19925.89 | AO197: 0 | AP197: 0 | AQ197: 2021-04-30 | AR197: N/A
A198: FT | B198: SLMT | C198: =VLOOKUP(S198,Map!$F$6:$H$81,2,0) -> MGSGII | D198: 9.753424658 | E198: =IF(LEFT(A198,2)="IL","IL",IF(OR(R198="BND",R198="CSH"),VLOOKUP(AP198,Map!$M$2:$N$50,2,0),"Not Subject to Credit Risk")) -> Not Rated | F198: 21225 | G198: 561130 | H198: 5422.87 | I198: 21225 | J198: 42450 | K198: 42450 | L198: 600891.4384 | M198: 0 | N198: 0 | O198: 0 | P198: 2020-12-31 | Q198: GT150003 | R198: BND | S198: 131 | T198: C | U198: 2016-05-31 | V198: 0.04245 | W198: FTFPUL | X198: 500000 | Y198: 491700 | Z198: 491700 | AA198: A | AB198: 493809.36 | AC198: 499232.23 | AD198: 566552.87 | AE198: 566552.87 | AF198: 0 | AG198: 1 | AH198: 67320.64 | AI198: 0 | AL198: 1603.24 | AM198: 5422.87 | AN198: -2109.36 | AO198: 0 | AP198: 0 | AQ198: 2030-09-30 | AR198: N/A
A199: FT | B199: SLMT | C199: =VLOOKUP(S199,Map!$F$6:$H$81,2,0) -> PDS/Sukuk | D199: 29.74794521 | E199: =IF(LEFT(A199,2)="IL","IL",IF(OR(R199="BND",R199="CSH"),VLOOKUP(AP199,Map!$M$2:$N$50,2,0),"Not Subject to Credit Risk")) -> Not Rated | F199: 200500 | G199: 4839300 | H199: 54931.51 | I199: 200500 | J199: 401000 | K199: 401000 | L199: 2005000 | M199: 7956963.014 | N199: 0 | O199: 0 | P199: 2020-12-31 | Q199: VZ200201 | R199: BND | S199: 130 | T199: C | U199: 2020-09-21 | V199: 0.0401 | W199: FTFPUL | X199: 5000000 | Y199: 5000000 | Z199: 5000000 | AA199: A | AB199: 5000000 | AC199: 5054931.51 | AD199: 4894231.51 | AE199: 4894231.51 | AF199: 0 | AG199: 1 | AH199: -160700 | AI199: 0 | AL199: 3047.26 | AM199: 54931.51 | AN199: 0 | AO199: 0 | AP199: 0 | AQ199: 2050-09-23 | AR199: N/A
A200: FT | B200: SLMT | C200: =VLOOKUP(S200,Map!$F$6:$H$81,2,0) -> PDS/Sukuk | D200: 29.17260274 | E200: =IF(LEFT(A200,2)="IL","IL",IF(OR(R200="BND",R200="CSH"),VLOOKUP(AP200,Map!$M$2:$N$50,2,0),"Not Subject to Credit Risk")) -> Not Rated | F200: 190000 | G200: 4692611.64 | H200: 65589.04 | I200: 190000 | J200: 380000 | K200: 380000 | L200: 1900000 | M200: 7692794.521 | N200: 0 | O200: 0 | P200: 2020-12-31 | Q200: VZ200016 | R200: BND | S200: 130 | T200: C | U200: 2020-08-26 | V200: 0.038 | W200: FTFPUL | X200: 5000000 | Y200: 5036000 | Z200: 5036000 | AA200: A | AB200: 5035766.91 | AC200: 5102917.59 | AD200: 4758200.68 | AE200: 4758200.68 | AF200: 1561.64 | AG200: 1 | AH200: -344716.91 | AI200: 0 | AL200: 10932.2 | AM200: 65589.04 | AN200: 233.09 | AO200: 0 | AP200: 0 | AQ200: 2050-02-25 | AR200: N/A
... 605 more rows

Sheet Master
A1: FdGp | B1: Company | C1: AssetGp | D1: Tenor | E1: Credit | F1: YearInt | G1: CleanMV | H1: AccInt | I1: CF 0-1 | J1: CF 1-3 | K1: CF 3-5 | L1: CF 5-15 | M1: CF 15 > | N1: CF NoMat | O1: CF IL | P1: HistoryDate | Q1: qStockCode | R1: qProductType | S1: qAssetAccType | T1: AccType | U1: PurchaseDate | V1: Coupon | W1: qFundCode | X1: UnitFaceValue | Y1: CostSC | Z1: CostFC | AA1: Status | AB1: BookValue | AC1: BookValue1Int | AD1: MarketValueSC | AE1: MarketValueFC | AF1: LastMarketValue | AG1: ExchgRate | AH1: UnrealisedGainsStock | AI1: UnrealisedGainsExchg | AJ1: DRGainsExchg | AK1: CRGainsExchg | AL1: ValGains | AM1: AccruedInterest | AN1: AmortAccreation | AO1: Diminution | AP1: qRank | AQ1: MaturityDate | AR1: qCpCode
A2: =VLOOKUP(W2,FdGroup,2,0) -> ILT | B2: =VLOOKUP(W2,FdGroup,3,0) -> SLMT | C2: =VLOOKUP(S2,Map!$F$6:$H$81,2,0) -> Unit Trusts | D2: =(AQ2-P2)/365 -> 978.6520548 | E2: =IF(LEFT(A2,2)="IL","IL",IF(OR(R2="BND",R2="CSH"),VLOOKUP(AP2,Map!$M$2:$N$50,2,0),"Not Subject to Credit Risk")) -> IL | F2: =IF(D2<1,D2,1)*V2*X2 -> 0 | G2: =AE2-AM2 -> 8591264.42 | H2: =AM2 -> 0 | I2: =IF((O2+N2)>0,0,IF($D2<1,$X2+$H2+$F2,$F2))*IF(E2="D",0,1)*IF($E2="D",0,1) -> 0 | J2: =IF((O2+N2)>0,0,IF($D2>1,IF($D2<3,$X2+$F2*$D2-$F2,$F2*2),0))*IF($E2="D",0,1) -> 0 | K2: =IF((O2+N2)>0,0,IF($D2>3,IF($D2<5,$X2+$F2*($D2-3),$F2*2),0))*IF($E2="D",0,1) -> 0 | L2: =IF((O2+N2)>0,0,IF($D2>5,IF($D2<15,$X2+$F2*($D2-5),$F2*10),0))*IF($E2="D",0,1) -> 0 | M2: =IF((O2+N2)>0,0,IF($D2>15,IF($D2<99,$X2+$F2*($D2-15),0),0))*IF($E2="D",0,1) -> 0 | N2: =IF(AND(LEFT($A2,2)<>"IL",$D2>99),$AE2,0) -> 0 | O2: =IF(LEFT($A2,2)="IL",IF(D2<99,$X2+$F2*$D2,$AE2),0) -> 8591264.42 | P2: 2021-12-31 | Q2: CPIAW | R2: EQT | S2: 420 | T2: F | U2: 2018-01-15 | V2: 0 | W2: CAAW | X2: 7399883.22 | Y2: 7661134.78 | Z2: 7661134.78 | AA2: A | AB2: 7661134.78 | AC2: 7661134.78 | AD2: 8591264.42 | AE2: 8591264.42 | AF2: 0 | AG2: 1 | AH2: 930129.64 | AI2: 0 | AL2: -0.01 | AM2: 0 | AN2: 0 | AO2: 0 | AP2: 0 | AQ2: 3000-01-01 | AR2: N/A
A3: ILT | B3: SLMT | C3: =VLOOKUP(S3,Map!$F$6:$H$81,2,0) -> Unit Trusts | D3: 978.6520548 | E3: =IF(LEFT(A3,2)="IL","IL",IF(OR(R3="BND",R3="CSH"),VLOOKUP(AP3,Map!$M$2:$N$50,2,0),"Not Subject to Credit Risk")) -> IL | F3: 0 | G3: 2582865.87 | H3: 0 | I3: 0 | J3: 0 | K3: 0 | L3: 0 | M3: 0 | N3: 0 | O3: 2582865.87 | P3: 2021-12-31 | Q3: CPIBW | R3: EQT | S3: 420 | T3: F | U3: 2018-04-27 | V3: 0 | W3: CABW | X3: 2389772.27 | Y3: 2532407.78 | Z3: 2532407.78 | AA3: A | AB3: 2532407.78 | AC3: 2532407.78 | AD3: 2582865.87 | AE3: 2582865.87 | AF3: 0 | AG3: 1 | AH3: 50458.09 | AI3: 0 | AL3: 0 | AM3: 0 | AN3: 0 | AO3: 0 | AP3: 0 | AQ3: 3000-01-01 | AR3: N/A
A4: ILT | B4: SLMT | C4: =VLOOKUP(S4,Map!$F$6:$H$81,2,0) -> Unit Trusts | D4: 978.6520548 | E4: =IF(LEFT(A4,2)="IL","IL",IF(OR(R4="BND",R4="CSH"),VLOOKUP(AP4,Map!$M$2:$N$50,2,0),"Not Subject to Credit Risk")) -> IL | F4: 0 | G4: 240232.08 | H4: 0 | I4: 0 | J4: 0 | K4: 0 | L4: 0 | M4: 0 | N4: 0 | O4: 240232.08 | P4: 2021-12-31 | Q4: CPICW | R4: EQT | S4: 420 | T4: F | U4: 2018-07-02 | V4: 0 | W4: CACW | X4: 217542.41 | Y4: 235812.63 | Z4: 235812.63 | AA4: A | AB4: 235812.63 | AC4: 235812.63 | AD4: 240232.08 | AE4: 240232.08 | AF4: 0 | AG4: 1 | AH4: 4419.45 | AI4: 0 | AL4: 0 | AM4: 0 | AN4: 0 | AO4: 0 | AP4: 0 | AQ4: 3000-01-01 | AR4: N/A
A5: ILT | B5: SLMT | C5: =VLOOKUP(S5,Map!$F$6:$H$81,2,0) -> Unit Trusts | D5: 978.6520548 | E5: =IF(LEFT(A5,2)="IL","IL",IF(OR(R5="BND",R5="CSH"),VLOOKUP(AP5,Map!$M$2:$N$50,2,0),"Not Subject to Credit Risk")) -> IL | F5: 0 | G5: 6291244.89 | H5: 0 | I5: 0 | J5: 0 | K5: 0 | L5: 0 | M5: 0 | N5: 0 | O5: 6291244.89 | P5: 2021-12-31 | Q5: UOB-GB | R5: EQT | S5: 420 | T5: F | U5: 2021-08-20 | V5: 0 | W5: CAGB | X5: 11717721.9 | Y5: 6139986.81 | Z5: 6139986.81 | AA5: A | AB5: 6139986.81 | AC5: 6139986.81 | AD5: 6291244.89 | AE5: 6291244.89 | AF5: 0 | AG5: 1 | AH5: 151258.08 | AI5: 0 | AL5: 0 | AM5: 0 | AN5: 0 | AO5: 0 | AP5: 0 | AQ5: 3000-01-01 | AR5: N/A
A6: ILT | B6: SLMT | C6: =VLOOKUP(S6,Map!$F$6:$H$81,2,0) -> Unit Trusts | D6: 978.6520548 | E6: =IF(LEFT(A6,2)="IL","IL",IF(OR(R6="BND",R6="CSH"),VLOOKUP(AP6,Map!$M$2:$N$50,2,0),"Not Subject to Credit Risk")) -> IL | F6: 0 | G6: 22286520.58 | H6: 0 | I6: 0 | J6: 0 | K6: 0 | L6: 0 | M6: 0 | N6: 0 | O6: 22286520.58 | P6: 2021-12-31 | Q6: OSIF | R6: EQT | S6: 440 | T6: F | U6: 2021-01-27 | V6: 0 | W6: CAIBF | X6: 22306596.51 | Y6: 23412047.41 | Z6: 23412047.41 | AA6: A | AB6: 23412047.41 | AC6: 23412047.41 | AD6: 22286520.58 | AE6: 22286520.58 | AF6: 0 | AG6: 1 | AH6: -1125526.83 | AI6: 0 | AL6: 0 | AM6: 0 | AN6: 0 | AO6: 0 | AP6: 0 | AQ6: 3000-01-01 | AR6: N/A
A7: ILT | B7: SLMT | C7: =VLOOKUP(S7,Map!$F$6:$H$81,2,0) -> Unit Trusts | D7: 978.6520548 | E7: =IF(LEFT(A7,2)="IL","IL",IF(OR(R7="BND",R7="CSH"),VLOOKUP(AP7,Map!$M$2:$N$50,2,0),"Not Subject to Credit Risk")) -> IL | F7: 0 | G7: 336905.7 | H7: 0 | I7: 0 | J7: 0 | K7: 0 | L7: 0 | M7: 0 | N7: 0 | O7: 336905.7 | P7: 2021-12-31 | Q7: CPID | R7: EQT | S7: 430 | T7: F | U7: 2019-04-12 | V7: 0 | W7: CAID | X7: 336434.69 | Y7: 336927.22 | Z7: 336927.22 | AA7: A | AB7: 336927.22 | AC7: 336927.22 | AD7: 336905.7 | AE7: 336905.7 | AF7: 0 | AG7: 1 | AH7: -21.52 | AI7: 0 | AL7: 0 | AM7: 0 | AN7: 0 | AO7: 0 | AP7: 0 | AQ7: 3000-01-01 | AR7: N/A
A8: ILT | B8: SLMT | C8: =VLOOKUP(S8,Map!$F$6:$H$81,2,0) -> Unit Trusts | D8: 978.6520548 | E8: =IF(LEFT(A8,2)="IL","IL",IF(OR(R8="BND",R8="CSH"),VLOOKUP(AP8,Map!$M$2:$N$50,2,0),"Not Subject to Credit Risk")) -> IL | F8: 0 | G8: 50471001.79 | H8: 0 | I8: 0 | J8: 0 | K8: 0 | L8: 0 | M8: 0 | N8: 0 | O8: 50471001.79 | P8: 2021-12-31 | Q8: AHAGF | R8: EQT | S8: 410 | T8: F | U8: 2017-05-24 | V8: 0 | W8: CAIEF | X8: 36682172.97 | Y8: 43834266.27 | Z8: 43834266.27 | AA8: A | AB8: 43834266.27 | AC8: 43834266.27 | AD8: 50471001.79 | AE8: 50471001.79 | AF8: 0 | AG8: 1 | AH8: 6636735.52 | AI8: 0 | AL8: 0 | AM8: 0 | AN8: 0 | AO8: 0 | AP8: 0 | AQ8: 3000-01-01 | AR8: N/A
A9: ILT | B9: SLMT | C9: =VLOOKUP(S9,Map!$F$6:$H$81,2,0) -> Unit Trusts | D9: 978.6520548 | E9: =IF(LEFT(A9,2)="IL","IL",IF(OR(R9="BND",R9="CSH"),VLOOKUP(AP9,Map!$M$2:$N$50,2,0),"Not Subject to Credit Risk")) -> IL | F9: 0 | G9: 17323346.68 | H9: 0 | I9: 0 | J9: 0 | K9: 0 | L9: 0 | M9: 0 | N9: 0 | O9: 17323346.68 | P9: 2021-12-31 | Q9: AHASIF | R9: EQT | S9: 420 | T9: F | U9: 2015-06-16 | V9: 0 | W9: CAII | X9: 36211008.94 | Y9: 18428762.86 | Z9: 18428762.86 | AA9: A | AB9: 18428762.86 | AC9: 18428762.86 | AD9: 17323346.68 | AE9: 17323346.68 | AF9: 0 | AG9: 1 | AH9: -1105416.18 | AI9: 0 | AL9: 0 | AM9: 0 | AN9: 0 | AO9: 0 | AP9: 0 | AQ9: 3000-01-01 | AR9: N/A
A10: ILT | B10: SLMT | C10: =VLOOKUP(S10,Map!$F$6:$H$81,2,0) -> Unit Trusts | D10: 978.6520548 | E10: =IF(LEFT(A10,2)="IL","IL",IF(OR(R10="BND",R10="CSH"),VLOOKUP(AP10,Map!$M$2:$N$50,2,0),"Not Subject to Credit Risk")) -> IL | F10: 0 | G10: 328090061.1 | H10: 0 | I10: 0 | J10: 0 | K10: 0 | L10: 0 | M10: 0 | N10: 0 | O10: 328090061.1 | P10: 2021-12-31 | Q10: CPIAPE | R10: EQT | S10: 410 | T10: F | U10: 2019-05-14 | V10: 0 | W10: CAPI | X10: 455617360.3 | Y10: 306797072.6 | Z10: 306797072.6 | AA10: A | AB10: 306797072.6 | AC10: 306797072.6 | AD10: 328090061.1 | AE10: 328090061.1 | AF10: 0 | AG10: 1 | AH10: 21292988.5 | AI10: 0 | AL10: -156953.35 | AM10: 0 | AN10: 0 | AO10: 0 | AP10: 0 | AQ10: 3000-01-01 | AR10: N/A
A11: ILT | B11: SLMT | C11: =VLOOKUP(S11,Map!$F$6:$H$81,2,0) -> Unit Trusts | D11: 978.6520548 | E11: =IF(LEFT(A11,2)="IL","IL",IF(OR(R11="BND",R11="CSH"),VLOOKUP(AP11,Map!$M$2:$N$50,2,0),"Not Subject to Credit Risk")) -> IL | F11: 0 | G11: 106337372.9 | H11: 0 | I11: 0 | J11: 0 | K11: 0 | L11: 0 | M11: 0 | N11: 0 | O11: 106337372.9 | P11: 2021-12-31 | Q11: AIWEF | R11: EQT | S11: 410 | T11: F | U11: 2019-05-14 | V11: 0 | W11: CAWE | X11: 41606296.63 | Y11: 92232827.11 | Z11: 92232827.11 | AA11: A | AB11: 92232827.11 | AC11: 92232827.11 | AD11: 106337372.9 | AE11: 106337372.9 | AF11: 0 | AG11: 1 | AH11: 14104545.82 | AI11: 0 | AL11: 0.01 | AM11: 0 | AN11: 0 | AO11: 0 | AP11: 0 | AQ11: 3000-01-01 | AR11: N/A
A12: FT | B12: SLMT | C12: =VLOOKUP(S12,Map!$F$6:$H$81,2,0) -> PDS/Sukuk | D12: 9.367123288 | E12: =IF(LEFT(A12,2)="IL","IL",IF(OR(R12="BND",R12="CSH"),VLOOKUP(AP12,Map!$M$2:$N$50,2,0),"Not Subject to Credit Risk")) -> AAA | F12: 252500 | G12: 5396050 | H12: 34875.69 | I12: 252500 | J12: 505000 | K12: 505000 | L12: 6102698.63 | M12: 0 | N12: 0 | O12: 0 | P12: 2021-12-31 | Q12: VX110056 | R12: BND | S12: 110 | T12: C | U12: 2011-05-26 | V12: 0.0505 | W12: FTFPA | X12: 5000000 | Y12: 5063000 | Z12: 5063000 | AA12: A | AB12: 5037222.52 | AC12: 5072098.21 | AD12: 5430925.69 | AE12: 5430925.69 | AF12: 0 | AG12: 1 | AH12: 358827.48 | AI12: 0 | AL12: 1992.54 | AM12: 34875.69 | AN12: 25777.48 | AO12: 0 | AP12: 115 | AQ12: 2031-05-12 | AR12: N/A
A13: FT | B13: SLMT | C13: =VLOOKUP(S13,Map!$F$6:$H$81,2,0) -> PDS/Sukuk | D13: 4.594520548 | E13: =IF(LEFT(A13,2)="IL","IL",IF(OR(R13="BND",R13="CSH"),VLOOKUP(AP13,Map!$M$2:$N$50,2,0),"Not Subject to Credit Risk")) -> Not Rated | F13: 130500 | G13: 3119250 | H13: 53192.93 | I13: 130500 | J13: 261000 | K13: 3208084.932 | L13: 0 | M13: 0 | N13: 0 | O13: 0 | P13: 2021-12-31 | Q13: VS110260 | R13: BND | S13: 130 | T13: C | U13: 2011-08-04 | V13: 0.0435 | W13: FTFPA | X13: 3000000 | Y13: 3000000 | Z13: 3000000 | AA13: A | AB13: 3000000 | AC13: 3053192.93 | AD13: 3172442.93 | AE13: 3172442.93 | AF13: 0 | AG13: 1 | AH13: 119250 | AI13: 0 | AL13: 1633.86 | AM13: 53192.93 | AN13: 0 | AO13: 0 | AP13: 0 | AQ13: 2026-08-04 | AR13: N/A
A14: FT | B14: SLMT | C14: =VLOOKUP(S14,Map!$F$6:$H$81,2,0) -> PDS/Sukuk | D14: 9.032876712 | E14: =IF(LEFT(A14,2)="IL","IL",IF(OR(R14="BND",R14="CSH"),VLOOKUP(AP14,Map!$M$2:$N$50,2,0),"Not Subject to Credit Risk")) -> AAA | F14: 253500 | G14: 5391350 | H14: 120152.05 | I14: 253500 | J14: 507000 | K14: 507000 | L14: 6022334.247 | M14: 0 | N14: 0 | O14: 0 | P14: 2021-12-31 | Q14: VW120018 | R14: BND | S14: 110 | T14: C | U14: 2012-01-12 | V14: 0.0507 | W14: FTFPA | X14: 5000000 | Y14: 5042500 | Z14: 5042500 | AA14: A | AB14: 5025178.77 | AC14: 5145330.82 | AD14: 5511502.05 | AE14: 5511502.05 | AF14: 0 | AG14: 1 | AH14: 366171.23 | AI14: 0 | AL14: 1983.57 | AM14: 120152.05 | AN14: 17321.23 | AO14: 0 | AP14: 115 | AQ14: 2031-01-10 | AR14: N/A
A15: FT | B15: SLMT | C15: =VLOOKUP(S15,Map!$F$6:$H$81,2,0) -> PDS/Sukuk | D15: 16.04383562 | E15: =IF(LEFT(A15,2)="IL","IL",IF(OR(R15="BND",R15="CSH"),VLOOKUP(AP15,Map!$M$2:$N$50,2,0),"Not Subject to Credit Risk")) -> Not Rated | F15: 364500 | G15: 8036625 | H15: 172763.01 | I15: 364500 | J15: 729000 | K15: 729000 | L15: 3645000 | M15: 7880478.082 | N15: 0 | O15: 0 | P15: 2021-12-31 | Q15: VZ120002 | R15: BND | S15: 130 | T15: C | U15: 2012-01-12 | V15: 0.0486 | W15: FTFPA | X15: 7500000 | Y15: 7566750 | Z15: 7566750 | AA15: A | AB15: 7550262.8 | AC15: 7723025.81 | AD15: 8209388.01 | AE15: 8209388.01 | AF15: 0 | AG15: 1 | AH15: 486362.2 | AI15: 0 | AL15: 11095.89 | AM15: 172763.01 | AN15: 16487.2 | AO15: 0 | AP15: 0 | AQ15: 2038-01-12 | AR15: N/A
A16: FT | B16: SLMT | C16: =VLOOKUP(S16,Map!$F$6:$H$81,2,0) -> PDS/Sukuk | D16: 16.04383562 | E16: =IF(LEFT(A16,2)="IL","IL",IF(OR(R16="BND",R16="CSH"),VLOOKUP(AP16,Map!$M$2:$N$50,2,0),"Not Subject to Credit Risk")) -> Not Rated | F16: 1093500 | G16: 24109875 | H16: 518289.04 | I16: 1093500 | J16: 2187000 | K16: 2187000 | L16: 10935000 | M16: 23641434.25 | N16: 0 | O16: 0 | P16: 2021-12-31 | Q16: VZ120002 | R16: BND | S16: 130 | T16: C | U16: 2012-01-12 | V16: 0.0486 | W16: FTFPA | X16: 22500000 | Y16: 23037750 | Z16: 23037750 | AA16: A | AB16: 22903558.79 | AC16: 23421847.83 | AD16: 24628164.04 | AE16: 24628164.04 | AF16: 0 | AG16: 1 | AH16: 1206316.21 | AI16: 0 | AL16: 33287.67 | AM16: 518289.04 | AN16: 134191.21 | AO16: 0 | AP16: 0 | AQ16: 2038-01-12 | AR16: N/A
A17: FT | B17: SLMT | C17: =VLOOKUP(S17,Map!$F$6:$H$81,2,0) -> PDS/Sukuk | D17: 11.84109589 | E17: =IF(LEFT(A17,2)="IL","IL",IF(OR(R17="BND",R17="CSH"),VLOOKUP(AP17,Map!$M$2:$N$50,2,0),"Not Subject to Credit Risk")) -> Not Rated | F17: 480000 | G17: 10735800 | H17: 84164.38 | I17: 480000 | J17: 960000 | K17: 960000 | L17: 13283726.03 | M17: 0 | N17: 0 | O17: 0 | P17: 2021-12-31 | Q17: VX130278 | R17: BND | S17: 130 | T17: C | U17: 2014-04-07 | V17: 0.048 | W17: FTFPA | X17: 10000000 | Y17: 9643000 | Z17: 9643000 | AA17: A | AB17: 9743849.35 | AC17: 9828013.73 | AD17: 10819964.38 | AE17: 10819964.38 | AF17: 0 | AG17: 1 | AH17: 991950.65 | AI17: 0 | AL17: 7745.21 | AM17: 84164.38 | AN17: -100849.35 | AO17: 0 | AP17: 0 | AQ17: 2033-10-31 | AR17: N/A
A18: FT | B18: SLMT | C18: =VLOOKUP(S18,Map!$F$6:$H$81,2,0) -> PDS/Sukuk | D18: 7.416438356 | E18: =IF(LEFT(A18,2)="IL","IL",IF(OR(R18="BND",R18="CSH"),VLOOKUP(AP18,Map!$M$2:$N$50,2,0),"Not Subject to Credit Risk")) -> AAA | F18: 256500 | G18: 5367850 | H18: 22487.67 | I18: 256500 | J18: 513000 | K18: 513000 | L18: 5619816.438 | M18: 0 | N18: 0 | O18: 0 | P18: 2021-12-31 | Q18: VS140146 | R18: BND | S18: 110 | T18: C | U18: 2014-05-30 | V18: 0.0513 | W18: FTFPA | X18: 5000000 | Y18: 5000000 | Z18: 5000000 | AA18: A | AB18: 5000000 | AC18: 5022487.67 | AD18: 5390337.67 | AE18: 5390337.67 | AF18: 0 | AG18: 1 | AH18: 367850 | AI18: 0 | AL18: 2008.22 | AM18: 22487.67 | AN18: 0 | AO18: 0 | AP18: 115 | AQ18: 2029-05-30 | AR18: N/A
A19: FT | B19: SLMT | C19: =VLOOKUP(S19,Map!$F$6:$H$81,2,0) -> PDS/Sukuk | D19: 4.410958904 | E19: =IF(LEFT(A19,2)="IL","IL",IF(OR(R19="BND",R19="CSH"),VLOOKUP(AP19,Map!$M$2:$N$50,2,0),"Not Subject to Credit Risk")) -> AAA | F19: 246500 | G19: 5282650 | H19: 21610.96 | I19: 246500 | J19: 493000 | K19: 5347801.37 | L19: 0 | M19: 0 | N19: 0 | O19: 0 | P19: 2021-12-31 | Q19: VP140145 | R19: BND | S19: 110 | T19: C | U19: 2014-05-30 | V19: 0.0493 | W19: FTFPA | X19: 5000000 | Y19: 5000000 | Z19: 5000000 | AA19: A | AB19: 5000000 | AC19: 5021610.96 | AD19: 5304260.96 | AE19: 5304260.96 | AF19: 0 | AG19: 1 | AH19: 282650 | AI19: 0 | AL19: 2676.03 | AM19: 21610.96 | AN19: 0 | AO19: 0 | AP19: 115 | AQ19: 2026-05-29 | AR19: N/A
A20: FT | B20: SLMT | C20: =VLOOKUP(S20,Map!$F$6:$H$81,2,0) -> Cagamas | D20: 3.82739726 | E20: =IF(LEFT(A20,2)="IL","IL",IF(OR(R20="BND",R20="CSH"),VLOOKUP(AP20,Map!$M$2:$N$50,2,0),"Not Subject to Credit Risk")) -> AAA | F20: 227500 | G20: 5213950 | H20: 40513.7 | I20: 227500 | J20: 455000 | K20: 5188232.877 | L20: 0 | M20: 0 | N20: 0 | O20: 0 | P20: 2021-12-31 | Q20: VP130258 | R20: BND | S20: 100 | T20: C | U20: 2014-06-06 | V20: 0.0455 | W20: FTFPA | X20: 5000000 | Y20: 4926500 | Z20: 4926500 | AA20: A | AB20: 4970813.58 | AC20: 5011327.28 | AD20: 5254463.7 | AE20: 5254463.7 | AF20: 0 | AG20: 1 | AH20: 243136.42 | AI20: 0 | AL20: 4469.86 | AM20: 40513.7 | AN20: -44313.58 | AO20: 0 | AP20: 115 | AQ20: 2025-10-28 | AR20: N/A
A21: FT | B21: SLMT | C21: =VLOOKUP(S21,Map!$F$6:$H$81,2,0) -> PDS/Sukuk | D21: 7.238356164 | E21: =IF(LEFT(A21,2)="IL","IL",IF(OR(R21="BND",R21="CSH"),VLOOKUP(AP21,Map!$M$2:$N$50,2,0),"Not Subject to Credit Risk")) -> AAA | F21: 520000 | G21: 10820400 | H21: 137142.86 | I21: 520000 | J21: 1040000 | K21: 1040000 | L21: 11163945.21 | M21: 0 | N21: 0 | O21: 0 | P21: 2021-12-31 | Q21: VS140056 | R21: BND | S21: 110 | T21: C | U21: 2014-06-23 | V21: 0.052 | W21: FTFPA | X21: 10000000 | Y21: 10207000 | Z21: 10207000 | AA21: A | AB21: 10120392.46 | AC21: 10257535.32 | AD21: 10957542.86 | AE21: 10957542.86 | AF21: 0 | AG21: 1 | AH21: 700007.54 | AI21: 0 | AL21: 3985.71 | AM21: 137142.86 | AN21: 86607.54 | AO21: 0 | AP21: 115 | AQ21: 2029-03-26 | AR21: N/A
A22: FT | B22: SLMT | C22: =VLOOKUP(S22,Map!$F$6:$H$81,2,0) -> PDS/Sukuk | D22: 9.032876712 | E22: =IF(LEFT(A22,2)="IL","IL",IF(OR(R22="BND",R22="CSH"),VLOOKUP(AP22,Map!$M$2:$N$50,2,0),"Not Subject to Credit Risk")) -> AAA | F22: 507000 | G22: 10782700 | H22: 240304.11 | I22: 507000 | J22: 1014000 | K22: 1014000 | L22: 12044668.49 | M22: 0 | N22: 0 | O22: 0 | P22: 2021-12-31 | Q22: VW120018 | R22: BND | S22: 110 | T22: C | U22: 2014-06-24 | V22: 0.0507 | W22: FTFPA | X22: 10000000 | Y22: 9802000 | Z22: 9802000 | AA22: A | AB22: 9871256.74 | AC22: 10111560.85 | AD22: 11023004.11 | AE22: 11023004.11 | AF22: 0 | AG22: 1 | AH22: 911443.26 | AI22: 0 | AL22: 3967.12 | AM22: 240304.11 | AN22: -69256.74 | AO22: 0 | AP22: 115 | AQ22: 2031-01-10 | AR22: N/A
A23: FT | B23: SLMT | C23: =VLOOKUP(S23,Map!$F$6:$H$81,2,0) -> PDS/Sukuk | D23: 6.035616438 | E23: =IF(LEFT(A23,2)="IL","IL",IF(OR(R23="BND",R23="CSH"),VLOOKUP(AP23,Map!$M$2:$N$50,2,0),"Not Subject to Credit Risk")) -> AAA | F23: 488000 | G23: 10628800 | H23: 231298.63 | I23: 488000 | J23: 976000 | K23: 976000 | L23: 10505380.82 | M23: 0 | N23: 0 | O23: 0 | P23: 2021-12-31 | Q23: VT120015 | R23: BND | S23: 110 | T23: C | U23: 2014-06-26 | V23: 0.0488 | W23: FTFPA | X23: 10000000 | Y23: 9865000 | Z23: 9865000 | AA23: A | AB23: 9928516.53 | AC23: 10159815.16 | AD23: 10860098.63 | AE23: 10860098.63 | AF23: 0 | AG23: 1 | AH23: 700283.47 | AI23: 0 | AL23: 3210.96 | AM23: 231298.63 | AN23: -63516.53 | AO23: 0 | AP23: 115 | AQ23: 2028-01-12 | AR23: N/A
A24: FT | B24: SLMT | C24: =VLOOKUP(S24,Map!$F$6:$H$81,2,0) -> PDS/Sukuk | D24: 5.035616438 | E24: =IF(LEFT(A24,2)="IL","IL",IF(OR(R24="BND",R24="CSH"),VLOOKUP(AP24,Map!$M$2:$N$50,2,0),"Not Subject to Credit Risk")) -> AAA | F24: 240000 | G24: 5290500 | H24: 113753.42 | I24: 240000 | J24: 480000 | K24: 480000 | L24: 5008547.945 | M24: 0 | N24: 0 | O24: 0 | P24: 2021-12-31 | Q24: VS120014 | R24: BND | S24: 110 | T24: C | U24: 2014-08-08 | V24: 0.048 | W24: FTFPA | X24: 5000000 | Y24: 5028500 | Z24: 5028500 | AA24: A | AB24: 5013585.75 | AC24: 5127339.17 | AD24: 5404253.42 | AE24: 5404253.42 | AF24: 0 | AG24: 1 | AH24: 276914.25 | AI24: 0 | AL24: 1822.61 | AM24: 113753.42 | AN24: 14914.25 | AO24: 0 | AP24: 115 | AQ24: 2027-01-12 | AR24: N/A
A25: FT | B25: SLMT | C25: =VLOOKUP(S25,Map!$F$6:$H$81,2,0) -> PDS/Sukuk | D25: 5.57260274 | E25: =IF(LEFT(A25,2)="IL","IL",IF(OR(R25="BND",R25="CSH"),VLOOKUP(AP25,Map!$M$2:$N$50,2,0),"Not Subject to Credit Risk")) -> AAA | F25: 211500 | G25: 5132000 | H25: 91553.42 | I25: 211500 | J25: 423000 | K25: 423000 | L25: 5121105.479 | M25: 0 | N25: 0 | O25: 0 | P25: 2021-12-31 | Q25: VS120283 | R25: BND | S25: 110 | T25: C | U25: 2014-08-18 | V25: 0.0423 | W25: FTFPA | X25: 5000000 | Y25: 4760500 | Z25: 4760500 | AA25: A | AB25: 4878828.23 | AC25: 4970381.65 | AD25: 5223553.42 | AE25: 5223553.42 | AF25: 0 | AG25: 1 | AH25: 253171.77 | AI25: 0 | AL25: 1188.36 | AM25: 91553.42 | AN25: -118328.23 | AO25: 0 | AP25: 115 | AQ25: 2027-07-27 | AR25: N/A
A26: FT | B26: SLMT | C26: =VLOOKUP(S26,Map!$F$6:$H$81,2,0) -> Cagamas | D26: 3.82739726 | E26: =IF(LEFT(A26,2)="IL","IL",IF(OR(R26="BND",R26="CSH"),VLOOKUP(AP26,Map!$M$2:$N$50,2,0),"Not Subject to Credit Risk")) -> AAA | F26: 227500 | G26: 5213950 | H26: 40513.7 | I26: 227500 | J26: 455000 | K26: 5188232.877 | L26: 0 | M26: 0 | N26: 0 | O26: 0 | P26: 2021-12-31 | Q26: VP130258 | R26: BND | S26: 100 | T26: C | U26: 2014-08-26 | V26: 0.0455 | W26: FTFPA | X26: 5000000 | Y26: 4970000 | Z26: 4970000 | AA26: A | AB26: 4987947.81 | AC26: 5028461.51 | AD26: 5254463.7 | AE26: 5254463.7 | AF26: 0 | AG26: 1 | AH26: 226002.19 | AI26: 0 | AL26: 4469.86 | AM26: 40513.7 | AN26: -17947.81 | AO26: 0 | AP26: 115 | AQ26: 2025-10-28 | AR26: N/A
A27: FT | B27: SLMT | C27: =VLOOKUP(S27,Map!$F$6:$H$81,2,0) -> PDS/Sukuk | D27: 0.7753424658 | E27: =IF(LEFT(A27,2)="IL","IL",IF(OR(R27="BND",R27="CSH"),VLOOKUP(AP27,Map!$M$2:$N$50,2,0),"Not Subject to Credit Risk")) -> AA | F27: 184143.8356 | G27: 5081000 | H27: 53356.16 | I27: 5237499.996 | J27: 0 | K27: 0 | L27: 0 | M27: 0 | N27: 0 | O27: 0 | P27: 2021-12-31 | Q27: VL140346 | R27: BND | S27: 110 | T27: C | U27: 2014-10-16 | V27: 0.0475 | W27: FTFPA | X27: 5000000 | Y27: 5029750 | Z27: 5029750 | AA27: A | AB27: 5003396.22 | AC27: 5056752.38 | AD27: 5134356.16 | AE27: 5134356.16 | AF27: 0 | AG27: 1 | AH27: 77603.78 | AI27: 0 | AL27: 1702.06 | AM27: 53356.16 | AN27: 26353.78 | AO27: 0 | AP27: 125 | AQ27: 2022-10-10 | AR27: N/A
A28: FT | B28: SLMT | C28: =VLOOKUP(S28,Map!$F$6:$H$81,2,0) -> PDS/Sukuk | D28: 1.608219178 | E28: =IF(LEFT(A28,2)="IL","IL",IF(OR(R28="BND",R28="CSH"),VLOOKUP(AP28,Map!$M$2:$N$50,2,0),"Not Subject to Credit Risk")) -> AA | F28: 242500 | G28: 5149900 | H28: 54479.45 | I28: 242500 | J28: 5147493.151 | K28: 0 | L28: 0 | M28: 0 | N28: 0 | O28: 0 | P28: 2021-12-31 | Q28: VM140347 | R28: BND | S28: 110 | T28: C | U28: 2014-10-16 | V28: 0.0485 | W28: FTFPA | X28: 5000000 | Y28: 5035400 | Z28: 5035400 | AA28: A | AB28: 5007605.35 | AC28: 5062084.8 | AD28: 5204379.45 | AE28: 5204379.45 | AF28: 0 | AG28: 1 | AH28: 142294.65 | AI28: 0 | AL28: 1843.15 | AM28: 54479.45 | AN28: 27794.65 | AO28: 0 | AP28: 125 | AQ28: 2023-08-10 | AR28: N/A
A29: FT | B29: SLMT | C29: =VLOOKUP(S29,Map!$F$6:$H$81,2,0) -> PDS/Sukuk | D29: 12.70684932 | E29: =IF(LEFT(A29,2)="IL","IL",IF(OR(R29="BND",R29="CSH"),VLOOKUP(AP29,Map!$M$2:$N$50,2,0),"Not Subject to Credit Risk")) -> Not Rated | F29: 242500 | G29: 5344300 | H29: 73282.97 | I29: 242500 | J29: 485000 | K29: 485000 | L29: 6868910.959 | M29: 0 | N29: 0 | O29: 0 | P29: 2021-12-31 | Q29: VX140225 | R29: BND | S29: 130 | T29: C | U29: 2014-11-06 | V29: 0.0485 | W29: FTFPA | X29: 5000000 | Y29: 5037500 | Z29: 5037500 | AA29: A | AB29: 5027853.41 | AC29: 5101136.38 | AD29: 5417582.97 | AE29: 5417582.97 | AF29: 0 | AG29: 1 | AH29: 316446.59 | AI29: 0 | AL29: 4998.62 | AM29: 73282.97 | AN29: 9646.59 | AO29: 0 | AP29: 0 | AQ29: 2034-09-12 | AR29: N/A
A30: FT | B30: SLMT | C30: =VLOOKUP(S30,Map!$F$6:$H$81,2,0) -> PDS/Sukuk | D30: 6.879452055 | E30: =IF(LEFT(A30,2)="IL","IL",IF(OR(R30="BND",R30="CSH"),VLOOKUP(AP30,Map!$M$2:$N$50,2,0),"Not Subject to Credit Risk")) -> Not Rated | F30: 228000 | G30: 5249150 | H30: 29358.9 | I30: 228000 | J30: 456000 | K30: 456000 | L30: 5428515.068 | M30: 0 | N30: 0 | O30: 0 | P30: 2021-12-31 | Q30: VS130284 | R30: BND | S30: 130 | T30: C | U30: 2014-12-15 | V30: 0.0456 | W30: FTFPA | X30: 5000000 | Y30: 4930000 | Z30: 4930000 | AA30: A | AB30: 4959742.9 | AC30: 4989101.8 | AD30: 5278508.9 | AE30: 5278508.9 | AF30: 0 | AG30: 1 | AH30: 289407.1 | AI30: 0 | AL30: 1773.98 | AM30: 29358.9 | AN30: -29742.9 | AO30: 0 | AP30: 0 | AQ30: 2028-11-15 | AR30: N/A
A31: FT | B31: SLMT | C31: =VLOOKUP(S31,Map!$F$6:$H$81,2,0) -> PDS/Sukuk | D31: 6.879452055 | E31: =IF(LEFT(A31,2)="IL","IL",IF(OR(R31="BND",R31="CSH"),VLOOKUP(AP31,Map!$M$2:$N$50,2,0),"Not Subject to Credit Risk")) -> Not Rated | F31: 456000 | G31: 10498300 | H31: 58717.81 | I31: 456000 | J31: 912000 | K31: 912000 | L31: 10857030.14 | M31: 0 | N31: 0 | O31: 0 | P31: 2021-12-31 | Q31: VS130284 | R31: BND | S31: 130 | T31: C | U31: 2014-12-16 | V31: 0.0456 | W31: FTFPA | X31: 10000000 | Y31: 9843000 | Z31: 9843000 | AA31: A | AB31: 9909656.48 | AC31: 9968374.29 | AD31: 10557017.81 | AE31: 10557017.81 | AF31: 0 | AG31: 1 | AH31: 588643.52 | AI31: 0 | AL31: 3547.94 | AM31: 58717.81 | AN31: -66656.48 | AO31: 0 | AP31: 0 | AQ31: 2028-11-15 | AR31: N/A
A32: FT | B32: SLMT | C32: =VLOOKUP(S32,Map!$F$6:$H$81,2,0) -> PDS/Sukuk | D32: 12.98356164 | E32: =IF(LEFT(A32,2)="IL","IL",IF(OR(R32="BND",R32="CSH"),VLOOKUP(AP32,Map!$M$2:$N$50,2,0),"Not Subject to Credit Risk")) -> Not Rated | F32: 488000 | G32: 10826500 | H32: 13369.86 | I32: 488000 | J32: 976000 | K32: 976000 | L32: 13895978.08 | M32: 0 | N32: 0 | O32: 0 | P32: 2021-12-31 | Q32: VX140397 | R32: BND | S32: 130 | T32: C | U32: 2014-12-22 | V32: 0.0488 | W32: FTFPA | X32: 10000000 | Y32: 10000000 | Z32: 10000000 | AA32: A | AB32: 10000000 | AC32: 10013369.86 | AD32: 10839869.86 | AE32: 10839869.86 | AF32: 0 | AG32: 1 | AH32: 826500 | AI32: 0 | AL32: 11210.96 | AM32: 13369.86 | AN32: 0 | AO32: 0 | AP32: 0 | AQ32: 2034-12-22 | AR32: N/A
A33: FT | B33: SLMT | C33: =VLOOKUP(S33,Map!$F$6:$H$81,2,0) -> PDS/Sukuk | D33: 8.123287671 | E33: =IF(LEFT(A33,2)="IL","IL",IF(OR(R33="BND",R33="CSH"),VLOOKUP(AP33,Map!$M$2:$N$50,2,0),"Not Subject to Credit Risk")) -> Not Rated | F33: 231500 | G33: 5267000 | H33: 90063.01 | I33: 231500 | J33: 463000 | K33: 463000 | L33: 5723041.096 | M33: 0 | N33: 0 | O33: 0 | P33: 2021-12-31 | Q33: VS150025 | R33: BND | S33: 130 | T33: C | U33: 2015-02-12 | V33: 0.0463 | W33: FTFPA | X33: 5000000 | Y33: 5016100 | Z33: 5016100 | AA33: A | AB33: 5010066.42 | AC33: 5100129.43 | AD33: 5357063.01 | AE33: 5357063.01 | AF33: 0 | AG33: 1 | AH33: 256933.58 | AI33: 0 | AL33: 2202.74 | AM33: 90063.01 | AN33: 6033.58 | AO33: 0 | AP33: 0 | AQ33: 2030-02-12 | AR33: N/A
A34: FT | B34: SLMT | C34: =VLOOKUP(S34,Map!$F$6:$H$81,2,0) -> PDS/Sukuk | D34: 23.27945205 | E34: =IF(LEFT(A34,2)="IL","IL",IF(OR(R34="BND",R34="CSH"),VLOOKUP(AP34,Map!$M$2:$N$50,2,0),"Not Subject to Credit Risk")) -> Not Rated | F34: 1262500 | G34: 27173000 | H34: 300924.66 | I34: 1262500 | J34: 2525000 | K34: 2525000 | L34: 12625000 | M34: 35452808.22 | N34: 0 | O34: 0 | P34: 2021-12-31 | Q34: VZ150046 | R34: BND | S34: 130 | T34: C | U34: 2015-04-03 | V34: 0.0505 | W34: FTFPA | X34: 25000000 | Y34: 25000000 | Z34: 25000000 | AA34: A | AB34: 25000000 | AC34: 25300924.66 | AD34: 27473924.66 | AE34: 27473924.66 | AF34: 0 | AG34: 1 | AH34: 2173000 | AI34: 0 | AL34: 6626.71 | AM34: 300924.66 | AN34: 0 | AO34: 0 | AP34: 0 | AQ34: 2045-04-06 | AR34: N/A
A35: FT | B35: SLMT | C35: =VLOOKUP(S35,Map!$F$6:$H$81,2,0) -> PDS/Sukuk | D35: 16.04383562 | E35: =IF(LEFT(A35,2)="IL","IL",IF(OR(R35="BND",R35="CSH"),VLOOKUP(AP35,Map!$M$2:$N$50,2,0),"Not Subject to Credit Risk")) -> Not Rated | F35: 486000 | G35: 10715500 | H35: 230350.68 | I35: 486000 | J35: 972000 | K35: 972000 | L35: 4860000 | M35: 10507304.11 | N35: 0 | O35: 0 | P35: 2021-12-31 | Q35: VZ120002 | R35: BND | S35: 130 | T35: C | U35: 2015-06-09 | V35: 0.0486 | W35: FTFPA | X35: 10000000 | Y35: 10148500 | Z35: 10148500 | AA35: A | AB35: 10120306.8 | AC35: 10350657.48 | AD35: 10945850.68 | AE35: 10945850.68 | AF35: 0 | AG35: 1 | AH35: 595193.2 | AI35: 0 | AL35: 14794.53 | AM35: 230350.68 | AN35: 28193.2 | AO35: 0 | AP35: 0 | AQ35: 2038-01-12 | AR35: N/A
A36: FT | B36: SLMT | C36: =VLOOKUP(S36,Map!$F$6:$H$81,2,0) -> PDS/Sukuk | D36: 4.410958904 | E36: =IF(LEFT(A36,2)="IL","IL",IF(OR(R36="BND",R36="CSH"),VLOOKUP(AP36,Map!$M$2:$N$50,2,0),"Not Subject to Credit Risk")) -> AAA | F36: 493000 | G36: 10565300 | H36: 43221.92 | I36: 493000 | J36: 986000 | K36: 10695602.74 | L36: 0 | M36: 0 | N36: 0 | O36: 0 | P36: 2021-12-31 | Q36: VP140145 | R36: BND | S36: 110 | T36: C | U36: 2015-06-11 | V36: 0.0493 | W36: FTFPA | X36: 10000000 | Y36: 10343500 | Z36: 10343500 | AA36: A | AB36: 10158959.9 | AC36: 10202181.82 | AD36: 10608521.92 | AE36: 10608521.92 | AF36: 0 | AG36: 1 | AH36: 406340.1 | AI36: 0 | AL36: 5352.05 | AM36: 43221.92 | AN36: 184540.1 | AO36: 0 | AP36: 115 | AQ36: 2026-05-29 | AR36: N/A
A37: FT | B37: SLMT | C37: =VLOOKUP(S37,Map!$F$6:$H$81,2,0) -> PDS/Sukuk | D37: 7.704109589 | E37: =IF(LEFT(A37,2)="IL","IL",IF(OR(R37="BND",R37="CSH"),VLOOKUP(AP37,Map!$M$2:$N$50,2,0),"Not Subject to Credit Risk")) -> Not Rated | F37: 712500 | G37: 15896400 | H37: 215315.93 | I37: 712500 | J37: 1425000 | K37: 1425000 | L37: 16926678.08 | M37: 0 | N37: 0 | O37: 0 | P37: 2021-12-31 | Q37: VS140224 | R37: BND | S37: 130 | T37: C | U37: 2015-06-11 | V37: 0.0475 | W37: FTFPA | X37: 15000000 | Y37: 15288750 | Z37: 15288750 | AA37: A | AB37: 15179009.07 | AC37: 15394325 | AD37: 16111715.93 | AE37: 16111715.93 | AF37: 0 | AG37: 1 | AH37: 717390.93 | AI37: 0 | AL37: 6622.26 | AM37: 215315.93 | AN37: 109740.93 | AO37: 0 | AP37: 0 | AQ37: 2029-09-12 | AR37: N/A
A38: FT | B38: SLMT | C38: =VLOOKUP(S38,Map!$F$6:$H$81,2,0) -> PDS/Sukuk | D38: 8.084931507 | E38: =IF(LEFT(A38,2)="IL","IL",IF(OR(R38="BND",R38="CSH"),VLOOKUP(AP38,Map!$M$2:$N$50,2,0),"Not Subject to Credit Risk")) -> AAA | F38: 244000 | G38: 5312400 | H38: 104284.93 | I38: 244000 | J38: 488000 | K38: 488000 | L38: 5752723.288 | M38: 0 | N38: 0 | O38: 0 | P38: 2021-12-31 | Q38: VS150002 | R38: BND | S38: 110 | T38: C | U38: 2015-06-16 | V38: 0.0488 | W38: FTFPA | X38: 5000000 | Y38: 5121500 | Z38: 5121500 | AA38: A | AB38: 5077154.02 | AC38: 5181438.95 | AD38: 5416684.93 | AE38: 5416684.93 | AF38: 0 | AG38: 1 | AH38: 235245.98 | AI38: 0 | AL38: 1905.48 | AM38: 104284.93 | AN38: 44345.98 | AO38: 0 | AP38: 115 | AQ38: 2030-01-29 | AR38: N/A
A39: FT | B39: SLMT | C39: =VLOOKUP(S39,Map!$F$6:$H$81,2,0) -> PDS/Sukuk | D39: 23.27945205 | E39: =IF(LEFT(A39,2)="IL","IL",IF(OR(R39="BND",R39="CSH"),VLOOKUP(AP39,Map!$M$2:$N$50,2,0),"Not Subject to Credit Risk")) -> Not Rated | F39: 252500 | G39: 5434600 | H39: 60184.93 | I39: 252500 | J39: 505000 | K39: 505000 | L39: 2525000 | M39: 7090561.644 | N39: 0 | O39: 0 | P39: 2021-12-31 | Q39: VZ150046 | R39: BND | S39: 130 | T39: C | U39: 2015-06-19 | V39: 0.0505 | W39: FTFPA | X39: 5000000 | Y39: 5073000 | Z39: 5073000 | AA39: A | AB39: 5064749.67 | AC39: 5124934.6 | AD39: 5494784.93 | AE39: 5494784.93 | AF39: 0 | AG39: 1 | AH39: 369850.33 | AI39: 0 | AL39: 1325.34 | AM39: 60184.93 | AN39: 8250.33 | AO39: 0 | AP39: 0 | AQ39: 2045-04-06 | AR39: N/A
A40: FT | B40: SLMT | C40: =VLOOKUP(S40,Map!$F$6:$H$81,2,0) -> PDS/Sukuk | D40: 8.22739726 | E40: =IF(LEFT(A40,2)="IL","IL",IF(OR(R40="BND",R40="CSH"),VLOOKUP(AP40,Map!$M$2:$N$50,2,0),"Not Subject to Credit Risk")) -> Not Rated | F40: 232000 | G40: 5280800 | H40: 62926.03 | I40: 232000 | J40: 464000 | K40: 464000 | L40: 5748756.164 | M40: 0 | N40: 0 | O40: 0 | P40: 2021-12-31 | Q40: VS150043 | R40: BND | S40: 130 | T40: C | U40: 2015-06-19 | V40: 0.0464 | W40: FTFPA | X40: 5000000 | Y40: 5031500 | Z40: 5031500 | AA40: A | AB40: 5020130.73 | AC40: 5083056.76 | AD40: 5343726.03 | AE40: 5343726.03 | AF40: 0 | AG40: 1 | AH40: 260669.27 | AI40: 0 | AL40: 2206.85 | AM40: 62926.03 | AN40: 11369.27 | AO40: 0 | AP40: 0 | AQ40: 2030-03-22 | AR40: N/A
A41: FT | B41: SLMT | C41: =VLOOKUP(S41,Map!$F$6:$H$81,2,0) -> PDS/Sukuk | D41: 7.238356164 | E41: =IF(LEFT(A41,2)="IL","IL",IF(OR(R41="BND",R41="CSH"),VLOOKUP(AP41,Map!$M$2:$N$50,2,0),"Not Subject to Credit Risk")) -> AAA | F41: 260000 | G41: 5410200 | H41: 68571.43 | I41: 260000 | J41: 520000 | K41: 520000 | L41: 5581972.603 | M41: 0 | N41: 0 | O41: 0 | P41: 2021-12-31 | Q41: VS140056 | R41: BND | S41: 110 | T41: C | U41: 2015-06-19 | V41: 0.052 | W41: FTFPA | X41: 5000000 | Y41: 5284750 | Z41: 5284750 | AA41: A | AB41: 5172051.77 | AC41: 5240623.2 | AD41: 5478771.43 | AE41: 5478771.43 | AF41: 0 | AG41: 1 | AH41: 238148.23 | AI41: 0 | AL41: 1992.86 | AM41: 68571.43 | AN41: 112698.23 | AO41: 0 | AP41: 115 | AQ41: 2029-03-26 | AR41: N/A
A42: FT | B42: SLMT | C42: =VLOOKUP(S42,Map!$F$6:$H$81,2,0) -> PDS/Sukuk | D42: 8.084931507 | E42: =IF(LEFT(A42,2)="IL","IL",IF(OR(R42="BND",R42="CSH"),VLOOKUP(AP42,Map!$M$2:$N$50,2,0),"Not Subject to Credit Risk")) -> AAA | F42: 244000 | G42: 5312400 | H42: 104284.93 | I42: 244000 | J42: 488000 | K42: 488000 | L42: 5752723.288 | M42: 0 | N42: 0 | O42: 0 | P42: 2021-12-31 | Q42: VS150002 | R42: BND | S42: 110 | T42: C | U42: 2015-07-29 | V42: 0.0488 | W42: FTFPA | X42: 5000000 | Y42: 5104500 | Z42: 5104500 | AA42: A | AB42: 5066788.24 | AC42: 5171073.17 | AD42: 5416684.93 | AE42: 5416684.93 | AF42: 0 | AG42: 1 | AH42: 245611.76 | AI42: 0 | AL42: 1905.48 | AM42: 104284.93 | AN42: 37711.76 | AO42: 0 | AP42: 115 | AQ42: 2030-01-29 | AR42: N/A
A43: FT | B43: SLMT | C43: =VLOOKUP(S43,Map!$F$6:$H$81,2,0) -> PDS/Sukuk | D43: 3.632876712 | E43: =IF(LEFT(A43,2)="IL","IL",IF(OR(R43="BND",R43="CSH"),VLOOKUP(AP43,Map!$M$2:$N$50,2,0),"Not Subject to Credit Risk")) -> AAA | F43: 237500 | G43: 5231150 | H43: 88493.15 | I43: 237500 | J43: 475000 | K43: 5150308.219 | L43: 0 | M43: 0 | N43: 0 | O43: 0 | P43: 2021-12-31 | Q43: VN150159 | R43: BND | S43: 110 | T43: C | U43: 2015-08-17 | V43: 0.0475 | W43: FTFPA | X43: 5000000 | Y43: 5000000 | Z43: 5000000 | AA43: A | AB43: 5000000 | AC43: 5088493.15 | AD43: 5319643.15 | AE43: 5319643.15 | AF43: 0 | AG43: 1 | AH43: 231150 | AI43: 0 | AL43: 3702.06 | AM43: 88493.15 | AN43: 0 | AO43: 0 | AP43: 115 | AQ43: 2025-08-18 | AR43: N/A
A44: FT | B44: SLMT | C44: =VLOOKUP(S44,Map!$F$6:$H$81,2,0) -> PDS/Sukuk | D44: 2.564383562 | E44: =IF(LEFT(A44,2)="IL","IL",IF(OR(R44="BND",R44="CSH"),VLOOKUP(AP44,Map!$M$2:$N$50,2,0),"Not Subject to Credit Risk")) -> Not Rated | F44: 220500 | G44: 5183100 | H44: 96053.42 | I44: 220500 | J44: 5344946.575 | K44: 0 | L44: 0 | M44: 0 | N44: 0 | O44: 0 | P44: 2021-12-31 | Q44: VN140197 | R44: BND | S44: 130 | T44: C | U44: 2015-09-02 | V44: 0.0441 | W44: FTFPA | X44: 5000000 | Y44: 4928000 | Z44: 4928000 | AA44: A | AB44: 4976107.64 | AC44: 5072161.06 | AD44: 5279153.42 | AE44: 5279153.42 | AF44: 0 | AG44: 1 | AH44: 206992.36 | AI44: 0 | AL44: 3862.33 | AM44: 96053.42 | AN44: -48107.64 | AO44: 0 | AP44: 0 | AQ44: 2024-07-24 | AR44: N/A
A45: FT | B45: SLMT | C45: =VLOOKUP(S45,Map!$F$6:$H$81,2,0) -> PDS/Sukuk | D45: 23.87671233 | E45: =IF(LEFT(A45,2)="IL","IL",IF(OR(R45="BND",R45="CSH"),VLOOKUP(AP45,Map!$M$2:$N$50,2,0),"Not Subject to Credit Risk")) -> Not Rated | F45: 257500 | G45: 5504700 | H45: 35273.97 | I45: 257500 | J45: 515000 | K45: 515000 | L45: 2575000 | M45: 7285753.425 | N45: 0 | O45: 0 | P45: 2021-12-31 | Q45: VZ150258 | R45: BND | S45: 130 | T45: C | U45: 2015-11-20 | V45: 0.0515 | W45: FTFPA | X45: 5000000 | Y45: 5007750 | Z45: 5007750 | AA45: A | AB45: 5006971.54 | AC45: 5042245.51 | AD45: 5539973.97 | AE45: 5539973.97 | AF45: 0 | AG45: 1 | AH45: 497728.46 | AI45: 0 | AL45: 1266.44 | AM45: 35273.97 | AN45: 778.46 | AO45: 0 | AP45: 0 | AQ45: 2045-11-10 | AR45: N/A
A46: FT | B46: SLMT | C46: =VLOOKUP(S46,Map!$F$6:$H$81,2,0) -> PDS/Sukuk | D46: 3.616438356 | E46: =IF(LEFT(A46,2)="IL","IL",IF(OR(R46="BND",R46="CSH"),VLOOKUP(AP46,Map!$M$2:$N$50,2,0),"Not Subject to Credit Risk")) -> AA | F46: 229000 | G46: 5194650 | H46: 89090.41 | I46: 229000 | J46: 458000 | K46: 5141164.384 | L46: 0 | M46: 0 | N46: 0 | O46: 0 | P46: 2021-12-31 | Q46: VN150157 | R46: BND | S46: 110 | T46: C | U46: 2016-07-28 | V46: 0.0458 | W46: FTFPA | X46: 5000000 | Y46: 5048000 | Z46: 5048000 | AA46: A | AB46: 5021551.34 | AC46: 5110641.75 | AD46: 5283740.41 | AE46: 5283740.41 | AF46: 0 | AG46: 1 | AH46: 173098.66 | AI46: 0 | AL46: 3482.19 | AM46: 89090.41 | AN46: 26448.66 | AO46: 0 | AP46: 122 | AQ46: 2025-08-12 | AR46: N/A
A47: FT | B47: SLMT | C47: =VLOOKUP(S47,Map!$F$6:$H$81,2,0) -> PDS/Sukuk | D47: 14.65205479 | E47: =IF(LEFT(A47,2)="IL","IL",IF(OR(R47="BND",R47="CSH"),VLOOKUP(AP47,Map!$M$2:$N$50,2,0),"Not Subject to Credit Risk")) -> AA | F47: 306500 | G47: 5347250 | H47: 110004.11 | I47: 306500 | J47: 613000 | K47: 613000 | L47: 7958354.795 | M47: 0 | N47: 0 | O47: 0 | P47: 2021-12-31 | Q47: VX160267 | R47: BND | S47: 110 | T47: C | U47: 2016-08-22 | V47: 0.0613 | W47: FTFPA | X47: 5000000 | Y47: 5116000 | Z47: 5116000 | AA47: A | AB47: 5096934.4 | AC47: 5206938.51 | AD47: 5457254.11 | AE47: 5457254.11 | AF47: 0 | AG47: 1 | AH47: 250315.6 | AI47: 0 | AL47: 7719.18 | AM47: 110004.11 | AN47: 19065.6 | AO47: 0 | AP47: 128 | AQ47: 2036-08-22 | AR47: N/A
A48: FT | B48: SLMT | C48: =VLOOKUP(S48,Map!$F$6:$H$81,2,0) -> PDS/Sukuk | D48: 19.8109589 | E48: =IF(LEFT(A48,2)="IL","IL",IF(OR(R48="BND",R48="CSH"),VLOOKUP(AP48,Map!$M$2:$N$50,2,0),"Not Subject to Credit Risk")) -> Not Rated | F48: 191200 | G48: 4215520 | H48: 38240 | I48: 191200 | J48: 382400 | K48: 382400 | L48: 1912000 | M48: 4919855.342 | N48: 0 | O48: 0 | P48: 2021-12-31 | Q48: VZ160322 | R48: BND | S48: 130 | T48: C | U48: 2016-10-19 | V48: 0.0478 | W48: FTFPA | X48: 4000000 | Y48: 4000000 | Z48: 4000000 | AA48: A | AB48: 4000000 | AC48: 4038240 | AD48: 4253760 | AE48: 4253760 | AF48: 0 | AG48: 1 | AH48: 215520 | AI48: 0 | AL48: 1531.51 | AM48: 38240 | AN48: 0 | AO48: 0 | AP48: 0 | AQ48: 2041-10-18 | AR48: N/A
A49: FT | B49: SLMT | C49: =VLOOKUP(S49,Map!$F$6:$H$81,2,0) -> PDS/Sukuk | D49: 5.216438356 | E49: =IF(LEFT(A49,2)="IL","IL",IF(OR(R49="BND",R49="CSH"),VLOOKUP(AP49,Map!$M$2:$N$50,2,0),"Not Subject to Credit Risk")) -> Not Rated | F49: 228000 | G49: 5259900 | H49: 63715.07 | I49: 228000 | J49: 456000 | K49: 456000 | L49: 5049347.945 | M49: 0 | N49: 0 | O49: 0 | P49: 2021-12-31 | Q49: VN170118 | R49: BND | S49: 130 | T49: C | U49: 2017-03-17 | V49: 0.0456 | W49: FTFPA | X49: 5000000 | Y49: 5000000 | Z49: 5000000 | AA49: A | AB49: 5000000 | AC49: 5063715.07 | AD49: 5323615.07 | AE49: 5323615.07 | AF49: 0 | AG49: 1 | AH49: 259900 | AI49: 0 | AL49: 1523.97 | AM49: 63715.07 | AN49: 0 | AO49: 0 | AP49: 0 | AQ49: 2027-03-19 | AR49: N/A
